Workbook

Sheet A01
B6: REM-A01. CONTROLES DE SALUD
B9: SECCIÓN A: CONTROLES DE SALUD SEXUAL Y REPRODUCTIVA
B10: TIPO DE CONTROL | C10: PROFESIONAL | D10: TOTAL | E10: POR EDAD | V10: SEXO | X10: Beneficiarios | Y10: Control con pareja familiar u otro | Z10: Control de diada con presencia del padre | AA10: TIPOS DE LACTANCIA | AN10: * No olvide digitar los campos Beneficiarios (Digite CEROS si no tiene). * El número de controles según sexo NO DEBE ser diferente al Total. * No olvide digitar los campos Niños, Niñas, Adolescentes y Jóvenes de Programas SENAME (Digite CEROS si no tiene). | CB10: * No olvide digitar los campos Beneficiarios (Digite CEROS si no tiene). | CF10: * El número de controles según sexo NO DEBE ser diferente al Total. | CH10: * No olvide digitar los campos Niños, Niñas, Adolescentes y Jóvenes de Programas SENAME (Digite CEROS si no tiene). | CI10: 0 | CJ10: =IF(AK10>SUM(G10:N10),1,IF(AL10>SUM(O10:Q10),1,0)) -> 0 | CK10: 1 | CM10: 1 | CN10: 0 | CR10: 1
E11: Menores de un mes | F11: 5 - 9 | G11: 10 - 14 | H11: 15 a 19 | I11: 20 - 24 | J11: 25 - 29 | K11: 30 - 34 | L11: 35 - 39 | M11: 40 - 44 | N11: 45 - 49 | O11: 50 - 54 | P11: 55 - 59 | Q11: 60 - 64 | R11: 65 - 69 | S11: 70 - 74 | T11: 75 - 79 | U11: 80 y mas | V11: HOMBRES | W11: MUJERES | AA11: Lactancia Materna Exclusiva | AB11: Lactancia Materna / Formula Láctea | AC11: Formula Láctea
A12: 01010101 | B12: PRE- CONCEPCIONAL | C12: MÉDICO | D12: =IFERROR(VLOOKUP($A12,Filtro!$A$5:$AX$2265,2,FALSE),0) -> 4 | E12: =IFERROR(VLOOKUP($A12,Filtro!$A$5:$AX$2265,3,FALSE),0) -> 0 | F12: =IFERROR(VLOOKUP($A12,Filtro!$A$5:$AX$2265,4,FALSE),0) -> 0 | G12: =IFERROR(VLOOKUP($A12,Filtro!$A$5:$AX$2265,5,FALSE),0) -> 0 | H12: =IFERROR(VLOOKUP($A12,Filtro!$A$5:$AX$2265,6,FALSE),0) -> 0 | I12: =IFERROR(VLOOKUP($A12,Filtro!$A$5:$AX$2265,7,FALSE),0) -> 2 | J12: =IFERROR(VLOOKUP($A12,Filtro!$A$5:$AX$2265,8,FALSE),0) -> 1 | K12: =IFERROR(VLOOKUP($A12,Filtro!$A$5:$AX$2265,9,FALSE),0) -> 1 | L12: =IFERROR(VLOOKUP($A12,Filtro!$A$5:$AX$2265,10,FALSE),0) -> 0 | M12: =IFERROR(VLOOKUP($A12,Filtro!$A$5:$AX$2265,11,FALSE),0) -> 0 | N12: =IFERROR(VLOOKUP($A12,Filtro!$A$5:$AX$2265,12,FALSE),0) -> 0 | O12: =IFERROR(VLOOKUP($A12,Filtro!$A$5:$AX$2265,13,FALSE),0) -> 0 | P12: =IFERROR(VLOOKUP($A12,Filtro!$A$5:$AX$2265,14,FALSE),0) -> 0 | Q12: =IFERROR(VLOOKUP($A12,Filtro!$A$5:$AX$2265,15,FALSE),0) -> 0 | R12: =IFERROR(VLOOKUP($A12,Filtro!$A$5:$AX$2265,16,FALSE),0) -> 0 | S12: =IFERROR(VLOOKUP($A12,Filtro!$A$5:$AX$2265,17,FALSE),0) -> 0 | T12: =IFERROR(VLOOKUP($A12,Filtro!$A$5:$AX$2265,18,FALSE),0) -> 0 | U12: =IFERROR(VLOOKUP($A12,Filtro!$A$5:$AX$2265,19,FALSE),0) -> 0 | V12: =IFERROR(VLOOKUP($A12,Filtro!$A$5:$AX$2265,20,FALSE),0) -> 0 | W12: =IFERROR(VLOOKUP($A12,Filtro!$A$5:$AX$2265,21,FALSE),0) -> 4 | X12: =IFERROR(VLOOKUP($A12,Filtro!$A$5:$AX$2265,22,FALSE),0) -> 4 | Y12: =IFERROR(VLOOKUP($A12,Filtro!$A$5:$AX$2265,23,FALSE),0) -> 0 | Z12: =IFERROR(VLOOKUP($A12,Filtro!$A$5:$AX$2265,24,FALSE),0) -> 0 | AA12: =IFERROR(VLOOKUP($A12,Filtro!$A$5:$AX$2265,25,FALSE),0) -> 0 | AB12: =IFERROR(VLOOKUP($A12,Filtro!$A$5:$AX$2265,26,FALSE),0) -> 0 | AC12: =IFERROR(VLOOKUP($A12,Filtro!$A$5:$AX$2265,27,FALSE),0) -> 0 | CA12: * La suma de los sexos NO DEBE ser diferente al Total. | CF12: * El número de controles según sexo NO DEBE ser diferente al Total. | CI12: 0 | CJ12: =IF(AK12>SUM(G12:N12),1,IF(AL12>SUM(O12:Q12),1,0)) -> 0 | CK12: 1 | CL12: 1 | CM12: 0 | CN12: 0 | CO12: 0 | CQ12: 0 | CR12: 0 | CS12: 0
A13: 01010103 | C13: MATRONA /ÓN | D13: =IFERROR(VLOOKUP($A13,Filtro!$A$5:$AX$2265,2,FALSE),0) -> 1165 | E13: =IFERROR(VLOOKUP($A13,Filtro!$A$5:$AX$2265,3,FALSE),0) -> 0 | F13: =IFERROR(VLOOKUP($A13,Filtro!$A$5:$AX$2265,4,FALSE),0) -> 0 | G13: =IFERROR(VLOOKUP($A13,Filtro!$A$5:$AX$2265,5,FALSE),0) -> 2 | H13: =IFERROR(VLOOKUP($A13,Filtro!$A$5:$AX$2265,6,FALSE),0) -> 61 | I13: =IFERROR(VLOOKUP($A13,Filtro!$A$5:$AX$2265,7,FALSE),0) -> 212 | J13: =IFERROR(VLOOKUP($A13,Filtro!$A$5:$AX$2265,8,FALSE),0) -> 300 | K13: =IFERROR(VLOOKUP($A13,Filtro!$A$5:$AX$2265,9,FALSE),0) -> 284 | L13: =IFERROR(VLOOKUP($A13,Filtro!$A$5:$AX$2265,10,FALSE),0) -> 199 | M13: =IFERROR(VLOOKUP($A13,Filtro!$A$5:$AX$2265,11,FALSE),0) -> 91 | N13: =IFERROR(VLOOKUP($A13,Filtro!$A$5:$AX$2265,12,FALSE),0) -> 13 | O13: =IFERROR(VLOOKUP($A13,Filtro!$A$5:$AX$2265,13,FALSE),0) -> 3 | P13: =IFERROR(VLOOKUP($A13,Filtro!$A$5:$AX$2265,14,FALSE),0) -> 0 | Q13: =IFERROR(VLOOKUP($A13,Filtro!$A$5:$AX$2265,15,FALSE),0) -> 0 | R13: =IFERROR(VLOOKUP($A13,Filtro!$A$5:$AX$2265,16,FALSE),0) -> 0 | S13: =IFERROR(VLOOKUP($A13,Filtro!$A$5:$AX$2265,18,FALSE),0) -> 0 | T13: =IFERROR(VLOOKUP($A13,Filtro!$A$5:$AX$2265,19,FALSE),0) -> 0 | U13: =IFERROR(VLOOKUP($A13,Filtro!$A$5:$AX$2265,20,FALSE),0) -> 2 | V13: =IFERROR(VLOOKUP($A13,Filtro!$A$5:$AX$2265,21,FALSE),0) -> 1104 | W13: =IFERROR(VLOOKUP($A13,Filtro!$A$5:$AX$2265,22,FALSE),0) -> 1089 | X13: =IFERROR(VLOOKUP($A13,Filtro!$A$5:$AX$2265,23,FALSE),0) -> 0 | Y13: =IFERROR(VLOOKUP($A13,Filtro!$A$5:$AX$2265,24,FALSE),0) -> 0 | Z13: =IFERROR(VLOOKUP($A13,Filtro!$A$5:$AX$2265,25,FALSE),0) -> 0 | AA13: =IFERROR(VLOOKUP($A13,Filtro!$A$5:$AX$2265,26,FALSE),0) -> 0 | AB13: =IFERROR(VLOOKUP($A13,Filtro!$A$5:$AX$2265,27,FALSE),0) -> 0 | AC13: =IFERROR(VLOOKUP($A13,Filtro!$A$5:$AX$2265,28,FALSE),0) -> 0 | CA13: * No olvide digitar los campos Beneficiarios (Digite CEROS si no tiene). | CE13: * El número de controles según sexo NO DEBE ser diferente al Total. | CG13: * No olvide digitar los campos Niños, Niñas, Adolescentes y Jóvenes de Programas SENAME (Digite CEROS si no tiene). | CH13: 0 | CI13: =IF(AJ13>SUM(F13:M13),1,IF(AK13>SUM(N13:P13),1,0)) -> 0 | CJ13: 1 | CL13: 1 | CM13: 0 | CN13: 0 | CO13: 0 | CQ13: 0 | CR13: 0 | CS13: 0
A14: 01010201 | B14: PRENATAL | C14: MÉDICO | D14: =IFERROR(VLOOKUP($A14,Filtro!$A$5:$AX$2265,2,FALSE),0) -> 280 | E14: =IFERROR(VLOOKUP($A14,Filtro!$A$5:$AX$2265,3,FALSE),0) -> 0 | F14: =IFERROR(VLOOKUP($A14,Filtro!$A$5:$AX$2265,4,FALSE),0) -> 0 | G14: =IFERROR(VLOOKUP($A14,Filtro!$A$5:$AX$2265,5,FALSE),0) -> 0 | H14: =IFERROR(VLOOKUP($A14,Filtro!$A$5:$AX$2265,6,FALSE),0) -> 29 | I14: =IFERROR(VLOOKUP($A14,Filtro!$A$5:$AX$2265,7,FALSE),0) -> 67 | J14: =IFERROR(VLOOKUP($A14,Filtro!$A$5:$AX$2265,8,FALSE),0) -> 79 | K14: =IFERROR(VLOOKUP($A14,Filtro!$A$5:$AX$2265,9,FALSE),0) -> 61 | L14: =IFERROR(VLOOKUP($A14,Filtro!$A$5:$AX$2265,10,FALSE),0) -> 34 | M14: =IFERROR(VLOOKUP($A14,Filtro!$A$5:$AX$2265,11,FALSE),0) -> 8 | N14: =IFERROR(VLOOKUP($A14,Filtro!$A$5:$AX$2265,12,FALSE),0) -> 1 | O14: =IFERROR(VLOOKUP($A14,Filtro!$A$5:$AX$2265,13,FALSE),0) -> 1 | P14: =IFERROR(VLOOKUP($A14,Filtro!$A$5:$AX$2265,14,FALSE),0) -> 0 | Q14: =IFERROR(VLOOKUP($A14,Filtro!$A$5:$AX$2265,15,FALSE),0) -> 0 | R14: =IFERROR(VLOOKUP($A14,Filtro!$A$5:$AX$2265,16,FALSE),0) -> 0 | S14: =IFERROR(VLOOKUP($A14,Filtro!$A$5:$AX$2265,18,FALSE),0) -> 0 | T14: =IFERROR(VLOOKUP($A14,Filtro!$A$5:$AX$2265,19,FALSE),0) -> 0 | U14: =IFERROR(VLOOKUP($A14,Filtro!$A$5:$AX$2265,20,FALSE),0) -> 0 | V14: =IFERROR(VLOOKUP($A14,Filtro!$A$5:$AX$2265,21,FALSE),0) -> 396 | W14: =IFERROR(VLOOKUP($A14,Filtro!$A$5:$AX$2265,22,FALSE),0) -> 396 | X14: =IFERROR(VLOOKUP($A14,Filtro!$A$5:$AX$2265,23,FALSE),0) -> 16 | Y14: =IFERROR(VLOOKUP($A14,Filtro!$A$5:$AX$2265,24,FALSE),0) -> 0 | Z14: =IFERROR(VLOOKUP($A14,Filtro!$A$5:$AX$2265,25,FALSE),0) -> 0 | AA14: =IFERROR(VLOOKUP($A14,Filtro!$A$5:$AX$2265,26,FALSE),0) -> 0 | AB14: =IFERROR(VLOOKUP($A14,Filtro!$A$5:$AX$2265,27,FALSE),0) -> 0 | AC14: =IFERROR(VLOOKUP($A14,Filtro!$A$5:$AX$2265,28,FALSE),0) -> 0 | CB14: * La suma de los sexos NO DEBE ser diferente al Total. | CH14: * No olvide digitar el campo Beneficiarios (Digite CERO si no tiene). | CI14: * No olvide digitar el campo Control con pareja familiar u otro (Digite CERO si no tiene). | CM14: 1 | CN14: 0 | CO14: 0 | CP14: 0 | CR14: 1 | CS14: 1 | CT14: 0
A15: 01010203 | C15: MATRONA /ÓN | D15: =IFERROR(VLOOKUP($A15,Filtro!$A$5:$AX$2265,3,FALSE),0) -> 0 | E15: =IFERROR(VLOOKUP($A15,Filtro!$A$5:$AX$2265,4,FALSE),0) -> 0 | F15: =IFERROR(VLOOKUP($A15,Filtro!$A$5:$AX$2265,5,FALSE),0) -> 83 | G15: =IFERROR(VLOOKUP($A15,Filtro!$A$5:$AX$2265,6,FALSE),0) -> 2447 | H15: =IFERROR(VLOOKUP($A15,Filtro!$A$5:$AX$2265,7,FALSE),0) -> 8665 | I15: =IFERROR(VLOOKUP($A15,Filtro!$A$5:$AX$2265,8,FALSE),0) -> 10635 | J15: =IFERROR(VLOOKUP($A15,Filtro!$A$5:$AX$2265,9,FALSE),0) -> 8819 | K15: =IFERROR(VLOOKUP($A15,Filtro!$A$5:$AX$2265,10,FALSE),0) -> 4554 | L15: =IFERROR(VLOOKUP($A15,Filtro!$A$5:$AX$2265,11,FALSE),0) -> 1113 | M15: =IFERROR(VLOOKUP($A15,Filtro!$A$5:$AX$2265,12,FALSE),0) -> 57 | N15: =IFERROR(VLOOKUP($A15,Filtro!$A$5:$AX$2265,13,FALSE),0) -> 7 | O15: =IFERROR(VLOOKUP($A15,Filtro!$A$5:$AX$2265,14,FALSE),0) -> 1 | P15: =IFERROR(VLOOKUP($A15,Filtro!$A$5:$AX$2265,15,FALSE),0) -> 0 | Q15: =IFERROR(VLOOKUP($A15,Filtro!$A$5:$AX$2265,16,FALSE),0) -> 0 | R15: =IFERROR(VLOOKUP($A15,Filtro!$A$5:$AX$2265,17,FALSE),0) -> 0 | S15: =IFERROR(VLOOKUP($A15,Filtro!$A$5:$AX$2265,18,FALSE),0) -> 0 | T15: =IFERROR(VLOOKUP($A15,Filtro!$A$5:$AX$2265,19,FALSE),0) -> 0 | U15: =IFERROR(VLOOKUP($A15,Filtro!$A$5:$AX$2265,20,FALSE),0) -> 0 | V15: =IFERROR(VLOOKUP($A15,Filtro!$A$5:$AX$2265,21,FALSE),0) -> 35648 | W15: =IFERROR(VLOOKUP($A15,Filtro!$A$5:$AX$2265,22,FALSE),0) -> 34946 | X15: =IFERROR(VLOOKUP($A15,Filtro!$A$5:$AX$2265,23,FALSE),0) -> 3643 | Y15: =IFERROR(VLOOKUP($A15,Filtro!$A$5:$AX$2265,24,FALSE),0) -> 0 | Z15: =IFERROR(VLOOKUP($A15,Filtro!$A$5:$AX$2265,25,FALSE),0) -> 0 | AA15: =IFERROR(VLOOKUP($A15,Filtro!$A$5:$AX$2265,26,FALSE),0) -> 0 | AB15: =IFERROR(VLOOKUP($A15,Filtro!$A$5:$AX$2265,27,FALSE),0) -> 0 | AC15: =IFERROR(VLOOKUP($A15,Filtro!$A$5:$AX$2265,28,FALSE),0) -> 0 | CA15: * La suma de los sexos NO DEBE ser diferente al Total. | CL15: 1 | CM15: 0 | CN15: 0 | CO15: 0 | CP15: 0 | CQ15: 0 | CR15: 0 | CS15: 0 | CT15: 0
A16: 01501050 | B16: POST PARTO | C16: MÉDICO | D16: =IFERROR(VLOOKUP($A16,Filtro!$A$5:$AX$2265,3,FALSE),0) -> 0 | E16: =IFERROR(VLOOKUP($A16,Filtro!$A$5:$AX$2265,4,FALSE),0) -> 0 | F16: =IFERROR(VLOOKUP($A16,Filtro!$A$5:$AX$2265,5,FALSE),0) -> 0 | G16: =IFERROR(VLOOKUP($A16,Filtro!$A$5:$AX$2265,6,FALSE),0) -> 1 | H16: =IFERROR(VLOOKUP($A16,Filtro!$A$5:$AX$2265,7,FALSE),0) -> 3 | I16: =IFERROR(VLOOKUP($A16,Filtro!$A$5:$AX$2265,8,FALSE),0) -> 1 | J16: =IFERROR(VLOOKUP($A16,Filtro!$A$5:$AX$2265,9,FALSE),0) -> 7 | K16: =IFERROR(VLOOKUP($A16,Filtro!$A$5:$AX$2265,10,FALSE),0) -> 0 | L16: =IFERROR(VLOOKUP($A16,Filtro!$A$5:$AX$2265,11,FALSE),0) -> 0 | M16: =IFERROR(VLOOKUP($A16,Filtro!$A$5:$AX$2265,12,FALSE),0) -> 0 | N16: =IFERROR(VLOOKUP($A16,Filtro!$A$5:$AX$2265,13,FALSE),0) -> 0 | O16: =IFERROR(VLOOKUP($A16,Filtro!$A$5:$AX$2265,14,FALSE),0) -> 0 | P16: =IFERROR(VLOOKUP($A16,Filtro!$A$5:$AX$2265,15,FALSE),0) -> 0 | Q16: =IFERROR(VLOOKUP($A16,Filtro!$A$5:$AX$2265,16,FALSE),0) -> 0 | R16: =IFERROR(VLOOKUP($A16,Filtro!$A$5:$AX$2265,17,FALSE),0) -> 0 | S16: =IFERROR(VLOOKUP($A16,Filtro!$A$5:$AX$2265,18,FALSE),0) -> 0 | T16: =IFERROR(VLOOKUP($A16,Filtro!$A$5:$AX$2265,19,FALSE),0) -> 0 | U16: =IFERROR(VLOOKUP($A16,Filtro!$A$5:$AX$2265,20,FALSE),0) -> 0 | V16: =IFERROR(VLOOKUP($A16,Filtro!$A$5:$AX$2265,21,FALSE),0) -> 3 | W16: =IFERROR(VLOOKUP($A16,Filtro!$A$5:$AX$2265,22,FALSE),0) -> 3 | X16: =IFERROR(VLOOKUP($A16,Filtro!$A$5:$AX$2265,23,FALSE),0) -> 0 | Y16: =IFERROR(VLOOKUP($A16,Filtro!$A$5:$AX$2265,24,FALSE),0) -> 0 | Z16: =IFERROR(VLOOKUP($A16,Filtro!$A$5:$AX$2265,25,FALSE),0) -> 0 | AA16: =IFERROR(VLOOKUP($A16,Filtro!$A$5:$AX$2265,26,FALSE),0) -> 0 | AB16: =IFERROR(VLOOKUP($A16,Filtro!$A$5:$AX$2265,27,FALSE),0) -> 0 | AC16: =IFERROR(VLOOKUP($A16,Filtro!$A$5:$AX$2265,28,FALSE),0) -> 0 | CM16: 0 | CN16: 0 | CO16: 0 | CR16: 0 | CS16: 0
A17: 01501060 | C17: MATRONA /ÓN | D17: =IFERROR(VLOOKUP($A17,Filtro!$A$5:$AX$2265,3,FALSE),0) -> 0 | E17: =IFERROR(VLOOKUP($A17,Filtro!$A$5:$AX$2265,4,FALSE),0) -> 0 | F17: =IFERROR(VLOOKUP($A17,Filtro!$A$5:$AX$2265,5,FALSE),0) -> 0 | G17: =IFERROR(VLOOKUP($A17,Filtro!$A$5:$AX$2265,6,FALSE),0) -> 37 | H17: =IFERROR(VLOOKUP($A17,Filtro!$A$5:$AX$2265,7,FALSE),0) -> 125 | I17: =IFERROR(VLOOKUP($A17,Filtro!$A$5:$AX$2265,8,FALSE),0) -> 168 | J17: =IFERROR(VLOOKUP($A17,Filtro!$A$5:$AX$2265,9,FALSE),0) -> 141 | K17: =IFERROR(VLOOKUP($A17,Filtro!$A$5:$AX$2265,10,FALSE),0) -> 86 | L17: =IFERROR(VLOOKUP($A17,Filtro!$A$5:$AX$2265,11,FALSE),0) -> 23 | M17: =IFERROR(VLOOKUP($A17,Filtro!$A$5:$AX$2265,12,FALSE),0) -> 0 | N17: =IFERROR(VLOOKUP($A17,Filtro!$A$5:$AX$2265,13,FALSE),0) -> 0 | O17: =IFERROR(VLOOKUP($A17,Filtro!$A$5:$AX$2265,14,FALSE),0) -> 0 | P17: =IFERROR(VLOOKUP($A17,Filtro!$A$5:$AX$2265,15,FALSE),0) -> 0 | Q17: =IFERROR(VLOOKUP($A17,Filtro!$A$5:$AX$2265,16,FALSE),0) -> 0 | R17: =IFERROR(VLOOKUP($A17,Filtro!$A$5:$AX$2265,17,FALSE),0) -> 0 | S17: =IFERROR(VLOOKUP($A17,Filtro!$A$5:$AX$2265,18,FALSE),0) -> 0 | T17: =IFERROR(VLOOKUP($A17,Filtro!$A$5:$AX$2265,19,FALSE),0) -> 0 | U17: =IFERROR(VLOOKUP($A17,Filtro!$A$5:$AX$2265,20,FALSE),0) -> 0 | V17: =IFERROR(VLOOKUP($A17,Filtro!$A$5:$AX$2265,21,FALSE),0) -> 550 | W17: =IFERROR(VLOOKUP($A17,Filtro!$A$5:$AX$2265,22,FALSE),0) -> 551 | X17: =IFERROR(VLOOKUP($A17,Filtro!$A$5:$AX$2265,23,FALSE),0) -> 0 | Y17: =IFERROR(VLOOKUP($A17,Filtro!$A$5:$AX$2265,24,FALSE),0) -> 0 | Z17: =IFERROR(VLOOKUP($A17,Filtro!$A$5:$AX$2265,25,FALSE),0) -> 0 | AA17: =IFERROR(VLOOKUP($A17,Filtro!$A$5:$AX$2265,26,FALSE),0) -> 0 | AB17: =IFERROR(VLOOKUP($A17,Filtro!$A$5:$AX$2265,27,FALSE),0) -> 0 | AC17: =IFERROR(VLOOKUP($A17,Filtro!$A$5:$AX$2265,28,FALSE),0) -> 0 | CM17: 0 | CN17: 0 | CO17: 0 | CR17: 0 | CS17: 0
A18: 01501070 | B18: POST ABORTO | C18: MÉDICO | D18: =IFERROR(VLOOKUP($A18,Filtro!$A$5:$AX$2265,2,FALSE),0) -> 3 | E18: =IFERROR(VLOOKUP($A18,Filtro!$A$5:$AX$2265,3,FALSE),0) -> 0 | F18: =IFERROR(VLOOKUP($A18,Filtro!$A$5:$AX$2265,4,FALSE),0) -> 0 | G18: =IFERROR(VLOOKUP($A18,Filtro!$A$5:$AX$2265,5,FALSE),0) -> 0 | H18: =IFERROR(VLOOKUP($A18,Filtro!$A$5:$AX$2265,7,FALSE),0) -> 0 | I18: =IFERROR(VLOOKUP($A18,Filtro!$A$5:$AX$2265,8,FALSE),0) -> 2 | J18: =IFERROR(VLOOKUP($A18,Filtro!$A$5:$AX$2265,9,FALSE),0) -> 0 | K18: =IFERROR(VLOOKUP($A18,Filtro!$A$5:$AX$2265,10,FALSE),0) -> 1 | L18: =IFERROR(VLOOKUP($A18,Filtro!$A$5:$AX$2265,11,FALSE),0) -> 0 | M18: =IFERROR(VLOOKUP($A18,Filtro!$A$5:$AX$2265,12,FALSE),0) -> 0 | N18: =IFERROR(VLOOKUP($A18,Filtro!$A$5:$AX$2265,13,FALSE),0) -> 0 | O18: =IFERROR(VLOOKUP($A18,Filtro!$A$5:$AX$2265,14,FALSE),0) -> 0 | P18: =IFERROR(VLOOKUP($A18,Filtro!$A$5:$AX$2265,15,FALSE),0) -> 0 | Q18: =IFERROR(VLOOKUP($A18,Filtro!$A$5:$AX$2265,16,FALSE),0) -> 0 | R18: =IFERROR(VLOOKUP($A18,Filtro!$A$5:$AX$2265,17,FALSE),0) -> 0 | S18: =IFERROR(VLOOKUP($A18,Filtro!$A$5:$AX$2265,18,FALSE),0) -> 0 | T18: =IFERROR(VLOOKUP($A18,Filtro!$A$5:$AX$2265,19,FALSE),0) -> 0 | U18: =IFERROR(VLOOKUP($A18,Filtro!$A$5:$AX$2265,20,FALSE),0) -> 0 | V18: =IFERROR(VLOOKUP($A18,Filtro!$A$5:$AX$2265,21,FALSE),0) -> 3 | W18: =IFERROR(VLOOKUP($A18,Filtro!$A$5:$AX$2265,22,FALSE),0) -> 1 | X18: =IFERROR(VLOOKUP($A18,Filtro!$A$5:$AX$2265,23,FALSE),0) -> 0 | Y18: =IFERROR(VLOOKUP($A18,Filtro!$A$5:$AX$2265,24,FALSE),0) -> 0 | Z18: =IFERROR(VLOOKUP($A18,Filtro!$A$5:$AX$2265,25,FALSE),0) -> 0 | AA18: =IFERROR(VLOOKUP($A18,Filtro!$A$5:$AX$2265,26,FALSE),0) -> 0 | AB18: =IFERROR(VLOOKUP($A18,Filtro!$A$5:$AX$2265,27,FALSE),0) -> 0 | AC18: =IFERROR(VLOOKUP($A18,Filtro!$A$5:$AX$2265,28,FALSE),0) -> 0 | CG18: =IF(AND(D18<>0,'A05'!D49=""),"* No olvide registrar ingresos a control de salud de los respectivos RN, en REM A05-secciãn E. ","") ->  | CM18: 0 | CN18: 0 | CO18: 0 | CP18: 0 | CQ18: 0 | CR18: 0 | CS18: 0 | CT18: 0 | CU18: 0 | CV18: 0
A19: 01501080 | C19: MATRONA /ÓN | D19: =IFERROR(VLOOKUP($A19,Filtro!$A$5:$AX$2265,2,FALSE),0) -> 182 | E19: =IFERROR(VLOOKUP($A19,Filtro!$A$5:$AX$2265,3,FALSE),0) -> 0 | F19: =IFERROR(VLOOKUP($A19,Filtro!$A$5:$AX$2265,4,FALSE),0) -> 0 | G19: =IFERROR(VLOOKUP($A19,Filtro!$A$5:$AX$2265,5,FALSE),0) -> 1 | H19: =IFERROR(VLOOKUP($A19,Filtro!$A$5:$AX$2265,7,FALSE),0) -> 43 | I19: =IFERROR(VLOOKUP($A19,Filtro!$A$5:$AX$2265,8,FALSE),0) -> 37 | J19: =IFERROR(VLOOKUP($A19,Filtro!$A$5:$AX$2265,9,FALSE),0) -> 35 | K19: =IFERROR(VLOOKUP($A19,Filtro!$A$5:$AX$2265,10,FALSE),0) -> 36 | L19: =IFERROR(VLOOKUP($A19,Filtro!$A$5:$AX$2265,11,FALSE),0) -> 23 | M19: =IFERROR(VLOOKUP($A19,Filtro!$A$5:$AX$2265,12,FALSE),0) -> 1 | N19: =IFERROR(VLOOKUP($A19,Filtro!$A$5:$AX$2265,13,FALSE),0) -> 0 | O19: =IFERROR(VLOOKUP($A19,Filtro!$A$5:$AX$2265,14,FALSE),0) -> 0 | P19: =IFERROR(VLOOKUP($A19,Filtro!$A$5:$AX$2265,15,FALSE),0) -> 0 | Q19: =IFERROR(VLOOKUP($A19,Filtro!$A$5:$AX$2265,16,FALSE),0) -> 0 | R19: =IFERROR(VLOOKUP($A19,Filtro!$A$5:$AX$2265,17,FALSE),0) -> 0 | S19: =IFERROR(VLOOKUP($A19,Filtro!$A$5:$AX$2265,18,FALSE),0) -> 0 | T19: =IFERROR(VLOOKUP($A19,Filtro!$A$5:$AX$2265,19,FALSE),0) -> 0 | U19: =IFERROR(VLOOKUP($A19,Filtro!$A$5:$AX$2265,20,FALSE),0) -> 0 | V19: =IFERROR(VLOOKUP($A19,Filtro!$A$5:$AX$2265,21,FALSE),0) -> 175 | W19: =IFERROR(VLOOKUP($A19,Filtro!$A$5:$AX$2265,22,FALSE),0) -> 175 | X19: =IFERROR(VLOOKUP($A19,Filtro!$A$5:$AX$2265,23,FALSE),0) -> 0 | Y19: =IFERROR(VLOOKUP($A19,Filtro!$A$5:$AX$2265,24,FALSE),0) -> 0 | Z19: =IFERROR(VLOOKUP($A19,Filtro!$A$5:$AX$2265,25,FALSE),0) -> 0 | AA19: =IFERROR(VLOOKUP($A19,Filtro!$A$5:$AX$2265,26,FALSE),0) -> 0 | AB19: =IFERROR(VLOOKUP($A19,Filtro!$A$5:$AX$2265,27,FALSE),0) -> 0 | AC19: =IFERROR(VLOOKUP($A19,Filtro!$A$5:$AX$2265,28,FALSE),0) -> 0 | CG19: =IF(AND(D19<>0,'A05'!D49=""),"* No olvide registrar ingresos a control de salud de los respectivos RN, en REM A05-secciãn E. ","") ->  | CM19: 0 | CN19: 0 | CP19: 0 | CR19: 0 | CT19: 0 | CU19: 0
A20: 01110106 | B20: PUÉRPERA CON RECIÉN NACIDO HASTA 10 DÍAS DE VIDA | C20: MÉDICO | D20: =IFERROR(VLOOKUP($A20,Filtro!$A$5:$AX$2265,2,FALSE),0) -> 23 | E20: =IFERROR(VLOOKUP($A20,Filtro!$A$5:$AX$2265,3,FALSE),0) -> 0 | F20: =IFERROR(VLOOKUP($A20,Filtro!$A$5:$AX$2265,4,FALSE),0) -> 0 | G20: =IFERROR(VLOOKUP($A20,Filtro!$A$5:$AX$2265,5,FALSE),0) -> 0 | H20: =IFERROR(VLOOKUP($A20,Filtro!$A$5:$AX$2265,7,FALSE),0) -> 4 | I20: =IFERROR(VLOOKUP($A20,Filtro!$A$5:$AX$2265,8,FALSE),0) -> 7 | J20: =IFERROR(VLOOKUP($A20,Filtro!$A$5:$AX$2265,9,FALSE),0) -> 9 | K20: =IFERROR(VLOOKUP($A20,Filtro!$A$5:$AX$2265,10,FALSE),0) -> 2 | L20: =IFERROR(VLOOKUP($A20,Filtro!$A$5:$AX$2265,11,FALSE),0) -> 0 | M20: =IFERROR(VLOOKUP($A20,Filtro!$A$5:$AX$2265,12,FALSE),0) -> 0 | N20: =IFERROR(VLOOKUP($A20,Filtro!$A$5:$AX$2265,13,FALSE),0) -> 0 | O20: =IFERROR(VLOOKUP($A20,Filtro!$A$5:$AX$2265,14,FALSE),0) -> 0 | P20: =IFERROR(VLOOKUP($A20,Filtro!$A$5:$AX$2265,15,FALSE),0) -> 0 | Q20: =IFERROR(VLOOKUP($A20,Filtro!$A$5:$AX$2265,16,FALSE),0) -> 0 | R20: =IFERROR(VLOOKUP($A20,Filtro!$A$5:$AX$2265,17,FALSE),0) -> 0 | S20: =IFERROR(VLOOKUP($A20,Filtro!$A$5:$AX$2265,18,FALSE),0) -> 0 | T20: =IFERROR(VLOOKUP($A20,Filtro!$A$5:$AX$2265,19,FALSE),0) -> 0 | U20: =IFERROR(VLOOKUP($A20,Filtro!$A$5:$AX$2265,20,FALSE),0) -> 0 | V20: =IFERROR(VLOOKUP($A20,Filtro!$A$5:$AX$2265,21,FALSE),0) -> 26 | W20: =IFERROR(VLOOKUP($A20,Filtro!$A$5:$AX$2265,22,FALSE),0) -> 25 | X20: =IFERROR(VLOOKUP($A20,Filtro!$A$5:$AX$2265,23,FALSE),0) -> 0 | Y20: =IFERROR(VLOOKUP($A20,Filtro!$A$5:$AX$2265,24,FALSE),0) -> 7 | Z20: =IFERROR(VLOOKUP($A20,Filtro!$A$5:$AX$2265,25,FALSE),0) -> 20 | AA20: =IFERROR(VLOOKUP($A20,Filtro!$A$5:$AX$2265,26,FALSE),0) -> 1 | AB20: =IFERROR(VLOOKUP($A20,Filtro!$A$5:$AX$2265,27,FALSE),0) -> 0 | AC20: =IFERROR(VLOOKUP($A20,Filtro!$A$5:$AX$2265,28,FALSE),0) -> 0 | CB20: * La suma de los sexos NO DEBE ser diferente al Total. | CG20: =IF(AND(D20<>0,'A05'!D49=""),"* No olvide registrar ingresos a control de salud de los respectivos RN, en REM A05-secciãn E. ","") ->  | CH20: * No olvide digitar el campo Beneficiarios (Digite CERO si no tiene). | CJ20: * No olvide digitar alguna de las lactancias (Materna exclusiva y/o Artificial) (Digite CERO si no tiene). | CK20: * No olvide digitar Control de diada con presencia del padre (Digite CERO si no tiene). | CM20: 1 | CN20: 0 | CO20: 0 | CP20: 0 | CQ20: 0 | CR20: 1 | CS20: 0 | CT20: 1 | CU20: 1 | CV20: 0
A21: 01110107 | C21: MATRONA /ÓN | D21: =IFERROR(VLOOKUP($A21,Filtro!$A$5:$AX$2265,2,FALSE),0) -> 3287 | E21: =IFERROR(VLOOKUP($A21,Filtro!$A$5:$AX$2265,3,FALSE),0) -> 0 | F21: =IFERROR(VLOOKUP($A21,Filtro!$A$5:$AX$2265,4,FALSE),0) -> 0 | G21: =IFERROR(VLOOKUP($A21,Filtro!$A$5:$AX$2265,5,FALSE),0) -> 6 | H21: =IFERROR(VLOOKUP($A21,Filtro!$A$5:$AX$2265,7,FALSE),0) -> 770 | I21: =IFERROR(VLOOKUP($A21,Filtro!$A$5:$AX$2265,8,FALSE),0) -> 1009 | J21: =IFERROR(VLOOKUP($A21,Filtro!$A$5:$AX$2265,9,FALSE),0) -> 781 | K21: =IFERROR(VLOOKUP($A21,Filtro!$A$5:$AX$2265,10,FALSE),0) -> 404 | L21: =IFERROR(VLOOKUP($A21,Filtro!$A$5:$AX$2265,11,FALSE),0) -> 106 | M21: =IFERROR(VLOOKUP($A21,Filtro!$A$5:$AX$2265,12,FALSE),0) -> 5 | N21: =IFERROR(VLOOKUP($A21,Filtro!$A$5:$AX$2265,13,FALSE),0) -> 0 | O21: =IFERROR(VLOOKUP($A21,Filtro!$A$5:$AX$2265,14,FALSE),0) -> 0 | P21: =IFERROR(VLOOKUP($A21,Filtro!$A$5:$AX$2265,15,FALSE),0) -> 0 | Q21: =IFERROR(VLOOKUP($A21,Filtro!$A$5:$AX$2265,16,FALSE),0) -> 0 | R21: =IFERROR(VLOOKUP($A21,Filtro!$A$5:$AX$2265,17,FALSE),0) -> 0 | S21: =IFERROR(VLOOKUP($A21,Filtro!$A$5:$AX$2265,18,FALSE),0) -> 0 | T21: =IFERROR(VLOOKUP($A21,Filtro!$A$5:$AX$2265,19,FALSE),0) -> 0 | U21: =IFERROR(VLOOKUP($A21,Filtro!$A$5:$AX$2265,20,FALSE),0) -> 0 | V21: =IFERROR(VLOOKUP($A21,Filtro!$A$5:$AX$2265,21,FALSE),0) -> 3248 | W21: =IFERROR(VLOOKUP($A21,Filtro!$A$5:$AX$2265,22,FALSE),0) -> 3238 | X21: =IFERROR(VLOOKUP($A21,Filtro!$A$5:$AX$2265,23,FALSE),0) -> 0 | Y21: =IFERROR(VLOOKUP($A21,Filtro!$A$5:$AX$2265,24,FALSE),0) -> 882 | Z21: =IFERROR(VLOOKUP($A21,Filtro!$A$5:$AX$2265,25,FALSE),0) -> 2582 | AA21: =IFERROR(VLOOKUP($A21,Filtro!$A$5:$AX$2265,26,FALSE),0) -> 392 | AB21: =IFERROR(VLOOKUP($A21,Filtro!$A$5:$AX$2265,27,FALSE),0) -> 50 | AC21: =IFERROR(VLOOKUP($A21,Filtro!$A$5:$AX$2265,28,FALSE),0) -> 0 | CG21: =IF(AND(D21<>0,'A05'!D49=""),"* No olvide registrar ingresos a control de salud de los respectivos RN, en REM A05-secciãn E. ","") ->  | CM21: 0 | CN21: 0 | CO21: 0 | CP21: 0 | CQ21: 0 | CR21: 0 | CS21: 0 | CT21: 0 | CU21: 0 | CV21: 0
A22: 01080030 | B22: PUÉRPERA CON RECIÉN NACIDO ENTRE 11 y 28 DÍAS | C22: MÉDICO | D22: =IFERROR(VLOOKUP($A22,Filtro!$A$5:$AX$2265,2,FALSE),0) -> 14 | E22: =IFERROR(VLOOKUP($A22,Filtro!$A$5:$AX$2265,3,FALSE),0) -> 0 | F22: =IFERROR(VLOOKUP($A22,Filtro!$A$5:$AX$2265,4,FALSE),0) -> 0 | G22: =IFERROR(VLOOKUP($A22,Filtro!$A$5:$AX$2265,5,FALSE),0) -> 0 | H22: =IFERROR(VLOOKUP($A22,Filtro!$A$5:$AX$2265,7,FALSE),0) -> 1 | I22: =IFERROR(VLOOKUP($A22,Filtro!$A$5:$AX$2265,8,FALSE),0) -> 3 | J22: =IFERROR(VLOOKUP($A22,Filtro!$A$5:$AX$2265,9,FALSE),0) -> 4 | K22: =IFERROR(VLOOKUP($A22,Filtro!$A$5:$AX$2265,10,FALSE),0) -> 2 | L22: =IFERROR(VLOOKUP($A22,Filtro!$A$5:$AX$2265,11,FALSE),0) -> 2 | M22: =IFERROR(VLOOKUP($A22,Filtro!$A$5:$AX$2265,12,FALSE),0) -> 1 | N22: =IFERROR(VLOOKUP($A22,Filtro!$A$5:$AX$2265,13,FALSE),0) -> 1 | O22: =IFERROR(VLOOKUP($A22,Filtro!$A$5:$AX$2265,14,FALSE),0) -> 0 | P22: =IFERROR(VLOOKUP($A22,Filtro!$A$5:$AX$2265,15,FALSE),0) -> 0 | Q22: =IFERROR(VLOOKUP($A22,Filtro!$A$5:$AX$2265,16,FALSE),0) -> 0 | R22: =IFERROR(VLOOKUP($A22,Filtro!$A$5:$AX$2265,17,FALSE),0) -> 0 | S22: =IFERROR(VLOOKUP($A22,Filtro!$A$5:$AX$2265,18,FALSE),0) -> 0 | T22: =IFERROR(VLOOKUP($A22,Filtro!$A$5:$AX$2265,19,FALSE),0) -> 0 | U22: =IFERROR(VLOOKUP($A22,Filtro!$A$5:$AX$2265,20,FALSE),0) -> 0 | V22: =IFERROR(VLOOKUP($A22,Filtro!$A$5:$AX$2265,21,FALSE),0) -> 13 | W22: =IFERROR(VLOOKUP($A22,Filtro!$A$5:$AX$2265,22,FALSE),0) -> 11 | X22: =IFERROR(VLOOKUP($A22,Filtro!$A$5:$AX$2265,23,FALSE),0) -> 0 | Y22: =IFERROR(VLOOKUP($A22,Filtro!$A$5:$AX$2265,24,FALSE),0) -> 4 | Z22: =IFERROR(VLOOKUP($A22,Filtro!$A$5:$AX$2265,25,FALSE),0) -> 9 | AA22: =IFERROR(VLOOKUP($A22,Filtro!$A$5:$AX$2265,26,FALSE),0) -> 2 | AB22: =IFERROR(VLOOKUP($A22,Filtro!$A$5:$AX$2265,27,FALSE),0) -> 0 | AC22: =IFERROR(VLOOKUP($A22,Filtro!$A$5:$AX$2265,28,FALSE),0) -> 0 | CM22: 0 | CN22: 0 | CO22: 0 | CQ22: 0 | CR22: 0 | CS22: 0 | CU22: 0 | CV22: 0
A23: 01080040 | C23: MATRONA /ÓN | D23: =IFERROR(VLOOKUP($A23,Filtro!$A$5:$AX$2265,2,FALSE),0) -> 1623 | E23: =IFERROR(VLOOKUP($A23,Filtro!$A$5:$AX$2265,3,FALSE),0) -> 0 | F23: =IFERROR(VLOOKUP($A23,Filtro!$A$5:$AX$2265,4,FALSE),0) -> 0 | G23: =IFERROR(VLOOKUP($A23,Filtro!$A$5:$AX$2265,5,FALSE),0) -> 2 | H23: =IFERROR(VLOOKUP($A23,Filtro!$A$5:$AX$2265,7,FALSE),0) -> 357 | I23: =IFERROR(VLOOKUP($A23,Filtro!$A$5:$AX$2265,8,FALSE),0) -> 443 | J23: =IFERROR(VLOOKUP($A23,Filtro!$A$5:$AX$2265,9,FALSE),0) -> 428 | K23: =IFERROR(VLOOKUP($A23,Filtro!$A$5:$AX$2265,10,FALSE),0) -> 237 | L23: =IFERROR(VLOOKUP($A23,Filtro!$A$5:$AX$2265,11,FALSE),0) -> 49 | M23: =IFERROR(VLOOKUP($A23,Filtro!$A$5:$AX$2265,12,FALSE),0) -> 1 | N23: =IFERROR(VLOOKUP($A23,Filtro!$A$5:$AX$2265,13,FALSE),0) -> 2 | O23: =IFERROR(VLOOKUP($A23,Filtro!$A$5:$AX$2265,14,FALSE),0) -> 6 | P23: =IFERROR(VLOOKUP($A23,Filtro!$A$5:$AX$2265,15,FALSE),0) -> 0 | Q23: =IFERROR(VLOOKUP($A23,Filtro!$A$5:$AX$2265,16,FALSE),0) -> 0 | R23: =IFERROR(VLOOKUP($A23,Filtro!$A$5:$AX$2265,17,FALSE),0) -> 0 | S23: =IFERROR(VLOOKUP($A23,Filtro!$A$5:$AX$2265,18,FALSE),0) -> 0 | T23: =IFERROR(VLOOKUP($A23,Filtro!$A$5:$AX$2265,19,FALSE),0) -> 0 | U23: =IFERROR(VLOOKUP($A23,Filtro!$A$5:$AX$2265,20,FALSE),0) -> 0 | V23: =IFERROR(VLOOKUP($A23,Filtro!$A$5:$AX$2265,21,FALSE),0) -> 1550 | W23: =IFERROR(VLOOKUP($A23,Filtro!$A$5:$AX$2265,22,FALSE),0) -> 1543 | X23: =IFERROR(VLOOKUP($A23,Filtro!$A$5:$AX$2265,23,FALSE),0) -> 0 | Y23: =IFERROR(VLOOKUP($A23,Filtro!$A$5:$AX$2265,24,FALSE),0) -> 335 | Z23: =IFERROR(VLOOKUP($A23,Filtro!$A$5:$AX$2265,25,FALSE),0) -> 1186 | AA23: =IFERROR(VLOOKUP($A23,Filtro!$A$5:$AX$2265,26,FALSE),0) -> 284 | AB23: =IFERROR(VLOOKUP($A23,Filtro!$A$5:$AX$2265,27,FALSE),0) -> 18 | AC23: =IFERROR(VLOOKUP($A23,Filtro!$A$5:$AX$2265,28,FALSE),0) -> 0 | CM23: 0 | CN23: 0 | CO23: 0 | CQ23: 0 | CR23: 0 | CS23: 0 | CU23: 0 | CV23: 0
A24: 01501090 | B24: RECIÉN NACIDO HASTA 10 DÍAS DE VIDA | C24: MÉDICO | D24: =IFERROR(VLOOKUP($A24,Filtro!$A$5:$AX$2265,2,FALSE),0) -> 6 | E24: =IFERROR(VLOOKUP($A24,Filtro!$A$5:$AX$2265,3,FALSE),0) -> 6 | F24: =IFERROR(VLOOKUP($A24,Filtro!$A$5:$AX$2265,4,FALSE),0) -> 0 | G24: =IFERROR(VLOOKUP($A24,Filtro!$A$5:$AX$2265,5,FALSE),0) -> 0 | H24: =IFERROR(VLOOKUP($A24,Filtro!$A$5:$AX$2265,7,FALSE),0) -> 0 | I24: =IFERROR(VLOOKUP($A24,Filtro!$A$5:$AX$2265,8,FALSE),0) -> 0 | J24: =IFERROR(VLOOKUP($A24,Filtro!$A$5:$AX$2265,9,FALSE),0) -> 0 | K24: =IFERROR(VLOOKUP($A24,Filtro!$A$5:$AX$2265,10,FALSE),0) -> 0 | L24: =IFERROR(VLOOKUP($A24,Filtro!$A$5:$AX$2265,11,FALSE),0) -> 0 | M24: =IFERROR(VLOOKUP($A24,Filtro!$A$5:$AX$2265,12,FALSE),0) -> 0 | N24: =IFERROR(VLOOKUP($A24,Filtro!$A$5:$AX$2265,13,FALSE),0) -> 0 | O24: =IFERROR(VLOOKUP($A24,Filtro!$A$5:$AX$2265,14,FALSE),0) -> 0 | P24: =IFERROR(VLOOKUP($A24,Filtro!$A$5:$AX$2265,15,FALSE),0) -> 0 | Q24: =IFERROR(VLOOKUP($A24,Filtro!$A$5:$AX$2265,16,FALSE),0) -> 0 | R24: =IFERROR(VLOOKUP($A24,Filtro!$A$5:$AX$2265,17,FALSE),0) -> 0 | S24: =IFERROR(VLOOKUP($A24,Filtro!$A$5:$AX$2265,18,FALSE),0) -> 0 | T24: =IFERROR(VLOOKUP($A24,Filtro!$A$5:$AX$2265,19,FALSE),0) -> 0 | U24: =IFERROR(VLOOKUP($A24,Filtro!$A$5:$AX$2265,20,FALSE),0) -> 1 | V24: =IFERROR(VLOOKUP($A24,Filtro!$A$5:$AX$2265,21,FALSE),0) -> 2 | W24: =IFERROR(VLOOKUP($A24,Filtro!$A$5:$AX$2265,22,FALSE),0) -> 3 | X24: =IFERROR(VLOOKUP($A24,Filtro!$A$5:$AX$2265,23,FALSE),0) -> 0 | Y24: =IFERROR(VLOOKUP($A24,Filtro!$A$5:$AX$2265,24,FALSE),0) -> 0 | Z24: =IFERROR(VLOOKUP($A24,Filtro!$A$5:$AX$2265,25,FALSE),0) -> 3 | AA24: =IFERROR(VLOOKUP($A24,Filtro!$A$5:$AX$2265,26,FALSE),0) -> 0 | AB24: =IFERROR(VLOOKUP($A24,Filtro!$A$5:$AX$2265,27,FALSE),0) -> 0 | AC24: =IFERROR(VLOOKUP($A24,Filtro!$A$5:$AX$2265,28,FALSE),0) -> 0 | CC24: * Beneficiarios NO DEBEN ser Mayor al Total. | CM24: 0 | CN24: 1 | CO24: 0 | CR24: 0 | CS24: 0
A25: 01502000 | C25: MATRONA /ÓN | D25: =IFERROR(VLOOKUP($A25,Filtro!$A$5:$AX$2265,2,FALSE),0) -> 1151 | E25: =IFERROR(VLOOKUP($A25,Filtro!$A$5:$AX$2265,3,FALSE),0) -> 1151 | F25: =IFERROR(VLOOKUP($A25,Filtro!$A$5:$AX$2265,4,FALSE),0) -> 0 | G25: =IFERROR(VLOOKUP($A25,Filtro!$A$5:$AX$2265,5,FALSE),0) -> 0 | H25: =IFERROR(VLOOKUP($A25,Filtro!$A$5:$AX$2265,7,FALSE),0) -> 0 | I25: =IFERROR(VLOOKUP($A25,Filtro!$A$5:$AX$2265,8,FALSE),0) -> 0 | J25: =IFERROR(VLOOKUP($A25,Filtro!$A$5:$AX$2265,9,FALSE),0) -> 0 | K25: =IFERROR(VLOOKUP($A25,Filtro!$A$5:$AX$2265,10,FALSE),0) -> 0 | L25: =IFERROR(VLOOKUP($A25,Filtro!$A$5:$AX$2265,11,FALSE),0) -> 0 | M25: =IFERROR(VLOOKUP($A25,Filtro!$A$5:$AX$2265,12,FALSE),0) -> 0 | N25: =IFERROR(VLOOKUP($A25,Filtro!$A$5:$AX$2265,13,FALSE),0) -> 0 | O25: =IFERROR(VLOOKUP($A25,Filtro!$A$5:$AX$2265,14,FALSE),0) -> 0 | P25: =IFERROR(VLOOKUP($A25,Filtro!$A$5:$AX$2265,15,FALSE),0) -> 0 | Q25: =IFERROR(VLOOKUP($A25,Filtro!$A$5:$AX$2265,16,FALSE),0) -> 0 | R25: =IFERROR(VLOOKUP($A25,Filtro!$A$5:$AX$2265,17,FALSE),0) -> 0 | S25: =IFERROR(VLOOKUP($A25,Filtro!$A$5:$AX$2265,18,FALSE),0) -> 0 | T25: =IFERROR(VLOOKUP($A25,Filtro!$A$5:$AX$2265,19,FALSE),0) -> 0 | U25: =IFERROR(VLOOKUP($A25,Filtro!$A$5:$AX$2265,20,FALSE),0) -> 495 | V25: =IFERROR(VLOOKUP($A25,Filtro!$A$5:$AX$2265,21,FALSE),0) -> 615 | W25: =IFERROR(VLOOKUP($A25,Filtro!$A$5:$AX$2265,22,FALSE),0) -> 1045 | X25: =IFERROR(VLOOKUP($A25,Filtro!$A$5:$AX$2265,23,FALSE),0) -> 211 | Y25: =IFERROR(VLOOKUP($A25,Filtro!$A$5:$AX$2265,24,FALSE),0) -> 310 | Z25: =IFERROR(VLOOKUP($A25,Filtro!$A$5:$AX$2265,25,FALSE),0) -> 870 | AA25: =IFERROR(VLOOKUP($A25,Filtro!$A$5:$AX$2265,26,FALSE),0) -> 135 | AB25: =IFERROR(VLOOKUP($A25,Filtro!$A$5:$AX$2265,27,FALSE),0) -> 16 | AC25: =IFERROR(VLOOKUP($A25,Filtro!$A$5:$AX$2265,28,FALSE),0) -> 0 | CM25: 0 | CN25: 0 | CR25: 0
A26: 01502010 | B26: RECIÉN NACIDO ENTRE 11 y 28 DÍAS | C26: MÉDICO | D26: =IFERROR(VLOOKUP($A26,Filtro!$A$5:$AX$2265,2,FALSE),0) -> 1 | E26: =IFERROR(VLOOKUP($A26,Filtro!$A$5:$AX$2265,3,FALSE),0) -> 1 | F26: =IFERROR(VLOOKUP($A26,Filtro!$A$5:$AX$2265,4,FALSE),0) -> 0 | G26: =IFERROR(VLOOKUP($A26,Filtro!$A$5:$AX$2265,5,FALSE),0) -> 0 | H26: =IFERROR(VLOOKUP($A26,Filtro!$A$5:$AX$2265,7,FALSE),0) -> 0 | I26: =IFERROR(VLOOKUP($A26,Filtro!$A$5:$AX$2265,8,FALSE),0) -> 0 | J26: =IFERROR(VLOOKUP($A26,Filtro!$A$5:$AX$2265,9,FALSE),0) -> 0 | K26: =IFERROR(VLOOKUP($A26,Filtro!$A$5:$AX$2265,10,FALSE),0) -> 0 | L26: =IFERROR(VLOOKUP($A26,Filtro!$A$5:$AX$2265,11,FALSE),0) -> 0 | M26: =IFERROR(VLOOKUP($A26,Filtro!$A$5:$AX$2265,12,FALSE),0) -> 0 | N26: =IFERROR(VLOOKUP($A26,Filtro!$A$5:$AX$2265,13,FALSE),0) -> 0 | O26: =IFERROR(VLOOKUP($A26,Filtro!$A$5:$AX$2265,14,FALSE),0) -> 0 | P26: =IFERROR(VLOOKUP($A26,Filtro!$A$5:$AX$2265,15,FALSE),0) -> 0 | Q26: =IFERROR(VLOOKUP($A26,Filtro!$A$5:$AX$2265,16,FALSE),0) -> 0 | R26: =IFERROR(VLOOKUP($A26,Filtro!$A$5:$AX$2265,17,FALSE),0) -> 0 | S26: =IFERROR(VLOOKUP($A26,Filtro!$A$5:$AX$2265,18,FALSE),0) -> 0 | T26: =IFERROR(VLOOKUP($A26,Filtro!$A$5:$AX$2265,19,FALSE),0) -> 0 | U26: =IFERROR(VLOOKUP($A26,Filtro!$A$5:$AX$2265,20,FALSE),0) -> 9 | V26: =IFERROR(VLOOKUP($A26,Filtro!$A$5:$AX$2265,21,FALSE),0) -> 0 | W26: =IFERROR(VLOOKUP($A26,Filtro!$A$5:$AX$2265,22,FALSE),0) -> 1 | X26: =IFERROR(VLOOKUP($A26,Filtro!$A$5:$AX$2265,23,FALSE),0) -> 0 | Y26: =IFERROR(VLOOKUP($A26,Filtro!$A$5:$AX$2265,24,FALSE),0) -> 2 | Z26: =IFERROR(VLOOKUP($A26,Filtro!$A$5:$AX$2265,25,FALSE),0) -> 7 | AA26: =IFERROR(VLOOKUP($A26,Filtro!$A$5:$AX$2265,26,FALSE),0) -> 2 | AB26: =IFERROR(VLOOKUP($A26,Filtro!$A$5:$AX$2265,27,FALSE),0) -> 0 | AC26: =IFERROR(VLOOKUP($A26,Filtro!$A$5:$AX$2265,28,FALSE),0) -> 0 | CM26: 0 | CN26: 0 | CR26: 0
A27: 01502020 | C27: MATRONA /ÓN | D27: =IFERROR(VLOOKUP($A27,Filtro!$A$5:$AX$2265,2,FALSE),0) -> 452 | E27: =IFERROR(VLOOKUP($A27,Filtro!$A$5:$AX$2265,3,FALSE),0) -> 452 | F27: =IFERROR(VLOOKUP($A27,Filtro!$A$5:$AX$2265,4,FALSE),0) -> 0 | G27: =IFERROR(VLOOKUP($A27,Filtro!$A$5:$AX$2265,5,FALSE),0) -> 0 | H27: =IFERROR(VLOOKUP($A27,Filtro!$A$5:$AX$2265,6,FALSE),0) -> 0 | I27: =IFERROR(VLOOKUP($A27,Filtro!$A$5:$AX$2265,7,FALSE),0) -> 0 | J27: =IFERROR(VLOOKUP($A27,Filtro!$A$5:$AX$2265,8,FALSE),0) -> 0 | K27: =IFERROR(VLOOKUP($A27,Filtro!$A$5:$AX$2265,9,FALSE),0) -> 0 | L27: =IFERROR(VLOOKUP($A27,Filtro!$A$5:$AX$2265,10,FALSE),0) -> 0 | M27: =IFERROR(VLOOKUP($A27,Filtro!$A$5:$AX$2265,11,FALSE),0) -> 0 | N27: =IFERROR(VLOOKUP($A27,Filtro!$A$5:$AX$2265,12,FALSE),0) -> 0 | O27: =IFERROR(VLOOKUP($A27,Filtro!$A$5:$AX$2265,13,FALSE),0) -> 0 | P27: =IFERROR(VLOOKUP($A27,Filtro!$A$5:$AX$2265,14,FALSE),0) -> 0 | Q27: =IFERROR(VLOOKUP($A27,Filtro!$A$5:$AX$2265,15,FALSE),0) -> 0 | R27: =IFERROR(VLOOKUP($A27,Filtro!$A$5:$AX$2265,16,FALSE),0) -> 0 | S27: =IFERROR(VLOOKUP($A27,Filtro!$A$5:$AX$2265,17,FALSE),0) -> 0 | T27: =IFERROR(VLOOKUP($A27,Filtro!$A$5:$AX$2265,18,FALSE),0) -> 0 | U27: =IFERROR(VLOOKUP($A27,Filtro!$A$5:$AX$2265,19,FALSE),0) -> 0 | V27: =IFERROR(VLOOKUP($A27,Filtro!$A$5:$AX$2265,20,FALSE),0) -> 201 | W27: =IFERROR(VLOOKUP($A27,Filtro!$A$5:$AX$2265,21,FALSE),0) -> 217 | X27: =IFERROR(VLOOKUP($A27,Filtro!$A$5:$AX$2265,22,FALSE),0) -> 403 | Y27: =IFERROR(VLOOKUP($A27,Filtro!$A$5:$AX$2265,23,FALSE),0) -> 79 | Z27: =IFERROR(VLOOKUP($A27,Filtro!$A$5:$AX$2265,24,FALSE),0) -> 83 | AA27: =IFERROR(VLOOKUP($A27,Filtro!$A$5:$AX$2265,25,FALSE),0) -> 281 | AB27: =IFERROR(VLOOKUP($A27,Filtro!$A$5:$AX$2265,26,FALSE),0) -> 65 | AC27: =IFERROR(VLOOKUP($A27,Filtro!$A$5:$AX$2265,27,FALSE),0) -> 14 | CM27: 0 | CN27: 0 | CR27: 0
A28: 01010601 | B28: GINECOLÓGICO | C28: MÉDICO | D28: =IFERROR(VLOOKUP($A28,Filtro!$A$5:$AX$2265,2,FALSE),0) -> 263 | E28: =IFERROR(VLOOKUP($A28,Filtro!$A$5:$AX$2265,3,FALSE),0) -> 0 | F28: =IFERROR(VLOOKUP($A28,Filtro!$A$5:$AX$2265,4,FALSE),0) -> 0 | G28: =IFERROR(VLOOKUP($A28,Filtro!$A$5:$AX$2265,5,FALSE),0) -> 2 | H28: =IFERROR(VLOOKUP($A28,Filtro!$A$5:$AX$2265,6,FALSE),0) -> 5 | I28: =IFERROR(VLOOKUP($A28,Filtro!$A$5:$AX$2265,7,FALSE),0) -> 19 | J28: =IFERROR(VLOOKUP($A28,Filtro!$A$5:$AX$2265,8,FALSE),0) -> 23 | K28: =IFERROR(VLOOKUP($A28,Filtro!$A$5:$AX$2265,9,FALSE),0) -> 23 | L28: =IFERROR(VLOOKUP($A28,Filtro!$A$5:$AX$2265,10,FALSE),0) -> 23 | M28: =IFERROR(VLOOKUP($A28,Filtro!$A$5:$AX$2265,11,FALSE),0) -> 25 | N28: =IFERROR(VLOOKUP($A28,Filtro!$A$5:$AX$2265,12,FALSE),0) -> 29 | O28: =IFERROR(VLOOKUP($A28,Filtro!$A$5:$AX$2265,13,FALSE),0) -> 28 | P28: =IFERROR(VLOOKUP($A28,Filtro!$A$5:$AX$2265,14,FALSE),0) -> 31 | Q28: =IFERROR(VLOOKUP($A28,Filtro!$A$5:$AX$2265,15,FALSE),0) -> 43 | R28: =IFERROR(VLOOKUP($A28,Filtro!$A$5:$AX$2265,16,FALSE),0) -> 9 | S28: =IFERROR(VLOOKUP($A28,Filtro!$A$5:$AX$2265,17,FALSE),0) -> 2 | T28: =IFERROR(VLOOKUP($A28,Filtro!$A$5:$AX$2265,18,FALSE),0) -> 1 | U28: =IFERROR(VLOOKUP($A28,Filtro!$A$5:$AX$2265,19,FALSE),0) -> 0 | V28: =IFERROR(VLOOKUP($A28,Filtro!$A$5:$AX$2265,20,FALSE),0) -> 0 | W28: =IFERROR(VLOOKUP($A28,Filtro!$A$5:$AX$2265,21,FALSE),0) -> 273 | X28: =IFERROR(VLOOKUP($A28,Filtro!$A$5:$AX$2265,22,FALSE),0) -> 273 | Y28: =IFERROR(VLOOKUP($A28,Filtro!$A$5:$AX$2265,23,FALSE),0) -> 0 | Z28: =IFERROR(VLOOKUP($A28,Filtro!$A$5:$AX$2265,24,FALSE),0) -> 0 | AA28: =IFERROR(VLOOKUP($A28,Filtro!$A$5:$AX$2265,25,FALSE),0) -> 0 | AB28: =IFERROR(VLOOKUP($A28,Filtro!$A$5:$AX$2265,26,FALSE),0) -> 0 | AC28: =IFERROR(VLOOKUP($A28,Filtro!$A$5:$AX$2265,27,FALSE),0) -> 0 | CB28: * No olvide digitar los campos Beneficiarios (Digite CEROS si no tiene). | CF28: * El número de controles según sexo NO DEBE ser diferente al Total. | CH28: * No olvide digitar los campos Niños, Niñas, Adolescentes y Jóvenes de Programas SENAME (Digite CEROS si no tiene). | CI28: 0 | CJ28: =IF(AK28>SUM(G28:N28),1,IF(AL28>SUM(O28:Q28),1,0)) -> 0 | CK28: 1 | CN28: 0 | CO28: 0 | CS28: 0
A29: 01010603 | C29: MATRONA /ÓN | D29: =IFERROR(VLOOKUP($A29,Filtro!$A$5:$AX$2265,2,FALSE),0) -> 31835 | E29: =IFERROR(VLOOKUP($A29,Filtro!$A$5:$AX$2265,3,FALSE),0) -> 0 | F29: =IFERROR(VLOOKUP($A29,Filtro!$A$5:$AX$2265,4,FALSE),0) -> 0 | G29: =IFERROR(VLOOKUP($A29,Filtro!$A$5:$AX$2265,5,FALSE),0) -> 151 | H29: =IFERROR(VLOOKUP($A29,Filtro!$A$5:$AX$2265,6,FALSE),0) -> 580 | I29: =IFERROR(VLOOKUP($A29,Filtro!$A$5:$AX$2265,7,FALSE),0) -> 1523 | J29: =IFERROR(VLOOKUP($A29,Filtro!$A$5:$AX$2265,8,FALSE),0) -> 2640 | K29: =IFERROR(VLOOKUP($A29,Filtro!$A$5:$AX$2265,9,FALSE),0) -> 3201 | L29: =IFERROR(VLOOKUP($A29,Filtro!$A$5:$AX$2265,10,FALSE),0) -> 3473 | M29: =IFERROR(VLOOKUP($A29,Filtro!$A$5:$AX$2265,11,FALSE),0) -> 3882 | N29: =IFERROR(VLOOKUP($A29,Filtro!$A$5:$AX$2265,12,FALSE),0) -> 4177 | O29: =IFERROR(VLOOKUP($A29,Filtro!$A$5:$AX$2265,13,FALSE),0) -> 4155 | P29: =IFERROR(VLOOKUP($A29,Filtro!$A$5:$AX$2265,14,FALSE),0) -> 3423 | Q29: =IFERROR(VLOOKUP($A29,Filtro!$A$5:$AX$2265,15,FALSE),0) -> 2689 | R29: =IFERROR(VLOOKUP($A29,Filtro!$A$5:$AX$2265,16,FALSE),0) -> 1210 | S29: =IFERROR(VLOOKUP($A29,Filtro!$A$5:$AX$2265,17,FALSE),0) -> 457 | T29: =IFERROR(VLOOKUP($A29,Filtro!$A$5:$AX$2265,19,FALSE),0) -> 87 | U29: =IFERROR(VLOOKUP($A29,Filtro!$A$5:$AX$2265,20,FALSE),0) -> 0 | V29: =IFERROR(VLOOKUP($A29,Filtro!$A$5:$AX$2265,21,FALSE),0) -> 31954 | W29: =IFERROR(VLOOKUP($A29,Filtro!$A$5:$AX$2265,22,FALSE),0) -> 30873 | X29: =IFERROR(VLOOKUP($A29,Filtro!$A$5:$AX$2265,23,FALSE),0) -> 0 | Y29: =IFERROR(VLOOKUP($A29,Filtro!$A$5:$AX$2265,24,FALSE),0) -> 0 | Z29: =IFERROR(VLOOKUP($A29,Filtro!$A$5:$AX$2265,25,FALSE),0) -> 0 | AA29: =IFERROR(VLOOKUP($A29,Filtro!$A$5:$AX$2265,26,FALSE),0) -> 0 | AB29: =IFERROR(VLOOKUP($A29,Filtro!$A$5:$AX$2265,27,FALSE),0) -> 0 | AC29: =IFERROR(VLOOKUP($A29,Filtro!$A$5:$AX$2265,28,FALSE),0) -> 0 | CN29: 0 | CO29: 0 | CS29: 0
A30: 01010901 | B30: CLIMATERIO | C30: MÉDICO | D30: =IFERROR(VLOOKUP($A30,Filtro!$A$5:$AX$2265,2,FALSE),0) -> 58 | E30: =IFERROR(VLOOKUP($A30,Filtro!$A$5:$AX$2265,3,FALSE),0) -> 0 | F30: =IFERROR(VLOOKUP($A30,Filtro!$A$5:$AX$2265,4,FALSE),0) -> 0 | G30: =IFERROR(VLOOKUP($A30,Filtro!$A$5:$AX$2265,5,FALSE),0) -> 0 | H30: =IFERROR(VLOOKUP($A30,Filtro!$A$5:$AX$2265,6,FALSE),0) -> 0 | I30: =IFERROR(VLOOKUP($A30,Filtro!$A$5:$AX$2265,7,FALSE),0) -> 0 | J30: =IFERROR(VLOOKUP($A30,Filtro!$A$5:$AX$2265,8,FALSE),0) -> 0 | K30: =IFERROR(VLOOKUP($A30,Filtro!$A$5:$AX$2265,9,FALSE),0) -> 0 | L30: =IFERROR(VLOOKUP($A30,Filtro!$A$5:$AX$2265,10,FALSE),0) -> 0 | M30: =IFERROR(VLOOKUP($A30,Filtro!$A$5:$AX$2265,11,FALSE),0) -> 0 | N30: =IFERROR(VLOOKUP($A30,Filtro!$A$5:$AX$2265,12,FALSE),0) -> 17 | O30: =IFERROR(VLOOKUP($A30,Filtro!$A$5:$AX$2265,13,FALSE),0) -> 26 | P30: =IFERROR(VLOOKUP($A30,Filtro!$A$5:$AX$2265,14,FALSE),0) -> 11 | Q30: =IFERROR(VLOOKUP($A30,Filtro!$A$5:$AX$2265,15,FALSE),0) -> 4 | R30: =IFERROR(VLOOKUP($A30,Filtro!$A$5:$AX$2265,16,FALSE),0) -> 0 | S30: =IFERROR(VLOOKUP($A30,Filtro!$A$5:$AX$2265,17,FALSE),0) -> 0 | T30: =IFERROR(VLOOKUP($A30,Filtro!$A$5:$AX$2265,19,FALSE),0) -> 0 | U30: =IFERROR(VLOOKUP($A30,Filtro!$A$5:$AX$2265,20,FALSE),0) -> 0 | V30: =IFERROR(VLOOKUP($A30,Filtro!$A$5:$AX$2265,21,FALSE),0) -> 54 | W30: =IFERROR(VLOOKUP($A30,Filtro!$A$5:$AX$2265,22,FALSE),0) -> 54 | X30: =IFERROR(VLOOKUP($A30,Filtro!$A$5:$AX$2265,23,FALSE),0) -> 0 | Y30: =IFERROR(VLOOKUP($A30,Filtro!$A$5:$AX$2265,24,FALSE),0) -> 0 | Z30: =IFERROR(VLOOKUP($A30,Filtro!$A$5:$AX$2265,25,FALSE),0) -> 0 | AA30: =IFERROR(VLOOKUP($A30,Filtro!$A$5:$AX$2265,26,FALSE),0) -> 0 | AB30: =IFERROR(VLOOKUP($A30,Filtro!$A$5:$AX$2265,27,FALSE),0) -> 0 | AC30: =IFERROR(VLOOKUP($A30,Filtro!$A$5:$AX$2265,28,FALSE),0) -> 0 | CI30: 0 | CJ30: =IF(AK30>SUM(G30:N30),1,IF(AL30>SUM(O30:Q30),1,0)) -> 0 | CK30: 0 | CN30: 0 | CO30: 0 | CS30: 0
A31: 01010903 | C31: MATRONA /ÓN | D31: =IFERROR(VLOOKUP($A31,Filtro!$A$5:$AX$2265,2,FALSE),0) -> 2943 | E31: =IFERROR(VLOOKUP($A31,Filtro!$A$5:$AX$2265,3,FALSE),0) -> 0 | F31: =IFERROR(VLOOKUP($A31,Filtro!$A$5:$AX$2265,4,FALSE),0) -> 0 | G31: =IFERROR(VLOOKUP($A31,Filtro!$A$5:$AX$2265,5,FALSE),0) -> 0 | H31: =IFERROR(VLOOKUP($A31,Filtro!$A$5:$AX$2265,7,FALSE),0) -> 0 | I31: =IFERROR(VLOOKUP($A31,Filtro!$A$5:$AX$2265,8,FALSE),0) -> 0 | J31: =IFERROR(VLOOKUP($A31,Filtro!$A$5:$AX$2265,9,FALSE),0) -> 0 | K31: =IFERROR(VLOOKUP($A31,Filtro!$A$5:$AX$2265,10,FALSE),0) -> 0 | L31: =IFERROR(VLOOKUP($A31,Filtro!$A$5:$AX$2265,11,FALSE),0) -> 0 | M31: =IFERROR(VLOOKUP($A31,Filtro!$A$5:$AX$2265,12,FALSE),0) -> 863 | N31: =IFERROR(VLOOKUP($A31,Filtro!$A$5:$AX$2265,13,FALSE),0) -> 1142 | O31: =IFERROR(VLOOKUP($A31,Filtro!$A$5:$AX$2265,14,FALSE),0) -> 638 | P31: =IFERROR(VLOOKUP($A31,Filtro!$A$5:$AX$2265,15,FALSE),0) -> 300 | Q31: =IFERROR(VLOOKUP($A31,Filtro!$A$5:$AX$2265,16,FALSE),0) -> 0 | R31: =IFERROR(VLOOKUP($A31,Filtro!$A$5:$AX$2265,17,FALSE),0) -> 0 | S31: =IFERROR(VLOOKUP($A31,Filtro!$A$5:$AX$2265,18,FALSE),0) -> 0 | T31: =IFERROR(VLOOKUP($A31,Filtro!$A$5:$AX$2265,19,FALSE),0) -> 0 | U31: =IFERROR(VLOOKUP($A31,Filtro!$A$5:$AX$2265,20,FALSE),0) -> 0 | V31: =IFERROR(VLOOKUP($A31,Filtro!$A$5:$AX$2265,21,FALSE),0) -> 3405 | W31: =IFERROR(VLOOKUP($A31,Filtro!$A$5:$AX$2265,22,FALSE),0) -> 3353 | X31: =IFERROR(VLOOKUP($A31,Filtro!$A$5:$AX$2265,23,FALSE),0) -> 0 | Y31: =IFERROR(VLOOKUP($A31,Filtro!$A$5:$AX$2265,24,FALSE),0) -> 0 | Z31: =IFERROR(VLOOKUP($A31,Filtro!$A$5:$AX$2265,25,FALSE),0) -> 0 | AA31: =IFERROR(VLOOKUP($A31,Filtro!$A$5:$AX$2265,26,FALSE),0) -> 0 | AB31: =IFERROR(VLOOKUP($A31,Filtro!$A$5:$AX$2265,27,FALSE),0) -> 0 | AC31: =IFERROR(VLOOKUP($A31,Filtro!$A$5:$AX$2265,28,FALSE),0) -> 0 | CI31: 0 | CJ31: =IF(AK31>SUM(G31:N31),1,IF(AL31>SUM(O31:Q31),1,0)) -> 0 | CK31: 0 | CN31: 0 | CO31: 0 | CS31: 0
A32: 01010401 | B32: REGULACIÓN DE FECUNDIDAD | C32: MÉDICO | D32: =IFERROR(VLOOKUP($A32,Filtro!$A$5:$AX$2265,3,FALSE),0) -> 0 | E32: =IFERROR(VLOOKUP($A32,Filtro!$A$5:$AX$2265,4,FALSE),0) -> 0 | F32: =IFERROR(VLOOKUP($A32,Filtro!$A$5:$AX$2265,5,FALSE),0) -> 0 | G32: =IFERROR(VLOOKUP($A32,Filtro!$A$5:$AX$2265,6,FALSE),0) -> 3 | H32: =IFERROR(VLOOKUP($A32,Filtro!$A$5:$AX$2265,7,FALSE),0) -> 7 | I32: =IFERROR(VLOOKUP($A32,Filtro!$A$5:$AX$2265,8,FALSE),0) -> 1 | J32: =IFERROR(VLOOKUP($A32,Filtro!$A$5:$AX$2265,9,FALSE),0) -> 2 | K32: =IFERROR(VLOOKUP($A32,Filtro!$A$5:$AX$2265,10,FALSE),0) -> 4 | L32: =IFERROR(VLOOKUP($A32,Filtro!$A$5:$AX$2265,11,FALSE),0) -> 5 | M32: =IFERROR(VLOOKUP($A32,Filtro!$A$5:$AX$2265,12,FALSE),0) -> 4 | N32: =IFERROR(VLOOKUP($A32,Filtro!$A$5:$AX$2265,13,FALSE),0) -> 0 | O32: =IFERROR(VLOOKUP($A32,Filtro!$A$5:$AX$2265,14,FALSE),0) -> 0 | P32: =IFERROR(VLOOKUP($A32,Filtro!$A$5:$AX$2265,15,FALSE),0) -> 0 | Q32: =IFERROR(VLOOKUP($A32,Filtro!$A$5:$AX$2265,16,FALSE),0) -> 0 | R32: =IFERROR(VLOOKUP($A32,Filtro!$A$5:$AX$2265,17,FALSE),0) -> 0 | S32: =IFERROR(VLOOKUP($A32,Filtro!$A$5:$AX$2265,18,FALSE),0) -> 0 | T32: =IFERROR(VLOOKUP($A32,Filtro!$A$5:$AX$2265,19,FALSE),0) -> 0 | U32: =IFERROR(VLOOKUP($A32,Filtro!$A$5:$AX$2265,20,FALSE),0) -> 0 | V32: =IFERROR(VLOOKUP($A32,Filtro!$A$5:$AX$2265,21,FALSE),0) -> 8 | W32: =IFERROR(VLOOKUP($A32,Filtro!$A$5:$AX$2265,22,FALSE),0) -> 8 | X32: =IFERROR(VLOOKUP($A32,Filtro!$A$5:$AX$2265,23,FALSE),0) -> 0 | Y32: =IFERROR(VLOOKUP($A32,Filtro!$A$5:$AX$2265,24,FALSE),0) -> 0 | Z32: =IFERROR(VLOOKUP($A32,Filtro!$A$5:$AX$2265,25,FALSE),0) -> 0 | AA32: =IFERROR(VLOOKUP($A32,Filtro!$A$5:$AX$2265,26,FALSE),0) -> 0 | AB32: =IFERROR(VLOOKUP($A32,Filtro!$A$5:$AX$2265,27,FALSE),0) -> 0 | AC32: =IFERROR(VLOOKUP($A32,Filtro!$A$5:$AX$2265,28,FALSE),0) -> 0 | CI32: 0 | CJ32: =IF(AK32>SUM(G32:N32),1,IF(AL32>SUM(O32:Q32),1,0)) -> 0 | CK32: 0 | CN32: 0 | CO32: 0 | CS32: 0
A33: 01010403 | C33: MATRONA /ÓN | D33: =IFERROR(VLOOKUP($A33,Filtro!$A$5:$AX$2265,3,FALSE),0) -> 0 | E33: =IFERROR(VLOOKUP($A33,Filtro!$A$5:$AX$2265,4,FALSE),0) -> 0 | F33: =IFERROR(VLOOKUP($A33,Filtro!$A$5:$AX$2265,5,FALSE),0) -> 686 | G33: =IFERROR(VLOOKUP($A33,Filtro!$A$5:$AX$2265,6,FALSE),0) -> 7473 | H33: =IFERROR(VLOOKUP($A33,Filtro!$A$5:$AX$2265,7,FALSE),0) -> 10481 | I33: =IFERROR(VLOOKUP($A33,Filtro!$A$5:$AX$2265,8,FALSE),0) -> 10603 | J33: =IFERROR(VLOOKUP($A33,Filtro!$A$5:$AX$2265,9,FALSE),0) -> 9278 | K33: =IFERROR(VLOOKUP($A33,Filtro!$A$5:$AX$2265,10,FALSE),0) -> 6981 | L33: =IFERROR(VLOOKUP($A33,Filtro!$A$5:$AX$2265,11,FALSE),0) -> 5506 | M33: =IFERROR(VLOOKUP($A33,Filtro!$A$5:$AX$2265,12,FALSE),0) -> 4075 | N33: =IFERROR(VLOOKUP($A33,Filtro!$A$5:$AX$2265,13,FALSE),0) -> 1371 | O33: =IFERROR(VLOOKUP($A33,Filtro!$A$5:$AX$2265,14,FALSE),0) -> 136 | P33: =IFERROR(VLOOKUP($A33,Filtro!$A$5:$AX$2265,15,FALSE),0) -> 22 | Q33: =IFERROR(VLOOKUP($A33,Filtro!$A$5:$AX$2265,16,FALSE),0) -> 9 | R33: =IFERROR(VLOOKUP($A33,Filtro!$A$5:$AX$2265,17,FALSE),0) -> 4 | S33: =IFERROR(VLOOKUP($A33,Filtro!$A$5:$AX$2265,18,FALSE),0) -> 3 | T33: =IFERROR(VLOOKUP($A33,Filtro!$A$5:$AX$2265,19,FALSE),0) -> 2 | U33: =IFERROR(VLOOKUP($A33,Filtro!$A$5:$AX$2265,20,FALSE),0) -> 170 | V33: =IFERROR(VLOOKUP($A33,Filtro!$A$5:$AX$2265,21,FALSE),0) -> 55872 | W33: =IFERROR(VLOOKUP($A33,Filtro!$A$5:$AX$2265,22,FALSE),0) -> 54398 | X33: =IFERROR(VLOOKUP($A33,Filtro!$A$5:$AX$2265,23,FALSE),0) -> 0 | Y33: =IFERROR(VLOOKUP($A33,Filtro!$A$5:$AX$2265,24,FALSE),0) -> 0 | Z33: =IFERROR(VLOOKUP($A33,Filtro!$A$5:$AX$2265,25,FALSE),0) -> 0 | AA33: =IFERROR(VLOOKUP($A33,Filtro!$A$5:$AX$2265,26,FALSE),0) -> 0 | AB33: =IFERROR(VLOOKUP($A33,Filtro!$A$5:$AX$2265,27,FALSE),0) -> 0 | AC33: =IFERROR(VLOOKUP($A33,Filtro!$A$5:$AX$2265,28,FALSE),0) -> 0 | CI33: 0 | CJ33: =IF(AK33>SUM(G33:N33),1,IF(AL33>SUM(O33:Q33),1,0)) -> 0 | CK33: 0 | CN33: 0 | CO33: 0 | CS33: 0
B34: SECCIÓN B: CONTROLES DE SALUD SEGÚN CICLO VITAL
B35: TIPO DE CONTROL | C35: PROFESIONAL | D35: TOTAL | G35: POR EDAD | AJ35: Beneficiarios | AK35: CONTROL CON PRESENCIA DEL PADRE | AM35: Niños, Niñas, Adolescentes y Jóvenes Población SENAME
D36: Ambos Sexos | E36: Hombres | F36: Mujeres | G36: Menor de 1 mes | H36: 1 mes | I36: 2 meses | J36: 3 meses | K36: 4 meses | L36: 5 meses | M36: 6 meses | N36: 7 - 11 meses | O36: 12 a 17 meses | P36: 18 - 23 meses | Q36: 24 - 47 meses | R36: 48 - 59 meses | S36: 60 - 71 meses | T36: 6 - 9 | U36: 10 - 14 | V36: 15 - 19 | W36: 20 - 24 | X36: 25 - 29 | Y36: 30 - 34 | Z36: 35 - 39 | AA36: 40 - 44 | AB36: 45 - 49 | AC36: 50 - 54 | AD36: 55 - 59 | AE36: 60 - 64 | AF36: 65 - 69 | AG36: 70 - 74 | AH36: 75 - 79 | AI36: 80 y mas | AK36: menor 1 año | AL36: 1 año a 3 años 11 meses 29 días
A37: 02010101 | B37: DE SALUD | C37: MÉDICO | D37: =IFERROR(VLOOKUP($A37,Filtro!$A$5:$AX$2265,2,FALSE),0) -> 15960 | E37: =IFERROR(VLOOKUP($A37,Filtro!$A$5:$AX$2265,3,FALSE),0) -> 7281 | F37: =IFERROR(VLOOKUP($A37,Filtro!$A$5:$AX$2265,4,FALSE),0) -> 8391 | G37: =IFERROR(VLOOKUP($A37,Filtro!$A$5:$AX$2265,5,FALSE),0) -> 254 | H37: =IFERROR(VLOOKUP($A37,Filtro!$A$5:$AX$2265,6,FALSE),0) -> 4737 | I37: =IFERROR(VLOOKUP($A37,Filtro!$A$5:$AX$2265,7,FALSE),0) -> 383 | J37: =IFERROR(VLOOKUP($A37,Filtro!$A$5:$AX$2265,8,FALSE),0) -> 4009 | K37: =IFERROR(VLOOKUP($A37,Filtro!$A$5:$AX$2265,9,FALSE),0) -> 512 | L37: =IFERROR(VLOOKUP($A37,Filtro!$A$5:$AX$2265,10,FALSE),0) -> 92 | M37: =IFERROR(VLOOKUP($A37,Filtro!$A$5:$AX$2265,11,FALSE),0) -> 80 | N37: =IFERROR(VLOOKUP($A37,Filtro!$A$5:$AX$2265,12,FALSE),0) -> 85 | O37: =IFERROR(VLOOKUP($A37,Filtro!$A$5:$AX$2265,13,FALSE),0) -> 64 | P37: =IFERROR(VLOOKUP($A37,Filtro!$A$5:$AX$2265,14,FALSE),0) -> 64 | Q37: =IFERROR(VLOOKUP($A37,Filtro!$A$5:$AX$2265,15,FALSE),0) -> 122 | R37: =IFERROR(VLOOKUP($A37,Filtro!$A$5:$AX$2265,16,FALSE),0) -> 154 | S37: =IFERROR(VLOOKUP($A37,Filtro!$A$5:$AX$2265,17,FALSE),0) -> 202 | T37: =IFERROR(VLOOKUP($A37,Filtro!$A$5:$AX$2265,19,FALSE),0) -> 273 | U37: =IFERROR(VLOOKUP($A37,Filtro!$A$5:$AX$2265,20,FALSE),0) -> 165 | V37: =IFERROR(VLOOKUP($A37,Filtro!$A$5:$AX$2265,21,FALSE),0) -> 119 | W37: =IFERROR(VLOOKUP($A37,Filtro!$A$5:$AX$2265,22,FALSE),0) -> 123 | X37: =IFERROR(VLOOKUP($A37,Filtro!$A$5:$AX$2265,23,FALSE),0) -> 136 | Y37: =IFERROR(VLOOKUP($A37,Filtro!$A$5:$AX$2265,24,FALSE),0) -> 180 | Z37: =IFERROR(VLOOKUP($A37,Filtro!$A$5:$AX$2265,25,FALSE),0) -> 166 | AA37: =IFERROR(VLOOKUP($A37,Filtro!$A$5:$AX$2265,26,FALSE),0) -> 233 | AB37: =IFERROR(VLOOKUP($A37,Filtro!$A$5:$AX$2265,27,FALSE),0) -> 251 | AC37: =IFERROR(VLOOKUP($A37,Filtro!$A$5:$AX$2265,28,FALSE),0) -> 382 | AD37: =IFERROR(VLOOKUP($A37,Filtro!$A$5:$AX$2265,29,FALSE),0) -> 459 | AE37: =IFERROR(VLOOKUP($A37,Filtro!$A$5:$AX$2265,30,FALSE),0) -> 552 | AF37: =IFERROR(VLOOKUP($A37,Filtro!$A$5:$AX$2265,31,FALSE),0) -> 420 | AG37: =IFERROR(VLOOKUP($A37,Filtro!$A$5:$AX$2265,33,FALSE),0) -> 772 | AH37: =IFERROR(VLOOKUP($A37,Filtro!$A$5:$AX$2265,34,FALSE),0) -> 15279 | AI37: =IFERROR(VLOOKUP($A37,Filtro!$A$5:$AX$2265,34,FALSE),0) -> 15279 | AJ37: =IFERROR(VLOOKUP($A37,Filtro!$A$5:$AX$2265,35,FALSE),0) -> 1745 | AK37: =IFERROR(VLOOKUP($A37,Filtro!$A$5:$AX$2265,36,FALSE),0) -> 36 | AL37: =IFERROR(VLOOKUP($A37,Filtro!$A$5:$AX$2265,37,FALSE),0) -> 92 | AM37: =IFERROR(VLOOKUP($A37,Filtro!$A$5:$AX$2265,38,FALSE),0) -> 0 | CA37: * No olvide digitar la columna Beneficiarios. | CD37: =IF(AK37>SUM(G37:N37),"* Los controles con presencia del padre NO DEBE ser mayor que el total Controles Menor 1 año. ",IF(AL37>SUM(O37:Q37),"* Los controles con presencia del padre NO DEBE ser mayor que el total Controles 1 año a 3 años 11 meses 29 dÍas. ","")) ->  | CE37: =IF(AND(G37<>0,'A05'!D52=""),"* NO OLVIDE REGISTRAR INGRESOS A CONTROL DE SALUD DE LOS RESPECTIVOS RN, EN REM A05-SECCIÓN E. ","") ->  | CI37: 0 | CJ37: 0 | CK37: 0
A38: 02010201 | C38: ENFERMERA /O | D38: =IFERROR(VLOOKUP($A38,Filtro!$A$5:$AX$2265,2,FALSE),0) -> 60926 | E38: =IFERROR(VLOOKUP($A38,Filtro!$A$5:$AX$2265,3,FALSE),0) -> 29141 | F38: =IFERROR(VLOOKUP($A38,Filtro!$A$5:$AX$2265,4,FALSE),0) -> 31007 | G38: =IFERROR(VLOOKUP($A38,Filtro!$A$5:$AX$2265,5,FALSE),0) -> 78 | H38: =IFERROR(VLOOKUP($A38,Filtro!$A$5:$AX$2265,6,FALSE),0) -> 147 | I38: =IFERROR(VLOOKUP($A38,Filtro!$A$5:$AX$2265,7,FALSE),0) -> 4499 | J38: =IFERROR(VLOOKUP($A38,Filtro!$A$5:$AX$2265,8,FALSE),0) -> 257 | K38: =IFERROR(VLOOKUP($A38,Filtro!$A$5:$AX$2265,9,FALSE),0) -> 4156 | L38: =IFERROR(VLOOKUP($A38,Filtro!$A$5:$AX$2265,10,FALSE),0) -> 359 | M38: =IFERROR(VLOOKUP($A38,Filtro!$A$5:$AX$2265,11,FALSE),0) -> 4124 | N38: =IFERROR(VLOOKUP($A38,Filtro!$A$5:$AX$2265,12,FALSE),0) -> 5069 | O38: =IFERROR(VLOOKUP($A38,Filtro!$A$5:$AX$2265,13,FALSE),0) -> 5093 | P38: =IFERROR(VLOOKUP($A38,Filtro!$A$5:$AX$2265,14,FALSE),0) -> 4723 | Q38: =IFERROR(VLOOKUP($A38,Filtro!$A$5:$AX$2265,15,FALSE),0) -> 8270 | R38: =IFERROR(VLOOKUP($A38,Filtro!$A$5:$AX$2265,16,FALSE),0) -> 2927 | S38: =IFERROR(VLOOKUP($A38,Filtro!$A$5:$AX$2265,17,FALSE),0) -> 2463 | T38: =IFERROR(VLOOKUP($A38,Filtro!$A$5:$AX$2265,19,FALSE),0) -> 1807 | U38: =IFERROR(VLOOKUP($A38,Filtro!$A$5:$AX$2265,20,FALSE),0) -> 613 | V38: =IFERROR(VLOOKUP($A38,Filtro!$A$5:$AX$2265,21,FALSE),0) -> 142 | W38: =IFERROR(VLOOKUP($A38,Filtro!$A$5:$AX$2265,22,FALSE),0) -> 183 | X38: =IFERROR(VLOOKUP($A38,Filtro!$A$5:$AX$2265,23,FALSE),0) -> 198 | Y38: =IFERROR(VLOOKUP($A38,Filtro!$A$5:$AX$2265,24,FALSE),0) -> 244 | Z38: =IFERROR(VLOOKUP($A38,Filtro!$A$5:$AX$2265,25,FALSE),0) -> 286 | AA38: =IFERROR(VLOOKUP($A38,Filtro!$A$5:$AX$2265,26,FALSE),0) -> 355 | AB38: =IFERROR(VLOOKUP($A38,Filtro!$A$5:$AX$2265,27,FALSE),0) -> 526 | AC38: =IFERROR(VLOOKUP($A38,Filtro!$A$5:$AX$2265,28,FALSE),0) -> 663 | AD38: =IFERROR(VLOOKUP($A38,Filtro!$A$5:$AX$2265,29,FALSE),0) -> 873 | AE38: =IFERROR(VLOOKUP($A38,Filtro!$A$5:$AX$2265,30,FALSE),0) -> 2032 | AF38: =IFERROR(VLOOKUP($A38,Filtro!$A$5:$AX$2265,31,FALSE),0) -> 1714 | AG38: =IFERROR(VLOOKUP($A38,Filtro!$A$5:$AX$2265,33,FALSE),0) -> 1935 | AH38: =IFERROR(VLOOKUP($A38,Filtro!$A$5:$AX$2265,34,FALSE),0) -> 58244 | AI38: =IFERROR(VLOOKUP($A38,Filtro!$A$5:$AX$2265,34,FALSE),0) -> 58244 | AJ38: =IFERROR(VLOOKUP($A38,Filtro!$A$5:$AX$2265,35,FALSE),0) -> 1654 | AK38: =IFERROR(VLOOKUP($A38,Filtro!$A$5:$AX$2265,36,FALSE),0) -> 1394 | AL38: =IFERROR(VLOOKUP($A38,Filtro!$A$5:$AX$2265,37,FALSE),0) -> 591 | AM38: =IFERROR(VLOOKUP($A38,Filtro!$A$5:$AX$2265,38,FALSE),0) -> 0 | CD38: =IF(AK38>SUM(G38:N38),"* Los controles con presencia del padre NO DEBE ser mayor que el total Controles Menor 1 año. ",IF(AL38>SUM(O38:Q38),"* Los controles con presencia del padre NO DEBE ser mayor que el total Controles 1 año a 3 años 11 meses 29 dÍas. ","")) ->  | CE38: =IF(AND(G38<>0,'A05'!D52=""),"* NO OLVIDE REGISTRAR INGRESOS A CONTROL DE SALUD DE LOS RESPECTIVOS RN, EN REM A05-SECCIÓN E. ","") ->  | CI38: 0 | CJ38: =IF(AK38>SUM(G38:N38),1,IF(AL38>SUM(O38:Q38),1,0)) -> 0 | CK38: 0
A39: 02010103 | C39: MATRONA /ÓN | D39: =IFERROR(VLOOKUP($A39,Filtro!$A$5:$AX$2265,2,FALSE),0) -> 23723 | E39: =IFERROR(VLOOKUP($A39,Filtro!$A$5:$AX$2265,3,FALSE),0) -> 2963 | F39: =IFERROR(VLOOKUP($A39,Filtro!$A$5:$AX$2265,4,FALSE),0) -> 20552 | G39: =IFERROR(VLOOKUP($A39,Filtro!$A$5:$AX$2265,5,FALSE),0) -> 4023 | H39: =IFERROR(VLOOKUP($A39,Filtro!$A$5:$AX$2265,6,FALSE),0) -> 0 | I39: =IFERROR(VLOOKUP($A39,Filtro!$A$5:$AX$2265,7,FALSE),0) -> 0 | J39: =IFERROR(VLOOKUP($A39,Filtro!$A$5:$AX$2265,8,FALSE),0) -> 0 | K39: =IFERROR(VLOOKUP($A39,Filtro!$A$5:$AX$2265,9,FALSE),0) -> 0 | L39: =IFERROR(VLOOKUP($A39,Filtro!$A$5:$AX$2265,10,FALSE),0) -> 0 | M39: =IFERROR(VLOOKUP($A39,Filtro!$A$5:$AX$2265,11,FALSE),0) -> 0 | N39: =IFERROR(VLOOKUP($A39,Filtro!$A$5:$AX$2265,12,FALSE),0) -> 0 | O39: =IFERROR(VLOOKUP($A39,Filtro!$A$5:$AX$2265,13,FALSE),0) -> 0 | P39: =IFERROR(VLOOKUP($A39,Filtro!$A$5:$AX$2265,14,FALSE),0) -> 0 | Q39: =IFERROR(VLOOKUP($A39,Filtro!$A$5:$AX$2265,15,FALSE),0) -> 0 | R39: =IFERROR(VLOOKUP($A39,Filtro!$A$5:$AX$2265,16,FALSE),0) -> 0 | S39: =IFERROR(VLOOKUP($A39,Filtro!$A$5:$AX$2265,17,FALSE),0) -> 0 | T39: =IFERROR(VLOOKUP($A39,Filtro!$A$5:$AX$2265,19,FALSE),0) -> 1419 | U39: =IFERROR(VLOOKUP($A39,Filtro!$A$5:$AX$2265,20,FALSE),0) -> 2459 | V39: =IFERROR(VLOOKUP($A39,Filtro!$A$5:$AX$2265,21,FALSE),0) -> 2699 | W39: =IFERROR(VLOOKUP($A39,Filtro!$A$5:$AX$2265,22,FALSE),0) -> 3224 | X39: =IFERROR(VLOOKUP($A39,Filtro!$A$5:$AX$2265,23,FALSE),0) -> 2757 | Y39: =IFERROR(VLOOKUP($A39,Filtro!$A$5:$AX$2265,24,FALSE),0) -> 2006 | Z39: =IFERROR(VLOOKUP($A39,Filtro!$A$5:$AX$2265,25,FALSE),0) -> 1385 | AA39: =IFERROR(VLOOKUP($A39,Filtro!$A$5:$AX$2265,26,FALSE),0) -> 1318 | AB39: =IFERROR(VLOOKUP($A39,Filtro!$A$5:$AX$2265,27,FALSE),0) -> 1082 | AC39: =IFERROR(VLOOKUP($A39,Filtro!$A$5:$AX$2265,28,FALSE),0) -> 664 | AD39: =IFERROR(VLOOKUP($A39,Filtro!$A$5:$AX$2265,29,FALSE),0) -> 451 | AE39: =IFERROR(VLOOKUP($A39,Filtro!$A$5:$AX$2265,30,FALSE),0) -> 170 | AF39: =IFERROR(VLOOKUP($A39,Filtro!$A$5:$AX$2265,31,FALSE),0) -> 40 | AG39: =IFERROR(VLOOKUP($A39,Filtro!$A$5:$AX$2265,33,FALSE),0) -> 7 | AH39: =IFERROR(VLOOKUP($A39,Filtro!$A$5:$AX$2265,34,FALSE),0) -> 23766 | AI39: =IFERROR(VLOOKUP($A39,Filtro!$A$5:$AX$2265,34,FALSE),0) -> 23766 | AJ39: =IFERROR(VLOOKUP($A39,Filtro!$A$5:$AX$2265,35,FALSE),0) -> 1265 | AK39: =IFERROR(VLOOKUP($A39,Filtro!$A$5:$AX$2265,36,FALSE),0) -> 0 | AL39: =IFERROR(VLOOKUP($A39,Filtro!$A$5:$AX$2265,37,FALSE),0) -> 337 | AM39: =IFERROR(VLOOKUP($A39,Filtro!$A$5:$AX$2265,38,FALSE),0) -> 0 | CA39: * No olvide digitar la columna Beneficiarios. | CD39: =IF((AK39>G39),"* Los controles con presencia del padre NO DEBE ser mayor que el total Controles Menor 1 año. ","") ->  | CE39: =IF(AND(G39<>0,'A05'!D52=""),"* NO OLVIDE REGISTRAR INGRESOS A CONTROL DE SALUD DE LOS RESPECTIVOS RN, EN REM A05-SECCIÓN E. ","") ->  | CI39: 0 | CJ39: 0 | CK39: 0
A40: 02010105 | C40: TÉCNICO PARAMÉDICO | D40: =IFERROR(VLOOKUP($A40,Filtro!$A$5:$AX$2265,2,FALSE),0) -> 41 | E40: =IFERROR(VLOOKUP($A40,Filtro!$A$5:$AX$2265,3,FALSE),0) -> 15 | F40: =IFERROR(VLOOKUP($A40,Filtro!$A$5:$AX$2265,4,FALSE),0) -> 23 | G40: =IFERROR(VLOOKUP($A40,Filtro!$A$5:$AX$2265,5,FALSE),0) -> 0 | H40: =IFERROR(VLOOKUP($A40,Filtro!$A$5:$AX$2265,6,FALSE),0) -> 0 | I40: =IFERROR(VLOOKUP($A40,Filtro!$A$5:$AX$2265,7,FALSE),0) -> 0 | J40: =IFERROR(VLOOKUP($A40,Filtro!$A$5:$AX$2265,8,FALSE),0) -> 0 | K40: =IFERROR(VLOOKUP($A40,Filtro!$A$5:$AX$2265,9,FALSE),0) -> 0 | L40: =IFERROR(VLOOKUP($A40,Filtro!$A$5:$AX$2265,10,FALSE),0) -> 0 | M40: =IFERROR(VLOOKUP($A40,Filtro!$A$5:$AX$2265,11,FALSE),0) -> 0 | N40: =IFERROR(VLOOKUP($A40,Filtro!$A$5:$AX$2265,12,FALSE),0) -> 0 | O40: =IFERROR(VLOOKUP($A40,Filtro!$A$5:$AX$2265,13,FALSE),0) -> 6 | P40: =IFERROR(VLOOKUP($A40,Filtro!$A$5:$AX$2265,14,FALSE),0) -> 3 | Q40: =IFERROR(VLOOKUP($A40,Filtro!$A$5:$AX$2265,15,FALSE),0) -> 15 | R40: =IFERROR(VLOOKUP($A40,Filtro!$A$5:$AX$2265,16,FALSE),0) -> 6 | S40: =IFERROR(VLOOKUP($A40,Filtro!$A$5:$AX$2265,17,FALSE),0) -> 5 | T40: =IFERROR(VLOOKUP($A40,Filtro!$A$5:$AX$2265,19,FALSE),0) -> 0 | U40: =IFERROR(VLOOKUP($A40,Filtro!$A$5:$AX$2265,20,FALSE),0) -> 0 | V40: =IFERROR(VLOOKUP($A40,Filtro!$A$5:$AX$2265,21,FALSE),0) -> 0 | W40: =IFERROR(VLOOKUP($A40,Filtro!$A$5:$AX$2265,22,FALSE),0) -> 0 | X40: =IFERROR(VLOOKUP($A40,Filtro!$A$5:$AX$2265,23,FALSE),0) -> 0 | Y40: =IFERROR(VLOOKUP($A40,Filtro!$A$5:$AX$2265,24,FALSE),0) -> 0 | Z40: =IFERROR(VLOOKUP($A40,Filtro!$A$5:$AX$2265,25,FALSE),0) -> 0 | AA40: =IFERROR(VLOOKUP($A40,Filtro!$A$5:$AX$2265,26,FALSE),0) -> 0 | AB40: =IFERROR(VLOOKUP($A40,Filtro!$A$5:$AX$2265,27,FALSE),0) -> 0 | AC40: =IFERROR(VLOOKUP($A40,Filtro!$A$5:$AX$2265,28,FALSE),0) -> 0 | AD40: =IFERROR(VLOOKUP($A40,Filtro!$A$5:$AX$2265,29,FALSE),0) -> 0 | AE40: =IFERROR(VLOOKUP($A40,Filtro!$A$5:$AX$2265,30,FALSE),0) -> 0 | AF40: =IFERROR(VLOOKUP($A40,Filtro!$A$5:$AX$2265,31,FALSE),0) -> 0 | AG40: =IFERROR(VLOOKUP($A40,Filtro!$A$5:$AX$2265,33,FALSE),0) -> 0 | AH40: =IFERROR(VLOOKUP($A40,Filtro!$A$5:$AX$2265,34,FALSE),0) -> 41 | AI40: =IFERROR(VLOOKUP($A40,Filtro!$A$5:$AX$2265,34,FALSE),0) -> 41 | AJ40: =IFERROR(VLOOKUP($A40,Filtro!$A$5:$AX$2265,35,FALSE),0) -> 0 | AK40: =IFERROR(VLOOKUP($A40,Filtro!$A$5:$AX$2265,36,FALSE),0) -> 1 | AL40: =IFERROR(VLOOKUP($A40,Filtro!$A$5:$AX$2265,37,FALSE),0) -> 2 | AM40: =IFERROR(VLOOKUP($A40,Filtro!$A$5:$AX$2265,38,FALSE),0) -> 0 | CA40: * No olvide digitar la columna Beneficiarios. | CD40: =IF(AL40>SUM(O40:T40),"* Los controles con presencia del padre NO DEBE ser mayor que el total Controles 1año a 3 años 11 meses 29 dÍas. ","") ->  | CI40: 0 | CJ40: 0 | CK40: 0
B41: SECCIÓN C: CONTROLES SEGÚN PROBLEMA DE SALUD
B42: TIPO DE CONTROL | C42: PROFESIONAL | D42: TOTAL | G42: POR EDAD | AO42: Beneficiarios
G43: 0 - 4 | I43: 5 - 9 | K43: 10 - 14 | M43: 15 a 19 | O43: 20 - 24 | Q43: 25 - 29 | S43: 30 - 34 | U43: 35 - 39 | W43: 40 - 44 | Y43: 45 - 49 | AA43: 50 - 54 | AC43: 55 - 59 | AE43: 60 - 64 | AG43: 65 - 69 | AI43: 70 - 74 | AK43: 75 - 79 | AM43: 80 y mas
D44: Ambos Sexos | E44: Hombres | F44: Mujeres | G44: Hombres | H44: Mujeres | I44: Hombres | J44: Mujeres | K44: Hombres | L44: Mujeres | M44: Hombres | N44: Mujeres | O44: Hombres | P44: Mujeres | Q44: Hombres | R44: Mujeres | S44: Hombres | T44: Mujeres | U44: Hombres | V44: Mujeres | W44: Hombres | X44: Mujeres | Y44: Hombres | Z44: Mujeres | AA44: Hombres | AB44: Mujeres | AC44: Hombres | AD44: Mujeres | AE44: Hombres | AF44: Mujeres | AG44: Hombres | AH44: Mujeres | AI44: Hombres | AJ44: Mujeres | AK44: Hombres | AL44: Mujeres | AM44: Hombres | AN44: Mujeres
A45: 03010501 | B45: DE SALUD CARDIOVASCULAR | C45: MÉDICO | D45: =IFERROR(VLOOKUP($A45,Filtro!$A$5:$AX$2265,2,FALSE),0) -> 93680 | E45: =IFERROR(VLOOKUP($A45,Filtro!$A$5:$AX$2265,3,FALSE),0) -> 32680 | F45: =IFERROR(VLOOKUP($A45,Filtro!$A$5:$AX$2265,4,FALSE),0) -> 61000 | G45: =IFERROR(VLOOKUP($A45,Filtro!$A$5:$AX$2265,5,FALSE),0) -> 0 | H45: =IFERROR(VLOOKUP($A45,Filtro!$A$5:$AX$2265,6,FALSE),0) -> 0 | I45: =IFERROR(VLOOKUP($A45,Filtro!$A$5:$AX$2265,7,FALSE),0) -> 0 | J45: =IFERROR(VLOOKUP($A45,Filtro!$A$5:$AX$2265,8,FALSE),0) -> 0 | K45: =IFERROR(VLOOKUP($A45,Filtro!$A$5:$AX$2265,9,FALSE),0) -> 0 | L45: =IFERROR(VLOOKUP($A45,Filtro!$A$5:$AX$2265,10,FALSE),0) -> 0 | M45: =IFERROR(VLOOKUP($A45,Filtro!$A$5:$AX$2265,11,FALSE),0) -> 62 | N45: =IFERROR(VLOOKUP($A45,Filtro!$A$5:$AX$2265,12,FALSE),0) -> 98 | O45: =IFERROR(VLOOKUP($A45,Filtro!$A$5:$AX$2265,13,FALSE),0) -> 76 | P45: =IFERROR(VLOOKUP($A45,Filtro!$A$5:$AX$2265,14,FALSE),0) -> 213 | Q45: =IFERROR(VLOOKUP($A45,Filtro!$A$5:$AX$2265,15,FALSE),0) -> 159 | R45: =IFERROR(VLOOKUP($A45,Filtro!$A$5:$AX$2265,16,FALSE),0) -> 442 | S45: =IFERROR(VLOOKUP($A45,Filtro!$A$5:$AX$2265,17,FALSE),0) -> 271 | T45: =IFERROR(VLOOKUP($A45,Filtro!$A$5:$AX$2265,18,FALSE),0) -> 810 | U45: =IFERROR(VLOOKUP($A45,Filtro!$A$5:$AX$2265,19,FALSE),0) -> 485 | V45: =IFERROR(VLOOKUP($A45,Filtro!$A$5:$AX$2265,20,FALSE),0) -> 1368 | W45: =IFERROR(VLOOKUP($A45,Filtro!$A$5:$AX$2265,21,FALSE),0) -> 783 | X45: =IFERROR(VLOOKUP($A45,Filtro!$A$5:$AX$2265,22,FALSE),0) -> 2198 | Y45: =IFERROR(VLOOKUP($A45,Filtro!$A$5:$AX$2265,23,FALSE),0) -> 1398 | Z45: =IFERROR(VLOOKUP($A45,Filtro!$A$5:$AX$2265,24,FALSE),0) -> 3516 | AA45: =IFERROR(VLOOKUP($A45,Filtro!$A$5:$AX$2265,25,FALSE),0) -> 2263 | AB45: =IFERROR(VLOOKUP($A45,Filtro!$A$5:$AX$2265,26,FALSE),0) -> 5673 | AC45: =IFERROR(VLOOKUP($A45,Filtro!$A$5:$AX$2265,27,FALSE),0) -> 3505 | AD45: =IFERROR(VLOOKUP($A45,Filtro!$A$5:$AX$2265,28,FALSE),0) -> 7749 | AE45: =IFERROR(VLOOKUP($A45,Filtro!$A$5:$AX$2265,29,FALSE),0) -> 4565 | AF45: =IFERROR(VLOOKUP($A45,Filtro!$A$5:$AX$2265,30,FALSE),0) -> 8610 | AG45: =IFERROR(VLOOKUP($A45,Filtro!$A$5:$AX$2265,31,FALSE),0) -> 5208 | AH45: =IFERROR(VLOOKUP($A45,Filtro!$A$5:$AX$2265,32,FALSE),0) -> 8861 | AI45: =IFERROR(VLOOKUP($A45,Filtro!$A$5:$AX$2265,33,FALSE),0) -> 4912 | AJ45: =IFERROR(VLOOKUP($A45,Filtro!$A$5:$AX$2265,34,FALSE),0) -> 7751 | AK45: =IFERROR(VLOOKUP($A45,Filtro!$A$5:$AX$2265,35,FALSE),0) -> 4357 | AL45: =IFERROR(VLOOKUP($A45,Filtro!$A$5:$AX$2265,36,FALSE),0) -> 6409 | AM45: =IFERROR(VLOOKUP($A45,Filtro!$A$5:$AX$2265,37,FALSE),0) -> 4636 | AN45: =IFERROR(VLOOKUP($A45,Filtro!$A$5:$AX$2265,38,FALSE),0) -> 7301 | AO45: =IFERROR(VLOOKUP($A45,Filtro!$A$5:$AX$2265,39,FALSE),0) -> 90548 | CI45: 0 | CJ45: 0
A46: 03010502 | C46: ENFERMERA /O | D46: =IFERROR(VLOOKUP($A46,Filtro!$A$5:$AX$2265,2,FALSE),0) -> 37936 | E46: =IFERROR(VLOOKUP($A46,Filtro!$A$5:$AX$2265,3,FALSE),0) -> 13466 | F46: =IFERROR(VLOOKUP($A46,Filtro!$A$5:$AX$2265,4,FALSE),0) -> 24470 | G46: =IFERROR(VLOOKUP($A46,Filtro!$A$5:$AX$2265,5,FALSE),0) -> 0 | H46: =IFERROR(VLOOKUP($A46,Filtro!$A$5:$AX$2265,6,FALSE),0) -> 0 | I46: =IFERROR(VLOOKUP($A46,Filtro!$A$5:$AX$2265,7,FALSE),0) -> 0 | J46: =IFERROR(VLOOKUP($A46,Filtro!$A$5:$AX$2265,8,FALSE),0) -> 0 | K46: =IFERROR(VLOOKUP($A46,Filtro!$A$5:$AX$2265,9,FALSE),0) -> 0 | L46: =IFERROR(VLOOKUP($A46,Filtro!$A$5:$AX$2265,10,FALSE),0) -> 0 | M46: =IFERROR(VLOOKUP($A46,Filtro!$A$5:$AX$2265,11,FALSE),0) -> 19 | N46: =IFERROR(VLOOKUP($A46,Filtro!$A$5:$AX$2265,12,FALSE),0) -> 42 | O46: =IFERROR(VLOOKUP($A46,Filtro!$A$5:$AX$2265,13,FALSE),0) -> 25 | P46: =IFERROR(VLOOKUP($A46,Filtro!$A$5:$AX$2265,14,FALSE),0) -> 98 | Q46: =IFERROR(VLOOKUP($A46,Filtro!$A$5:$AX$2265,15,FALSE),0) -> 62 | R46: =IFERROR(VLOOKUP($A46,Filtro!$A$5:$AX$2265,16,FALSE),0) -> 145 | S46: =IFERROR(VLOOKUP($A46,Filtro!$A$5:$AX$2265,17,FALSE),0) -> 135 | T46: =IFERROR(VLOOKUP($A46,Filtro!$A$5:$AX$2265,18,FALSE),0) -> 316 | U46: =IFERROR(VLOOKUP($A46,Filtro!$A$5:$AX$2265,19,FALSE),0) -> 227 | V46: =IFERROR(VLOOKUP($A46,Filtro!$A$5:$AX$2265,20,FALSE),0) -> 523 | W46: =IFERROR(VLOOKUP($A46,Filtro!$A$5:$AX$2265,21,FALSE),0) -> 350 | X46: =IFERROR(VLOOKUP($A46,Filtro!$A$5:$AX$2265,22,FALSE),0) -> 912 | Y46: =IFERROR(VLOOKUP($A46,Filtro!$A$5:$AX$2265,23,FALSE),0) -> 575 | Z46: =IFERROR(VLOOKUP($A46,Filtro!$A$5:$AX$2265,24,FALSE),0) -> 1427 | AA46: =IFERROR(VLOOKUP($A46,Filtro!$A$5:$AX$2265,25,FALSE),0) -> 974 | AB46: =IFERROR(VLOOKUP($A46,Filtro!$A$5:$AX$2265,26,FALSE),0) -> 2278 | AC46: =IFERROR(VLOOKUP($A46,Filtro!$A$5:$AX$2265,27,FALSE),0) -> 1404 | AD46: =IFERROR(VLOOKUP($A46,Filtro!$A$5:$AX$2265,28,FALSE),0) -> 3145 | AE46: =IFERROR(VLOOKUP($A46,Filtro!$A$5:$AX$2265,29,FALSE),0) -> 1836 | AF46: =IFERROR(VLOOKUP($A46,Filtro!$A$5:$AX$2265,30,FALSE),0) -> 3488 | AG46: =IFERROR(VLOOKUP($A46,Filtro!$A$5:$AX$2265,31,FALSE),0) -> 2334 | AH46: =IFERROR(VLOOKUP($A46,Filtro!$A$5:$AX$2265,32,FALSE),0) -> 3770 | AI46: =IFERROR(VLOOKUP($A46,Filtro!$A$5:$AX$2265,33,FALSE),0) -> 2121 | AJ46: =IFERROR(VLOOKUP($A46,Filtro!$A$5:$AX$2265,34,FALSE),0) -> 3186 | AK46: =IFERROR(VLOOKUP($A46,Filtro!$A$5:$AX$2265,35,FALSE),0) -> 1701 | AL46: =IFERROR(VLOOKUP($A46,Filtro!$A$5:$AX$2265,36,FALSE),0) -> 2494 | AM46: =IFERROR(VLOOKUP($A46,Filtro!$A$5:$AX$2265,37,FALSE),0) -> 1703 | AN46: =IFERROR(VLOOKUP($A46,Filtro!$A$5:$AX$2265,38,FALSE),0) -> 2646 | AO46: =IFERROR(VLOOKUP($A46,Filtro!$A$5:$AX$2265,39,FALSE),0) -> 36454 | CI46: 0 | CJ46: 0
A47: 03010504 | C47: NUTRICIONISTA | D47: =IFERROR(VLOOKUP($A47,Filtro!$A$5:$AX$2265,2,FALSE),0) -> 35902 | E47: =IFERROR(VLOOKUP($A47,Filtro!$A$5:$AX$2265,3,FALSE),0) -> 11677 | F47: =IFERROR(VLOOKUP($A47,Filtro!$A$5:$AX$2265,4,FALSE),0) -> 24225 | G47: =IFERROR(VLOOKUP($A47,Filtro!$A$5:$AX$2265,5,FALSE),0) -> 0 | H47: =IFERROR(VLOOKUP($A47,Filtro!$A$5:$AX$2265,6,FALSE),0) -> 0 | I47: =IFERROR(VLOOKUP($A47,Filtro!$A$5:$AX$2265,7,FALSE),0) -> 0 | J47: =IFERROR(VLOOKUP($A47,Filtro!$A$5:$AX$2265,8,FALSE),0) -> 0 | K47: =IFERROR(VLOOKUP($A47,Filtro!$A$5:$AX$2265,9,FALSE),0) -> 0 | L47: =IFERROR(VLOOKUP($A47,Filtro!$A$5:$AX$2265,10,FALSE),0) -> 0 | M47: =IFERROR(VLOOKUP($A47,Filtro!$A$5:$AX$2265,11,FALSE),0) -> 36 | N47: =IFERROR(VLOOKUP($A47,Filtro!$A$5:$AX$2265,12,FALSE),0) -> 80 | O47: =IFERROR(VLOOKUP($A47,Filtro!$A$5:$AX$2265,13,FALSE),0) -> 51 | P47: =IFERROR(VLOOKUP($A47,Filtro!$A$5:$AX$2265,14,FALSE),0) -> 148 | Q47: =IFERROR(VLOOKUP($A47,Filtro!$A$5:$AX$2265,15,FALSE),0) -> 86 | R47: =IFERROR(VLOOKUP($A47,Filtro!$A$5:$AX$2265,16,FALSE),0) -> 221 | S47: =IFERROR(VLOOKUP($A47,Filtro!$A$5:$AX$2265,17,FALSE),0) -> 142 | T47: =IFERROR(VLOOKUP($A47,Filtro!$A$5:$AX$2265,18,FALSE),0) -> 417 | U47: =IFERROR(VLOOKUP($A47,Filtro!$A$5:$AX$2265,19,FALSE),0) -> 257 | V47: =IFERROR(VLOOKUP($A47,Filtro!$A$5:$AX$2265,20,FALSE),0) -> 693 | W47: =IFERROR(VLOOKUP($A47,Filtro!$A$5:$AX$2265,21,FALSE),0) -> 390 | X47: =IFERROR(VLOOKUP($A47,Filtro!$A$5:$AX$2265,22,FALSE),0) -> 1074 | Y47: =IFERROR(VLOOKUP($A47,Filtro!$A$5:$AX$2265,23,FALSE),0) -> 623 | Z47: =IFERROR(VLOOKUP($A47,Filtro!$A$5:$AX$2265,24,FALSE),0) -> 1658 | AA47: =IFERROR(VLOOKUP($A47,Filtro!$A$5:$AX$2265,25,FALSE),0) -> 941 | AB47: =IFERROR(VLOOKUP($A47,Filtro!$A$5:$AX$2265,26,FALSE),0) -> 2602 | AC47: =IFERROR(VLOOKUP($A47,Filtro!$A$5:$AX$2265,27,FALSE),0) -> 1322 | AD47: =IFERROR(VLOOKUP($A47,Filtro!$A$5:$AX$2265,28,FALSE),0) -> 3346 | AE47: =IFERROR(VLOOKUP($A47,Filtro!$A$5:$AX$2265,29,FALSE),0) -> 1607 | AF47: =IFERROR(VLOOKUP($A47,Filtro!$A$5:$AX$2265,30,FALSE),0) -> 3544 | AG47: =IFERROR(VLOOKUP($A47,Filtro!$A$5:$AX$2265,31,FALSE),0) -> 1923 | AH47: =IFERROR(VLOOKUP($A47,Filtro!$A$5:$AX$2265,32,FALSE),0) -> 3483 | AI47: =IFERROR(VLOOKUP($A47,Filtro!$A$5:$AX$2265,33,FALSE),0) -> 1624 | AJ47: =IFERROR(VLOOKUP($A47,Filtro!$A$5:$AX$2265,34,FALSE),0) -> 2866 | AK47: =IFERROR(VLOOKUP($A47,Filtro!$A$5:$AX$2265,35,FALSE),0) -> 1324 | AL47: =IFERROR(VLOOKUP($A47,Filtro!$A$5:$AX$2265,36,FALSE),0) -> 2010 | AM47: =IFERROR(VLOOKUP($A47,Filtro!$A$5:$AX$2265,37,FALSE),0) -> 1351 | AN47: =IFERROR(VLOOKUP($A47,Filtro!$A$5:$AX$2265,38,FALSE),0) -> 2082 | AO47: =IFERROR(VLOOKUP($A47,Filtro!$A$5:$AX$2265,39,FALSE),0) -> 35106 | CJ47: 0
A48: 03010505 | C48: =IFERROR(VLOOKUP($A48,Filtro!$A$5:$AX$2265,2,FALSE),0) -> 5531 | D48: =IFERROR(VLOOKUP($A48,Filtro!$A$5:$AX$2265,2,FALSE),0) -> 5531 | E48: =IFERROR(VLOOKUP($A48,Filtro!$A$5:$AX$2265,3,FALSE),0) -> 2007 | F48: =IFERROR(VLOOKUP($A48,Filtro!$A$5:$AX$2265,4,FALSE),0) -> 3524 | G48: =IFERROR(VLOOKUP($A48,Filtro!$A$5:$AX$2265,5,FALSE),0) -> 0 | H48: =IFERROR(VLOOKUP($A48,Filtro!$A$5:$AX$2265,6,FALSE),0) -> 0 | I48: =IFERROR(VLOOKUP($A48,Filtro!$A$5:$AX$2265,7,FALSE),0) -> 0 | J48: =IFERROR(VLOOKUP($A48,Filtro!$A$5:$AX$2265,8,FALSE),0) -> 0 | K48: =IFERROR(VLOOKUP($A48,Filtro!$A$5:$AX$2265,9,FALSE),0) -> 0 | L48: =IFERROR(VLOOKUP($A48,Filtro!$A$5:$AX$2265,10,FALSE),0) -> 0 | M48: =IFERROR(VLOOKUP($A48,Filtro!$A$5:$AX$2265,11,FALSE),0) -> 4 | N48: =IFERROR(VLOOKUP($A48,Filtro!$A$5:$AX$2265,12,FALSE),0) -> 14 | O48: =IFERROR(VLOOKUP($A48,Filtro!$A$5:$AX$2265,13,FALSE),0) -> 14 | P48: =IFERROR(VLOOKUP($A48,Filtro!$A$5:$AX$2265,14,FALSE),0) -> 36 | Q48: =IFERROR(VLOOKUP($A48,Filtro!$A$5:$AX$2265,15,FALSE),0) -> 31 | R48: =IFERROR(VLOOKUP($A48,Filtro!$A$5:$AX$2265,16,FALSE),0) -> 22 | S48: =IFERROR(VLOOKUP($A48,Filtro!$A$5:$AX$2265,17,FALSE),0) -> 27 | T48: =IFERROR(VLOOKUP($A48,Filtro!$A$5:$AX$2265,18,FALSE),0) -> 66 | U48: =IFERROR(VLOOKUP($A48,Filtro!$A$5:$AX$2265,19,FALSE),0) -> 31 | V48: =IFERROR(VLOOKUP($A48,Filtro!$A$5:$AX$2265,20,FALSE),0) -> 47 | W48: =IFERROR(VLOOKUP($A48,Filtro!$A$5:$AX$2265,21,FALSE),0) -> 52 | X48: =IFERROR(VLOOKUP($A48,Filtro!$A$5:$AX$2265,22,FALSE),0) -> 117 | Y48: =IFERROR(VLOOKUP($A48,Filtro!$A$5:$AX$2265,23,FALSE),0) -> 102 | Z48: =IFERROR(VLOOKUP($A48,Filtro!$A$5:$AX$2265,24,FALSE),0) -> 173 | AA48: =IFERROR(VLOOKUP($A48,Filtro!$A$5:$AX$2265,25,FALSE),0) -> 92 | AB48: =IFERROR(VLOOKUP($A48,Filtro!$A$5:$AX$2265,26,FALSE),0) -> 321 | AC48: =IFERROR(VLOOKUP($A48,Filtro!$A$5:$AX$2265,27,FALSE),0) -> 213 | AD48: =IFERROR(VLOOKUP($A48,Filtro!$A$5:$AX$2265,28,FALSE),0) -> 405 | AE48: =IFERROR(VLOOKUP($A48,Filtro!$A$5:$AX$2265,29,FALSE),0) -> 287 | AF48: =IFERROR(VLOOKUP($A48,Filtro!$A$5:$AX$2265,30,FALSE),0) -> 444 | AG48: =IFERROR(VLOOKUP($A48,Filtro!$A$5:$AX$2265,31,FALSE),0) -> 319 | AH48: =IFERROR(VLOOKUP($A48,Filtro!$A$5:$AX$2265,32,FALSE),0) -> 466 | AI48: =IFERROR(VLOOKUP($A48,Filtro!$A$5:$AX$2265,33,FALSE),0) -> 289 | AJ48: =IFERROR(VLOOKUP($A48,Filtro!$A$5:$AX$2265,34,FALSE),0) -> 480 | AK48: =IFERROR(VLOOKUP($A48,Filtro!$A$5:$AX$2265,35,FALSE),0) -> 250 | AL48: =IFERROR(VLOOKUP($A48,Filtro!$A$5:$AX$2265,36,FALSE),0) -> 433 | AM48: =IFERROR(VLOOKUP($A48,Filtro!$A$5:$AX$2265,37,FALSE),0) -> 296 | AN48: =IFERROR(VLOOKUP($A48,Filtro!$A$5:$AX$2265,38,FALSE),0) -> 500 | AO48: =IFERROR(VLOOKUP($A48,Filtro!$A$5:$AX$2265,39,FALSE),0) -> 5426 | CJ48: 0
B49: DE TUBERCULOSIS | C49: =IFERROR(VLOOKUP($A49,Filtro!$A$5:$AX$2265,2,FALSE),0) -> 0 | D49: =IFERROR(VLOOKUP($A49,Filtro!$A$5:$AX$2265,2,FALSE),0) -> 0 | E49: =IFERROR(VLOOKUP($A49,Filtro!$A$5:$AX$2265,3,FALSE),0) -> 0 | F49: =IFERROR(VLOOKUP($A49,Filtro!$A$5:$AX$2265,4,FALSE),0) -> 0 | G49: =IFERROR(VLOOKUP($A49,Filtro!$A$5:$AX$2265,5,FALSE),0) -> 0 | H49: =IFERROR(VLOOKUP($A49,Filtro!$A$5:$AX$2265,6,FALSE),0) -> 0 | I49: =IFERROR(VLOOKUP($A49,Filtro!$A$5:$AX$2265,7,FALSE),0) -> 0 | J49: =IFERROR(VLOOKUP($A49,Filtro!$A$5:$AX$2265,8,FALSE),0) -> 0 | K49: =IFERROR(VLOOKUP($A49,Filtro!$A$5:$AX$2265,9,FALSE),0) -> 0 | L49: =IFERROR(VLOOKUP($A49,Filtro!$A$5:$AX$2265,10,FALSE),0) -> 0 | M49: =IFERROR(VLOOKUP($A49,Filtro!$A$5:$AX$2265,11,FALSE),0) -> 0 | N49: =IFERROR(VLOOKUP($A49,Filtro!$A$5:$AX$2265,12,FALSE),0) -> 0 | O49: =IFERROR(VLOOKUP($A49,Filtro!$A$5:$AX$2265,13,FALSE),0) -> 0 | P49: =IFERROR(VLOOKUP($A49,Filtro!$A$5:$AX$2265,14,FALSE),0) -> 0 | Q49: =IFERROR(VLOOKUP($A49,Filtro!$A$5:$AX$2265,15,FALSE),0) -> 0 | R49: =IFERROR(VLOOKUP($A49,Filtro!$A$5:$AX$2265,16,FALSE),0) -> 0 | S49: =IFERROR(VLOOKUP($A49,Filtro!$A$5:$AX$2265,17,FALSE),0) -> 0 | T49: =IFERROR(VLOOKUP($A49,Filtro!$A$5:$AX$2265,18,FALSE),0) -> 0 | U49: =IFERROR(VLOOKUP($A49,Filtro!$A$5:$AX$2265,19,FALSE),0) -> 0 | V49: =IFERROR(VLOOKUP($A49,Filtro!$A$5:$AX$2265,20,FALSE),0) -> 0 | W49: =IFERROR(VLOOKUP($A49,Filtro!$A$5:$AX$2265,21,FALSE),0) -> 0 | X49: =IFERROR(VLOOKUP($A49,Filtro!$A$5:$AX$2265,22,FALSE),0) -> 0 | Y49: =IFERROR(VLOOKUP($A49,Filtro!$A$5:$AX$2265,23,FALSE),0) -> 0 | Z49: =IFERROR(VLOOKUP($A49,Filtro!$A$5:$AX$2265,24,FALSE),0) -> 0 | AA49: =IFERROR(VLOOKUP($A49,Filtro!$A$5:$AX$2265,25,FALSE),0) -> 0 | AB49: =IFERROR(VLOOKUP($A49,Filtro!$A$5:$AX$2265,26,FALSE),0) -> 0 | AC49: =IFERROR(VLOOKUP($A49,Filtro!$A$5:$AX$2265,27,FALSE),0) -> 0 | AD49: =IFERROR(VLOOKUP($A49,Filtro!$A$5:$AX$2265,28,FALSE),0) -> 0 | AE49: =IFERROR(VLOOKUP($A49,Filtro!$A$5:$AX$2265,29,FALSE),0) -> 0 | AF49: =IFERROR(VLOOKUP($A49,Filtro!$A$5:$AX$2265,30,FALSE),0) -> 0 | AG49: =IFERROR(VLOOKUP($A49,Filtro!$A$5:$AX$2265,31,FALSE),0) -> 0 | AH49: =IFERROR(VLOOKUP($A49,Filtro!$A$5:$AX$2265,32,FALSE),0) -> 0 | AI49: =IFERROR(VLOOKUP($A49,Filtro!$A$5:$AX$2265,33,FALSE),0) -> 0 | AJ49: =IFERROR(VLOOKUP($A49,Filtro!$A$5:$AX$2265,34,FALSE),0) -> 0 | AK49: =IFERROR(VLOOKUP($A49,Filtro!$A$5:$AX$2265,35,FALSE),0) -> 0 | AL49: =IFERROR(VLOOKUP($A49,Filtro!$A$5:$AX$2265,36,FALSE),0) -> 0 | AM49: =IFERROR(VLOOKUP($A49,Filtro!$A$5:$AX$2265,37,FALSE),0) -> 0 | AN49: =IFERROR(VLOOKUP($A49,Filtro!$A$5:$AX$2265,38,FALSE),0) -> 0 | AO49: =IFERROR(VLOOKUP($A49,Filtro!$A$5:$AX$2265,39,FALSE),0) -> 0 | CI49: 0 | CJ49: 0
C50: ENFERMERA /O | D50: =IFERROR(VLOOKUP($A50,Filtro!$A$5:$AX$2265,2,FALSE),0) -> 0 | E50: =IFERROR(VLOOKUP($A50,Filtro!$A$5:$AX$2265,3,FALSE),0) -> 0 | F50: =IFERROR(VLOOKUP($A50,Filtro!$A$5:$AX$2265,4,FALSE),0) -> 0 | G50: =IFERROR(VLOOKUP($A50,Filtro!$A$5:$AX$2265,5,FALSE),0) -> 0 | H50: =IFERROR(VLOOKUP($A50,Filtro!$A$5:$AX$2265,6,FALSE),0) -> 0 | I50: =IFERROR(VLOOKUP($A50,Filtro!$A$5:$AX$2265,7,FALSE),0) -> 0 | J50: =IFERROR(VLOOKUP($A50,Filtro!$A$5:$AX$2265,8,FALSE),0) -> 0 | K50: =IFERROR(VLOOKUP($A50,Filtro!$A$5:$AX$2265,9,FALSE),0) -> 0 | L50: =IFERROR(VLOOKUP($A50,Filtro!$A$5:$AX$2265,10,FALSE),0) -> 0 | M50: =IFERROR(VLOOKUP($A50,Filtro!$A$5:$AX$2265,11,FALSE),0) -> 0 | N50: =IFERROR(VLOOKUP($A50,Filtro!$A$5:$AX$2265,12,FALSE),0) -> 0 | O50: =IFERROR(VLOOKUP($A50,Filtro!$A$5:$AX$2265,13,FALSE),0) -> 0 | P50: =IFERROR(VLOOKUP($A50,Filtro!$A$5:$AX$2265,14,FALSE),0) -> 0 | Q50: =IFERROR(VLOOKUP($A50,Filtro!$A$5:$AX$2265,15,FALSE),0) -> 0 | R50: =IFERROR(VLOOKUP($A50,Filtro!$A$5:$AX$2265,16,FALSE),0) -> 0 | S50: =IFERROR(VLOOKUP($A50,Filtro!$A$5:$AX$2265,17,FALSE),0) -> 0 | T50: =IFERROR(VLOOKUP($A50,Filtro!$A$5:$AX$2265,18,FALSE),0) -> 0 | U50: =IFERROR(VLOOKUP($A50,Filtro!$A$5:$AX$2265,19,FALSE),0) -> 0 | V50: =IFERROR(VLOOKUP($A50,Filtro!$A$5:$AX$2265,20,FALSE),0) -> 0 | W50: =IFERROR(VLOOKUP($A50,Filtro!$A$5:$AX$2265,21,FALSE),0) -> 0 | X50: =IFERROR(VLOOKUP($A50,Filtro!$A$5:$AX$2265,22,FALSE),0) -> 0 | Y50: =IFERROR(VLOOKUP($A50,Filtro!$A$5:$AX$2265,23,FALSE),0) -> 0 | Z50: =IFERROR(VLOOKUP($A50,Filtro!$A$5:$AX$2265,24,FALSE),0) -> 0 | AA50: =IFERROR(VLOOKUP($A50,Filtro!$A$5:$AX$2265,25,FALSE),0) -> 0 | AB50: =IFERROR(VLOOKUP($A50,Filtro!$A$5:$AX$2265,26,FALSE),0) -> 0 | AC50: =IFERROR(VLOOKUP($A50,Filtro!$A$5:$AX$2265,27,FALSE),0) -> 0 | AD50: =IFERROR(VLOOKUP($A50,Filtro!$A$5:$AX$2265,28,FALSE),0) -> 0 | AE50: =IFERROR(VLOOKUP($A50,Filtro!$A$5:$AX$2265,29,FALSE),0) -> 0 | AF50: =IFERROR(VLOOKUP($A50,Filtro!$A$5:$AX$2265,30,FALSE),0) -> 0 | AG50: =IFERROR(VLOOKUP($A50,Filtro!$A$5:$AX$2265,31,FALSE),0) -> 0 | AH50: =IFERROR(VLOOKUP($A50,Filtro!$A$5:$AX$2265,32,FALSE),0) -> 0 | AI50: =IFERROR(VLOOKUP($A50,Filtro!$A$5:$AX$2265,33,FALSE),0) -> 0 | AJ50: =IFERROR(VLOOKUP($A50,Filtro!$A$5:$AX$2265,34,FALSE),0) -> 0 | AK50: =IFERROR(VLOOKUP($A50,Filtro!$A$5:$AX$2265,35,FALSE),0) -> 0 | AL50: =IFERROR(VLOOKUP($A50,Filtro!$A$5:$AX$2265,36,FALSE),0) -> 0 | AM50: =IFERROR(VLOOKUP($A50,Filtro!$A$5:$AX$2265,37,FALSE),0) -> 0 | AN50: =IFERROR(VLOOKUP($A50,Filtro!$A$5:$AX$2265,38,FALSE),0) -> 0 | AO50: =IFERROR(VLOOKUP($A50,Filtro!$A$5:$AX$2265,39,FALSE),0) -> 0 | CJ50: 0
A51: 01030100A | B51: SEGUIMIENTO AUTOVALENTE CON RIESGO | C51: MÉDICO | D51: =IFERROR(VLOOKUP($A51,Filtro!$A$5:$AX$2265,2,FALSE),0) -> 72 | E51: =IFERROR(VLOOKUP($A51,Filtro!$A$5:$AX$2265,3,FALSE),0) -> 32 | F51: =IFERROR(VLOOKUP($A51,Filtro!$A$5:$AX$2265,4,FALSE),0) -> 40 | G51: =IFERROR(VLOOKUP($A51,Filtro!$A$5:$AX$2265,5,FALSE),0) -> 0 | H51: =IFERROR(VLOOKUP($A51,Filtro!$A$5:$AX$2265,6,FALSE),0) -> 0 | I51: =IFERROR(VLOOKUP($A51,Filtro!$A$5:$AX$2265,7,FALSE),0) -> 0 | J51: =IFERROR(VLOOKUP($A51,Filtro!$A$5:$AX$2265,8,FALSE),0) -> 0 | K51: =IFERROR(VLOOKUP($A51,Filtro!$A$5:$AX$2265,9,FALSE),0) -> 0 | L51: =IFERROR(VLOOKUP($A51,Filtro!$A$5:$AX$2265,10,FALSE),0) -> 0 | M51: =IFERROR(VLOOKUP($A51,Filtro!$A$5:$AX$2265,11,FALSE),0) -> 0 | N51: =IFERROR(VLOOKUP($A51,Filtro!$A$5:$AX$2265,12,FALSE),0) -> 0 | O51: =IFERROR(VLOOKUP($A51,Filtro!$A$5:$AX$2265,13,FALSE),0) -> 0 | P51: =IFERROR(VLOOKUP($A51,Filtro!$A$5:$AX$2265,14,FALSE),0) -> 0 | Q51: =IFERROR(VLOOKUP($A51,Filtro!$A$5:$AX$2265,15,FALSE),0) -> 0 | R51: =IFERROR(VLOOKUP($A51,Filtro!$A$5:$AX$2265,16,FALSE),0) -> 0 | S51: =IFERROR(VLOOKUP($A51,Filtro!$A$5:$AX$2265,17,FALSE),0) -> 0 | T51: =IFERROR(VLOOKUP($A51,Filtro!$A$5:$AX$2265,18,FALSE),0) -> 0 | U51: =IFERROR(VLOOKUP($A51,Filtro!$A$5:$AX$2265,19,FALSE),0) -> 0 | V51: =IFERROR(VLOOKUP($A51,Filtro!$A$5:$AX$2265,20,FALSE),0) -> 0 | W51: =IFERROR(VLOOKUP($A51,Filtro!$A$5:$AX$2265,21,FALSE),0) -> 0 | X51: =IFERROR(VLOOKUP($A51,Filtro!$A$5:$AX$2265,22,FALSE),0) -> 0 | Y51: =IFERROR(VLOOKUP($A51,Filtro!$A$5:$AX$2265,23,FALSE),0) -> 0 | Z51: =IFERROR(VLOOKUP($A51,Filtro!$A$5:$AX$2265,24,FALSE),0) -> 0 | AA51: =IFERROR(VLOOKUP($A51,Filtro!$A$5:$AX$2265,25,FALSE),0) -> 0 | AB51: =IFERROR(VLOOKUP($A51,Filtro!$A$5:$AX$2265,26,FALSE),0) -> 0 | AC51: =IFERROR(VLOOKUP($A51,Filtro!$A$5:$AX$2265,27,FALSE),0) -> 0 | AD51: =IFERROR(VLOOKUP($A51,Filtro!$A$5:$AX$2265,28,FALSE),0) -> 0 | AE51: =IFERROR(VLOOKUP($A51,Filtro!$A$5:$AX$2265,29,FALSE),0) -> 0 | AF51: =IFERROR(VLOOKUP($A51,Filtro!$A$5:$AX$2265,30,FALSE),0) -> 0 | AG51: =IFERROR(VLOOKUP($A51,Filtro!$A$5:$AX$2265,31,FALSE),0) -> 7 | AH51: =IFERROR(VLOOKUP($A51,Filtro!$A$5:$AX$2265,32,FALSE),0) -> 8 | AI51: =IFERROR(VLOOKUP($A51,Filtro!$A$5:$AX$2265,33,FALSE),0) -> 3 | AJ51: =IFERROR(VLOOKUP($A51,Filtro!$A$5:$AX$2265,34,FALSE),0) -> 5 | AK51: =IFERROR(VLOOKUP($A51,Filtro!$A$5:$AX$2265,35,FALSE),0) -> 12 | AL51: =IFERROR(VLOOKUP($A51,Filtro!$A$5:$AX$2265,36,FALSE),0) -> 6 | AM51: =IFERROR(VLOOKUP($A51,Filtro!$A$5:$AX$2265,37,FALSE),0) -> 10 | AN51: =IFERROR(VLOOKUP($A51,Filtro!$A$5:$AX$2265,38,FALSE),0) -> 21 | AO51: =IFERROR(VLOOKUP($A51,Filtro!$A$5:$AX$2265,39,FALSE),0) -> 63 | CI51: 0 | CJ51: 0
A52: 01030200B | C52: ENFERMERA /O | D52: =IFERROR(VLOOKUP($A52,Filtro!$A$5:$AX$2265,2,FALSE),0) -> 533 | E52: =IFERROR(VLOOKUP($A52,Filtro!$A$5:$AX$2265,3,FALSE),0) -> 197 | F52: =IFERROR(VLOOKUP($A52,Filtro!$A$5:$AX$2265,4,FALSE),0) -> 336 | G52: =IFERROR(VLOOKUP($A52,Filtro!$A$5:$AX$2265,5,FALSE),0) -> 0 | H52: =IFERROR(VLOOKUP($A52,Filtro!$A$5:$AX$2265,6,FALSE),0) -> 0 | I52: =IFERROR(VLOOKUP($A52,Filtro!$A$5:$AX$2265,7,FALSE),0) -> 0 | J52: =IFERROR(VLOOKUP($A52,Filtro!$A$5:$AX$2265,8,FALSE),0) -> 0 | K52: =IFERROR(VLOOKUP($A52,Filtro!$A$5:$AX$2265,9,FALSE),0) -> 0 | L52: =IFERROR(VLOOKUP($A52,Filtro!$A$5:$AX$2265,10,FALSE),0) -> 0 | M52: =IFERROR(VLOOKUP($A52,Filtro!$A$5:$AX$2265,11,FALSE),0) -> 0 | N52: =IFERROR(VLOOKUP($A52,Filtro!$A$5:$AX$2265,12,FALSE),0) -> 0 | O52: =IFERROR(VLOOKUP($A52,Filtro!$A$5:$AX$2265,13,FALSE),0) -> 0 | P52: =IFERROR(VLOOKUP($A52,Filtro!$A$5:$AX$2265,14,FALSE),0) -> 0 | Q52: =IFERROR(VLOOKUP($A52,Filtro!$A$5:$AX$2265,15,FALSE),0) -> 0 | R52: =IFERROR(VLOOKUP($A52,Filtro!$A$5:$AX$2265,16,FALSE),0) -> 0 | S52: =IFERROR(VLOOKUP($A52,Filtro!$A$5:$AX$2265,17,FALSE),0) -> 0 | T52: =IFERROR(VLOOKUP($A52,Filtro!$A$5:$AX$2265,18,FALSE),0) -> 0 | U52: =IFERROR(VLOOKUP($A52,Filtro!$A$5:$AX$2265,19,FALSE),0) -> 0 | V52: =IFERROR(VLOOKUP($A52,Filtro!$A$5:$AX$2265,20,FALSE),0) -> 0 | W52: =IFERROR(VLOOKUP($A52,Filtro!$A$5:$AX$2265,21,FALSE),0) -> 0 | X52: =IFERROR(VLOOKUP($A52,Filtro!$A$5:$AX$2265,22,FALSE),0) -> 0 | Y52: =IFERROR(VLOOKUP($A52,Filtro!$A$5:$AX$2265,23,FALSE),0) -> 0 | Z52: =IFERROR(VLOOKUP($A52,Filtro!$A$5:$AX$2265,24,FALSE),0) -> 0 | AA52: =IFERROR(VLOOKUP($A52,Filtro!$A$5:$AX$2265,25,FALSE),0) -> 0 | AB52: =IFERROR(VLOOKUP($A52,Filtro!$A$5:$AX$2265,26,FALSE),0) -> 0 | AC52: =IFERROR(VLOOKUP($A52,Filtro!$A$5:$AX$2265,27,FALSE),0) -> 0 | AD52: =IFERROR(VLOOKUP($A52,Filtro!$A$5:$AX$2265,28,FALSE),0) -> 0 | AE52: =IFERROR(VLOOKUP($A52,Filtro!$A$5:$AX$2265,29,FALSE),0) -> 0 | AF52: =IFERROR(VLOOKUP($A52,Filtro!$A$5:$AX$2265,30,FALSE),0) -> 0 | AG52: =IFERROR(VLOOKUP($A52,Filtro!$A$5:$AX$2265,31,FALSE),0) -> 40 | AH52: =IFERROR(VLOOKUP($A52,Filtro!$A$5:$AX$2265,32,FALSE),0) -> 89 | AI52: =IFERROR(VLOOKUP($A52,Filtro!$A$5:$AX$2265,33,FALSE),0) -> 53 | AJ52: =IFERROR(VLOOKUP($A52,Filtro!$A$5:$AX$2265,34,FALSE),0) -> 79 | AK52: =IFERROR(VLOOKUP($A52,Filtro!$A$5:$AX$2265,35,FALSE),0) -> 42 | AL52: =IFERROR(VLOOKUP($A52,Filtro!$A$5:$AX$2265,36,FALSE),0) -> 78 | AM52: =IFERROR(VLOOKUP($A52,Filtro!$A$5:$AX$2265,37,FALSE),0) -> 62 | AN52: =IFERROR(VLOOKUP($A52,Filtro!$A$5:$AX$2265,38,FALSE),0) -> 90 | AO52: =IFERROR(VLOOKUP($A52,Filtro!$A$5:$AX$2265,39,FALSE),0) -> 509 | CJ52: 0
A53: 01030300C | B53: SEGUIMIENTO RIESGO DEPENDENCIA | C53: MÉDICO | D53: =IFERROR(VLOOKUP($A53,Filtro!$A$5:$AX$2265,2,FALSE),0) -> 54 | E53: =IFERROR(VLOOKUP($A53,Filtro!$A$5:$AX$2265,3,FALSE),0) -> 18 | F53: =IFERROR(VLOOKUP($A53,Filtro!$A$5:$AX$2265,4,FALSE),0) -> 36 | G53: =IFERROR(VLOOKUP($A53,Filtro!$A$5:$AX$2265,5,FALSE),0) -> 0 | H53: =IFERROR(VLOOKUP($A53,Filtro!$A$5:$AX$2265,6,FALSE),0) -> 0 | I53: =IFERROR(VLOOKUP($A53,Filtro!$A$5:$AX$2265,7,FALSE),0) -> 0 | J53: =IFERROR(VLOOKUP($A53,Filtro!$A$5:$AX$2265,8,FALSE),0) -> 0 | K53: =IFERROR(VLOOKUP($A53,Filtro!$A$5:$AX$2265,9,FALSE),0) -> 0 | L53: =IFERROR(VLOOKUP($A53,Filtro!$A$5:$AX$2265,10,FALSE),0) -> 0 | M53: =IFERROR(VLOOKUP($A53,Filtro!$A$5:$AX$2265,11,FALSE),0) -> 0 | N53: =IFERROR(VLOOKUP($A53,Filtro!$A$5:$AX$2265,12,FALSE),0) -> 0 | O53: =IFERROR(VLOOKUP($A53,Filtro!$A$5:$AX$2265,13,FALSE),0) -> 0 | P53: =IFERROR(VLOOKUP($A53,Filtro!$A$5:$AX$2265,14,FALSE),0) -> 0 | Q53: =IFERROR(VLOOKUP($A53,Filtro!$A$5:$AX$2265,15,FALSE),0) -> 0 | R53: =IFERROR(VLOOKUP($A53,Filtro!$A$5:$AX$2265,16,FALSE),0) -> 0 | S53: =IFERROR(VLOOKUP($A53,Filtro!$A$5:$AX$2265,17,FALSE),0) -> 0 | T53: =IFERROR(VLOOKUP($A53,Filtro!$A$5:$AX$2265,18,FALSE),0) -> 0 | U53: =IFERROR(VLOOKUP($A53,Filtro!$A$5:$AX$2265,19,FALSE),0) -> 0 | V53: =IFERROR(VLOOKUP($A53,Filtro!$A$5:$AX$2265,20,FALSE),0) -> 0 | W53: =IFERROR(VLOOKUP($A53,Filtro!$A$5:$AX$2265,21,FALSE),0) -> 0 | X53: =IFERROR(VLOOKUP($A53,Filtro!$A$5:$AX$2265,22,FALSE),0) -> 0 | Y53: =IFERROR(VLOOKUP($A53,Filtro!$A$5:$AX$2265,23,FALSE),0) -> 0 | Z53: =IFERROR(VLOOKUP($A53,Filtro!$A$5:$AX$2265,24,FALSE),0) -> 0 | AA53: =IFERROR(VLOOKUP($A53,Filtro!$A$5:$AX$2265,25,FALSE),0) -> 0 | AB53: =IFERROR(VLOOKUP($A53,Filtro!$A$5:$AX$2265,26,FALSE),0) -> 0 | AC53: =IFERROR(VLOOKUP($A53,Filtro!$A$5:$AX$2265,27,FALSE),0) -> 0 | AD53: =IFERROR(VLOOKUP($A53,Filtro!$A$5:$AX$2265,28,FALSE),0) -> 0 | AE53: =IFERROR(VLOOKUP($A53,Filtro!$A$5:$AX$2265,29,FALSE),0) -> 0 | AF53: =IFERROR(VLOOKUP($A53,Filtro!$A$5:$AX$2265,30,FALSE),0) -> 0 | AG53: =IFERROR(VLOOKUP($A53,Filtro!$A$5:$AX$2265,31,FALSE),0) -> 1 | AH53: =IFERROR(VLOOKUP($A53,Filtro!$A$5:$AX$2265,32,FALSE),0) -> 1 | AI53: =IFERROR(VLOOKUP($A53,Filtro!$A$5:$AX$2265,33,FALSE),0) -> 2 | AJ53: =IFERROR(VLOOKUP($A53,Filtro!$A$5:$AX$2265,34,FALSE),0) -> 1 | AK53: =IFERROR(VLOOKUP($A53,Filtro!$A$5:$AX$2265,35,FALSE),0) -> 3 | AL53: =IFERROR(VLOOKUP($A53,Filtro!$A$5:$AX$2265,36,FALSE),0) -> 6 | AM53: =IFERROR(VLOOKUP($A53,Filtro!$A$5:$AX$2265,37,FALSE),0) -> 12 | AN53: =IFERROR(VLOOKUP($A53,Filtro!$A$5:$AX$2265,38,FALSE),0) -> 28 | AO53: =IFERROR(VLOOKUP($A53,Filtro!$A$5:$AX$2265,39,FALSE),0) -> 54 | CI53: 0 | CJ53: 0
A54: 01030400D | C54: ENFERMERA /O | D54: =IFERROR(VLOOKUP($A54,Filtro!$A$5:$AX$2265,2,FALSE),0) -> 277 | E54: =IFERROR(VLOOKUP($A54,Filtro!$A$5:$AX$2265,3,FALSE),0) -> 92 | F54: =IFERROR(VLOOKUP($A54,Filtro!$A$5:$AX$2265,4,FALSE),0) -> 185 | G54: =IFERROR(VLOOKUP($A54,Filtro!$A$5:$AX$2265,5,FALSE),0) -> 0 | H54: =IFERROR(VLOOKUP($A54,Filtro!$A$5:$AX$2265,6,FALSE),0) -> 0 | I54: =IFERROR(VLOOKUP($A54,Filtro!$A$5:$AX$2265,7,FALSE),0) -> 0 | J54: =IFERROR(VLOOKUP($A54,Filtro!$A$5:$AX$2265,8,FALSE),0) -> 0 | K54: =IFERROR(VLOOKUP($A54,Filtro!$A$5:$AX$2265,9,FALSE),0) -> 0 | L54: =IFERROR(VLOOKUP($A54,Filtro!$A$5:$AX$2265,10,FALSE),0) -> 0 | M54: =IFERROR(VLOOKUP($A54,Filtro!$A$5:$AX$2265,11,FALSE),0) -> 0 | N54: =IFERROR(VLOOKUP($A54,Filtro!$A$5:$AX$2265,12,FALSE),0) -> 0 | O54: =IFERROR(VLOOKUP($A54,Filtro!$A$5:$AX$2265,13,FALSE),0) -> 0 | P54: =IFERROR(VLOOKUP($A54,Filtro!$A$5:$AX$2265,14,FALSE),0) -> 0 | Q54: =IFERROR(VLOOKUP($A54,Filtro!$A$5:$AX$2265,15,FALSE),0) -> 0 | R54: =IFERROR(VLOOKUP($A54,Filtro!$A$5:$AX$2265,16,FALSE),0) -> 0 | S54: =IFERROR(VLOOKUP($A54,Filtro!$A$5:$AX$2265,17,FALSE),0) -> 0 | T54: =IFERROR(VLOOKUP($A54,Filtro!$A$5:$AX$2265,18,FALSE),0) -> 0 | U54: =IFERROR(VLOOKUP($A54,Filtro!$A$5:$AX$2265,19,FALSE),0) -> 0 | V54: =IFERROR(VLOOKUP($A54,Filtro!$A$5:$AX$2265,20,FALSE),0) -> 0 | W54: =IFERROR(VLOOKUP($A54,Filtro!$A$5:$AX$2265,21,FALSE),0) -> 0 | X54: =IFERROR(VLOOKUP($A54,Filtro!$A$5:$AX$2265,22,FALSE),0) -> 0 | Y54: =IFERROR(VLOOKUP($A54,Filtro!$A$5:$AX$2265,23,FALSE),0) -> 0 | Z54: =IFERROR(VLOOKUP($A54,Filtro!$A$5:$AX$2265,24,FALSE),0) -> 0 | AA54: =IFERROR(VLOOKUP($A54,Filtro!$A$5:$AX$2265,25,FALSE),0) -> 0 | AB54: =IFERROR(VLOOKUP($A54,Filtro!$A$5:$AX$2265,26,FALSE),0) -> 0 | AC54: =IFERROR(VLOOKUP($A54,Filtro!$A$5:$AX$2265,27,FALSE),0) -> 0 | AD54: =IFERROR(VLOOKUP($A54,Filtro!$A$5:$AX$2265,28,FALSE),0) -> 0 | AE54: =IFERROR(VLOOKUP($A54,Filtro!$A$5:$AX$2265,29,FALSE),0) -> 0 | AF54: =IFERROR(VLOOKUP($A54,Filtro!$A$5:$AX$2265,30,FALSE),0) -> 0 | AG54: =IFERROR(VLOOKUP($A54,Filtro!$A$5:$AX$2265,31,FALSE),0) -> 11 | AH54: =IFERROR(VLOOKUP($A54,Filtro!$A$5:$AX$2265,32,FALSE),0) -> 16 | AI54: =IFERROR(VLOOKUP($A54,Filtro!$A$5:$AX$2265,33,FALSE),0) -> 15 | AJ54: =IFERROR(VLOOKUP($A54,Filtro!$A$5:$AX$2265,34,FALSE),0) -> 25 | AK54: =IFERROR(VLOOKUP($A54,Filtro!$A$5:$AX$2265,35,FALSE),0) -> 22 | AL54: =IFERROR(VLOOKUP($A54,Filtro!$A$5:$AX$2265,36,FALSE),0) -> 43 | AM54: =IFERROR(VLOOKUP($A54,Filtro!$A$5:$AX$2265,37,FALSE),0) -> 44 | AN54: =IFERROR(VLOOKUP($A54,Filtro!$A$5:$AX$2265,38,FALSE),0) -> 101 | AO54: =IFERROR(VLOOKUP($A54,Filtro!$A$5:$AX$2265,39,FALSE),0) -> 267 | CJ54: 0
A55: 01200010 | B55: DE INFECCIÓN TRANSMISIÓN SEXUAL | C55: =IFERROR(VLOOKUP($A55,Filtro!$A$5:$AX$2265,2,FALSE),0) -> 103 | D55: =IFERROR(VLOOKUP($A55,Filtro!$A$5:$AX$2265,3,FALSE),0) -> 25 | E55: =IFERROR(VLOOKUP($A55,Filtro!$A$5:$AX$2265,4,FALSE),0) -> 78 | F55: =IFERROR(VLOOKUP($A55,Filtro!$A$5:$AX$2265,5,FALSE),0) -> 0 | G55: =IFERROR(VLOOKUP($A55,Filtro!$A$5:$AX$2265,6,FALSE),0) -> 1 | H55: =IFERROR(VLOOKUP($A55,Filtro!$A$5:$AX$2265,7,FALSE),0) -> 0 | I55: =IFERROR(VLOOKUP($A55,Filtro!$A$5:$AX$2265,8,FALSE),0) -> 0 | J55: =IFERROR(VLOOKUP($A55,Filtro!$A$5:$AX$2265,9,FALSE),0) -> 0 | K55: =IFERROR(VLOOKUP($A55,Filtro!$A$5:$AX$2265,10,FALSE),0) -> 0 | L55: =IFERROR(VLOOKUP($A55,Filtro!$A$5:$AX$2265,11,FALSE),0) -> 0 | M55: =IFERROR(VLOOKUP($A55,Filtro!$A$5:$AX$2265,12,FALSE),0) -> 1 | N55: =IFERROR(VLOOKUP($A55,Filtro!$A$5:$AX$2265,13,FALSE),0) -> 8 | O55: =IFERROR(VLOOKUP($A55,Filtro!$A$5:$AX$2265,14,FALSE),0) -> 10 | P55: =IFERROR(VLOOKUP($A55,Filtro!$A$5:$AX$2265,15,FALSE),0) -> 3 | Q55: =IFERROR(VLOOKUP($A55,Filtro!$A$5:$AX$2265,16,FALSE),0) -> 10 | R55: =IFERROR(VLOOKUP($A55,Filtro!$A$5:$AX$2265,17,FALSE),0) -> 3 | S55: =IFERROR(VLOOKUP($A55,Filtro!$A$5:$AX$2265,18,FALSE),0) -> 10 | T55: =IFERROR(VLOOKUP($A55,Filtro!$A$5:$AX$2265,19,FALSE),0) -> 0 | U55: =IFERROR(VLOOKUP($A55,Filtro!$A$5:$AX$2265,20,FALSE),0) -> 2 | V55: =IFERROR(VLOOKUP($A55,Filtro!$A$5:$AX$2265,21,FALSE),0) -> 1 | W55: =IFERROR(VLOOKUP($A55,Filtro!$A$5:$AX$2265,22,FALSE),0) -> 5 | X55: =IFERROR(VLOOKUP($A55,Filtro!$A$5:$AX$2265,23,FALSE),0) -> 1 | Y55: =IFERROR(VLOOKUP($A55,Filtro!$A$5:$AX$2265,23,FALSE),0) -> 1 | Z55: =IFERROR(VLOOKUP($A55,Filtro!$A$5:$AX$2265,24,FALSE),0) -> 1 | AA55: =IFERROR(VLOOKUP($A55,Filtro!$A$5:$AX$2265,25,FALSE),0) -> 2 | AB55: =IFERROR(VLOOKUP($A55,Filtro!$A$5:$AX$2265,26,FALSE),0) -> 9 | AC55: =IFERROR(VLOOKUP($A55,Filtro!$A$5:$AX$2265,27,FALSE),0) -> 0 | AD55: =IFERROR(VLOOKUP($A55,Filtro!$A$5:$AX$2265,28,FALSE),0) -> 5 | AE55: =IFERROR(VLOOKUP($A55,Filtro!$A$5:$AX$2265,29,FALSE),0) -> 0 | AF55: =IFERROR(VLOOKUP($A55,Filtro!$A$5:$AX$2265,30,FALSE),0) -> 6 | AG55: =IFERROR(VLOOKUP($A55,Filtro!$A$5:$AX$2265,31,FALSE),0) -> 1 | AH55: =IFERROR(VLOOKUP($A55,Filtro!$A$5:$AX$2265,32,FALSE),0) -> 6 | AI55: =IFERROR(VLOOKUP($A55,Filtro!$A$5:$AX$2265,33,FALSE),0) -> 2 | AJ55: =IFERROR(VLOOKUP($A55,Filtro!$A$5:$AX$2265,34,FALSE),0) -> 3 | AK55: =IFERROR(VLOOKUP($A55,Filtro!$A$5:$AX$2265,35,FALSE),0) -> 2 | AL55: =IFERROR(VLOOKUP($A55,Filtro!$A$5:$AX$2265,36,FALSE),0) -> 2 | AM55: =IFERROR(VLOOKUP($A55,Filtro!$A$5:$AX$2265,37,FALSE),0) -> 2 | AN55: =IFERROR(VLOOKUP($A55,Filtro!$A$5:$AX$2265,38,FALSE),0) -> 7 | AO55: =IFERROR(VLOOKUP($A55,Filtro!$A$5:$AX$2265,39,FALSE),0) -> 95 | CJ55: 0
A56: 01200020 | C56: =IFERROR(VLOOKUP($A56,Filtro!$A$5:$AX$2265,2,FALSE),0) -> 0 | D56: =IFERROR(VLOOKUP($A56,Filtro!$A$5:$AX$2265,3,FALSE),0) -> 0 | E56: =IFERROR(VLOOKUP($A56,Filtro!$A$5:$AX$2265,4,FALSE),0) -> 0 | F56: =IFERROR(VLOOKUP($A56,Filtro!$A$5:$AX$2265,5,FALSE),0) -> 0 | G56: =IFERROR(VLOOKUP($A56,Filtro!$A$5:$AX$2265,6,FALSE),0) -> 0 | H56: =IFERROR(VLOOKUP($A56,Filtro!$A$5:$AX$2265,7,FALSE),0) -> 0 | I56: =IFERROR(VLOOKUP($A56,Filtro!$A$5:$AX$2265,8,FALSE),0) -> 0 | J56: =IFERROR(VLOOKUP($A56,Filtro!$A$5:$AX$2265,9,FALSE),0) -> 0 | K56: =IFERROR(VLOOKUP($A56,Filtro!$A$5:$AX$2265,10,FALSE),0) -> 0 | L56: =IFERROR(VLOOKUP($A56,Filtro!$A$5:$AX$2265,11,FALSE),0) -> 0 | M56: =IFERROR(VLOOKUP($A56,Filtro!$A$5:$AX$2265,12,FALSE),0) -> 0 | N56: =IFERROR(VLOOKUP($A56,Filtro!$A$5:$AX$2265,13,FALSE),0) -> 0 | O56: =IFERROR(VLOOKUP($A56,Filtro!$A$5:$AX$2265,14,FALSE),0) -> 0 | P56: =IFERROR(VLOOKUP($A56,Filtro!$A$5:$AX$2265,15,FALSE),0) -> 0 | Q56: =IFERROR(VLOOKUP($A56,Filtro!$A$5:$AX$2265,16,FALSE),0) -> 0 | R56: =IFERROR(VLOOKUP($A56,Filtro!$A$5:$AX$2265,17,FALSE),0) -> 0 | S56: =IFERROR(VLOOKUP($A56,Filtro!$A$5:$AX$2265,18,FALSE),0) -> 0 | T56: =IFERROR(VLOOKUP($A56,Filtro!$A$5:$AX$2265,19,FALSE),0) -> 0 | U56: =IFERROR(VLOOKUP($A56,Filtro!$A$5:$AX$2265,20,FALSE),0) -> 0 | V56: =IFERROR(VLOOKUP($A56,Filtro!$A$5:$AX$2265,21,FALSE),0) -> 0 | W56: =IFERROR(VLOOKUP($A56,Filtro!$A$5:$AX$2265,22,FALSE),0) -> 0 | X56: =IFERROR(VLOOKUP($A56,Filtro!$A$5:$AX$2265,23,FALSE),0) -> 0 | Y56: =IFERROR(VLOOKUP($A56,Filtro!$A$5:$AX$2265,23,FALSE),0) -> 0 | Z56: =IFERROR(VLOOKUP($A56,Filtro!$A$5:$AX$2265,24,FALSE),0) -> 0 | AA56: =IFERROR(VLOOKUP($A56,Filtro!$A$5:$AX$2265,25,FALSE),0) -> 0 | AB56: =IFERROR(VLOOKUP($A56,Filtro!$A$5:$AX$2265,26,FALSE),0) -> 0 | AC56: =IFERROR(VLOOKUP($A56,Filtro!$A$5:$AX$2265,27,FALSE),0) -> 0 | AD56: =IFERROR(VLOOKUP($A56,Filtro!$A$5:$AX$2265,28,FALSE),0) -> 0 | AE56: =IFERROR(VLOOKUP($A56,Filtro!$A$5:$AX$2265,29,FALSE),0) -> 0 | AF56: =IFERROR(VLOOKUP($A56,Filtro!$A$5:$AX$2265,30,FALSE),0) -> 0 | AG56: =IFERROR(VLOOKUP($A56,Filtro!$A$5:$AX$2265,31,FALSE),0) -> 0 | AH56: =IFERROR(VLOOKUP($A56,Filtro!$A$5:$AX$2265,32,FALSE),0) -> 0 | AI56: =IFERROR(VLOOKUP($A56,Filtro!$A$5:$AX$2265,33,FALSE),0) -> 0 | AJ56: =IFERROR(VLOOKUP($A56,Filtro!$A$5:$AX$2265,34,FALSE),0) -> 0 | AK56: =IFERROR(VLOOKUP($A56,Filtro!$A$5:$AX$2265,35,FALSE),0) -> 0 | AL56: =IFERROR(VLOOKUP($A56,Filtro!$A$5:$AX$2265,36,FALSE),0) -> 0 | AM56: =IFERROR(VLOOKUP($A56,Filtro!$A$5:$AX$2265,37,FALSE),0) -> 0 | AN56: =IFERROR(VLOOKUP($A56,Filtro!$A$5:$AX$2265,38,FALSE),0) -> 0 | AO56: =IFERROR(VLOOKUP($A56,Filtro!$A$5:$AX$2265,39,FALSE),0) -> 0 | CJ56: 0
A57: 01200030 | C57: MATRONA /ÓN | D57: =IFERROR(VLOOKUP($A57,Filtro!$A$5:$AX$2265,2,FALSE),0) -> 1554 | E57: =IFERROR(VLOOKUP($A57,Filtro!$A$5:$AX$2265,3,FALSE),0) -> 676 | F57: =IFERROR(VLOOKUP($A57,Filtro!$A$5:$AX$2265,4,FALSE),0) -> 878 | G57: =IFERROR(VLOOKUP($A57,Filtro!$A$5:$AX$2265,5,FALSE),0) -> 0 | H57: =IFERROR(VLOOKUP($A57,Filtro!$A$5:$AX$2265,6,FALSE),0) -> 0 | I57: =IFERROR(VLOOKUP($A57,Filtro!$A$5:$AX$2265,7,FALSE),0) -> 0 | J57: =IFERROR(VLOOKUP($A57,Filtro!$A$5:$AX$2265,8,FALSE),0) -> 0 | K57: =IFERROR(VLOOKUP($A57,Filtro!$A$5:$AX$2265,9,FALSE),0) -> 0 | L57: =IFERROR(VLOOKUP($A57,Filtro!$A$5:$AX$2265,10,FALSE),0) -> 11 | M57: =IFERROR(VLOOKUP($A57,Filtro!$A$5:$AX$2265,11,FALSE),0) -> 40 | N57: =IFERROR(VLOOKUP($A57,Filtro!$A$5:$AX$2265,12,FALSE),0) -> 55 | O57: =IFERROR(VLOOKUP($A57,Filtro!$A$5:$AX$2265,13,FALSE),0) -> 81 | P57: =IFERROR(VLOOKUP($A57,Filtro!$A$5:$AX$2265,14,FALSE),0) -> 183 | Q57: =IFERROR(VLOOKUP($A57,Filtro!$A$5:$AX$2265,15,FALSE),0) -> 107 | R57: =IFERROR(VLOOKUP($A57,Filtro!$A$5:$AX$2265,16,FALSE),0) -> 177 | S57: =IFERROR(VLOOKUP($A57,Filtro!$A$5:$AX$2265,17,FALSE),0) -> 135 | T57: =IFERROR(VLOOKUP($A57,Filtro!$A$5:$AX$2265,18,FALSE),0) -> 144 | U57: =IFERROR(VLOOKUP($A57,Filtro!$A$5:$AX$2265,19,FALSE),0) -> 83 | V57: =IFERROR(VLOOKUP($A57,Filtro!$A$5:$AX$2265,20,FALSE),0) -> 91 | W57: =IFERROR(VLOOKUP($A57,Filtro!$A$5:$AX$2265,21,FALSE),0) -> 72 | X57: =IFERROR(VLOOKUP($A57,Filtro!$A$5:$AX$2265,22,FALSE),0) -> 62 | Y57: =IFERROR(VLOOKUP($A57,Filtro!$A$5:$AX$2265,23,FALSE),0) -> 63 | Z57: =IFERROR(VLOOKUP($A57,Filtro!$A$5:$AX$2265,24,FALSE),0) -> 71 | AA57: =IFERROR(VLOOKUP($A57,Filtro!$A$5:$AX$2265,25,FALSE),0) -> 43 | AB57: =IFERROR(VLOOKUP($A57,Filtro!$A$5:$AX$2265,26,FALSE),0) -> 26 | AC57: =IFERROR(VLOOKUP($A57,Filtro!$A$5:$AX$2265,27,FALSE),0) -> 18 | AD57: =IFERROR(VLOOKUP($A57,Filtro!$A$5:$AX$2265,28,FALSE),0) -> 32 | AE57: =IFERROR(VLOOKUP($A57,Filtro!$A$5:$AX$2265,29,FALSE),0) -> 11 | AF57: =IFERROR(VLOOKUP($A57,Filtro!$A$5:$AX$2265,30,FALSE),0) -> 13 | AG57: =IFERROR(VLOOKUP($A57,Filtro!$A$5:$AX$2265,31,FALSE),0) -> 10 | AH57: =IFERROR(VLOOKUP($A57,Filtro!$A$5:$AX$2265,32,FALSE),0) -> 2 | AI57: =IFERROR(VLOOKUP($A57,Filtro!$A$5:$AX$2265,33,FALSE),0) -> 4 | AJ57: =IFERROR(VLOOKUP($A57,Filtro!$A$5:$AX$2265,34,FALSE),0) -> 2 | AK57: =IFERROR(VLOOKUP($A57,Filtro!$A$5:$AX$2265,35,FALSE),0) -> 3 | AL57: =IFERROR(VLOOKUP($A57,Filtro!$A$5:$AX$2265,36,FALSE),0) -> 1 | AM57: =IFERROR(VLOOKUP($A57,Filtro!$A$5:$AX$2265,37,FALSE),0) -> 6 | AN57: =IFERROR(VLOOKUP($A57,Filtro!$A$5:$AX$2265,38,FALSE),0) -> 8 | AO57: =IFERROR(VLOOKUP($A57,Filtro!$A$5:$AX$2265,39,FALSE),0) -> 1208 | CJ57: 0
A58: 03030140 | B58: OTROS PROBLEMAS DE SALUD | C58: =IFERROR(VLOOKUP($A58,Filtro!$A$5:$AX$2265,2,FALSE),0) -> 21254 | D58: =IFERROR(VLOOKUP($A58,Filtro!$A$5:$AX$2265,3,FALSE),0) -> 7156 | E58: =IFERROR(VLOOKUP($A58,Filtro!$A$5:$AX$2265,4,FALSE),0) -> 14098 | F58: =IFERROR(VLOOKUP($A58,Filtro!$A$5:$AX$2265,5,FALSE),0) -> 133 | G58: =IFERROR(VLOOKUP($A58,Filtro!$A$5:$AX$2265,6,FALSE),0) -> 83 | H58: =IFERROR(VLOOKUP($A58,Filtro!$A$5:$AX$2265,7,FALSE),0) -> 99 | I58: =IFERROR(VLOOKUP($A58,Filtro!$A$5:$AX$2265,8,FALSE),0) -> 95 | J58: =IFERROR(VLOOKUP($A58,Filtro!$A$5:$AX$2265,9,FALSE),0) -> 104 | K58: =IFERROR(VLOOKUP($A58,Filtro!$A$5:$AX$2265,10,FALSE),0) -> 145 | L58: =IFERROR(VLOOKUP($A58,Filtro!$A$5:$AX$2265,11,FALSE),0) -> 144 | M58: =IFERROR(VLOOKUP($A58,Filtro!$A$5:$AX$2265,12,FALSE),0) -> 248 | N58: =IFERROR(VLOOKUP($A58,Filtro!$A$5:$AX$2265,13,FALSE),0) -> 174 | O58: =IFERROR(VLOOKUP($A58,Filtro!$A$5:$AX$2265,14,FALSE),0) -> 324 | P58: =IFERROR(VLOOKUP($A58,Filtro!$A$5:$AX$2265,15,FALSE),0) -> 152 | Q58: =IFERROR(VLOOKUP($A58,Filtro!$A$5:$AX$2265,16,FALSE),0) -> 429 | R58: =IFERROR(VLOOKUP($A58,Filtro!$A$5:$AX$2265,17,FALSE),0) -> 169 | S58: =IFERROR(VLOOKUP($A58,Filtro!$A$5:$AX$2265,18,FALSE),0) -> 546 | T58: =IFERROR(VLOOKUP($A58,Filtro!$A$5:$AX$2265,19,FALSE),0) -> 229 | U58: =IFERROR(VLOOKUP($A58,Filtro!$A$5:$AX$2265,20,FALSE),0) -> 570 | V58: =IFERROR(VLOOKUP($A58,Filtro!$A$5:$AX$2265,21,FALSE),0) -> 191 | W58: =IFERROR(VLOOKUP($A58,Filtro!$A$5:$AX$2265,22,FALSE),0) -> 712 | X58: =IFERROR(VLOOKUP($A58,Filtro!$A$5:$AX$2265,23,FALSE),0) -> 230 | Y58: =IFERROR(VLOOKUP($A58,Filtro!$A$5:$AX$2265,23,FALSE),0) -> 230 | Z58: =IFERROR(VLOOKUP($A58,Filtro!$A$5:$AX$2265,24,FALSE),0) -> 971 | AA58: =IFERROR(VLOOKUP($A58,Filtro!$A$5:$AX$2265,25,FALSE),0) -> 364 | AB58: =IFERROR(VLOOKUP($A58,Filtro!$A$5:$AX$2265,26,FALSE),0) -> 1164 | AC58: =IFERROR(VLOOKUP($A58,Filtro!$A$5:$AX$2265,27,FALSE),0) -> 554 | AD58: =IFERROR(VLOOKUP($A58,Filtro!$A$5:$AX$2265,28,FALSE),0) -> 1614 | AE58: =IFERROR(VLOOKUP($A58,Filtro!$A$5:$AX$2265,29,FALSE),0) -> 709 | AF58: =IFERROR(VLOOKUP($A58,Filtro!$A$5:$AX$2265,30,FALSE),0) -> 1633 | AG58: =IFERROR(VLOOKUP($A58,Filtro!$A$5:$AX$2265,31,FALSE),0) -> 965 | AH58: =IFERROR(VLOOKUP($A58,Filtro!$A$5:$AX$2265,32,FALSE),0) -> 1475 | AI58: =IFERROR(VLOOKUP($A58,Filtro!$A$5:$AX$2265,33,FALSE),0) -> 886 | AJ58: =IFERROR(VLOOKUP($A58,Filtro!$A$5:$AX$2265,34,FALSE),0) -> 1462 | AK58: =IFERROR(VLOOKUP($A58,Filtro!$A$5:$AX$2265,35,FALSE),0) -> 898 | AL58: =IFERROR(VLOOKUP($A58,Filtro!$A$5:$AX$2265,36,FALSE),0) -> 1143 | AM58: =IFERROR(VLOOKUP($A58,Filtro!$A$5:$AX$2265,37,FALSE),0) -> 1155 | AN58: =IFERROR(VLOOKUP($A58,Filtro!$A$5:$AX$2265,38,FALSE),0) -> 1484 | AO58: =IFERROR(VLOOKUP($A58,Filtro!$A$5:$AX$2265,39,FALSE),0) -> 20548 | CJ58: 0
A59: 03030150 | C59: =IFERROR(VLOOKUP($A59,Filtro!$A$5:$AX$2265,2,FALSE),0) -> 4576 | D59: =IFERROR(VLOOKUP($A59,Filtro!$A$5:$AX$2265,3,FALSE),0) -> 2523 | E59: =IFERROR(VLOOKUP($A59,Filtro!$A$5:$AX$2265,4,FALSE),0) -> 2053 | F59: =IFERROR(VLOOKUP($A59,Filtro!$A$5:$AX$2265,5,FALSE),0) -> 39 | G59: =IFERROR(VLOOKUP($A59,Filtro!$A$5:$AX$2265,6,FALSE),0) -> 54 | H59: =IFERROR(VLOOKUP($A59,Filtro!$A$5:$AX$2265,7,FALSE),0) -> 35 | I59: =IFERROR(VLOOKUP($A59,Filtro!$A$5:$AX$2265,8,FALSE),0) -> 60 | J59: =IFERROR(VLOOKUP($A59,Filtro!$A$5:$AX$2265,9,FALSE),0) -> 10 | K59: =IFERROR(VLOOKUP($A59,Filtro!$A$5:$AX$2265,10,FALSE),0) -> 5 | L59: =IFERROR(VLOOKUP($A59,Filtro!$A$5:$AX$2265,11,FALSE),0) -> 4 | M59: =IFERROR(VLOOKUP($A59,Filtro!$A$5:$AX$2265,12,FALSE),0) -> 11 | N59: =IFERROR(VLOOKUP($A59,Filtro!$A$5:$AX$2265,13,FALSE),0) -> 4 | O59: =IFERROR(VLOOKUP($A59,Filtro!$A$5:$AX$2265,14,FALSE),0) -> 13 | P59: =IFERROR(VLOOKUP($A59,Filtro!$A$5:$AX$2265,15,FALSE),0) -> 2 | Q59: =IFERROR(VLOOKUP($A59,Filtro!$A$5:$AX$2265,16,FALSE),0) -> 17 | R59: =IFERROR(VLOOKUP($A59,Filtro!$A$5:$AX$2265,17,FALSE),0) -> 46 | S59: =IFERROR(VLOOKUP($A59,Filtro!$A$5:$AX$2265,18,FALSE),0) -> 16 | T59: =IFERROR(VLOOKUP($A59,Filtro!$A$5:$AX$2265,19,FALSE),0) -> 7 | U59: =IFERROR(VLOOKUP($A59,Filtro!$A$5:$AX$2265,20,FALSE),0) -> 82 | V59: =IFERROR(VLOOKUP($A59,Filtro!$A$5:$AX$2265,21,FALSE),0) -> 51 | W59: =IFERROR(VLOOKUP($A59,Filtro!$A$5:$AX$2265,22,FALSE),0) -> 47 | X59: =IFERROR(VLOOKUP($A59,Filtro!$A$5:$AX$2265,23,FALSE),0) -> 64 | Y59: =IFERROR(VLOOKUP($A59,Filtro!$A$5:$AX$2265,23,FALSE),0) -> 64 | Z59: =IFERROR(VLOOKUP($A59,Filtro!$A$5:$AX$2265,24,FALSE),0) -> 79 | AA59: =IFERROR(VLOOKUP($A59,Filtro!$A$5:$AX$2265,25,FALSE),0) -> 339 | AB59: =IFERROR(VLOOKUP($A59,Filtro!$A$5:$AX$2265,26,FALSE),0) -> 87 | AC59: =IFERROR(VLOOKUP($A59,Filtro!$A$5:$AX$2265,27,FALSE),0) -> 426 | AD59: =IFERROR(VLOOKUP($A59,Filtro!$A$5:$AX$2265,28,FALSE),0) -> 104 | AE59: =IFERROR(VLOOKUP($A59,Filtro!$A$5:$AX$2265,29,FALSE),0) -> 313 | AF59: =IFERROR(VLOOKUP($A59,Filtro!$A$5:$AX$2265,30,FALSE),0) -> 384 | AG59: =IFERROR(VLOOKUP($A59,Filtro!$A$5:$AX$2265,31,FALSE),0) -> 316 | AH59: =IFERROR(VLOOKUP($A59,Filtro!$A$5:$AX$2265,32,FALSE),0) -> 389 | AI59: =IFERROR(VLOOKUP($A59,Filtro!$A$5:$AX$2265,33,FALSE),0) -> 315 | AJ59: =IFERROR(VLOOKUP($A59,Filtro!$A$5:$AX$2265,34,FALSE),0) -> 279 | AK59: =IFERROR(VLOOKUP($A59,Filtro!$A$5:$AX$2265,35,FALSE),0) -> 390 | AL59: =IFERROR(VLOOKUP($A59,Filtro!$A$5:$AX$2265,36,FALSE),0) -> 238 | AM59: =IFERROR(VLOOKUP($A59,Filtro!$A$5:$AX$2265,37,FALSE),0) -> 162 | AN59: =IFERROR(VLOOKUP($A59,Filtro!$A$5:$AX$2265,38,FALSE),0) -> 188 | AO59: =IFERROR(VLOOKUP($A59,Filtro!$A$5:$AX$2265,39,FALSE),0) -> 4383 | CJ59: 0
A60: 03030170 | C60: MATRONA /ÓN | D60: =IFERROR(VLOOKUP($A60,Filtro!$A$5:$AX$2265,2,FALSE),0) -> 149 | E60: =IFERROR(VLOOKUP($A60,Filtro!$A$5:$AX$2265,3,FALSE),0) -> 42 | F60: =IFERROR(VLOOKUP($A60,Filtro!$A$5:$AX$2265,4,FALSE),0) -> 107 | G60: =IFERROR(VLOOKUP($A60,Filtro!$A$5:$AX$2265,5,FALSE),0) -> 22 | H60: =IFERROR(VLOOKUP($A60,Filtro!$A$5:$AX$2265,6,FALSE),0) -> 11 | I60: =IFERROR(VLOOKUP($A60,Filtro!$A$5:$AX$2265,7,FALSE),0) -> 4 | J60: =IFERROR(VLOOKUP($A60,Filtro!$A$5:$AX$2265,8,FALSE),0) -> 7 | K60: =IFERROR(VLOOKUP($A60,Filtro!$A$5:$AX$2265,9,FALSE),0) -> 3 | L60: =IFERROR(VLOOKUP($A60,Filtro!$A$5:$AX$2265,10,FALSE),0) -> 8 | M60: =IFERROR(VLOOKUP($A60,Filtro!$A$5:$AX$2265,11,FALSE),0) -> 2 | N60: =IFERROR(VLOOKUP($A60,Filtro!$A$5:$AX$2265,12,FALSE),0) -> 2 | O60: =IFERROR(VLOOKUP($A60,Filtro!$A$5:$AX$2265,13,FALSE),0) -> 1 | P60: =IFERROR(VLOOKUP($A60,Filtro!$A$5:$AX$2265,14,FALSE),0) -> 15 | Q60: =IFERROR(VLOOKUP($A60,Filtro!$A$5:$AX$2265,15,FALSE),0) -> 0 | R60: =IFERROR(VLOOKUP($A60,Filtro!$A$5:$AX$2265,16,FALSE),0) -> 14 | S60: =IFERROR(VLOOKUP($A60,Filtro!$A$5:$AX$2265,17,FALSE),0) -> 0 | T60: =IFERROR(VLOOKUP($A60,Filtro!$A$5:$AX$2265,18,FALSE),0) -> 10 | U60: =IFERROR(VLOOKUP($A60,Filtro!$A$5:$AX$2265,19,FALSE),0) -> 0 | V60: =IFERROR(VLOOKUP($A60,Filtro!$A$5:$AX$2265,20,FALSE),0) -> 8 | W60: =IFERROR(VLOOKUP($A60,Filtro!$A$5:$AX$2265,21,FALSE),0) -> 0 | X60: =IFERROR(VLOOKUP($A60,Filtro!$A$5:$AX$2265,22,FALSE),0) -> 8 | Y60: =IFERROR(VLOOKUP($A60,Filtro!$A$5:$AX$2265,23,FALSE),0) -> 0 | Z60: =IFERROR(VLOOKUP($A60,Filtro!$A$5:$AX$2265,24,FALSE),0) -> 8 | AA60: =IFERROR(VLOOKUP($A60,Filtro!$A$5:$AX$2265,25,FALSE),0) -> 0 | AB60: =IFERROR(VLOOKUP($A60,Filtro!$A$5:$AX$2265,26,FALSE),0) -> 3 | AC60: =IFERROR(VLOOKUP($A60,Filtro!$A$5:$AX$2265,27,FALSE),0) -> 0 | AD60: =IFERROR(VLOOKUP($A60,Filtro!$A$5:$AX$2265,28,FALSE),0) -> 3 | AE60: =IFERROR(VLOOKUP($A60,Filtro!$A$5:$AX$2265,29,FALSE),0) -> 1 | AF60: =IFERROR(VLOOKUP($A60,Filtro!$A$5:$AX$2265,30,FALSE),0) -> 1 | AG60: =IFERROR(VLOOKUP($A60,Filtro!$A$5:$AX$2265,31,FALSE),0) -> 0 | AH60: =IFERROR(VLOOKUP($A60,Filtro!$A$5:$AX$2265,32,FALSE),0) -> 1 | AI60: =IFERROR(VLOOKUP($A60,Filtro!$A$5:$AX$2265,33,FALSE),0) -> 0 | AJ60: =IFERROR(VLOOKUP($A60,Filtro!$A$5:$AX$2265,34,FALSE),0) -> 1 | AK60: =IFERROR(VLOOKUP($A60,Filtro!$A$5:$AX$2265,35,FALSE),0) -> 9 | AL60: =IFERROR(VLOOKUP($A60,Filtro!$A$5:$AX$2265,36,FALSE),0) -> 0 | AM60: =IFERROR(VLOOKUP($A60,Filtro!$A$5:$AX$2265,37,FALSE),0) -> 0 | AN60: =IFERROR(VLOOKUP($A60,Filtro!$A$5:$AX$2265,38,FALSE),0) -> 7 | AO60: =IFERROR(VLOOKUP($A60,Filtro!$A$5:$AX$2265,39,FALSE),0) -> 143 | CJ60: 0
A61: 03030160 | C61: NUTRICIONISTA | D61: =IFERROR(VLOOKUP($A61,Filtro!$A$5:$AX$2265,2,FALSE),0) -> 3277 | E61: =IFERROR(VLOOKUP($A61,Filtro!$A$5:$AX$2265,3,FALSE),0) -> 959 | F61: =IFERROR(VLOOKUP($A61,Filtro!$A$5:$AX$2265,4,FALSE),0) -> 2318 | G61: =IFERROR(VLOOKUP($A61,Filtro!$A$5:$AX$2265,5,FALSE),0) -> 437 | H61: =IFERROR(VLOOKUP($A61,Filtro!$A$5:$AX$2265,6,FALSE),0) -> 442 | I61: =IFERROR(VLOOKUP($A61,Filtro!$A$5:$AX$2265,7,FALSE),0) -> 82 | J61: =IFERROR(VLOOKUP($A61,Filtro!$A$5:$AX$2265,8,FALSE),0) -> 92 | K61: =IFERROR(VLOOKUP($A61,Filtro!$A$5:$AX$2265,9,FALSE),0) -> 52 | L61: =IFERROR(VLOOKUP($A61,Filtro!$A$5:$AX$2265,10,FALSE),0) -> 86 | M61: =IFERROR(VLOOKUP($A61,Filtro!$A$5:$AX$2265,11,FALSE),0) -> 48 | N61: =IFERROR(VLOOKUP($A61,Filtro!$A$5:$AX$2265,12,FALSE),0) -> 150 | O61: =IFERROR(VLOOKUP($A61,Filtro!$A$5:$AX$2265,13,FALSE),0) -> 34 | P61: =IFERROR(VLOOKUP($A61,Filtro!$A$5:$AX$2265,14,FALSE),0) -> 191 | Q61: =IFERROR(VLOOKUP($A61,Filtro!$A$5:$AX$2265,15,FALSE),0) -> 19 | R61: =IFERROR(VLOOKUP($A61,Filtro!$A$5:$AX$2265,16,FALSE),0) -> 172 | S61: =IFERROR(VLOOKUP($A61,Filtro!$A$5:$AX$2265,17,FALSE),0) -> 19 | T61: =IFERROR(VLOOKUP($A61,Filtro!$A$5:$AX$2265,18,FALSE),0) -> 199 | U61: =IFERROR(VLOOKUP($A61,Filtro!$A$5:$AX$2265,19,FALSE),0) -> 21 | V61: =IFERROR(VLOOKUP($A61,Filtro!$A$5:$AX$2265,20,FALSE),0) -> 162 | W61: =IFERROR(VLOOKUP($A61,Filtro!$A$5:$AX$2265,21,FALSE),0) -> 25 | X61: =IFERROR(VLOOKUP($A61,Filtro!$A$5:$AX$2265,22,FALSE),0) -> 84 | Y61: =IFERROR(VLOOKUP($A61,Filtro!$A$5:$AX$2265,23,FALSE),0) -> 24 | Z61: =IFERROR(VLOOKUP($A61,Filtro!$A$5:$AX$2265,24,FALSE),0) -> 135 | AA61: =IFERROR(VLOOKUP($A61,Filtro!$A$5:$AX$2265,25,FALSE),0) -> 26 | AB61: =IFERROR(VLOOKUP($A61,Filtro!$A$5:$AX$2265,26,FALSE),0) -> 132 | AC61: =IFERROR(VLOOKUP($A61,Filtro!$A$5:$AX$2265,27,FALSE),0) -> 32 | AD61: =IFERROR(VLOOKUP($A61,Filtro!$A$5:$AX$2265,28,FALSE),0) -> 127 | AE61: =IFERROR(VLOOKUP($A61,Filtro!$A$5:$AX$2265,29,FALSE),0) -> 26 | AF61: =IFERROR(VLOOKUP($A61,Filtro!$A$5:$AX$2265,30,FALSE),0) -> 103 | AG61: =IFERROR(VLOOKUP($A61,Filtro!$A$5:$AX$2265,31,FALSE),0) -> 42 | AH61: =IFERROR(VLOOKUP($A61,Filtro!$A$5:$AX$2265,32,FALSE),0) -> 100 | AI61: =IFERROR(VLOOKUP($A61,Filtro!$A$5:$AX$2265,33,FALSE),0) -> 40 | AJ61: =IFERROR(VLOOKUP($A61,Filtro!$A$5:$AX$2265,34,FALSE),0) -> 64 | AK61: =IFERROR(VLOOKUP($A61,Filtro!$A$5:$AX$2265,35,FALSE),0) -> 18 | AL61: =IFERROR(VLOOKUP($A61,Filtro!$A$5:$AX$2265,36,FALSE),0) -> 50 | AM61: =IFERROR(VLOOKUP($A61,Filtro!$A$5:$AX$2265,37,FALSE),0) -> 14 | AN61: =IFERROR(VLOOKUP($A61,Filtro!$A$5:$AX$2265,38,FALSE),0) -> 29 | AO61: =IFERROR(VLOOKUP($A61,Filtro!$A$5:$AX$2265,39,FALSE),0) -> 3062 | CJ61: 0
A62: 03030180 | C62: TÉCNICO PARAMÉDICO | D62: =IFERROR(VLOOKUP($A62,Filtro!$A$5:$AX$2265,2,FALSE),0) -> 1451 | E62: =IFERROR(VLOOKUP($A62,Filtro!$A$5:$AX$2265,3,FALSE),0) -> 549 | F62: =IFERROR(VLOOKUP($A62,Filtro!$A$5:$AX$2265,4,FALSE),0) -> 902 | G62: =IFERROR(VLOOKUP($A62,Filtro!$A$5:$AX$2265,5,FALSE),0) -> 3 | H62: =IFERROR(VLOOKUP($A62,Filtro!$A$5:$AX$2265,6,FALSE),0) -> 2 | I62: =IFERROR(VLOOKUP($A62,Filtro!$A$5:$AX$2265,7,FALSE),0) -> 10 | J62: =IFERROR(VLOOKUP($A62,Filtro!$A$5:$AX$2265,8,FALSE),0) -> 3 | K62: =IFERROR(VLOOKUP($A62,Filtro!$A$5:$AX$2265,9,FALSE),0) -> 10 | L62: =IFERROR(VLOOKUP($A62,Filtro!$A$5:$AX$2265,10,FALSE),0) -> 5 | M62: =IFERROR(VLOOKUP($A62,Filtro!$A$5:$AX$2265,11,FALSE),0) -> 12 | N62: =IFERROR(VLOOKUP($A62,Filtro!$A$5:$AX$2265,12,FALSE),0) -> 22 | O62: =IFERROR(VLOOKUP($A62,Filtro!$A$5:$AX$2265,13,FALSE),0) -> 21 | P62: =IFERROR(VLOOKUP($A62,Filtro!$A$5:$AX$2265,14,FALSE),0) -> 26 | Q62: =IFERROR(VLOOKUP($A62,Filtro!$A$5:$AX$2265,15,FALSE),0) -> 38 | R62: =IFERROR(VLOOKUP($A62,Filtro!$A$5:$AX$2265,16,FALSE),0) -> 34 | S62: =IFERROR(VLOOKUP($A62,Filtro!$A$5:$AX$2265,17,FALSE),0) -> 25 | T62: =IFERROR(VLOOKUP($A62,Filtro!$A$5:$AX$2265,18,FALSE),0) -> 62 | U62: =IFERROR(VLOOKUP($A62,Filtro!$A$5:$AX$2265,19,FALSE),0) -> 41 | V62: =IFERROR(VLOOKUP($A62,Filtro!$A$5:$AX$2265,20,FALSE),0) -> 65 | W62: =IFERROR(VLOOKUP($A62,Filtro!$A$5:$AX$2265,21,FALSE),0) -> 39 | X62: =IFERROR(VLOOKUP($A62,Filtro!$A$5:$AX$2265,22,FALSE),0) -> 55 | Y62: =IFERROR(VLOOKUP($A62,Filtro!$A$5:$AX$2265,23,FALSE),0) -> 29 | Z62: =IFERROR(VLOOKUP($A62,Filtro!$A$5:$AX$2265,24,FALSE),0) -> 83 | AA62: =IFERROR(VLOOKUP($A62,Filtro!$A$5:$AX$2265,25,FALSE),0) -> 35 | AB62: =IFERROR(VLOOKUP($A62,Filtro!$A$5:$AX$2265,26,FALSE),0) -> 87 | AC62: =IFERROR(VLOOKUP($A62,Filtro!$A$5:$AX$2265,27,FALSE),0) -> 34 | AD62: =IFERROR(VLOOKUP($A62,Filtro!$A$5:$AX$2265,28,FALSE),0) -> 83 | AE62: =IFERROR(VLOOKUP($A62,Filtro!$A$5:$AX$2265,29,FALSE),0) -> 32 | AF62: =IFERROR(VLOOKUP($A62,Filtro!$A$5:$AX$2265,30,FALSE),0) -> 75 | AG62: =IFERROR(VLOOKUP($A62,Filtro!$A$5:$AX$2265,31,FALSE),0) -> 60 | AH62: =IFERROR(VLOOKUP($A62,Filtro!$A$5:$AX$2265,32,FALSE),0) -> 89 | AI62: =IFERROR(VLOOKUP($A62,Filtro!$A$5:$AX$2265,33,FALSE),0) -> 40 | AJ62: =IFERROR(VLOOKUP($A62,Filtro!$A$5:$AX$2265,34,FALSE),0) -> 60 | AK62: =IFERROR(VLOOKUP($A62,Filtro!$A$5:$AX$2265,35,FALSE),0) -> 57 | AL62: =IFERROR(VLOOKUP($A62,Filtro!$A$5:$AX$2265,36,FALSE),0) -> 69 | AM62: =IFERROR(VLOOKUP($A62,Filtro!$A$5:$AX$2265,37,FALSE),0) -> 63 | AN62: =IFERROR(VLOOKUP($A62,Filtro!$A$5:$AX$2265,38,FALSE),0) -> 82 | AO62: =IFERROR(VLOOKUP($A62,Filtro!$A$5:$AX$2265,39,FALSE),0) -> 1421 | CJ62: 0
A63: 01200031 | B63: NIÑOS CON NECESIDADES ESPECIALES | C63: =IFERROR(VLOOKUP($A63,Filtro!$A$5:$AX$2265,2,FALSE),0) -> 18 | D63: =IFERROR(VLOOKUP($A63,Filtro!$A$5:$AX$2265,2,FALSE),0) -> 18 | E63: =IFERROR(VLOOKUP($A63,Filtro!$A$5:$AX$2265,3,FALSE),0) -> 16 | F63: =IFERROR(VLOOKUP($A63,Filtro!$A$5:$AX$2265,4,FALSE),0) -> 2 | G63: =IFERROR(VLOOKUP($A63,Filtro!$A$5:$AX$2265,5,FALSE),0) -> 6 | H63: =IFERROR(VLOOKUP($A63,Filtro!$A$5:$AX$2265,6,FALSE),0) -> 1 | I63: =IFERROR(VLOOKUP($A63,Filtro!$A$5:$AX$2265,7,FALSE),0) -> 3 | J63: =IFERROR(VLOOKUP($A63,Filtro!$A$5:$AX$2265,8,FALSE),0) -> 0 | K63: =IFERROR(VLOOKUP($A63,Filtro!$A$5:$AX$2265,9,FALSE),0) -> 5 | L63: =IFERROR(VLOOKUP($A63,Filtro!$A$5:$AX$2265,10,FALSE),0) -> 1 | M63: =IFERROR(VLOOKUP($A63,Filtro!$A$5:$AX$2265,11,FALSE),0) -> 2 | N63: =IFERROR(VLOOKUP($A63,Filtro!$A$5:$AX$2265,12,FALSE),0) -> 0 | O63: =IFERROR(VLOOKUP($A63,Filtro!$A$5:$AX$2265,13,FALSE),0) -> 0 | P63: =IFERROR(VLOOKUP($A63,Filtro!$A$5:$AX$2265,14,FALSE),0) -> 0 | Q63: =IFERROR(VLOOKUP($A63,Filtro!$A$5:$AX$2265,15,FALSE),0) -> 0 | R63: =IFERROR(VLOOKUP($A63,Filtro!$A$5:$AX$2265,16,FALSE),0) -> 0 | S63: =IFERROR(VLOOKUP($A63,Filtro!$A$5:$AX$2265,17,FALSE),0) -> 0 | T63: =IFERROR(VLOOKUP($A63,Filtro!$A$5:$AX$2265,18,FALSE),0) -> 0 | U63: =IFERROR(VLOOKUP($A63,Filtro!$A$5:$AX$2265,19,FALSE),0) -> 0 | V63: =IFERROR(VLOOKUP($A63,Filtro!$A$5:$AX$2265,20,FALSE),0) -> 0 | W63: =IFERROR(VLOOKUP($A63,Filtro!$A$5:$AX$2265,21,FALSE),0) -> 0 | X63: =IFERROR(VLOOKUP($A63,Filtro!$A$5:$AX$2265,22,FALSE),0) -> 0 | Y63: =IFERROR(VLOOKUP($A63,Filtro!$A$5:$AX$2265,23,FALSE),0) -> 0 | Z63: =IFERROR(VLOOKUP($A63,Filtro!$A$5:$AX$2265,24,FALSE),0) -> 0 | AA63: =IFERROR(VLOOKUP($A63,Filtro!$A$5:$AX$2265,25,FALSE),0) -> 0 | AB63: =IFERROR(VLOOKUP($A63,Filtro!$A$5:$AX$2265,26,FALSE),0) -> 0 | AC63: =IFERROR(VLOOKUP($A63,Filtro!$A$5:$AX$2265,27,FALSE),0) -> 0 | AD63: =IFERROR(VLOOKUP($A63,Filtro!$A$5:$AX$2265,28,FALSE),0) -> 0 | AE63: =IFERROR(VLOOKUP($A63,Filtro!$A$5:$AX$2265,29,FALSE),0) -> 0 | AF63: =IFERROR(VLOOKUP($A63,Filtro!$A$5:$AX$2265,30,FALSE),0) -> 0 | AG63: =IFERROR(VLOOKUP($A63,Filtro!$A$5:$AX$2265,31,FALSE),0) -> 0 | AH63: =IFERROR(VLOOKUP($A63,Filtro!$A$5:$AX$2265,32,FALSE),0) -> 0 | AI63: =IFERROR(VLOOKUP($A63,Filtro!$A$5:$AX$2265,33,FALSE),0) -> 0 | AJ63: =IFERROR(VLOOKUP($A63,Filtro!$A$5:$AX$2265,34,FALSE),0) -> 0 | AK63: =IFERROR(VLOOKUP($A63,Filtro!$A$5:$AX$2265,35,FALSE),0) -> 0 | AL63: =IFERROR(VLOOKUP($A63,Filtro!$A$5:$AX$2265,36,FALSE),0) -> 0 | AM63: =IFERROR(VLOOKUP($A63,Filtro!$A$5:$AX$2265,37,FALSE),0) -> 0 | AN63: =IFERROR(VLOOKUP($A63,Filtro!$A$5:$AX$2265,38,FALSE),0) -> 0 | AO63: =IFERROR(VLOOKUP($A63,Filtro!$A$5:$AX$2265,39,FALSE),0) -> 17 | CJ63: 0
A64: 01200032 | C64: =IFERROR(VLOOKUP($A64,Filtro!$A$5:$AX$2265,2,FALSE),0) -> 147 | D64: =IFERROR(VLOOKUP($A64,Filtro!$A$5:$AX$2265,2,FALSE),0) -> 147 | E64: =IFERROR(VLOOKUP($A64,Filtro!$A$5:$AX$2265,3,FALSE),0) -> 77 | F64: =IFERROR(VLOOKUP($A64,Filtro!$A$5:$AX$2265,4,FALSE),0) -> 70 | G64: =IFERROR(VLOOKUP($A64,Filtro!$A$5:$AX$2265,5,FALSE),0) -> 48 | H64: =IFERROR(VLOOKUP($A64,Filtro!$A$5:$AX$2265,6,FALSE),0) -> 41 | I64: =IFERROR(VLOOKUP($A64,Filtro!$A$5:$AX$2265,7,FALSE),0) -> 25 | J64: =IFERROR(VLOOKUP($A64,Filtro!$A$5:$AX$2265,8,FALSE),0) -> 27 | K64: =IFERROR(VLOOKUP($A64,Filtro!$A$5:$AX$2265,9,FALSE),0) -> 1 | L64: =IFERROR(VLOOKUP($A64,Filtro!$A$5:$AX$2265,10,FALSE),0) -> 2 | M64: =IFERROR(VLOOKUP($A64,Filtro!$A$5:$AX$2265,11,FALSE),0) -> 1 | N64: =IFERROR(VLOOKUP($A64,Filtro!$A$5:$AX$2265,12,FALSE),0) -> 0 | O64: =IFERROR(VLOOKUP($A64,Filtro!$A$5:$AX$2265,13,FALSE),0) -> 2 | P64: =IFERROR(VLOOKUP($A64,Filtro!$A$5:$AX$2265,14,FALSE),0) -> 0 | Q64: =IFERROR(VLOOKUP($A64,Filtro!$A$5:$AX$2265,15,FALSE),0) -> 0 | R64: =IFERROR(VLOOKUP($A64,Filtro!$A$5:$AX$2265,16,FALSE),0) -> 0 | S64: =IFERROR(VLOOKUP($A64,Filtro!$A$5:$AX$2265,17,FALSE),0) -> 0 | T64: =IFERROR(VLOOKUP($A64,Filtro!$A$5:$AX$2265,18,FALSE),0) -> 0 | U64: =IFERROR(VLOOKUP($A64,Filtro!$A$5:$AX$2265,19,FALSE),0) -> 0 | V64: =IFERROR(VLOOKUP($A64,Filtro!$A$5:$AX$2265,20,FALSE),0) -> 0 | W64: =IFERROR(VLOOKUP($A64,Filtro!$A$5:$AX$2265,21,FALSE),0) -> 0 | X64: =IFERROR(VLOOKUP($A64,Filtro!$A$5:$AX$2265,22,FALSE),0) -> 0 | Y64: =IFERROR(VLOOKUP($A64,Filtro!$A$5:$AX$2265,23,FALSE),0) -> 0 | Z64: =IFERROR(VLOOKUP($A64,Filtro!$A$5:$AX$2265,24,FALSE),0) -> 0 | AA64: =IFERROR(VLOOKUP($A64,Filtro!$A$5:$AX$2265,25,FALSE),0) -> 0 | AB64: =IFERROR(VLOOKUP($A64,Filtro!$A$5:$AX$2265,26,FALSE),0) -> 0 | AC64: =IFERROR(VLOOKUP($A64,Filtro!$A$5:$AX$2265,27,FALSE),0) -> 0 | AD64: =IFERROR(VLOOKUP($A64,Filtro!$A$5:$AX$2265,28,FALSE),0) -> 0 | AE64: =IFERROR(VLOOKUP($A64,Filtro!$A$5:$AX$2265,29,FALSE),0) -> 0 | AF64: =IFERROR(VLOOKUP($A64,Filtro!$A$5:$AX$2265,30,FALSE),0) -> 0 | AG64: =IFERROR(VLOOKUP($A64,Filtro!$A$5:$AX$2265,31,FALSE),0) -> 0 | AH64: =IFERROR(VLOOKUP($A64,Filtro!$A$5:$AX$2265,32,FALSE),0) -> 0 | AI64: =IFERROR(VLOOKUP($A64,Filtro!$A$5:$AX$2265,33,FALSE),0) -> 0 | AJ64: =IFERROR(VLOOKUP($A64,Filtro!$A$5:$AX$2265,34,FALSE),0) -> 0 | AK64: =IFERROR(VLOOKUP($A64,Filtro!$A$5:$AX$2265,35,FALSE),0) -> 0 | AL64: =IFERROR(VLOOKUP($A64,Filtro!$A$5:$AX$2265,36,FALSE),0) -> 0 | AM64: =IFERROR(VLOOKUP($A64,Filtro!$A$5:$AX$2265,37,FALSE),0) -> 0 | AN64: =IFERROR(VLOOKUP($A64,Filtro!$A$5:$AX$2265,38,FALSE),0) -> 0 | AO64: =IFERROR(VLOOKUP($A64,Filtro!$A$5:$AX$2265,39,FALSE),0) -> 109 | CJ64: 0
A65: 01200033 | C65: MATRONA /ÓN | D65: =IFERROR(VLOOKUP($A65,Filtro!$A$5:$AX$2265,2,FALSE),0) -> 4 | E65: =IFERROR(VLOOKUP($A65,Filtro!$A$5:$AX$2265,3,FALSE),0) -> 1 | F65: =IFERROR(VLOOKUP($A65,Filtro!$A$5:$AX$2265,4,FALSE),0) -> 3 | G65: =IFERROR(VLOOKUP($A65,Filtro!$A$5:$AX$2265,5,FALSE),0) -> 0 | H65: =IFERROR(VLOOKUP($A65,Filtro!$A$5:$AX$2265,6,FALSE),0) -> 1 | I65: =IFERROR(VLOOKUP($A65,Filtro!$A$5:$AX$2265,7,FALSE),0) -> 1 | J65: =IFERROR(VLOOKUP($A65,Filtro!$A$5:$AX$2265,8,FALSE),0) -> 1 | K65: =IFERROR(VLOOKUP($A65,Filtro!$A$5:$AX$2265,9,FALSE),0) -> 0 | L65: =IFERROR(VLOOKUP($A65,Filtro!$A$5:$AX$2265,10,FALSE),0) -> 0 | M65: =IFERROR(VLOOKUP($A65,Filtro!$A$5:$AX$2265,11,FALSE),0) -> 0 | N65: =IFERROR(VLOOKUP($A65,Filtro!$A$5:$AX$2265,12,FALSE),0) -> 1 | O65: =IFERROR(VLOOKUP($A65,Filtro!$A$5:$AX$2265,13,FALSE),0) -> 0 | P65: =IFERROR(VLOOKUP($A65,Filtro!$A$5:$AX$2265,14,FALSE),0) -> 0 | Q65: =IFERROR(VLOOKUP($A65,Filtro!$A$5:$AX$2265,15,FALSE),0) -> 0 | R65: =IFERROR(VLOOKUP($A65,Filtro!$A$5:$AX$2265,16,FALSE),0) -> 0 | S65: =IFERROR(VLOOKUP($A65,Filtro!$A$5:$AX$2265,17,FALSE),0) -> 0 | T65: =IFERROR(VLOOKUP($A65,Filtro!$A$5:$AX$2265,18,FALSE),0) -> 0 | U65: =IFERROR(VLOOKUP($A65,Filtro!$A$5:$AX$2265,19,FALSE),0) -> 0 | V65: =IFERROR(VLOOKUP($A65,Filtro!$A$5:$AX$2265,20,FALSE),0) -> 0 | W65: =IFERROR(VLOOKUP($A65,Filtro!$A$5:$AX$2265,21,FALSE),0) -> 0 | X65: =IFERROR(VLOOKUP($A65,Filtro!$A$5:$AX$2265,22,FALSE),0) -> 0 | Y65: =IFERROR(VLOOKUP($A65,Filtro!$A$5:$AX$2265,23,FALSE),0) -> 0 | Z65: =IFERROR(VLOOKUP($A65,Filtro!$A$5:$AX$2265,24,FALSE),0) -> 0 | AA65: =IFERROR(VLOOKUP($A65,Filtro!$A$5:$AX$2265,25,FALSE),0) -> 0 | AB65: =IFERROR(VLOOKUP($A65,Filtro!$A$5:$AX$2265,26,FALSE),0) -> 0 | AC65: =IFERROR(VLOOKUP($A65,Filtro!$A$5:$AX$2265,27,FALSE),0) -> 0 | AD65: =IFERROR(VLOOKUP($A65,Filtro!$A$5:$AX$2265,28,FALSE),0) -> 0 | AE65: =IFERROR(VLOOKUP($A65,Filtro!$A$5:$AX$2265,29,FALSE),0) -> 0 | AF65: =IFERROR(VLOOKUP($A65,Filtro!$A$5:$AX$2265,30,FALSE),0) -> 0 | AG65: =IFERROR(VLOOKUP($A65,Filtro!$A$5:$AX$2265,31,FALSE),0) -> 0 | AH65: =IFERROR(VLOOKUP($A65,Filtro!$A$5:$AX$2265,32,FALSE),0) -> 0 | AI65: =IFERROR(VLOOKUP($A65,Filtro!$A$5:$AX$2265,33,FALSE),0) -> 0 | AJ65: =IFERROR(VLOOKUP($A65,Filtro!$A$5:$AX$2265,34,FALSE),0) -> 0 | AK65: =IFERROR(VLOOKUP($A65,Filtro!$A$5:$AX$2265,35,FALSE),0) -> 0 | AL65: =IFERROR(VLOOKUP($A65,Filtro!$A$5:$AX$2265,36,FALSE),0) -> 0 | AM65: =IFERROR(VLOOKUP($A65,Filtro!$A$5:$AX$2265,37,FALSE),0) -> 0 | AN65: =IFERROR(VLOOKUP($A65,Filtro!$A$5:$AX$2265,38,FALSE),0) -> 0 | AO65: =IFERROR(VLOOKUP($A65,Filtro!$A$5:$AX$2265,39,FALSE),0) -> 4 | CJ65: 0
A66: 01200034 | C66: NUTRICIONISTA | D66: =IFERROR(VLOOKUP($A66,Filtro!$A$5:$AX$2265,2,FALSE),0) -> 75 | E66: =IFERROR(VLOOKUP($A66,Filtro!$A$5:$AX$2265,3,FALSE),0) -> 41 | F66: =IFERROR(VLOOKUP($A66,Filtro!$A$5:$AX$2265,4,FALSE),0) -> 34 | G66: =IFERROR(VLOOKUP($A66,Filtro!$A$5:$AX$2265,5,FALSE),0) -> 20 | H66: =IFERROR(VLOOKUP($A66,Filtro!$A$5:$AX$2265,6,FALSE),0) -> 21 | I66: =IFERROR(VLOOKUP($A66,Filtro!$A$5:$AX$2265,7,FALSE),0) -> 13 | J66: =IFERROR(VLOOKUP($A66,Filtro!$A$5:$AX$2265,8,FALSE),0) -> 9 | K66: =IFERROR(VLOOKUP($A66,Filtro!$A$5:$AX$2265,9,FALSE),0) -> 2 | L66: =IFERROR(VLOOKUP($A66,Filtro!$A$5:$AX$2265,10,FALSE),0) -> 4 | M66: =IFERROR(VLOOKUP($A66,Filtro!$A$5:$AX$2265,11,FALSE),0) -> 5 | N66: =IFERROR(VLOOKUP($A66,Filtro!$A$5:$AX$2265,12,FALSE),0) -> 0 | O66: =IFERROR(VLOOKUP($A66,Filtro!$A$5:$AX$2265,13,FALSE),0) -> 1 | P66: =IFERROR(VLOOKUP($A66,Filtro!$A$5:$AX$2265,14,FALSE),0) -> 0 | Q66: =IFERROR(VLOOKUP($A66,Filtro!$A$5:$AX$2265,15,FALSE),0) -> 0 | R66: =IFERROR(VLOOKUP($A66,Filtro!$A$5:$AX$2265,16,FALSE),0) -> 0 | S66: =IFERROR(VLOOKUP($A66,Filtro!$A$5:$AX$2265,17,FALSE),0) -> 0 | T66: =IFERROR(VLOOKUP($A66,Filtro!$A$5:$AX$2265,18,FALSE),0) -> 0 | U66: =IFERROR(VLOOKUP($A66,Filtro!$A$5:$AX$2265,19,FALSE),0) -> 0 | V66: =IFERROR(VLOOKUP($A66,Filtro!$A$5:$AX$2265,20,FALSE),0) -> 0 | W66: =IFERROR(VLOOKUP($A66,Filtro!$A$5:$AX$2265,21,FALSE),0) -> 0 | X66: =IFERROR(VLOOKUP($A66,Filtro!$A$5:$AX$2265,22,FALSE),0) -> 0 | Y66: =IFERROR(VLOOKUP($A66,Filtro!$A$5:$AX$2265,23,FALSE),0) -> 0 | Z66: =IFERROR(VLOOKUP($A66,Filtro!$A$5:$AX$2265,24,FALSE),0) -> 0 | AA66: =IFERROR(VLOOKUP($A66,Filtro!$A$5:$AX$2265,25,FALSE),0) -> 0 | AB66: =IFERROR(VLOOKUP($A66,Filtro!$A$5:$AX$2265,26,FALSE),0) -> 0 | AC66: =IFERROR(VLOOKUP($A66,Filtro!$A$5:$AX$2265,27,FALSE),0) -> 0 | AD66: =IFERROR(VLOOKUP($A66,Filtro!$A$5:$AX$2265,28,FALSE),0) -> 0 | AE66: =IFERROR(VLOOKUP($A66,Filtro!$A$5:$AX$2265,29,FALSE),0) -> 0 | AF66: =IFERROR(VLOOKUP($A66,Filtro!$A$5:$AX$2265,30,FALSE),0) -> 0 | AG66: =IFERROR(VLOOKUP($A66,Filtro!$A$5:$AX$2265,31,FALSE),0) -> 0 | AH66: =IFERROR(VLOOKUP($A66,Filtro!$A$5:$AX$2265,32,FALSE),0) -> 0 | AI66: =IFERROR(VLOOKUP($A66,Filtro!$A$5:$AX$2265,33,FALSE),0) -> 0 | AJ66: =IFERROR(VLOOKUP($A66,Filtro!$A$5:$AX$2265,34,FALSE),0) -> 0 | AK66: =IFERROR(VLOOKUP($A66,Filtro!$A$5:$AX$2265,35,FALSE),0) -> 0 | AL66: =IFERROR(VLOOKUP($A66,Filtro!$A$5:$AX$2265,36,FALSE),0) -> 0 | AM66: =IFERROR(VLOOKUP($A66,Filtro!$A$5:$AX$2265,37,FALSE),0) -> 0 | AN66: =IFERROR(VLOOKUP($A66,Filtro!$A$5:$AX$2265,38,FALSE),0) -> 0 | AO66: =IFERROR(VLOOKUP($A66,Filtro!$A$5:$AX$2265,39,FALSE),0) -> 64 | CJ66: 0
A67: 01200035 | C67: TÉCNICO PARAMÉDICO | D67: =IFERROR(VLOOKUP($A67,Filtro!$A$5:$AX$2265,2,FALSE),0) -> 1 | E67: =IFERROR(VLOOKUP($A67,Filtro!$A$5:$AX$2265,3,FALSE),0) -> 1 | F67: =IFERROR(VLOOKUP($A67,Filtro!$A$5:$AX$2265,4,FALSE),0) -> 0 | G67: =IFERROR(VLOOKUP($A67,Filtro!$A$5:$AX$2265,5,FALSE),0) -> 1 | H67: =IFERROR(VLOOKUP($A67,Filtro!$A$5:$AX$2265,6,FALSE),0) -> 0 | I67: =IFERROR(VLOOKUP($A67,Filtro!$A$5:$AX$2265,7,FALSE),0) -> 0 | J67: =IFERROR(VLOOKUP($A67,Filtro!$A$5:$AX$2265,8,FALSE),0) -> 0 | K67: =IFERROR(VLOOKUP($A67,Filtro!$A$5:$AX$2265,9,FALSE),0) -> 0 | L67: =IFERROR(VLOOKUP($A67,Filtro!$A$5:$AX$2265,10,FALSE),0) -> 0 | M67: =IFERROR(VLOOKUP($A67,Filtro!$A$5:$AX$2265,11,FALSE),0) -> 0 | N67: =IFERROR(VLOOKUP($A67,Filtro!$A$5:$AX$2265,12,FALSE),0) -> 0 | O67: =IFERROR(VLOOKUP($A67,Filtro!$A$5:$AX$2265,13,FALSE),0) -> 0 | P67: =IFERROR(VLOOKUP($A67,Filtro!$A$5:$AX$2265,14,FALSE),0) -> 0 | Q67: =IFERROR(VLOOKUP($A67,Filtro!$A$5:$AX$2265,15,FALSE),0) -> 0 | R67: =IFERROR(VLOOKUP($A67,Filtro!$A$5:$AX$2265,16,FALSE),0) -> 0 | S67: =IFERROR(VLOOKUP($A67,Filtro!$A$5:$AX$2265,17,FALSE),0) -> 0 | T67: =IFERROR(VLOOKUP($A67,Filtro!$A$5:$AX$2265,18,FALSE),0) -> 0 | U67: =IFERROR(VLOOKUP($A67,Filtro!$A$5:$AX$2265,19,FALSE),0) -> 0 | V67: =IFERROR(VLOOKUP($A67,Filtro!$A$5:$AX$2265,20,FALSE),0) -> 0 | W67: =IFERROR(VLOOKUP($A67,Filtro!$A$5:$AX$2265,21,FALSE),0) -> 0 | X67: =IFERROR(VLOOKUP($A67,Filtro!$A$5:$AX$2265,22,FALSE),0) -> 0 | Y67: =IFERROR(VLOOKUP($A67,Filtro!$A$5:$AX$2265,23,FALSE),0) -> 0 | Z67: =IFERROR(VLOOKUP($A67,Filtro!$A$5:$AX$2265,24,FALSE),0) -> 0 | AA67: =IFERROR(VLOOKUP($A67,Filtro!$A$5:$AX$2265,25,FALSE),0) -> 0 | AB67: =IFERROR(VLOOKUP($A67,Filtro!$A$5:$AX$2265,26,FALSE),0) -> 0 | AC67: =IFERROR(VLOOKUP($A67,Filtro!$A$5:$AX$2265,27,FALSE),0) -> 0 | AD67: =IFERROR(VLOOKUP($A67,Filtro!$A$5:$AX$2265,28,FALSE),0) -> 0 | AE67: =IFERROR(VLOOKUP($A67,Filtro!$A$5:$AX$2265,29,FALSE),0) -> 0 | AF67: =IFERROR(VLOOKUP($A67,Filtro!$A$5:$AX$2265,30,FALSE),0) -> 0 | AG67: =IFERROR(VLOOKUP($A67,Filtro!$A$5:$AX$2265,31,FALSE),0) -> 0 | AH67: =IFERROR(VLOOKUP($A67,Filtro!$A$5:$AX$2265,32,FALSE),0) -> 0 | AI67: =IFERROR(VLOOKUP($A67,Filtro!$A$5:$AX$2265,33,FALSE),0) -> 0 | AJ67: =IFERROR(VLOOKUP($A67,Filtro!$A$5:$AX$2265,34,FALSE),0) -> 0 | AK67: =IFERROR(VLOOKUP($A67,Filtro!$A$5:$AX$2265,35,FALSE),0) -> 0 | AL67: =IFERROR(VLOOKUP($A67,Filtro!$A$5:$AX$2265,36,FALSE),0) -> 0 | AM67: =IFERROR(VLOOKUP($A67,Filtro!$A$5:$AX$2265,37,FALSE),0) -> 0 | AN67: =IFERROR(VLOOKUP($A67,Filtro!$A$5:$AX$2265,38,FALSE),0) -> 0 | AO67: =IFERROR(VLOOKUP($A67,Filtro!$A$5:$AX$2265,39,FALSE),0) -> 0 | CJ67: 0
B68: SECCIÓN D: CONTROL DE SALUD INTEGRAL DE ADOLESCENTES (incluidos en sección B)
B69: LUGAR DEL CONTROL, SEGÚN EDAD | D69: 10 A 14 AÑOS | G69: 15 A 19 AÑOS
D70: Ambos Sexos | E70: Hombres | F70: Mujeres | G70: Ambos Sexos | H70: Hombres | I70: Mujeres
A71: 01030500 | B71: EN ESPACIO AMIGABLE | D71: =IFERROR(VLOOKUP($A71,Filtro!$A$5:$AX$2265,2,FALSE),0) -> 402 | E71: =IFERROR(VLOOKUP($A71,Filtro!$A$5:$AX$2265,3,FALSE),0) -> 153 | F71: =IFERROR(VLOOKUP($A71,Filtro!$A$5:$AX$2265,4,FALSE),0) -> 249 | G71: =IFERROR(VLOOKUP($A71,Filtro!$A$5:$AX$2265,5,FALSE),0) -> 1295 | H71: =IFERROR(VLOOKUP($A71,Filtro!$A$5:$AX$2265,6,FALSE),0) -> 315 | I71: =IFERROR(VLOOKUP($A71,Filtro!$A$5:$AX$2265,7,FALSE),0) -> 980
A72: 01030600 | B72: EN OTROS ESPACIOS DEL ESTABLECIMIENTO DE SALUD | D72: =IFERROR(VLOOKUP($A72,Filtro!$A$5:$AX$2265,2,FALSE),0) -> 2025 | E72: =IFERROR(VLOOKUP($A72,Filtro!$A$5:$AX$2265,3,FALSE),0) -> 886 | F72: =IFERROR(VLOOKUP($A72,Filtro!$A$5:$AX$2265,4,FALSE),0) -> 1139 | G72: =IFERROR(VLOOKUP($A72,Filtro!$A$5:$AX$2265,5,FALSE),0) -> 662 | H72: =IFERROR(VLOOKUP($A72,Filtro!$A$5:$AX$2265,6,FALSE),0) -> 175 | I72: =IFERROR(VLOOKUP($A72,Filtro!$A$5:$AX$2265,7,FALSE),0) -> 487
A73: 01030700 | B73: EN ESTABLECIMIENTOS EDUCACIONALES | D73: =IFERROR(VLOOKUP($A73,Filtro!$A$5:$AX$2265,2,FALSE),0) -> 423 | E73: =IFERROR(VLOOKUP($A73,Filtro!$A$5:$AX$2265,3,FALSE),0) -> 218 | F73: =IFERROR(VLOOKUP($A73,Filtro!$A$5:$AX$2265,4,FALSE),0) -> 205 | G73: =IFERROR(VLOOKUP($A73,Filtro!$A$5:$AX$2265,5,FALSE),0) -> 206 | H73: =IFERROR(VLOOKUP($A73,Filtro!$A$5:$AX$2265,6,FALSE),0) -> 104 | I73: =IFERROR(VLOOKUP($A73,Filtro!$A$5:$AX$2265,7,FALSE),0) -> 102
A74: 01030800 | B74: EN OTROS LUGARES FUERA DEL ESTABLECIMIENTO DE SALUD | D74: =IFERROR(VLOOKUP($A74,Filtro!$A$5:$AX$2265,2,FALSE),0) -> 228 | E74: =IFERROR(VLOOKUP($A74,Filtro!$A$5:$AX$2265,3,FALSE),0) -> 91 | F74: =IFERROR(VLOOKUP($A74,Filtro!$A$5:$AX$2265,4,FALSE),0) -> 137 | G74: =IFERROR(VLOOKUP($A74,Filtro!$A$5:$AX$2265,5,FALSE),0) -> 151 | H74: =IFERROR(VLOOKUP($A74,Filtro!$A$5:$AX$2265,6,FALSE),0) -> 65 | I74: =IFERROR(VLOOKUP($A74,Filtro!$A$5:$AX$2265,7,FALSE),0) -> 86
B75: TOTAL | D75: =SUM(D71:D74) -> 3078 | E75: 1348 | F75: 1730 | G75: 2314 | H75: 659 | I75: 1655
B76: SECCIÓN E: CONTROLES DE SALUD EN ESTABLECIMIENTO EDUCACIONAL (Los controles individuales deben estar incluídos en la Sección B)
B77: TIPO DE CONTROLES | C77: CURSO | D77: TOTAL* | E77: TOTAL NIÑOS Y NIÑAS | F77: SEXO
F78: Hombres | G78: Mujeres
A79: 01031000 | B79: CONTROLES INDIVIDUALES | C79: KÍNDER | D79: =IFERROR(VLOOKUP($A79,Filtro!$A$5:$AX$2265,2,FALSE),0) -> 482 | E79: =IFERROR(VLOOKUP($A79,Filtro!$A$5:$AX$2265,3,FALSE),0) -> 0 | F79: =IFERROR(VLOOKUP($A79,Filtro!$A$5:$AX$2265,4,FALSE),0) -> 245 | G79: =IFERROR(VLOOKUP($A79,Filtro!$A$5:$AX$2265,5,FALSE),0) -> 237 | CA79: * No olvide digitar el campo BENEFICIARIOS (Digite CEROS si no tiene). | CB79: * No olvide digitar el campo MIGRANTES (Digite CEROS si no tiene). | CC79: * No olvide digitar el campo PUEBLOS ORIGINARIOS (Digite CEROS si no tiene). | CD79: * No olvide digitar el campo PUEBLOS ORIGINARIOS (Digite CEROS si no tiene). | CH79: 0 | CI79: 0 | CJ79: 0 | CK79: 1
A80: 01031100 | C80: PRIMERO BÁSICO | D80: =IFERROR(VLOOKUP($A80,Filtro!$A$5:$AX$2265,2,FALSE),0) -> 671 | E80: =IFERROR(VLOOKUP($A80,Filtro!$A$5:$AX$2265,3,FALSE),0) -> 0 | F80: =IFERROR(VLOOKUP($A80,Filtro!$A$5:$AX$2265,4,FALSE),0) -> 341 | G80: =IFERROR(VLOOKUP($A80,Filtro!$A$5:$AX$2265,5,FALSE),0) -> 330
A81: 01031200 | C81: =IFERROR(VLOOKUP($A81,Filtro!$A$5:$AX$2265,2,FALSE),0) -> 656 | D81: =IFERROR(VLOOKUP($A81,Filtro!$A$5:$AX$2265,2,FALSE),0) -> 656 | E81: =IFERROR(VLOOKUP($A81,Filtro!$A$5:$AX$2265,3,FALSE),0) -> 0 | F81: =IFERROR(VLOOKUP($A81,Filtro!$A$5:$AX$2265,4,FALSE),0) -> 318 | G81: =IFERROR(VLOOKUP($A81,Filtro!$A$5:$AX$2265,5,FALSE),0) -> 338
A82: 01031300 | C82: TERCERO BÁSICO | D82: =IFERROR(VLOOKUP($A82,Filtro!$A$5:$AX$2265,2,FALSE),0) -> 621 | E82: =IFERROR(VLOOKUP($A82,Filtro!$A$5:$AX$2265,3,FALSE),0) -> 0 | F82: =IFERROR(VLOOKUP($A82,Filtro!$A$5:$AX$2265,4,FALSE),0) -> 318 | G82: =IFERROR(VLOOKUP($A82,Filtro!$A$5:$AX$2265,5,FALSE),0) -> 303
A83: 01031400 | C83: CUARTO BÁSICO | D83: =IFERROR(VLOOKUP($A83,Filtro!$A$5:$AX$2265,2,FALSE),0) -> 564 | E83: =IFERROR(VLOOKUP($A83,Filtro!$A$5:$AX$2265,3,FALSE),0) -> 0 | F83: =IFERROR(VLOOKUP($A83,Filtro!$A$5:$AX$2265,4,FALSE),0) -> 277 | G83: =IFERROR(VLOOKUP($A83,Filtro!$A$5:$AX$2265,5,FALSE),0) -> 287
A84: 01031500 | B84: CONTROLES GRUPALES * | C84: KÍNDER | D84: =IFERROR(VLOOKUP($A84,Filtro!$A$5:$AX$2265,2,FALSE),0) -> 0 | E84: =IFERROR(VLOOKUP($A84,Filtro!$A$5:$AX$2265,3,FALSE),0) -> 25 | F84: =IFERROR(VLOOKUP($A84,Filtro!$A$5:$AX$2265,4,FALSE),0) -> 10 | G84: =IFERROR(VLOOKUP($A84,Filtro!$A$5:$AX$2265,5,FALSE),0) -> 15 | CB84: * No olvide digitar el campo BENEFICIARIOS (Digite CEROS si no tiene). | CC84: * No olvide digitar el campo MIGRANTES (Digite CEROS si no tiene). | CD84: * No olvide digitar el campo PUEBLOS ORIGINARIOS (Digite CEROS si no tiene). | CI84: 0 | CJ84: 0 | CK84: 1
A85: 01031600 | C85: PRIMERO BÁSICO | D85: =IFERROR(VLOOKUP($A85,Filtro!$A$5:$AX$2265,2,FALSE),0) -> 0 | E85: =IFERROR(VLOOKUP($A85,Filtro!$A$5:$AX$2265,3,FALSE),0) -> 0 | F85: =IFERROR(VLOOKUP($A85,Filtro!$A$5:$AX$2265,4,FALSE),0) -> 0 | G85: =IFERROR(VLOOKUP($A85,Filtro!$A$5:$AX$2265,5,FALSE),0) -> 0
A86: 01031700 | C86: SEGUNDO BÁSICO | D86: =IFERROR(VLOOKUP($A86,Filtro!$A$5:$AX$2265,2,FALSE),0) -> 0 | E86: =IFERROR(VLOOKUP($A86,Filtro!$A$5:$AX$2265,3,FALSE),0) -> 0 | F86: =IFERROR(VLOOKUP($A86,Filtro!$A$5:$AX$2265,4,FALSE),0) -> 0 | G86: =IFERROR(VLOOKUP($A86,Filtro!$A$5:$AX$2265,5,FALSE),0) -> 0
A87: 01031800 | C87: TERCERO BÁSICO | D87: =IFERROR(VLOOKUP($A87,Filtro!$A$5:$AX$2265,2,FALSE),0) -> 0 | E87: =IFERROR(VLOOKUP($A87,Filtro!$A$5:$AX$2265,3,FALSE),0) -> 0 | F87: =IFERROR(VLOOKUP($A87,Filtro!$A$5:$AX$2265,4,FALSE),0) -> 0 | G87: =IFERROR(VLOOKUP($A87,Filtro!$A$5:$AX$2265,5,FALSE),0) -> 0
A88: 01031900 | C88: CUARTO BÁSICO | D88: =IFERROR(VLOOKUP($A88,Filtro!$A$5:$AX$2265,2,FALSE),0) -> 0 | E88: =IFERROR(VLOOKUP($A88,Filtro!$A$5:$AX$2265,3,FALSE),0) -> 0 | F88: =IFERROR(VLOOKUP($A88,Filtro!$A$5:$AX$2265,4,FALSE),0) -> 0 | G88: =IFERROR(VLOOKUP($A88,Filtro!$A$5:$AX$2265,5,FALSE),0) -> 0
B89: En Total* se registra el número de controles grupales
B90: SECCIÓN F: CONTROLES INTEGRALES DE PERSONAS CON CONDICIONES CRÓNICAS (incluidos en Secciones B y C) | CI90: 0 | CJ90: 0 | CK90: 0
B91: TIPO DE CONTROL | C91: TOTAL | F91: POR EDAD | AH91: Beneficiarios | AI91: Migrantes | AJ91: Pueblos Originarios
F92: 15 - 19 | H92: 20 - 24 | J92: 25 - 29 | L92: 30 - 34 | N92: 35 - 39 | P92: 40 - 44 | R92: 45 - 49 | T92: 50 - 54 | V92: 55 - 59 | X92: 60 - 64 | Z92: 65 - 69 | AB92: 70 - 74 | AD92: 75 - 79 | AF92: 80 y mas
C93: Ambos Sexos | D93: Hombres | E93: Mujeres | F93: Hombres | G93: Mujeres | H93: Hombres | I93: Mujeres | J93: Hombres | K93: Mujeres | L93: Hombres | M93: Mujeres | N93: Hombres | O93: Mujeres | P93: Hombres | Q93: Mujeres | R93: Hombres | S93: Mujeres | T93: Hombres | U93: Mujeres | V93: Hombres | W93: Mujeres | X93: Hombres | Y93: Mujeres | Z93: Hombres | AA93: Mujeres | AB93: Hombres | AC93: Mujeres | AD93: Hombres | AE93: Mujeres | AF93: Hombres | AG93: Mujeres
A94: 01501010 | B94: CONTROL INTEGRAL CON RIESGO LEVE (G1) | C94: =IFERROR(VLOOKUP($A94,Filtro!$A$5:$AX$2265,2,FALSE),0) -> 5171 | D94: =IFERROR(VLOOKUP($A94,Filtro!$A$5:$AX$2265,3,FALSE),0) -> 1654 | E94: =IFERROR(VLOOKUP($A94,Filtro!$A$5:$AX$2265,4,FALSE),0) -> 3517 | F94: =IFERROR(VLOOKUP($A94,Filtro!$A$5:$AX$2265,5,FALSE),0) -> 15 | G94: =IFERROR(VLOOKUP($A94,Filtro!$A$5:$AX$2265,6,FALSE),0) -> 17 | H94: =IFERROR(VLOOKUP($A94,Filtro!$A$5:$AX$2265,6,FALSE),0) -> 17 | I94: =IFERROR(VLOOKUP($A94,Filtro!$A$5:$AX$2265,7,FALSE),0) -> 14 | J94: =IFERROR(VLOOKUP($A94,Filtro!$A$5:$AX$2265,8,FALSE),0) -> 43 | K94: =IFERROR(VLOOKUP($A94,Filtro!$A$5:$AX$2265,10,FALSE),0) -> 57 | L94: =IFERROR(VLOOKUP($A94,Filtro!$A$5:$AX$2265,11,FALSE),0) -> 23 | M94: =IFERROR(VLOOKUP($A94,Filtro!$A$5:$AX$2265,12,FALSE),0) -> 64 | N94: =IFERROR(VLOOKUP($A94,Filtro!$A$5:$AX$2265,13,FALSE),0) -> 50 | O94: =IFERROR(VLOOKUP($A94,Filtro!$A$5:$AX$2265,14,FALSE),0) -> 124 | P94: =IFERROR(VLOOKUP($A94,Filtro!$A$5:$AX$2265,15,FALSE),0) -> 54 | Q94: =IFERROR(VLOOKUP($A94,Filtro!$A$5:$AX$2265,16,FALSE),0) -> 152 | R94: =IFERROR(VLOOKUP($A94,Filtro!$A$5:$AX$2265,17,FALSE),0) -> 73 | S94: =IFERROR(VLOOKUP($A94,Filtro!$A$5:$AX$2265,18,FALSE),0) -> 220 | T94: =IFERROR(VLOOKUP($A94,Filtro!$A$5:$AX$2265,19,FALSE),0) -> 149 | U94: =IFERROR(VLOOKUP($A94,Filtro!$A$5:$AX$2265,20,FALSE),0) -> 322 | V94: =IFERROR(VLOOKUP($A94,Filtro!$A$5:$AX$2265,21,FALSE),0) -> 173 | W94: =IFERROR(VLOOKUP($A94,Filtro!$A$5:$AX$2265,22,FALSE),0) -> 464 | X94: =IFERROR(VLOOKUP($A94,Filtro!$A$5:$AX$2265,23,FALSE),0) -> 208 | Y94: =IFERROR(VLOOKUP($A94,Filtro!$A$5:$AX$2265,24,FALSE),0) -> 458 | Z94: =IFERROR(VLOOKUP($A94,Filtro!$A$5:$AX$2265,25,FALSE),0) -> 246 | AA94: =IFERROR(VLOOKUP($A94,Filtro!$A$5:$AX$2265,26,FALSE),0) -> 487 | AB94: =IFERROR(VLOOKUP($A94,Filtro!$A$5:$AX$2265,27,FALSE),0) -> 242 | AC94: =IFERROR(VLOOKUP($A94,Filtro!$A$5:$AX$2265,28,FALSE),0) -> 415 | AD94: =IFERROR(VLOOKUP($A94,Filtro!$A$5:$AX$2265,29,FALSE),0) -> 219 | AE94: =IFERROR(VLOOKUP($A94,Filtro!$A$5:$AX$2265,30,FALSE),0) -> 329 | AF94: =IFERROR(VLOOKUP($A94,Filtro!$A$5:$AX$2265,31,FALSE),0) -> 174 | AG94: =IFERROR(VLOOKUP($A94,Filtro!$A$5:$AX$2265,32,FALSE),0) -> 365 | AH94: =IFERROR(VLOOKUP($A94,Filtro!$A$5:$AX$2265,33,FALSE),0) -> 4976 | AI94: =IFERROR(VLOOKUP($A94,Filtro!$A$5:$AX$2265,34,FALSE),0) -> 2 | AJ94: =IFERROR(VLOOKUP($A94,Filtro!$A$5:$AX$2265,35,FALSE),0) -> 1 | CI94: 0 | CJ94: 0 | CK94: 1
A95: 01501020 | B95: CONTROL INTEGRAL CON RIESGO MODERADO (G2) | C95: =IFERROR(VLOOKUP($A95,Filtro!$A$5:$AX$2265,2,FALSE),0) -> 7381 | D95: =IFERROR(VLOOKUP($A95,Filtro!$A$5:$AX$2265,2,FALSE),0) -> 7381 | E95: =IFERROR(VLOOKUP($A95,Filtro!$A$5:$AX$2265,3,FALSE),0) -> 2521 | F95: =IFERROR(VLOOKUP($A95,Filtro!$A$5:$AX$2265,4,FALSE),0) -> 4860 | G95: =IFERROR(VLOOKUP($A95,Filtro!$A$5:$AX$2265,5,FALSE),0) -> 3 | H95: =IFERROR(VLOOKUP($A95,Filtro!$A$5:$AX$2265,6,FALSE),0) -> 9 | I95: =IFERROR(VLOOKUP($A95,Filtro!$A$5:$AX$2265,7,FALSE),0) -> 5 | J95: =IFERROR(VLOOKUP($A95,Filtro!$A$5:$AX$2265,8,FALSE),0) -> 14 | K95: =IFERROR(VLOOKUP($A95,Filtro!$A$5:$AX$2265,10,FALSE),0) -> 23 | L95: =IFERROR(VLOOKUP($A95,Filtro!$A$5:$AX$2265,11,FALSE),0) -> 18 | M95: =IFERROR(VLOOKUP($A95,Filtro!$A$5:$AX$2265,12,FALSE),0) -> 61 | N95: =IFERROR(VLOOKUP($A95,Filtro!$A$5:$AX$2265,13,FALSE),0) -> 38 | O95: =IFERROR(VLOOKUP($A95,Filtro!$A$5:$AX$2265,14,FALSE),0) -> 105 | P95: =IFERROR(VLOOKUP($A95,Filtro!$A$5:$AX$2265,15,FALSE),0) -> 67 | Q95: =IFERROR(VLOOKUP($A95,Filtro!$A$5:$AX$2265,16,FALSE),0) -> 178 | R95: =IFERROR(VLOOKUP($A95,Filtro!$A$5:$AX$2265,17,FALSE),0) -> 86 | S95: =IFERROR(VLOOKUP($A95,Filtro!$A$5:$AX$2265,18,FALSE),0) -> 304 | T95: =IFERROR(VLOOKUP($A95,Filtro!$A$5:$AX$2265,19,FALSE),0) -> 183 | U95: =IFERROR(VLOOKUP($A95,Filtro!$A$5:$AX$2265,20,FALSE),0) -> 500 | V95: =IFERROR(VLOOKUP($A95,Filtro!$A$5:$AX$2265,21,FALSE),0) -> 330 | W95: =IFERROR(VLOOKUP($A95,Filtro!$A$5:$AX$2265,22,FALSE),0) -> 635 | X95: =IFERROR(VLOOKUP($A95,Filtro!$A$5:$AX$2265,23,FALSE),0) -> 342 | Y95: =IFERROR(VLOOKUP($A95,Filtro!$A$5:$AX$2265,24,FALSE),0) -> 727 | Z95: =IFERROR(VLOOKUP($A95,Filtro!$A$5:$AX$2265,25,FALSE),0) -> 421 | AA95: =IFERROR(VLOOKUP($A95,Filtro!$A$5:$AX$2265,26,FALSE),0) -> 732 | AB95: =IFERROR(VLOOKUP($A95,Filtro!$A$5:$AX$2265,27,FALSE),0) -> 402 | AC95: =IFERROR(VLOOKUP($A95,Filtro!$A$5:$AX$2265,28,FALSE),0) -> 623 | AD95: =IFERROR(VLOOKUP($A95,Filtro!$A$5:$AX$2265,29,FALSE),0) -> 352 | AE95: =IFERROR(VLOOKUP($A95,Filtro!$A$5:$AX$2265,30,FALSE),0) -> 485 | AF95: =IFERROR(VLOOKUP($A95,Filtro!$A$5:$AX$2265,31,FALSE),0) -> 267 | AG95: =IFERROR(VLOOKUP($A95,Filtro!$A$5:$AX$2265,32,FALSE),0) -> 464 | AH95: =IFERROR(VLOOKUP($A95,Filtro!$A$5:$AX$2265,33,FALSE),0) -> 6966 | AI95: =IFERROR(VLOOKUP($A95,Filtro!$A$5:$AX$2265,34,FALSE),0) -> 0 | AJ95: =IFERROR(VLOOKUP($A95,Filtro!$A$5:$AX$2265,35,FALSE),0) -> 0 | CI95: 0 | CJ95: 0 | CK95: 1
A96: 01501030 | B96: CONTROL INTEGRAL CON RIESGO ALTO (G3) | C96: =IFERROR(VLOOKUP($A96,Filtro!$A$5:$AX$2265,2,FALSE),0) -> 6921 | D96: =IFERROR(VLOOKUP($A96,Filtro!$A$5:$AX$2265,3,FALSE),0) -> 2373 | E96: =IFERROR(VLOOKUP($A96,Filtro!$A$5:$AX$2265,4,FALSE),0) -> 4548 | F96: =IFERROR(VLOOKUP($A96,Filtro!$A$5:$AX$2265,5,FALSE),0) -> 4 | G96: =IFERROR(VLOOKUP($A96,Filtro!$A$5:$AX$2265,6,FALSE),0) -> 4 | H96: =IFERROR(VLOOKUP($A96,Filtro!$A$5:$AX$2265,7,FALSE),0) -> 4 | I96: =IFERROR(VLOOKUP($A96,Filtro!$A$5:$AX$2265,8,FALSE),0) -> 11 | J96: =IFERROR(VLOOKUP($A96,Filtro!$A$5:$AX$2265,9,FALSE),0) -> 9 | K96: =IFERROR(VLOOKUP($A96,Filtro!$A$5:$AX$2265,10,FALSE),0) -> 27 | L96: =IFERROR(VLOOKUP($A96,Filtro!$A$5:$AX$2265,11,FALSE),0) -> 13 | M96: =IFERROR(VLOOKUP($A96,Filtro!$A$5:$AX$2265,12,FALSE),0) -> 30 | N96: =IFERROR(VLOOKUP($A96,Filtro!$A$5:$AX$2265,13,FALSE),0) -> 15 | O96: =IFERROR(VLOOKUP($A96,Filtro!$A$5:$AX$2265,14,FALSE),0) -> 89 | P96: =IFERROR(VLOOKUP($A96,Filtro!$A$5:$AX$2265,15,FALSE),0) -> 46 | Q96: =IFERROR(VLOOKUP($A96,Filtro!$A$5:$AX$2265,16,FALSE),0) -> 127 | R96: =IFERROR(VLOOKUP($A96,Filtro!$A$5:$AX$2265,17,FALSE),0) -> 79 | S96: =IFERROR(VLOOKUP($A96,Filtro!$A$5:$AX$2265,18,FALSE),0) -> 199 | T96: =IFERROR(VLOOKUP($A96,Filtro!$A$5:$AX$2265,19,FALSE),0) -> 143 | U96: =IFERROR(VLOOKUP($A96,Filtro!$A$5:$AX$2265,20,FALSE),0) -> 366 | V96: =IFERROR(VLOOKUP($A96,Filtro!$A$5:$AX$2265,21,FALSE),0) -> 230 | W96: =IFERROR(VLOOKUP($A96,Filtro!$A$5:$AX$2265,22,FALSE),0) -> 507 | X96: =IFERROR(VLOOKUP($A96,Filtro!$A$5:$AX$2265,23,FALSE),0) -> 342 | Y96: =IFERROR(VLOOKUP($A96,Filtro!$A$5:$AX$2265,24,FALSE),0) -> 634 | Z96: =IFERROR(VLOOKUP($A96,Filtro!$A$5:$AX$2265,25,FALSE),0) -> 401 | AA96: =IFERROR(VLOOKUP($A96,Filtro!$A$5:$AX$2265,26,FALSE),0) -> 742 | AB96: =IFERROR(VLOOKUP($A96,Filtro!$A$5:$AX$2265,27,FALSE),0) -> 410 | AC96: =IFERROR(VLOOKUP($A96,Filtro!$A$5:$AX$2265,28,FALSE),0) -> 643 | AD96: =IFERROR(VLOOKUP($A96,Filtro!$A$5:$AX$2265,29,FALSE),0) -> 367 | AE96: =IFERROR(VLOOKUP($A96,Filtro!$A$5:$AX$2265,30,FALSE),0) -> 561 | AF96: =IFERROR(VLOOKUP($A96,Filtro!$A$5:$AX$2265,31,FALSE),0) -> 310 | AG96: =IFERROR(VLOOKUP($A96,Filtro!$A$5:$AX$2265,32,FALSE),0) -> 608 | AH96: =IFERROR(VLOOKUP($A96,Filtro!$A$5:$AX$2265,33,FALSE),0) -> 6651 | AI96: =IFERROR(VLOOKUP($A96,Filtro!$A$5:$AX$2265,34,FALSE),0) -> 5 | AJ96: =IFERROR(VLOOKUP($A96,Filtro!$A$5:$AX$2265,35,FALSE),0) -> 3 | CI96: 0 | CJ96: 0 | CK96: 0
A97: 01502030 | B97: SEGUIMIENTO A DISTANCIA CON RIESGO LEVE (G1) | C97: =IFERROR(VLOOKUP($A97,Filtro!$A$5:$AX$2265,2,FALSE),0) -> 3010 | D97: =IFERROR(VLOOKUP($A97,Filtro!$A$5:$AX$2265,2,FALSE),0) -> 3010 | E97: =IFERROR(VLOOKUP($A97,Filtro!$A$5:$AX$2265,3,FALSE),0) -> 975 | F97: =IFERROR(VLOOKUP($A97,Filtro!$A$5:$AX$2265,4,FALSE),0) -> 2035 | G97: =IFERROR(VLOOKUP($A97,Filtro!$A$5:$AX$2265,5,FALSE),0) -> 6 | H97: =IFERROR(VLOOKUP($A97,Filtro!$A$5:$AX$2265,6,FALSE),0) -> 12 | I97: =IFERROR(VLOOKUP($A97,Filtro!$A$5:$AX$2265,7,FALSE),0) -> 1 | J97: =IFERROR(VLOOKUP($A97,Filtro!$A$5:$AX$2265,8,FALSE),0) -> 9 | K97: =IFERROR(VLOOKUP($A97,Filtro!$A$5:$AX$2265,9,FALSE),0) -> 8 | L97: =IFERROR(VLOOKUP($A97,Filtro!$A$5:$AX$2265,10,FALSE),0) -> 23 | M97: =IFERROR(VLOOKUP($A97,Filtro!$A$5:$AX$2265,11,FALSE),0) -> 7 | N97: =IFERROR(VLOOKUP($A97,Filtro!$A$5:$AX$2265,12,FALSE),0) -> 17 | O97: =IFERROR(VLOOKUP($A97,Filtro!$A$5:$AX$2265,13,FALSE),0) -> 11 | P97: =IFERROR(VLOOKUP($A97,Filtro!$A$5:$AX$2265,14,FALSE),0) -> 38 | Q97: =IFERROR(VLOOKUP($A97,Filtro!$A$5:$AX$2265,15,FALSE),0) -> 21 | R97: =IFERROR(VLOOKUP($A97,Filtro!$A$5:$AX$2265,16,FALSE),0) -> 54 | S97: =IFERROR(VLOOKUP($A97,Filtro!$A$5:$AX$2265,17,FALSE),0) -> 42 | T97: =IFERROR(VLOOKUP($A97,Filtro!$A$5:$AX$2265,18,FALSE),0) -> 101 | U97: =IFERROR(VLOOKUP($A97,Filtro!$A$5:$AX$2265,19,FALSE),0) -> 56 | V97: =IFERROR(VLOOKUP($A97,Filtro!$A$5:$AX$2265,20,FALSE),0) -> 160 | W97: =IFERROR(VLOOKUP($A97,Filtro!$A$5:$AX$2265,21,FALSE),0) -> 94 | X97: =IFERROR(VLOOKUP($A97,Filtro!$A$5:$AX$2265,23,FALSE),0) -> 129 | Y97: =IFERROR(VLOOKUP($A97,Filtro!$A$5:$AX$2265,24,FALSE),0) -> 269 | Z97: =IFERROR(VLOOKUP($A97,Filtro!$A$5:$AX$2265,25,FALSE),0) -> 140 | AA97: =IFERROR(VLOOKUP($A97,Filtro!$A$5:$AX$2265,26,FALSE),0) -> 332 | AB97: =IFERROR(VLOOKUP($A97,Filtro!$A$5:$AX$2265,27,FALSE),0) -> 160 | AC97: =IFERROR(VLOOKUP($A97,Filtro!$A$5:$AX$2265,28,FALSE),0) -> 217 | AD97: =IFERROR(VLOOKUP($A97,Filtro!$A$5:$AX$2265,29,FALSE),0) -> 175 | AE97: =IFERROR(VLOOKUP($A97,Filtro!$A$5:$AX$2265,30,FALSE),0) -> 307 | AF97: =IFERROR(VLOOKUP($A97,Filtro!$A$5:$AX$2265,31,FALSE),0) -> 125 | AG97: =IFERROR(VLOOKUP($A97,Filtro!$A$5:$AX$2265,32,FALSE),0) -> 256 | AH97: =IFERROR(VLOOKUP($A97,Filtro!$A$5:$AX$2265,33,FALSE),0) -> 2297 | AI97: =IFERROR(VLOOKUP($A97,Filtro!$A$5:$AX$2265,34,FALSE),0) -> 1 | AJ97: =IFERROR(VLOOKUP($A97,Filtro!$A$5:$AX$2265,35,FALSE),0) -> 0 | CI97: 0 | CJ97: 0 | CK97: 0
A98: 01502040 | B98: SEGUIMIENTO A DISTANCIA CON RIESGO MODEADO (G2) | C98: =IFERROR(VLOOKUP($A98,Filtro!$A$5:$AX$2265,2,FALSE),0) -> 842 | D98: =IFERROR(VLOOKUP($A98,Filtro!$A$5:$AX$2265,2,FALSE),0) -> 842 | E98: =IFERROR(VLOOKUP($A98,Filtro!$A$5:$AX$2265,3,FALSE),0) -> 200 | F98: =IFERROR(VLOOKUP($A98,Filtro!$A$5:$AX$2265,4,FALSE),0) -> 642 | G98: =IFERROR(VLOOKUP($A98,Filtro!$A$5:$AX$2265,5,FALSE),0) -> 1 | H98: =IFERROR(VLOOKUP($A98,Filtro!$A$5:$AX$2265,6,FALSE),0) -> 1 | I98: =IFERROR(VLOOKUP($A98,Filtro!$A$5:$AX$2265,7,FALSE),0) -> 2 | J98: =IFERROR(VLOOKUP($A98,Filtro!$A$5:$AX$2265,8,FALSE),0) -> 4 | K98: =IFERROR(VLOOKUP($A98,Filtro!$A$5:$AX$2265,9,FALSE),0) -> 3 | L98: =IFERROR(VLOOKUP($A98,Filtro!$A$5:$AX$2265,10,FALSE),0) -> 10 | M98: =IFERROR(VLOOKUP($A98,Filtro!$A$5:$AX$2265,11,FALSE),0) -> 5 | N98: =IFERROR(VLOOKUP($A98,Filtro!$A$5:$AX$2265,12,FALSE),0) -> 12 | O98: =IFERROR(VLOOKUP($A98,Filtro!$A$5:$AX$2265,13,FALSE),0) -> 4 | P98: =IFERROR(VLOOKUP($A98,Filtro!$A$5:$AX$2265,14,FALSE),0) -> 22 | Q98: =IFERROR(VLOOKUP($A98,Filtro!$A$5:$AX$2265,15,FALSE),0) -> 7 | R98: =IFERROR(VLOOKUP($A98,Filtro!$A$5:$AX$2265,16,FALSE),0) -> 40 | S98: =IFERROR(VLOOKUP($A98,Filtro!$A$5:$AX$2265,17,FALSE),0) -> 12 | T98: =IFERROR(VLOOKUP($A98,Filtro!$A$5:$AX$2265,18,FALSE),0) -> 66 | U98: =IFERROR(VLOOKUP($A98,Filtro!$A$5:$AX$2265,19,FALSE),0) -> 17 | V98: =IFERROR(VLOOKUP($A98,Filtro!$A$5:$AX$2265,20,FALSE),0) -> 92 | W98: =IFERROR(VLOOKUP($A98,Filtro!$A$5:$AX$2265,21,FALSE),0) -> 34 | X98: =IFERROR(VLOOKUP($A98,Filtro!$A$5:$AX$2265,23,FALSE),0) -> 17 | Y98: =IFERROR(VLOOKUP($A98,Filtro!$A$5:$AX$2265,24,FALSE),0) -> 61 | Z98: =IFERROR(VLOOKUP($A98,Filtro!$A$5:$AX$2265,25,FALSE),0) -> 40 | AA98: =IFERROR(VLOOKUP($A98,Filtro!$A$5:$AX$2265,26,FALSE),0) -> 79 | AB98: =IFERROR(VLOOKUP($A98,Filtro!$A$5:$AX$2265,27,FALSE),0) -> 22 | AC98: =IFERROR(VLOOKUP($A98,Filtro!$A$5:$AX$2265,28,FALSE),0) -> 65 | AD98: =IFERROR(VLOOKUP($A98,Filtro!$A$5:$AX$2265,29,FALSE),0) -> 18 | AE98: =IFERROR(VLOOKUP($A98,Filtro!$A$5:$AX$2265,30,FALSE),0) -> 45 | AF98: =IFERROR(VLOOKUP($A98,Filtro!$A$5:$AX$2265,31,FALSE),0) -> 18 | AG98: =IFERROR(VLOOKUP($A98,Filtro!$A$5:$AX$2265,32,FALSE),0) -> 63 | AH98: =IFERROR(VLOOKUP($A98,Filtro!$A$5:$AX$2265,33,FALSE),0) -> 749 | AI98: =IFERROR(VLOOKUP($A98,Filtro!$A$5:$AX$2265,34,FALSE),0) -> 0 | AJ98: =IFERROR(VLOOKUP($A98,Filtro!$A$5:$AX$2265,35,FALSE),0) -> 0 | CI98: 0 | CJ98: 0 | CK98: 0
A99: 01501040 | B99: SEGUIMIENTO A DISTANCIA CON RIESGO ALTO (G3) | C99: =IFERROR(VLOOKUP($A99,Filtro!$A$5:$AX$2265,2,FALSE),0) -> 2341 | D99: =IFERROR(VLOOKUP($A99,Filtro!$A$5:$AX$2265,2,FALSE),0) -> 2341 | E99: =IFERROR(VLOOKUP($A99,Filtro!$A$5:$AX$2265,3,FALSE),0) -> 784 | F99: =IFERROR(VLOOKUP($A99,Filtro!$A$5:$AX$2265,4,FALSE),0) -> 1557 | G99: =IFERROR(VLOOKUP($A99,Filtro!$A$5:$AX$2265,5,FALSE),0) -> 0 | H99: =IFERROR(VLOOKUP($A99,Filtro!$A$5:$AX$2265,6,FALSE),0) -> 0 | I99: =IFERROR(VLOOKUP($A99,Filtro!$A$5:$AX$2265,7,FALSE),0) -> 1 | J99: =IFERROR(VLOOKUP($A99,Filtro!$A$5:$AX$2265,8,FALSE),0) -> 0 | K99: =IFERROR(VLOOKUP($A99,Filtro!$A$5:$AX$2265,9,FALSE),0) -> 0 | L99: =IFERROR(VLOOKUP($A99,Filtro!$A$5:$AX$2265,10,FALSE),0) -> 1 | M99: =IFERROR(VLOOKUP($A99,Filtro!$A$5:$AX$2265,11,FALSE),0) -> 5 | N99: =IFERROR(VLOOKUP($A99,Filtro!$A$5:$AX$2265,12,FALSE),0) -> 2 | O99: =IFERROR(VLOOKUP($A99,Filtro!$A$5:$AX$2265,13,FALSE),0) -> 3 | P99: =IFERROR(VLOOKUP($A99,Filtro!$A$5:$AX$2265,14,FALSE),0) -> 8 | Q99: =IFERROR(VLOOKUP($A99,Filtro!$A$5:$AX$2265,15,FALSE),0) -> 7 | R99: =IFERROR(VLOOKUP($A99,Filtro!$A$5:$AX$2265,16,FALSE),0) -> 23 | S99: =IFERROR(VLOOKUP($A99,Filtro!$A$5:$AX$2265,17,FALSE),0) -> 25 | T99: =IFERROR(VLOOKUP($A99,Filtro!$A$5:$AX$2265,18,FALSE),0) -> 48 | U99: =IFERROR(VLOOKUP($A99,Filtro!$A$5:$AX$2265,19,FALSE),0) -> 49 | V99: =IFERROR(VLOOKUP($A99,Filtro!$A$5:$AX$2265,20,FALSE),0) -> 78 | W99: =IFERROR(VLOOKUP($A99,Filtro!$A$5:$AX$2265,21,FALSE),0) -> 49 | X99: =IFERROR(VLOOKUP($A99,Filtro!$A$5:$AX$2265,23,FALSE),0) -> 89 | Y99: =IFERROR(VLOOKUP($A99,Filtro!$A$5:$AX$2265,24,FALSE),0) -> 168 | Z99: =IFERROR(VLOOKUP($A99,Filtro!$A$5:$AX$2265,25,FALSE),0) -> 123 | AA99: =IFERROR(VLOOKUP($A99,Filtro!$A$5:$AX$2265,26,FALSE),0) -> 198 | AB99: =IFERROR(VLOOKUP($A99,Filtro!$A$5:$AX$2265,27,FALSE),0) -> 144 | AC99: =IFERROR(VLOOKUP($A99,Filtro!$A$5:$AX$2265,28,FALSE),0) -> 261 | AD99: =IFERROR(VLOOKUP($A99,Filtro!$A$5:$AX$2265,29,FALSE),0) -> 97 | AE99: =IFERROR(VLOOKUP($A99,Filtro!$A$5:$AX$2265,30,FALSE),0) -> 196 | AF99: =IFERROR(VLOOKUP($A99,Filtro!$A$5:$AX$2265,31,FALSE),0) -> 192 | AG99: =IFERROR(VLOOKUP($A99,Filtro!$A$5:$AX$2265,32,FALSE),0) -> 485 | AH99: =IFERROR(VLOOKUP($A99,Filtro!$A$5:$AX$2265,33,FALSE),0) -> 1281 | AI99: =IFERROR(VLOOKUP($A99,Filtro!$A$5:$AX$2265,34,FALSE),0) -> 3 | AJ99: =IFERROR(VLOOKUP($A99,Filtro!$A$5:$AX$2265,35,FALSE),0) -> 0 | CI99: 0 | CJ99: 0 | CK99: 0
A104: ELIMINADOS
A105: 01080001
A106: 01080002
A107: 03030190
A108: 03030200
A110: CODIGOS NUEVOS
A111: 01501050
A112: 01501060
A113: 01501070
A114: 01501080
A115: 01501090
A116: 01502000
A117: 01502010
A118: 01502020
A119: 01502030
A120: 01502040
B193: =SUM(D12:D33,X12:X33,V32:W33,Z20:AC23,Y14:Y15,D37:D40,E37:F40,AJ37:AJ40,D45:F67,D71:D75,G71:G75,D79:D83,E84:E88,C94:C99) -> 794253

Sheet A02
B6: REM-A02. EXAMEN DE MEDICINA PREVENTIVA EN MAYORES DE 15 AÑOS
B8: SECCIÓN A: EMP REALIZADO POR PROFESIONAL
B9: PROFESIONAL | C9: TOTAL
C10: Ambos Sexos | D10: Hombres | E10: Mujeres
B11: TOTAL | C11: =SUM(C12:C17) -> 31147 | D11: =SUM(D12:D17) -> 11429 | E11: =SUM(E12:E17) -> 19718
A12: 03030101 | B12: MÉDICO | C12: =IFERROR(VLOOKUP($A12,Filtro!$A$5:$AX$2230,2,FALSE),0) -> 426 | D12: =IFERROR(VLOOKUP($A12,Filtro!$A$5:$AX$2230,3,FALSE),0) -> 156 | E12: =IFERROR(VLOOKUP($A12,Filtro!$A$5:$AX$2230,4,FALSE),0) -> 270
A13: 03030102 | B13: ENFERMERA /O | C13: =IFERROR(VLOOKUP($A13,Filtro!$A$5:$AX$2230,2,FALSE),0) -> 18506 | D13: =IFERROR(VLOOKUP($A13,Filtro!$A$5:$AX$2230,3,FALSE),0) -> 6957 | E13: =IFERROR(VLOOKUP($A13,Filtro!$A$5:$AX$2230,4,FALSE),0) -> 11549
A14: 03030103 | B14: MATRONA /ÓN | C14: =IFERROR(VLOOKUP($A14,Filtro!$A$5:$AX$2230,2,FALSE),0) -> 1250 | D14: =IFERROR(VLOOKUP($A14,Filtro!$A$5:$AX$2230,3,FALSE),0) -> 11 | E14: =IFERROR(VLOOKUP($A14,Filtro!$A$5:$AX$2230,4,FALSE),0) -> 1239
A15: 03030104 | B15: NUTRICIONISTA | C15: =IFERROR(VLOOKUP($A15,Filtro!$A$5:$AX$2230,2,FALSE),0) -> 1900 | D15: =IFERROR(VLOOKUP($A15,Filtro!$A$5:$AX$2230,3,FALSE),0) -> 542 | E15: =IFERROR(VLOOKUP($A15,Filtro!$A$5:$AX$2230,4,FALSE),0) -> 1358
A16: 03030350 | B16: OTRO PROFESIONAL | C16: =IFERROR(VLOOKUP($A16,Filtro!$A$5:$AX$2230,2,FALSE),0) -> 3573 | D16: =IFERROR(VLOOKUP($A16,Filtro!$A$5:$AX$2230,3,FALSE),0) -> 1513 | E16: =IFERROR(VLOOKUP($A16,Filtro!$A$5:$AX$2230,4,FALSE),0) -> 2060
A17: 03030110 | B17: TÉCNICO PARAMÉDICO | C17: =IFERROR(VLOOKUP($A17,Filtro!$A$5:$AX$2230,2,FALSE),0) -> 5492 | D17: =IFERROR(VLOOKUP($A17,Filtro!$A$5:$AX$2230,3,FALSE),0) -> 2250 | E17: =IFERROR(VLOOKUP($A17,Filtro!$A$5:$AX$2230,4,FALSE),0) -> 3242
B18: SECCIÓN B: EMP SEGÚN RESULTADO DEL ESTADO NUTRICIONAL
B19: ESTADO NUTRICIONAL | C19: TOTAL | F19: 15 a 19 | H19: 20 a 24 | J19: 25 a 29 | L19: 30 a 34 | N19: 35 a 39 | P19: 40 a 44 | R19: 45 a 49 | T19: 50 a 54 | V19: 55 a 59 | X19: 60 a 64 | Z19: 65 a 69 | AB19: 70 a 74 | AD19: 75 a 79 | AF19: 80 y más
C20: Ambos Sexos | D20: Hombres | E20: Mujeres | F20: Hombres | G20: Mujeres | H20: Hombres | I20: Mujeres | J20: Hombres | K20: Mujeres | L20: Hombres | M20: Mujeres | N20: Hombres | O20: Mujeres | P20: Hombres | Q20: Mujeres | R20: Hombres | S20: Mujeres | T20: Hombres | U20: Mujeres | V20: Hombres | W20: Mujeres | X20: Hombres | Y20: Mujeres | Z20: Hombres | AA20: Mujeres | AB20: Hombres | AC20: Mujeres | AD20: Hombres | AE20: Mujeres | AF20: Hombres | AG20: Mujeres
B21: TOTAL | C21: =SUM(C22:C25) -> 31159 | D21: 11312 | E21: 19847 | F21: 122 | G21: 209 | H21: 430 | I21: 909 | J21: 548 | K21: 1232 | L21: 577 | M21: 1248 | N21: 523 | O21: 1251 | P21: 461 | Q21: 1097 | R21: 524 | S21: 1186 | T21: 649 | U21: 1150 | V21: 607 | W21: 941 | X21: 366 | Y21: 569 | Z21: 1693 | AA21: 2771 | AB21: 1624 | AC21: 2499 | AD21: 1475 | AE21: 2039 | AF21: 1712 | AG21: 2746 | BZ21: * Debe coincidir el total de EMP según Estado Nutricional con EMP realizado según profesional. | CH21: 1 | CI21: 0
A22: 03030330 | B22: NORMAL | C22: =IFERROR(VLOOKUP($A22,Filtro!$A$5:$AX$2230,2,FALSE),0) -> 8786 | D22: =IFERROR(VLOOKUP($A22,Filtro!$A$5:$AX$2230,3,FALSE),0) -> 3714 | E22: =IFERROR(VLOOKUP($A22,Filtro!$A$5:$AX$2230,4,FALSE),0) -> 5072 | F22: =IFERROR(VLOOKUP($A22,Filtro!$A$5:$AX$2230,5,FALSE),0) -> 48 | G22: =IFERROR(VLOOKUP($A22,Filtro!$A$5:$AX$2230,6,FALSE),0) -> 79 | H22: =IFERROR(VLOOKUP($A22,Filtro!$A$5:$AX$2230,7,FALSE),0) -> 165 | I22: =IFERROR(VLOOKUP($A22,Filtro!$A$5:$AX$2230,8,FALSE),0) -> 272 | J22: =IFERROR(VLOOKUP($A22,Filtro!$A$5:$AX$2230,9,FALSE),0) -> 150 | K22: =IFERROR(VLOOKUP($A22,Filtro!$A$5:$AX$2230,10,FALSE),0) -> 293 | L22: =IFERROR(VLOOKUP($A22,Filtro!$A$5:$AX$2230,11,FALSE),0) -> 141 | M22: =IFERROR(VLOOKUP($A22,Filtro!$A$5:$AX$2230,12,FALSE),0) -> 257 | N22: =IFERROR(VLOOKUP($A22,Filtro!$A$5:$AX$2230,13,FALSE),0) -> 100 | O22: =IFERROR(VLOOKUP($A22,Filtro!$A$5:$AX$2230,14,FALSE),0) -> 226 | P22: =IFERROR(VLOOKUP($A22,Filtro!$A$5:$AX$2230,15,FALSE),0) -> 80 | Q22: =IFERROR(VLOOKUP($A22,Filtro!$A$5:$AX$2230,16,FALSE),0) -> 163 | R22: =IFERROR(VLOOKUP($A22,Filtro!$A$5:$AX$2230,17,FALSE),0) -> 89 | S22: =IFERROR(VLOOKUP($A22,Filtro!$A$5:$AX$2230,18,FALSE),0) -> 156 | T22: =IFERROR(VLOOKUP($A22,Filtro!$A$5:$AX$2230,19,FALSE),0) -> 100 | U22: =IFERROR(VLOOKUP($A22,Filtro!$A$5:$AX$2230,20,FALSE),0) -> 169 | V22: =IFERROR(VLOOKUP($A22,Filtro!$A$5:$AX$2230,21,FALSE),0) -> 103 | W22: =IFERROR(VLOOKUP($A22,Filtro!$A$5:$AX$2230,22,FALSE),0) -> 149 | X22: =IFERROR(VLOOKUP($A22,Filtro!$A$5:$AX$2230,23,FALSE),0) -> 70 | Y22: =IFERROR(VLOOKUP($A22,Filtro!$A$5:$AX$2230,24,FALSE),0) -> 95 | Z22: =IFERROR(VLOOKUP($A22,Filtro!$A$5:$AX$2230,25,FALSE),0) -> 616 | AA22: =IFERROR(VLOOKUP($A22,Filtro!$A$5:$AX$2230,26,FALSE),0) -> 734 | AB22: =IFERROR(VLOOKUP($A22,Filtro!$A$5:$AX$2230,27,FALSE),0) -> 607 | AC22: =IFERROR(VLOOKUP($A22,Filtro!$A$5:$AX$2230,28,FALSE),0) -> 796 | AD22: =IFERROR(VLOOKUP($A22,Filtro!$A$5:$AX$2230,29,FALSE),0) -> 650 | AE22: =IFERROR(VLOOKUP($A22,Filtro!$A$5:$AX$2230,30,FALSE),0) -> 664 | AF22: =IFERROR(VLOOKUP($A22,Filtro!$A$5:$AX$2230,31,FALSE),0) -> 794 | AG22: =IFERROR(VLOOKUP($A22,Filtro!$A$5:$AX$2230,32,FALSE),0) -> 1019
A23: 03030340 | B23: BAJO PESO | C23: =IFERROR(VLOOKUP($A23,Filtro!$A$5:$AX$2230,2,FALSE),0) -> 1785 | D23: =IFERROR(VLOOKUP($A23,Filtro!$A$5:$AX$2230,3,FALSE),0) -> 655 | E23: =IFERROR(VLOOKUP($A23,Filtro!$A$5:$AX$2230,4,FALSE),0) -> 1130 | F23: =IFERROR(VLOOKUP($A23,Filtro!$A$5:$AX$2230,5,FALSE),0) -> 6 | G23: =IFERROR(VLOOKUP($A23,Filtro!$A$5:$AX$2230,6,FALSE),0) -> 8 | H23: =IFERROR(VLOOKUP($A23,Filtro!$A$5:$AX$2230,7,FALSE),0) -> 7 | I23: =IFERROR(VLOOKUP($A23,Filtro!$A$5:$AX$2230,8,FALSE),0) -> 25 | J23: =IFERROR(VLOOKUP($A23,Filtro!$A$5:$AX$2230,9,FALSE),0) -> 11 | K23: =IFERROR(VLOOKUP($A23,Filtro!$A$5:$AX$2230,10,FALSE),0) -> 24 | L23: =IFERROR(VLOOKUP($A23,Filtro!$A$5:$AX$2230,11,FALSE),0) -> 4 | M23: =IFERROR(VLOOKUP($A23,Filtro!$A$5:$AX$2230,12,FALSE),0) -> 13 | N23: =IFERROR(VLOOKUP($A23,Filtro!$A$5:$AX$2230,13,FALSE),0) -> 4 | O23: =IFERROR(VLOOKUP($A23,Filtro!$A$5:$AX$2230,14,FALSE),0) -> 10 | P23: =IFERROR(VLOOKUP($A23,Filtro!$A$5:$AX$2230,15,FALSE),0) -> 1 | Q23: =IFERROR(VLOOKUP($A23,Filtro!$A$5:$AX$2230,16,FALSE),0) -> 12 | R23: =IFERROR(VLOOKUP($A23,Filtro!$A$5:$AX$2230,17,FALSE),0) -> 3 | S23: =IFERROR(VLOOKUP($A23,Filtro!$A$5:$AX$2230,18,FALSE),0) -> 16 | T23: =IFERROR(VLOOKUP($A23,Filtro!$A$5:$AX$2230,19,FALSE),0) -> 10 | U23: =IFERROR(VLOOKUP($A23,Filtro!$A$5:$AX$2230,20,FALSE),0) -> 12 | V23: =IFERROR(VLOOKUP($A23,Filtro!$A$5:$AX$2230,21,FALSE),0) -> 3 | W23: =IFERROR(VLOOKUP($A23,Filtro!$A$5:$AX$2230,22,FALSE),0) -> 12 | X23: =IFERROR(VLOOKUP($A23,Filtro!$A$5:$AX$2230,23,FALSE),0) -> 8 | Y23: =IFERROR(VLOOKUP($A23,Filtro!$A$5:$AX$2230,24,FALSE),0) -> 11 | Z23: =IFERROR(VLOOKUP($A23,Filtro!$A$5:$AX$2230,25,FALSE),0) -> 87 | AA23: =IFERROR(VLOOKUP($A23,Filtro!$A$5:$AX$2230,26,FALSE),0) -> 150 | AB23: =IFERROR(VLOOKUP($A23,Filtro!$A$5:$AX$2230,27,FALSE),0) -> 114 | AC23: =IFERROR(VLOOKUP($A23,Filtro!$A$5:$AX$2230,28,FALSE),0) -> 160 | AD23: =IFERROR(VLOOKUP($A23,Filtro!$A$5:$AX$2230,29,FALSE),0) -> 138 | AE23: =IFERROR(VLOOKUP($A23,Filtro!$A$5:$AX$2230,30,FALSE),0) -> 173 | AF23: =IFERROR(VLOOKUP($A23,Filtro!$A$5:$AX$2230,31,FALSE),0) -> 259 | AG23: =IFERROR(VLOOKUP($A23,Filtro!$A$5:$AX$2230,32,FALSE),0) -> 504
A24: 03030120 | B24: SOBREPESO | C24: =IFERROR(VLOOKUP($A24,Filtro!$A$5:$AX$2230,2,FALSE),0) -> 10502 | D24: =IFERROR(VLOOKUP($A24,Filtro!$A$5:$AX$2230,3,FALSE),0) -> 4026 | E24: =IFERROR(VLOOKUP($A24,Filtro!$A$5:$AX$2230,4,FALSE),0) -> 6476 | F24: =IFERROR(VLOOKUP($A24,Filtro!$A$5:$AX$2230,5,FALSE),0) -> 34 | G24: =IFERROR(VLOOKUP($A24,Filtro!$A$5:$AX$2230,6,FALSE),0) -> 57 | H24: =IFERROR(VLOOKUP($A24,Filtro!$A$5:$AX$2230,7,FALSE),0) -> 144 | I24: =IFERROR(VLOOKUP($A24,Filtro!$A$5:$AX$2230,8,FALSE),0) -> 288 | J24: =IFERROR(VLOOKUP($A24,Filtro!$A$5:$AX$2230,9,FALSE),0) -> 220 | K24: =IFERROR(VLOOKUP($A24,Filtro!$A$5:$AX$2230,10,FALSE),0) -> 410 | L24: =IFERROR(VLOOKUP($A24,Filtro!$A$5:$AX$2230,11,FALSE),0) -> 219 | M24: =IFERROR(VLOOKUP($A24,Filtro!$A$5:$AX$2230,12,FALSE),0) -> 401 | N24: =IFERROR(VLOOKUP($A24,Filtro!$A$5:$AX$2230,13,FALSE),0) -> 214 | O24: =IFERROR(VLOOKUP($A24,Filtro!$A$5:$AX$2230,14,FALSE),0) -> 448 | P24: =IFERROR(VLOOKUP($A24,Filtro!$A$5:$AX$2230,15,FALSE),0) -> 193 | Q24: =IFERROR(VLOOKUP($A24,Filtro!$A$5:$AX$2230,16,FALSE),0) -> 425 | R24: =IFERROR(VLOOKUP($A24,Filtro!$A$5:$AX$2230,17,FALSE),0) -> 232 | S24: =IFERROR(VLOOKUP($A24,Filtro!$A$5:$AX$2230,18,FALSE),0) -> 498 | T24: =IFERROR(VLOOKUP($A24,Filtro!$A$5:$AX$2230,19,FALSE),0) -> 293 | U24: =IFERROR(VLOOKUP($A24,Filtro!$A$5:$AX$2230,20,FALSE),0) -> 466 | V24: =IFERROR(VLOOKUP($A24,Filtro!$A$5:$AX$2230,21,FALSE),0) -> 287 | W24: =IFERROR(VLOOKUP($A24,Filtro!$A$5:$AX$2230,22,FALSE),0) -> 393 | X24: =IFERROR(VLOOKUP($A24,Filtro!$A$5:$AX$2230,23,FALSE),0) -> 187 | Y24: =IFERROR(VLOOKUP($A24,Filtro!$A$5:$AX$2230,24,FALSE),0) -> 231 | Z24: =IFERROR(VLOOKUP($A24,Filtro!$A$5:$AX$2230,25,FALSE),0) -> 581 | AA24: =IFERROR(VLOOKUP($A24,Filtro!$A$5:$AX$2230,26,FALSE),0) -> 811 | AB24: =IFERROR(VLOOKUP($A24,Filtro!$A$5:$AX$2230,27,FALSE),0) -> 542 | AC24: =IFERROR(VLOOKUP($A24,Filtro!$A$5:$AX$2230,28,FALSE),0) -> 754 | AD24: =IFERROR(VLOOKUP($A24,Filtro!$A$5:$AX$2230,29,FALSE),0) -> 442 | AE24: =IFERROR(VLOOKUP($A24,Filtro!$A$5:$AX$2230,30,FALSE),0) -> 616 | AF24: =IFERROR(VLOOKUP($A24,Filtro!$A$5:$AX$2230,31,FALSE),0) -> 438 | AG24: =IFERROR(VLOOKUP($A24,Filtro!$A$5:$AX$2230,32,FALSE),0) -> 678
A25: 03030130 | B25: OBESOS | C25: =IFERROR(VLOOKUP($A25,Filtro!$A$5:$AX$2230,2,FALSE),0) -> 10086 | D25: =IFERROR(VLOOKUP($A25,Filtro!$A$5:$AX$2230,3,FALSE),0) -> 2917 | E25: =IFERROR(VLOOKUP($A25,Filtro!$A$5:$AX$2230,4,FALSE),0) -> 7169 | F25: =IFERROR(VLOOKUP($A25,Filtro!$A$5:$AX$2230,5,FALSE),0) -> 34 | G25: =IFERROR(VLOOKUP($A25,Filtro!$A$5:$AX$2230,6,FALSE),0) -> 65 | H25: =IFERROR(VLOOKUP($A25,Filtro!$A$5:$AX$2230,7,FALSE),0) -> 114 | I25: =IFERROR(VLOOKUP($A25,Filtro!$A$5:$AX$2230,8,FALSE),0) -> 324 | J25: =IFERROR(VLOOKUP($A25,Filtro!$A$5:$AX$2230,9,FALSE),0) -> 167 | K25: =IFERROR(VLOOKUP($A25,Filtro!$A$5:$AX$2230,10,FALSE),0) -> 505 | L25: =IFERROR(VLOOKUP($A25,Filtro!$A$5:$AX$2230,11,FALSE),0) -> 213 | M25: =IFERROR(VLOOKUP($A25,Filtro!$A$5:$AX$2230,12,FALSE),0) -> 577 | N25: =IFERROR(VLOOKUP($A25,Filtro!$A$5:$AX$2230,13,FALSE),0) -> 205 | O25: =IFERROR(VLOOKUP($A25,Filtro!$A$5:$AX$2230,14,FALSE),0) -> 567 | P25: =IFERROR(VLOOKUP($A25,Filtro!$A$5:$AX$2230,15,FALSE),0) -> 187 | Q25: =IFERROR(VLOOKUP($A25,Filtro!$A$5:$AX$2230,16,FALSE),0) -> 497 | R25: =IFERROR(VLOOKUP($A25,Filtro!$A$5:$AX$2230,17,FALSE),0) -> 200 | S25: =IFERROR(VLOOKUP($A25,Filtro!$A$5:$AX$2230,18,FALSE),0) -> 516 | T25: =IFERROR(VLOOKUP($A25,Filtro!$A$5:$AX$2230,19,FALSE),0) -> 246 | U25: =IFERROR(VLOOKUP($A25,Filtro!$A$5:$AX$2230,20,FALSE),0) -> 503 | V25: =IFERROR(VLOOKUP($A25,Filtro!$A$5:$AX$2230,21,FALSE),0) -> 214 | W25: =IFERROR(VLOOKUP($A25,Filtro!$A$5:$AX$2230,22,FALSE),0) -> 387 | X25: =IFERROR(VLOOKUP($A25,Filtro!$A$5:$AX$2230,23,FALSE),0) -> 101 | Y25: =IFERROR(VLOOKUP($A25,Filtro!$A$5:$AX$2230,24,FALSE),0) -> 232 | Z25: =IFERROR(VLOOKUP($A25,Filtro!$A$5:$AX$2230,25,FALSE),0) -> 409 | AA25: =IFERROR(VLOOKUP($A25,Filtro!$A$5:$AX$2230,26,FALSE),0) -> 1076 | AB25: =IFERROR(VLOOKUP($A25,Filtro!$A$5:$AX$2230,27,FALSE),0) -> 361 | AC25: =IFERROR(VLOOKUP($A25,Filtro!$A$5:$AX$2230,28,FALSE),0) -> 789 | AD25: =IFERROR(VLOOKUP($A25,Filtro!$A$5:$AX$2230,29,FALSE),0) -> 245 | AE25: =IFERROR(VLOOKUP($A25,Filtro!$A$5:$AX$2230,30,FALSE),0) -> 586 | AF25: =IFERROR(VLOOKUP($A25,Filtro!$A$5:$AX$2230,31,FALSE),0) -> 221 | AG25: =IFERROR(VLOOKUP($A25,Filtro!$A$5:$AX$2230,32,FALSE),0) -> 545
B26: SECCIÓN C: RESULTADOS DE EMP SEGÚN ESTADO DE SALUD
B27: ESTADO DE SALUD | C27: TOTAL | F27: 15 a 19 | H27: 20 a 24 | J27: 25 a 29 | L27: 30 a 34 | N27: 35 a 39 | P27: 40 a 44 | R27: 45 a 49 | T27: 50 a 54 | V27: 55 a 59 | X27: 60 a 64 | Z27: 65 a 69 | AB27: 70 a 74 | AD27: 75 a 79 | AF27: 80 y más
C28: Ambos Sexos | D28: Hombres | E28: Mujeres | F28: Hombres | G28: Mujeres | H28: Hombres | I28: Mujeres | J28: Hombres | K28: Mujeres | L28: Hombres | M28: Mujeres | N28: Hombres | O28: Mujeres | P28: Hombres | Q28: Mujeres | R28: Hombres | S28: Mujeres | T28: Hombres | U28: Mujeres | V28: Hombres | W28: Mujeres | X28: Hombres | Y28: Mujeres | Z28: Hombres | AA28: Mujeres | AB28: Hombres | AC28: Mujeres | AD28: Hombres | AE28: Mujeres | AF28: Hombres | AG28: Mujeres
A29: 02200010 | B29: TABAQUISMO | C29: =IFERROR(VLOOKUP($A29,Filtro!$A$5:$AX$2230,2,FALSE),0) -> 3910 | D29: =IFERROR(VLOOKUP($A29,Filtro!$A$5:$AX$2230,3,FALSE),0) -> 1553 | E29: =IFERROR(VLOOKUP($A29,Filtro!$A$5:$AX$2230,4,FALSE),0) -> 2357 | F29: =IFERROR(VLOOKUP($A29,Filtro!$A$5:$AX$2230,5,FALSE),0) -> 17 | G29: =IFERROR(VLOOKUP($A29,Filtro!$A$5:$AX$2230,6,FALSE),0) -> 21 | H29: =IFERROR(VLOOKUP($A29,Filtro!$A$5:$AX$2230,7,FALSE),0) -> 97 | I29: =IFERROR(VLOOKUP($A29,Filtro!$A$5:$AX$2230,8,FALSE),0) -> 174 | J29: =IFERROR(VLOOKUP($A29,Filtro!$A$5:$AX$2230,9,FALSE),0) -> 160 | K29: =IFERROR(VLOOKUP($A29,Filtro!$A$5:$AX$2230,10,FALSE),0) -> 292 | L29: =IFERROR(VLOOKUP($A29,Filtro!$A$5:$AX$2230,11,FALSE),0) -> 181 | M29: =IFERROR(VLOOKUP($A29,Filtro!$A$5:$AX$2230,12,FALSE),0) -> 306 | N29: =IFERROR(VLOOKUP($A29,Filtro!$A$5:$AX$2230,13,FALSE),0) -> 164 | O29: =IFERROR(VLOOKUP($A29,Filtro!$A$5:$AX$2230,14,FALSE),0) -> 300 | P29: =IFERROR(VLOOKUP($A29,Filtro!$A$5:$AX$2230,15,FALSE),0) -> 129 | Q29: =IFERROR(VLOOKUP($A29,Filtro!$A$5:$AX$2230,16,FALSE),0) -> 238 | R29: =IFERROR(VLOOKUP($A29,Filtro!$A$5:$AX$2230,17,FALSE),0) -> 122 | S29: =IFERROR(VLOOKUP($A29,Filtro!$A$5:$AX$2230,18,FALSE),0) -> 239 | T29: =IFERROR(VLOOKUP($A29,Filtro!$A$5:$AX$2230,19,FALSE),0) -> 147 | U29: =IFERROR(VLOOKUP($A29,Filtro!$A$5:$AX$2230,20,FALSE),0) -> 209 | V29: =IFERROR(VLOOKUP($A29,Filtro!$A$5:$AX$2230,21,FALSE),0) -> 143 | W29: =IFERROR(VLOOKUP($A29,Filtro!$A$5:$AX$2230,22,FALSE),0) -> 155 | X29: =IFERROR(VLOOKUP($A29,Filtro!$A$5:$AX$2230,23,FALSE),0) -> 68 | Y29: =IFERROR(VLOOKUP($A29,Filtro!$A$5:$AX$2230,24,FALSE),0) -> 93 | Z29: =IFERROR(VLOOKUP($A29,Filtro!$A$5:$AX$2230,25,FALSE),0) -> 135 | AA29: =IFERROR(VLOOKUP($A29,Filtro!$A$5:$AX$2230,26,FALSE),0) -> 165 | AB29: =IFERROR(VLOOKUP($A29,Filtro!$A$5:$AX$2230,27,FALSE),0) -> 80 | AC29: =IFERROR(VLOOKUP($A29,Filtro!$A$5:$AX$2230,28,FALSE),0) -> 87 | AD29: =IFERROR(VLOOKUP($A29,Filtro!$A$5:$AX$2230,29,FALSE),0) -> 60 | AE29: =IFERROR(VLOOKUP($A29,Filtro!$A$5:$AX$2230,30,FALSE),0) -> 50 | AF29: =IFERROR(VLOOKUP($A29,Filtro!$A$5:$AX$2230,31,FALSE),0) -> 50 | AG29: =IFERROR(VLOOKUP($A29,Filtro!$A$5:$AX$2230,32,FALSE),0) -> 28 | CF29: 0 | CG29: 0
A30: 02200020 | B30: PRESIÓN ARTERIAL ELEVADA (= >140/90 mmHg) | C30: =IFERROR(VLOOKUP($A30,Filtro!$A$5:$AX$2230,2,FALSE),0) -> 5397 | D30: =IFERROR(VLOOKUP($A30,Filtro!$A$5:$AX$2230,3,FALSE),0) -> 2277 | E30: =IFERROR(VLOOKUP($A30,Filtro!$A$5:$AX$2230,4,FALSE),0) -> 3120 | F30: =IFERROR(VLOOKUP($A30,Filtro!$A$5:$AX$2230,5,FALSE),0) -> 3 | G30: =IFERROR(VLOOKUP($A30,Filtro!$A$5:$AX$2230,6,FALSE),0) -> 6 | H30: =IFERROR(VLOOKUP($A30,Filtro!$A$5:$AX$2230,7,FALSE),0) -> 34 | I30: =IFERROR(VLOOKUP($A30,Filtro!$A$5:$AX$2230,8,FALSE),0) -> 25 | J30: =IFERROR(VLOOKUP($A30,Filtro!$A$5:$AX$2230,9,FALSE),0) -> 49 | K30: =IFERROR(VLOOKUP($A30,Filtro!$A$5:$AX$2230,10,FALSE),0) -> 43 | L30: =IFERROR(VLOOKUP($A30,Filtro!$A$5:$AX$2230,11,FALSE),0) -> 54 | M30: =IFERROR(VLOOKUP($A30,Filtro!$A$5:$AX$2230,12,FALSE),0) -> 56 | N30: =IFERROR(VLOOKUP($A30,Filtro!$A$5:$AX$2230,13,FALSE),0) -> 63 | O30: =IFERROR(VLOOKUP($A30,Filtro!$A$5:$AX$2230,14,FALSE),0) -> 95 | P30: =IFERROR(VLOOKUP($A30,Filtro!$A$5:$AX$2230,15,FALSE),0) -> 82 | Q30: =IFERROR(VLOOKUP($A30,Filtro!$A$5:$AX$2230,16,FALSE),0) -> 114 | R30: =IFERROR(VLOOKUP($A30,Filtro!$A$5:$AX$2230,17,FALSE),0) -> 101 | S30: =IFERROR(VLOOKUP($A30,Filtro!$A$5:$AX$2230,18,FALSE),0) -> 132 | T30: =IFERROR(VLOOKUP($A30,Filtro!$A$5:$AX$2230,19,FALSE),0) -> 148 | U30: =IFERROR(VLOOKUP($A30,Filtro!$A$5:$AX$2230,20,FALSE),0) -> 140 | V30: =IFERROR(VLOOKUP($A30,Filtro!$A$5:$AX$2230,21,FALSE),0) -> 191 | W30: =IFERROR(VLOOKUP($A30,Filtro!$A$5:$AX$2230,22,FALSE),0) -> 155 | X30: =IFERROR(VLOOKUP($A30,Filtro!$A$5:$AX$2230,23,FALSE),0) -> 98 | Y30: =IFERROR(VLOOKUP($A30,Filtro!$A$5:$AX$2230,24,FALSE),0) -> 103 | Z30: =IFERROR(VLOOKUP($A30,Filtro!$A$5:$AX$2230,25,FALSE),0) -> 352 | AA30: =IFERROR(VLOOKUP($A30,Filtro!$A$5:$AX$2230,26,FALSE),0) -> 568 | AB30: =IFERROR(VLOOKUP($A30,Filtro!$A$5:$AX$2230,27,FALSE),0) -> 382 | AC30: =IFERROR(VLOOKUP($A30,Filtro!$A$5:$AX$2230,28,FALSE),0) -> 552 | AD30: =IFERROR(VLOOKUP($A30,Filtro!$A$5:$AX$2230,29,FALSE),0) -> 351 | AE30: =IFERROR(VLOOKUP($A30,Filtro!$A$5:$AX$2230,30,FALSE),0) -> 470 | AF30: =IFERROR(VLOOKUP($A30,Filtro!$A$5:$AX$2230,31,FALSE),0) -> 369 | AG30: =IFERROR(VLOOKUP($A30,Filtro!$A$5:$AX$2230,32,FALSE),0) -> 661 | CF30: 0 | CG30: 0
B31: SECCIÓN D: RESULTADOS DE EMP SEGÚN ESTADO DE SALUD (EXÁMENES DE LABORATORIO)
B32: ESTADO DE SALUD | C32: TOTAL | F32: 15 a 19 años | H32: 20 a 24 años | J32: 25 a 29 | L32: 30 a 34 | N32: 35 a 39 | P32: 40 a 44 | R32: 45 a 49 | T32: 50 a 54 | V32: 55 a 59 | X32: 60 a 64 | Z32: 65 a 69 | AB32: 70 a 74 | AD32: 75 a 79 | AF32: 80 y más
C33: Ambos Sexos | D33: Hombres | E33: Mujeres | F33: Hombres | G33: Mujeres | H33: Hombres | I33: Mujeres | J33: Hombres | K33: Mujeres | L33: Hombres | M33: Mujeres | N33: Hombres | O33: Mujeres | P33: Hombres | Q33: Mujeres | R33: Hombres | S33: Mujeres | T33: Hombres | U33: Mujeres | V33: Hombres | W33: Mujeres | X33: Hombres | Y33: Mujeres | Z33: Hombres | AA33: Mujeres | AB33: Hombres | AC33: Mujeres | AD33: Hombres | AE33: Mujeres | AF33: Hombres | AG33: Mujeres
A34: 02200030 | B34: GLICEMIA ALTERADA (= > a 100 mg/dl) | C34: =IFERROR(VLOOKUP($A34,Filtro!$A$5:$AX$2230,2,FALSE),0) -> 3017 | D34: =IFERROR(VLOOKUP($A34,Filtro!$A$5:$AX$2230,3,FALSE),0) -> 1213 | E34: =IFERROR(VLOOKUP($A34,Filtro!$A$5:$AX$2230,4,FALSE),0) -> 1804 | F34: =IFERROR(VLOOKUP($A34,Filtro!$A$5:$AX$2230,5,FALSE),0) -> 4 | G34: =IFERROR(VLOOKUP($A34,Filtro!$A$5:$AX$2230,6,FALSE),0) -> 6 | H34: =IFERROR(VLOOKUP($A34,Filtro!$A$5:$AX$2230,7,FALSE),0) -> 15 | I34: =IFERROR(VLOOKUP($A34,Filtro!$A$5:$AX$2230,8,FALSE),0) -> 41 | J34: =IFERROR(VLOOKUP($A34,Filtro!$A$5:$AX$2230,9,FALSE),0) -> 57 | K34: =IFERROR(VLOOKUP($A34,Filtro!$A$5:$AX$2230,10,FALSE),0) -> 76 | L34: =IFERROR(VLOOKUP($A34,Filtro!$A$5:$AX$2230,11,FALSE),0) -> 67 | M34: =IFERROR(VLOOKUP($A34,Filtro!$A$5:$AX$2230,12,FALSE),0) -> 82 | N34: =IFERROR(VLOOKUP($A34,Filtro!$A$5:$AX$2230,13,FALSE),0) -> 62 | O34: =IFERROR(VLOOKUP($A34,Filtro!$A$5:$AX$2230,14,FALSE),0) -> 113 | P34: =IFERROR(VLOOKUP($A34,Filtro!$A$5:$AX$2230,15,FALSE),0) -> 82 | Q34: =IFERROR(VLOOKUP($A34,Filtro!$A$5:$AX$2230,16,FALSE),0) -> 126 | R34: =IFERROR(VLOOKUP($A34,Filtro!$A$5:$AX$2230,17,FALSE),0) -> 82 | S34: =IFERROR(VLOOKUP($A34,Filtro!$A$5:$AX$2230,18,FALSE),0) -> 145 | T34: =IFERROR(VLOOKUP($A34,Filtro!$A$5:$AX$2230,19,FALSE),0) -> 129 | U34: =IFERROR(VLOOKUP($A34,Filtro!$A$5:$AX$2230,20,FALSE),0) -> 192 | V34: =IFERROR(VLOOKUP($A34,Filtro!$A$5:$AX$2230,21,FALSE),0) -> 113 | W34: =IFERROR(VLOOKUP($A34,Filtro!$A$5:$AX$2230,22,FALSE),0) -> 155 | X34: =IFERROR(VLOOKUP($A34,Filtro!$A$5:$AX$2230,23,FALSE),0) -> 64 | Y34: =IFERROR(VLOOKUP($A34,Filtro!$A$5:$AX$2230,24,FALSE),0) -> 89 | Z34: =IFERROR(VLOOKUP($A34,Filtro!$A$5:$AX$2230,25,FALSE),0) -> 163 | AA34: =IFERROR(VLOOKUP($A34,Filtro!$A$5:$AX$2230,26,FALSE),0) -> 239 | AB34: =IFERROR(VLOOKUP($A34,Filtro!$A$5:$AX$2230,27,FALSE),0) -> 156 | AC34: =IFERROR(VLOOKUP($A34,Filtro!$A$5:$AX$2230,28,FALSE),0) -> 240 | AD34: =IFERROR(VLOOKUP($A34,Filtro!$A$5:$AX$2230,29,FALSE),0) -> 126 | AE34: =IFERROR(VLOOKUP($A34,Filtro!$A$5:$AX$2230,30,FALSE),0) -> 127 | AF34: =IFERROR(VLOOKUP($A34,Filtro!$A$5:$AX$2230,31,FALSE),0) -> 93 | AG34: =IFERROR(VLOOKUP($A34,Filtro!$A$5:$AX$2230,32,FALSE),0) -> 173
A35: 02200040 | B35: COLESTEROL ELEVADO (= > 200 mg/dl) | C35: =IFERROR(VLOOKUP($A35,Filtro!$A$5:$AX$2230,2,FALSE),0) -> 2081 | D35: =IFERROR(VLOOKUP($A35,Filtro!$A$5:$AX$2230,3,FALSE),0) -> 635 | E35: =IFERROR(VLOOKUP($A35,Filtro!$A$5:$AX$2230,4,FALSE),0) -> 1446 | F35: =IFERROR(VLOOKUP($A35,Filtro!$A$5:$AX$2230,5,FALSE),0) -> 2 | G35: =IFERROR(VLOOKUP($A35,Filtro!$A$5:$AX$2230,6,FALSE),0) -> 4 | H35: =IFERROR(VLOOKUP($A35,Filtro!$A$5:$AX$2230,7,FALSE),0) -> 12 | I35: =IFERROR(VLOOKUP($A35,Filtro!$A$5:$AX$2230,8,FALSE),0) -> 34 | J35: =IFERROR(VLOOKUP($A35,Filtro!$A$5:$AX$2230,9,FALSE),0) -> 28 | K35: =IFERROR(VLOOKUP($A35,Filtro!$A$5:$AX$2230,10,FALSE),0) -> 59 | L35: =IFERROR(VLOOKUP($A35,Filtro!$A$5:$AX$2230,11,FALSE),0) -> 40 | M35: =IFERROR(VLOOKUP($A35,Filtro!$A$5:$AX$2230,12,FALSE),0) -> 63 | N35: =IFERROR(VLOOKUP($A35,Filtro!$A$5:$AX$2230,13,FALSE),0) -> 37 | O35: =IFERROR(VLOOKUP($A35,Filtro!$A$5:$AX$2230,14,FALSE),0) -> 102 | P35: =IFERROR(VLOOKUP($A35,Filtro!$A$5:$AX$2230,15,FALSE),0) -> 37 | Q35: =IFERROR(VLOOKUP($A35,Filtro!$A$5:$AX$2230,16,FALSE),0) -> 97 | R35: =IFERROR(VLOOKUP($A35,Filtro!$A$5:$AX$2230,17,FALSE),0) -> 45 | S35: =IFERROR(VLOOKUP($A35,Filtro!$A$5:$AX$2230,18,FALSE),0) -> 140 | T35: =IFERROR(VLOOKUP($A35,Filtro!$A$5:$AX$2230,19,FALSE),0) -> 67 | U35: =IFERROR(VLOOKUP($A35,Filtro!$A$5:$AX$2230,20,FALSE),0) -> 165 | V35: =IFERROR(VLOOKUP($A35,Filtro!$A$5:$AX$2230,21,FALSE),0) -> 49 | W35: =IFERROR(VLOOKUP($A35,Filtro!$A$5:$AX$2230,22,FALSE),0) -> 132 | X35: =IFERROR(VLOOKUP($A35,Filtro!$A$5:$AX$2230,23,FALSE),0) -> 45 | Y35: =IFERROR(VLOOKUP($A35,Filtro!$A$5:$AX$2230,24,FALSE),0) -> 97 | Z35: =IFERROR(VLOOKUP($A35,Filtro!$A$5:$AX$2230,25,FALSE),0) -> 74 | AA35: =IFERROR(VLOOKUP($A35,Filtro!$A$5:$AX$2230,26,FALSE),0) -> 183 | AB35: =IFERROR(VLOOKUP($A35,Filtro!$A$5:$AX$2230,27,FALSE),0) -> 87 | AC35: =IFERROR(VLOOKUP($A35,Filtro!$A$5:$AX$2230,28,FALSE),0) -> 159 | AD35: =IFERROR(VLOOKUP($A35,Filtro!$A$5:$AX$2230,29,FALSE),0) -> 62 | AE35: =IFERROR(VLOOKUP($A35,Filtro!$A$5:$AX$2230,30,FALSE),0) -> 104 | AF35: =IFERROR(VLOOKUP($A35,Filtro!$A$5:$AX$2230,31,FALSE),0) -> 50 | AG35: =IFERROR(VLOOKUP($A35,Filtro!$A$5:$AX$2230,32,FALSE),0) -> 107
B195: =SUM(C12:C17,C21:C25,C29:C30,C34:C35) -> 107870 | C195: =SUM(CG7:CM52) -> 1

Sheet A03
B6: REM-A03. APLICACIÓN Y RESULTADOS DE ESCALAS DE EVALUACIÓN
B7: SECCIÓN A: APLICACIÓN DE INSTRUMENTO Y RESULTADO EN EL NIÑO (A)
B8: SECCIÓN A.1: APLICACIÓN Y RESULTADOS DE PAUTA BREVE
B9: EVALUACIONES POR EDAD DEL NIÑO | D9: TOTAL | G9: GRUPO DE EDAD
G10: Menor de 1 mes | I10: 1 mes | K10: 2 meses | M10: 3 meses | O10: 4 meses | Q10: 5 meses | S10: 6 meses | U10: 7 - 11 meses | W10: 12 - 17 meses | Y10: 18 - 24 meses
D11: Ambos Sexos | E11: Hombres | F11: Mujeres | G11: Hombres | H11: Mujeres | I11: Hombres | J11: Mujeres | K11: Hombres | L11: Mujeres | M11: Hombres | N11: Mujeres | O11: Hombres | P11: Mujeres | Q11: Hombres | R11: Mujeres | S11: Hombres | T11: Mujeres | U11: Hombres | V11: Mujeres | W11: Hombres | X11: Mujeres | Y11: Hombres | Z11: Mujeres
A12: 02021730 | B12: APLICACIÓN PAUTA BREVE | D12: =IFERROR(VLOOKUP($A12,Filtro!$A$5:$AX$2230,2,FALSE),0) -> 11589 | E12: =IFERROR(VLOOKUP($A12,Filtro!$A$5:$AX$2230,3,FALSE),0) -> 5893 | F12: =IFERROR(VLOOKUP($A12,Filtro!$A$5:$AX$2230,4,FALSE),0) -> 5696 | G12: =IFERROR(VLOOKUP($A12,Filtro!$A$5:$AX$2230,5,FALSE),0) -> 22 | H12: =IFERROR(VLOOKUP($A12,Filtro!$A$5:$AX$2230,6,FALSE),0) -> 13 | I12: =IFERROR(VLOOKUP($A12,Filtro!$A$5:$AX$2230,7,FALSE),0) -> 16 | J12: =IFERROR(VLOOKUP($A12,Filtro!$A$5:$AX$2230,8,FALSE),0) -> 26 | K12: =IFERROR(VLOOKUP($A12,Filtro!$A$5:$AX$2230,9,FALSE),0) -> 23 | L12: =IFERROR(VLOOKUP($A12,Filtro!$A$5:$AX$2230,10,FALSE),0) -> 22 | M12: =IFERROR(VLOOKUP($A12,Filtro!$A$5:$AX$2230,11,FALSE),0) -> 61 | N12: =IFERROR(VLOOKUP($A12,Filtro!$A$5:$AX$2230,12,FALSE),0) -> 65 | O12: =IFERROR(VLOOKUP($A12,Filtro!$A$5:$AX$2230,13,FALSE),0) -> 1973 | P12: =IFERROR(VLOOKUP($A12,Filtro!$A$5:$AX$2230,14,FALSE),0) -> 1899 | Q12: =IFERROR(VLOOKUP($A12,Filtro!$A$5:$AX$2230,15,FALSE),0) -> 76 | R12: =IFERROR(VLOOKUP($A12,Filtro!$A$5:$AX$2230,16,FALSE),0) -> 75 | S12: =IFERROR(VLOOKUP($A12,Filtro!$A$5:$AX$2230,17,FALSE),0) -> 27 | T12: =IFERROR(VLOOKUP($A12,Filtro!$A$5:$AX$2230,18,FALSE),0) -> 32 | U12: =IFERROR(VLOOKUP($A12,Filtro!$A$5:$AX$2230,19,FALSE),0) -> 80 | V12: =IFERROR(VLOOKUP($A12,Filtro!$A$5:$AX$2230,20,FALSE),0) -> 88 | W12: =IFERROR(VLOOKUP($A12,Filtro!$A$5:$AX$2230,21,FALSE),0) -> 2073 | X12: =IFERROR(VLOOKUP($A12,Filtro!$A$5:$AX$2230,22,FALSE),0) -> 1969 | Y12: =IFERROR(VLOOKUP($A12,Filtro!$A$5:$AX$2230,23,FALSE),0) -> 1542 | Z12: =IFERROR(VLOOKUP($A12,Filtro!$A$5:$AX$2230,24,FALSE),0) -> 1509
A13: 03500020 | B13: RESULTADOS | C13: NORMAL | D13: =IFERROR(VLOOKUP($A13,Filtro!$A$5:$AX$2230,2,FALSE),0) -> 10513 | E13: =IFERROR(VLOOKUP($A13,Filtro!$A$5:$AX$2230,3,FALSE),0) -> 5258 | F13: =IFERROR(VLOOKUP($A13,Filtro!$A$5:$AX$2230,4,FALSE),0) -> 5255 | G13: =IFERROR(VLOOKUP($A13,Filtro!$A$5:$AX$2230,5,FALSE),0) -> 18 | H13: =IFERROR(VLOOKUP($A13,Filtro!$A$5:$AX$2230,6,FALSE),0) -> 12 | I13: =IFERROR(VLOOKUP($A13,Filtro!$A$5:$AX$2230,7,FALSE),0) -> 16 | J13: =IFERROR(VLOOKUP($A13,Filtro!$A$5:$AX$2230,8,FALSE),0) -> 26 | K13: =IFERROR(VLOOKUP($A13,Filtro!$A$5:$AX$2230,9,FALSE),0) -> 22 | L13: =IFERROR(VLOOKUP($A13,Filtro!$A$5:$AX$2230,10,FALSE),0) -> 21 | M13: =IFERROR(VLOOKUP($A13,Filtro!$A$5:$AX$2230,11,FALSE),0) -> 61 | N13: =IFERROR(VLOOKUP($A13,Filtro!$A$5:$AX$2230,12,FALSE),0) -> 63 | O13: =IFERROR(VLOOKUP($A13,Filtro!$A$5:$AX$2230,13,FALSE),0) -> 1935 | P13: =IFERROR(VLOOKUP($A13,Filtro!$A$5:$AX$2230,14,FALSE),0) -> 1859 | Q13: =IFERROR(VLOOKUP($A13,Filtro!$A$5:$AX$2230,15,FALSE),0) -> 76 | R13: =IFERROR(VLOOKUP($A13,Filtro!$A$5:$AX$2230,16,FALSE),0) -> 75 | S13: =IFERROR(VLOOKUP($A13,Filtro!$A$5:$AX$2230,17,FALSE),0) -> 27 | T13: =IFERROR(VLOOKUP($A13,Filtro!$A$5:$AX$2230,18,FALSE),0) -> 32 | U13: =IFERROR(VLOOKUP($A13,Filtro!$A$5:$AX$2230,19,FALSE),0) -> 78 | V13: =IFERROR(VLOOKUP($A13,Filtro!$A$5:$AX$2230,20,FALSE),0) -> 86 | W13: =IFERROR(VLOOKUP($A13,Filtro!$A$5:$AX$2230,21,FALSE),0) -> 1898 | X13: =IFERROR(VLOOKUP($A13,Filtro!$A$5:$AX$2230,22,FALSE),0) -> 1833 | Y13: =IFERROR(VLOOKUP($A13,Filtro!$A$5:$AX$2230,23,FALSE),0) -> 1127 | Z13: =IFERROR(VLOOKUP($A13,Filtro!$A$5:$AX$2230,24,FALSE),0) -> 1250 | CF13: * Aplicacion de Pauta Breve en Hombres Menor de 1 mes debe ser igual a la suma de resultados. | CG13: * Aplicacion de Pauta Breve en Mujeres Menor de 1 mes debe ser igual a la suma de resultados. | CH13: * Aplicacion de Pauta Breve en Hombres de 1 mes debe ser igual a la suma de resultados. | CI13: * Aplicacion de Pauta Breve en Mujeres de 1 mes debe ser igual a la suma de resultados. | CJ13: * Aplicacion de Pauta Breve en Hombres de 2 meses debe ser igual a la suma de resultados. | CK13: * Aplicacion de Pauta Breve en Mujeres de 2 meses debe ser igual a la suma de resultados. | CL13: * Aplicacion de Pauta Breve en Hombres de 3 meses debe ser igual a la suma de resultados. | CM13: * Aplicacion de Pauta Breve en Mujeres de 3 meses debe ser igual a la suma de resultados. | CN13: * Aplicacion de Pauta Breve en Hombres de 4 meses debe ser igual a la suma de resultados. | CO13: * Aplicacion de Pauta Breve en Mujeres de 4 meses debe ser igual a la suma de resultados. | CP13: * Aplicacion de Pauta Breve en Hombres de 5 meses debe ser igual a la suma de resultados. | CQ13: * Aplicacion de Pauta Breve en Mujeres de 5 meses debe ser igual a la suma de resultados. | CR13: * Aplicacion de Pauta Breve en Hombres de 6 meses debe ser igual a la suma de resultados. | CS13: * Aplicacion de Pauta Breve en Mujeres de 6 meses debe ser igual a la suma de resultados. | CT13: * Aplicacion de Pauta Breve en Hombres de 7 - 11 meses debe ser igual a la suma de resultados. | CU13: * Aplicacion de Pauta Breve en Mujeres de 7 - 11 meses debe ser igual a la suma de resultados. | CV13: * Aplicacion de Pauta Breve en Hombres de 12 - 17 meses debe ser igual a la suma de resultados. | CW13: * Aplicacion de Pauta Breve en Mujeres de 12 - 17 meses debe ser igual a la suma de resultados. | CX13: * Aplicacion de Pauta Breve en Hombres de 18 - 24 meses debe ser igual a la suma de resultados. | CY13: * Aplicacion de Pauta Breve en Mujeres de 18 - 24 meses debe ser igual a la suma de resultados. | DF13: 1 | DG13: 1 | DH13: 1 | DI13: 1 | DJ13: 1 | DK13: 1 | DL13: 1 | DM13: 1 | DN13: 1 | DO13: 1 | DP13: 1 | DQ13: 1 | DR13: 1 | DS13: 1 | DT13: 1 | DU13: 1 | DV13: 1 | DW13: 1 | DX13: 1 | DY13: 1 | DZ13: 0
A14: 03500030 | C14: ALTERADO | D14: =IFERROR(VLOOKUP($A14,Filtro!$A$5:$AX$2230,2,FALSE),0) -> 1100 | E14: =IFERROR(VLOOKUP($A14,Filtro!$A$5:$AX$2230,3,FALSE),0) -> 645 | F14: =IFERROR(VLOOKUP($A14,Filtro!$A$5:$AX$2230,4,FALSE),0) -> 455 | G14: =IFERROR(VLOOKUP($A14,Filtro!$A$5:$AX$2230,5,FALSE),0) -> 4 | H14: =IFERROR(VLOOKUP($A14,Filtro!$A$5:$AX$2230,6,FALSE),0) -> 1 | I14: =IFERROR(VLOOKUP($A14,Filtro!$A$5:$AX$2230,7,FALSE),0) -> 0 | J14: =IFERROR(VLOOKUP($A14,Filtro!$A$5:$AX$2230,8,FALSE),0) -> 0 | K14: =IFERROR(VLOOKUP($A14,Filtro!$A$5:$AX$2230,9,FALSE),0) -> 1 | L14: =IFERROR(VLOOKUP($A14,Filtro!$A$5:$AX$2230,10,FALSE),0) -> 1 | M14: =IFERROR(VLOOKUP($A14,Filtro!$A$5:$AX$2230,11,FALSE),0) -> 0 | N14: =IFERROR(VLOOKUP($A14,Filtro!$A$5:$AX$2230,12,FALSE),0) -> 2 | O14: =IFERROR(VLOOKUP($A14,Filtro!$A$5:$AX$2230,13,FALSE),0) -> 47 | P14: =IFERROR(VLOOKUP($A14,Filtro!$A$5:$AX$2230,14,FALSE),0) -> 50 | Q14: =IFERROR(VLOOKUP($A14,Filtro!$A$5:$AX$2230,15,FALSE),0) -> 2 | R14: =IFERROR(VLOOKUP($A14,Filtro!$A$5:$AX$2230,16,FALSE),0) -> 0 | S14: =IFERROR(VLOOKUP($A14,Filtro!$A$5:$AX$2230,17,FALSE),0) -> 0 | T14: =IFERROR(VLOOKUP($A14,Filtro!$A$5:$AX$2230,18,FALSE),0) -> 0 | U14: =IFERROR(VLOOKUP($A14,Filtro!$A$5:$AX$2230,19,FALSE),0) -> 2 | V14: =IFERROR(VLOOKUP($A14,Filtro!$A$5:$AX$2230,20,FALSE),0) -> 2 | W14: =IFERROR(VLOOKUP($A14,Filtro!$A$5:$AX$2230,21,FALSE),0) -> 181 | X14: =IFERROR(VLOOKUP($A14,Filtro!$A$5:$AX$2230,22,FALSE),0) -> 140 | Y14: =IFERROR(VLOOKUP($A14,Filtro!$A$5:$AX$2230,23,FALSE),0) -> 408 | Z14: =IFERROR(VLOOKUP($A14,Filtro!$A$5:$AX$2230,24,FALSE),0) -> 259
B15: SECCIÓN A.2: RESULTADOS DE LA APLICACIÓN DE ESCALA DE EVALUACIÓN DEL DESARROLLO PSICOMOTOR | F15: COL03
B16: ACTIVIDAD | C16: RESULTADO | D16: TOTAL | G16: POR EDAD | S16: MIGRANTES
G17: Menor 7 meses | I17: 7 - 11 meses | K17: 12 - 17 meses | M17: 18 - 23 meses | O17: 24 - 47 meses | Q17: 48 - 59 meses
D18: Ambos Sexos | E18: Hombres | F18: Mujeres | G18: Hombres | H18: Mujeres | I18: Hombres | J18: Mujeres | K18: Hombres | L18: Mujeres | M18: Hombres | N18: Mujeres | O18: Hombres | P18: Mujeres | Q18: Hombres | R18: Mujeres | CB18: * La suma de los sexos NO DEBE ser diferente al Total. | CG18: =IF(AND(D18<>0,'A05'!D49=""),"* No olvide registrar ingresos a control de salud de los respectivos RN, en REM A05-secciãn E. ","") ->  | CH18: * No olvide digitar el campo Beneficiarios (Digite CERO si no tiene). | CJ18: * No olvide digitar alguna de las lactancias (Materna exclusiva y/o Artificial) (Digite CERO si no tiene). | CK18: * No olvide digitar Control de diada con presencia del padre (Digite CERO si no tiene). | CM18: 1 | CN18: 0 | CP18: 0 | CR18: 1 | CT18: 1 | CU18: 1
A19: 02021740 | B19: APLICACIÓN TEST DE DESARROLLO PSICOMOTOR | D19: =IFERROR(VLOOKUP($A19,Filtro!$A$5:$AX$2230,2,FALSE),0) -> 12198 | E19: =IFERROR(VLOOKUP($A19,Filtro!$A$5:$AX$2230,3,FALSE),0) -> 6304 | F19: =IFERROR(VLOOKUP($A19,Filtro!$A$5:$AX$2230,4,FALSE),0) -> 5894 | G19: =IFERROR(VLOOKUP($A19,Filtro!$A$5:$AX$2230,5,FALSE),0) -> 67 | H19: =IFERROR(VLOOKUP($A19,Filtro!$A$5:$AX$2230,6,FALSE),0) -> 50 | I19: =IFERROR(VLOOKUP($A19,Filtro!$A$5:$AX$2230,7,FALSE),0) -> 2164 | J19: =IFERROR(VLOOKUP($A19,Filtro!$A$5:$AX$2230,8,FALSE),0) -> 2011 | K19: =IFERROR(VLOOKUP($A19,Filtro!$A$5:$AX$2230,9,FALSE),0) -> 309 | L19: =IFERROR(VLOOKUP($A19,Filtro!$A$5:$AX$2230,10,FALSE),0) -> 342 | M19: =IFERROR(VLOOKUP($A19,Filtro!$A$5:$AX$2230,11,FALSE),0) -> 2103 | N19: =IFERROR(VLOOKUP($A19,Filtro!$A$5:$AX$2230,12,FALSE),0) -> 2010 | O19: =IFERROR(VLOOKUP($A19,Filtro!$A$5:$AX$2230,13,FALSE),0) -> 1510 | P19: =IFERROR(VLOOKUP($A19,Filtro!$A$5:$AX$2230,14,FALSE),0) -> 1386 | Q19: =IFERROR(VLOOKUP($A19,Filtro!$A$5:$AX$2230,15,FALSE),0) -> 151 | R19: =IFERROR(VLOOKUP($A19,Filtro!$A$5:$AX$2230,16,FALSE),0) -> 95 | S19: =IFERROR(VLOOKUP($A19,Filtro!$A$5:$AX$2230,17,FALSE),0) -> 44 | CH19: 0 | CI19: 0 | CJ19: 0 | CK19: 0 | CL19: 0 | CM19: 0 | CN19: 0 | CO19: 0
A20: 02010320 | B20: PRIMERA EVALUACIÓN | C20: NORMAL | D20: =IFERROR(VLOOKUP($A20,Filtro!$A$5:$AX$2230,2,FALSE),0) -> 9479 | E20: =IFERROR(VLOOKUP($A20,Filtro!$A$5:$AX$2230,3,FALSE),0) -> 4625 | F20: =IFERROR(VLOOKUP($A20,Filtro!$A$5:$AX$2230,4,FALSE),0) -> 4854 | G20: =IFERROR(VLOOKUP($A20,Filtro!$A$5:$AX$2230,5,FALSE),0) -> 53 | H20: =IFERROR(VLOOKUP($A20,Filtro!$A$5:$AX$2230,6,FALSE),0) -> 39 | I20: =IFERROR(VLOOKUP($A20,Filtro!$A$5:$AX$2230,7,FALSE),0) -> 1928 | J20: =IFERROR(VLOOKUP($A20,Filtro!$A$5:$AX$2230,8,FALSE),0) -> 1832 | K20: =IFERROR(VLOOKUP($A20,Filtro!$A$5:$AX$2230,9,FALSE),0) -> 221 | L20: =IFERROR(VLOOKUP($A20,Filtro!$A$5:$AX$2230,10,FALSE),0) -> 257 | M20: =IFERROR(VLOOKUP($A20,Filtro!$A$5:$AX$2230,11,FALSE),0) -> 1459 | N20: =IFERROR(VLOOKUP($A20,Filtro!$A$5:$AX$2230,12,FALSE),0) -> 1595 | O20: =IFERROR(VLOOKUP($A20,Filtro!$A$5:$AX$2230,13,FALSE),0) -> 868 | P20: =IFERROR(VLOOKUP($A20,Filtro!$A$5:$AX$2230,14,FALSE),0) -> 1054 | Q20: =IFERROR(VLOOKUP($A20,Filtro!$A$5:$AX$2230,15,FALSE),0) -> 96 | R20: =IFERROR(VLOOKUP($A20,Filtro!$A$5:$AX$2230,16,FALSE),0) -> 77 | S20: =IFERROR(VLOOKUP($A20,Filtro!$A$5:$AX$2230,17,FALSE),0) -> 32 | BZ20: * El total de aplicaciones de menor a 7 meses debe ser IGUAL a los resultados de la totalidad de las aplicaciones de la primera evaluación y la reevaluación. | CA20: * El total de aplicaciones de 7-11 debe ser IGUAL a los resultados de la totalidad de las aplicaciones de la primera evaluación y la reevaluación. | CB20: * El total de aplicaciones de 12-17 debe ser IGUAL a los resultados de la totalidad de las aplicaciones de la primera evaluación y la reevaluación. | CC20: * El total de aplicaciones de 18-23 debe ser IGUAL a los resultados de la totalidad de las aplicaciones de la primera evaluación y la reevaluación. | CD20: * El total de aplicaciones de 24-47 debe ser IGUAL a los resultados de la totalidad de las aplicaciones de la primera evaluación y la reevaluación. | CE20: * El total de aplicaciones de 48-59 debe ser IGUAL a los resultados de la totalidad de las aplicaciones de la primera evaluación y la reevaluación. | CF20: * El total de aplicaciones de Migrantes debe ser IGUAL a los resultados de la totalidad de las aplicaciones de la primera evaluación y la reevaluación. | CG20: 1 | CH20: 1 | CI20: 1 | CJ20: 1 | CK20: 1 | CL20: 1 | CM20: 1 | CN20: 0 | CO20: 0
A21: 05225303 | C21: NORMAL CON REZAGO | D21: =IFERROR(VLOOKUP($A21,Filtro!$A$5:$AX$2230,2,FALSE),0) -> 586 | E21: =IFERROR(VLOOKUP($A21,Filtro!$A$5:$AX$2230,3,FALSE),0) -> 336 | F21: =IFERROR(VLOOKUP($A21,Filtro!$A$5:$AX$2230,4,FALSE),0) -> 250 | G21: =IFERROR(VLOOKUP($A21,Filtro!$A$5:$AX$2230,5,FALSE),0) -> 3 | H21: =IFERROR(VLOOKUP($A21,Filtro!$A$5:$AX$2230,6,FALSE),0) -> 3 | I21: =IFERROR(VLOOKUP($A21,Filtro!$A$5:$AX$2230,7,FALSE),0) -> 64 | J21: =IFERROR(VLOOKUP($A21,Filtro!$A$5:$AX$2230,8,FALSE),0) -> 55 | K21: =IFERROR(VLOOKUP($A21,Filtro!$A$5:$AX$2230,9,FALSE),0) -> 18 | L21: =IFERROR(VLOOKUP($A21,Filtro!$A$5:$AX$2230,10,FALSE),0) -> 19 | M21: =IFERROR(VLOOKUP($A21,Filtro!$A$5:$AX$2230,11,FALSE),0) -> 82 | N21: =IFERROR(VLOOKUP($A21,Filtro!$A$5:$AX$2230,12,FALSE),0) -> 61 | O21: =IFERROR(VLOOKUP($A21,Filtro!$A$5:$AX$2230,13,FALSE),0) -> 158 | P21: =IFERROR(VLOOKUP($A21,Filtro!$A$5:$AX$2230,14,FALSE),0) -> 107 | Q21: =IFERROR(VLOOKUP($A21,Filtro!$A$5:$AX$2230,15,FALSE),0) -> 11 | R21: =IFERROR(VLOOKUP($A21,Filtro!$A$5:$AX$2230,16,FALSE),0) -> 5 | S21: =IFERROR(VLOOKUP($A21,Filtro!$A$5:$AX$2230,17,FALSE),0) -> 4
A22: 02010321 | C22: RIESGO | D22: =IFERROR(VLOOKUP($A22,Filtro!$A$5:$AX$2230,2,FALSE),0) -> 944 | E22: =IFERROR(VLOOKUP($A22,Filtro!$A$5:$AX$2230,3,FALSE),0) -> 613 | F22: =IFERROR(VLOOKUP($A22,Filtro!$A$5:$AX$2230,4,FALSE),0) -> 331 | G22: =IFERROR(VLOOKUP($A22,Filtro!$A$5:$AX$2230,5,FALSE),0) -> 7 | H22: =IFERROR(VLOOKUP($A22,Filtro!$A$5:$AX$2230,6,FALSE),0) -> 4 | I22: =IFERROR(VLOOKUP($A22,Filtro!$A$5:$AX$2230,7,FALSE),0) -> 92 | J22: =IFERROR(VLOOKUP($A22,Filtro!$A$5:$AX$2230,8,FALSE),0) -> 63 | K22: =IFERROR(VLOOKUP($A22,Filtro!$A$5:$AX$2230,9,FALSE),0) -> 26 | L22: =IFERROR(VLOOKUP($A22,Filtro!$A$5:$AX$2230,10,FALSE),0) -> 26 | M22: =IFERROR(VLOOKUP($A22,Filtro!$A$5:$AX$2230,11,FALSE),0) -> 261 | N22: =IFERROR(VLOOKUP($A22,Filtro!$A$5:$AX$2230,12,FALSE),0) -> 159 | O22: =IFERROR(VLOOKUP($A22,Filtro!$A$5:$AX$2230,13,FALSE),0) -> 219 | P22: =IFERROR(VLOOKUP($A22,Filtro!$A$5:$AX$2230,14,FALSE),0) -> 77 | Q22: =IFERROR(VLOOKUP($A22,Filtro!$A$5:$AX$2230,15,FALSE),0) -> 8 | R22: =IFERROR(VLOOKUP($A22,Filtro!$A$5:$AX$2230,16,FALSE),0) -> 2 | S22: =IFERROR(VLOOKUP($A22,Filtro!$A$5:$AX$2230,17,FALSE),0) -> 2
A23: 02010322 | C23: RETRASO | D23: =IFERROR(VLOOKUP($A23,Filtro!$A$5:$AX$2230,2,FALSE),0) -> 265 | E23: =IFERROR(VLOOKUP($A23,Filtro!$A$5:$AX$2230,3,FALSE),0) -> 171 | F23: =IFERROR(VLOOKUP($A23,Filtro!$A$5:$AX$2230,4,FALSE),0) -> 94 | G23: =IFERROR(VLOOKUP($A23,Filtro!$A$5:$AX$2230,5,FALSE),0) -> 2 | H23: =IFERROR(VLOOKUP($A23,Filtro!$A$5:$AX$2230,6,FALSE),0) -> 0 | I23: =IFERROR(VLOOKUP($A23,Filtro!$A$5:$AX$2230,7,FALSE),0) -> 15 | J23: =IFERROR(VLOOKUP($A23,Filtro!$A$5:$AX$2230,8,FALSE),0) -> 15 | K23: =IFERROR(VLOOKUP($A23,Filtro!$A$5:$AX$2230,9,FALSE),0) -> 11 | L23: =IFERROR(VLOOKUP($A23,Filtro!$A$5:$AX$2230,10,FALSE),0) -> 4 | M23: =IFERROR(VLOOKUP($A23,Filtro!$A$5:$AX$2230,11,FALSE),0) -> 70 | N23: =IFERROR(VLOOKUP($A23,Filtro!$A$5:$AX$2230,12,FALSE),0) -> 44 | O23: =IFERROR(VLOOKUP($A23,Filtro!$A$5:$AX$2230,13,FALSE),0) -> 67 | P23: =IFERROR(VLOOKUP($A23,Filtro!$A$5:$AX$2230,14,FALSE),0) -> 27 | Q23: =IFERROR(VLOOKUP($A23,Filtro!$A$5:$AX$2230,15,FALSE),0) -> 6 | R23: =IFERROR(VLOOKUP($A23,Filtro!$A$5:$AX$2230,16,FALSE),0) -> 4 | S23: =IFERROR(VLOOKUP($A23,Filtro!$A$5:$AX$2230,17,FALSE),0) -> 2
A24: 05225304 | B24: REEVALUACIÓN | C24: NORMAL (desde normal con rezago) | D24: =IFERROR(VLOOKUP($A24,Filtro!$A$5:$AX$2230,2,FALSE),0) -> 237 | E24: =IFERROR(VLOOKUP($A24,Filtro!$A$5:$AX$2230,3,FALSE),0) -> 139 | F24: =IFERROR(VLOOKUP($A24,Filtro!$A$5:$AX$2230,4,FALSE),0) -> 98 | G24: =IFERROR(VLOOKUP($A24,Filtro!$A$5:$AX$2230,5,FALSE),0) -> 0 | H24: =IFERROR(VLOOKUP($A24,Filtro!$A$5:$AX$2230,6,FALSE),0) -> 1 | I24: =IFERROR(VLOOKUP($A24,Filtro!$A$5:$AX$2230,7,FALSE),0) -> 17 | J24: =IFERROR(VLOOKUP($A24,Filtro!$A$5:$AX$2230,8,FALSE),0) -> 19 | K24: =IFERROR(VLOOKUP($A24,Filtro!$A$5:$AX$2230,9,FALSE),0) -> 12 | L24: =IFERROR(VLOOKUP($A24,Filtro!$A$5:$AX$2230,10,FALSE),0) -> 10 | M24: =IFERROR(VLOOKUP($A24,Filtro!$A$5:$AX$2230,11,FALSE),0) -> 34 | N24: =IFERROR(VLOOKUP($A24,Filtro!$A$5:$AX$2230,12,FALSE),0) -> 20 | O24: =IFERROR(VLOOKUP($A24,Filtro!$A$5:$AX$2230,13,FALSE),0) -> 59 | P24: =IFERROR(VLOOKUP($A24,Filtro!$A$5:$AX$2230,14,FALSE),0) -> 46 | Q24: =IFERROR(VLOOKUP($A24,Filtro!$A$5:$AX$2230,15,FALSE),0) -> 17 | R24: =IFERROR(VLOOKUP($A24,Filtro!$A$5:$AX$2230,16,FALSE),0) -> 2 | S24: =IFERROR(VLOOKUP($A24,Filtro!$A$5:$AX$2230,17,FALSE),0) -> 0
A25: 02010420 | C25: NORMAL (desde riesgo) | D25: =IFERROR(VLOOKUP($A25,Filtro!$A$5:$AX$2230,2,FALSE),0) -> 387 | E25: =IFERROR(VLOOKUP($A25,Filtro!$A$5:$AX$2230,3,FALSE),0) -> 227 | F25: =IFERROR(VLOOKUP($A25,Filtro!$A$5:$AX$2230,4,FALSE),0) -> 160 | G25: =IFERROR(VLOOKUP($A25,Filtro!$A$5:$AX$2230,5,FALSE),0) -> 2 | H25: =IFERROR(VLOOKUP($A25,Filtro!$A$5:$AX$2230,6,FALSE),0) -> 2 | I25: =IFERROR(VLOOKUP($A25,Filtro!$A$5:$AX$2230,7,FALSE),0) -> 34 | J25: =IFERROR(VLOOKUP($A25,Filtro!$A$5:$AX$2230,8,FALSE),0) -> 20 | K25: =IFERROR(VLOOKUP($A25,Filtro!$A$5:$AX$2230,9,FALSE),0) -> 11 | L25: =IFERROR(VLOOKUP($A25,Filtro!$A$5:$AX$2230,10,FALSE),0) -> 10 | M25: =IFERROR(VLOOKUP($A25,Filtro!$A$5:$AX$2230,11,FALSE),0) -> 117 | N25: =IFERROR(VLOOKUP($A25,Filtro!$A$5:$AX$2230,12,FALSE),0) -> 90 | O25: =IFERROR(VLOOKUP($A25,Filtro!$A$5:$AX$2230,13,FALSE),0) -> 55 | P25: =IFERROR(VLOOKUP($A25,Filtro!$A$5:$AX$2230,14,FALSE),0) -> 34 | Q25: =IFERROR(VLOOKUP($A25,Filtro!$A$5:$AX$2230,15,FALSE),0) -> 8 | R25: =IFERROR(VLOOKUP($A25,Filtro!$A$5:$AX$2230,16,FALSE),0) -> 4 | S25: =IFERROR(VLOOKUP($A25,Filtro!$A$5:$AX$2230,17,FALSE),0) -> 2
A26: 05225305 | C26: NORMAL (desde retraso) | D26: =IFERROR(VLOOKUP($A26,Filtro!$A$5:$AX$2230,2,FALSE),0) -> 25 | E26: =IFERROR(VLOOKUP($A26,Filtro!$A$5:$AX$2230,3,FALSE),0) -> 10 | F26: =IFERROR(VLOOKUP($A26,Filtro!$A$5:$AX$2230,4,FALSE),0) -> 15 | G26: =IFERROR(VLOOKUP($A26,Filtro!$A$5:$AX$2230,5,FALSE),0) -> 0 | H26: =IFERROR(VLOOKUP($A26,Filtro!$A$5:$AX$2230,6,FALSE),0) -> 0 | I26: =IFERROR(VLOOKUP($A26,Filtro!$A$5:$AX$2230,7,FALSE),0) -> 1 | J26: =IFERROR(VLOOKUP($A26,Filtro!$A$5:$AX$2230,8,FALSE),0) -> 2 | K26: =IFERROR(VLOOKUP($A26,Filtro!$A$5:$AX$2230,9,FALSE),0) -> 0 | L26: =IFERROR(VLOOKUP($A26,Filtro!$A$5:$AX$2230,10,FALSE),0) -> 5 | M26: =IFERROR(VLOOKUP($A26,Filtro!$A$5:$AX$2230,11,FALSE),0) -> 2 | N26: =IFERROR(VLOOKUP($A26,Filtro!$A$5:$AX$2230,12,FALSE),0) -> 1 | O26: =IFERROR(VLOOKUP($A26,Filtro!$A$5:$AX$2230,13,FALSE),0) -> 7 | P26: =IFERROR(VLOOKUP($A26,Filtro!$A$5:$AX$2230,14,FALSE),0) -> 6 | Q26: =IFERROR(VLOOKUP($A26,Filtro!$A$5:$AX$2230,15,FALSE),0) -> 0 | R26: =IFERROR(VLOOKUP($A26,Filtro!$A$5:$AX$2230,16,FALSE),0) -> 1 | S26: =IFERROR(VLOOKUP($A26,Filtro!$A$5:$AX$2230,17,FALSE),0) -> 0
A27: 03500366 | C27: NORMAL CON REZAGO (desde riesgo) | D27: =IFERROR(VLOOKUP($A27,Filtro!$A$5:$AX$2230,2,FALSE),0) -> 81 | E27: =IFERROR(VLOOKUP($A27,Filtro!$A$5:$AX$2230,3,FALSE),0) -> 52 | F27: =IFERROR(VLOOKUP($A27,Filtro!$A$5:$AX$2230,4,FALSE),0) -> 29 | G27: =IFERROR(VLOOKUP($A27,Filtro!$A$5:$AX$2230,5,FALSE),0) -> 0 | H27: =IFERROR(VLOOKUP($A27,Filtro!$A$5:$AX$2230,6,FALSE),0) -> 1 | I27: =IFERROR(VLOOKUP($A27,Filtro!$A$5:$AX$2230,7,FALSE),0) -> 1 | J27: =IFERROR(VLOOKUP($A27,Filtro!$A$5:$AX$2230,8,FALSE),0) -> 3 | K27: =IFERROR(VLOOKUP($A27,Filtro!$A$5:$AX$2230,9,FALSE),0) -> 1 | L27: =IFERROR(VLOOKUP($A27,Filtro!$A$5:$AX$2230,10,FALSE),0) -> 3 | M27: =IFERROR(VLOOKUP($A27,Filtro!$A$5:$AX$2230,11,FALSE),0) -> 37 | N27: =IFERROR(VLOOKUP($A27,Filtro!$A$5:$AX$2230,12,FALSE),0) -> 15 | O27: =IFERROR(VLOOKUP($A27,Filtro!$A$5:$AX$2230,13,FALSE),0) -> 12 | P27: =IFERROR(VLOOKUP($A27,Filtro!$A$5:$AX$2230,14,FALSE),0) -> 7 | Q27: =IFERROR(VLOOKUP($A27,Filtro!$A$5:$AX$2230,15,FALSE),0) -> 1 | R27: =IFERROR(VLOOKUP($A27,Filtro!$A$5:$AX$2230,16,FALSE),0) -> 0 | S27: =IFERROR(VLOOKUP($A27,Filtro!$A$5:$AX$2230,17,FALSE),0) -> 0
A28: 03500400 | C28: NORMAL CON REZAGO (desde retraso) | D28: =IFERROR(VLOOKUP($A28,Filtro!$A$5:$AX$2230,2,FALSE),0) -> 9 | E28: =IFERROR(VLOOKUP($A28,Filtro!$A$5:$AX$2230,3,FALSE),0) -> 3 | F28: =IFERROR(VLOOKUP($A28,Filtro!$A$5:$AX$2230,4,FALSE),0) -> 6 | G28: =IFERROR(VLOOKUP($A28,Filtro!$A$5:$AX$2230,5,FALSE),0) -> 0 | H28: =IFERROR(VLOOKUP($A28,Filtro!$A$5:$AX$2230,6,FALSE),0) -> 0 | I28: =IFERROR(VLOOKUP($A28,Filtro!$A$5:$AX$2230,7,FALSE),0) -> 0 | J28: =IFERROR(VLOOKUP($A28,Filtro!$A$5:$AX$2230,8,FALSE),0) -> 0 | K28: =IFERROR(VLOOKUP($A28,Filtro!$A$5:$AX$2230,9,FALSE),0) -> 0 | L28: =IFERROR(VLOOKUP($A28,Filtro!$A$5:$AX$2230,10,FALSE),0) -> 0 | M28: =IFERROR(VLOOKUP($A28,Filtro!$A$5:$AX$2230,11,FALSE),0) -> 1 | N28: =IFERROR(VLOOKUP($A28,Filtro!$A$5:$AX$2230,12,FALSE),0) -> 3 | O28: =IFERROR(VLOOKUP($A28,Filtro!$A$5:$AX$2230,13,FALSE),0) -> 2 | P28: =IFERROR(VLOOKUP($A28,Filtro!$A$5:$AX$2230,14,FALSE),0) -> 3 | Q28: =IFERROR(VLOOKUP($A28,Filtro!$A$5:$AX$2230,15,FALSE),0) -> 0 | R28: =IFERROR(VLOOKUP($A28,Filtro!$A$5:$AX$2230,16,FALSE),0) -> 0 | S28: =IFERROR(VLOOKUP($A28,Filtro!$A$5:$AX$2230,17,FALSE),0) -> 0
A29: 03500401 | C29: RIESGO (desde retraso) | D29: =IFERROR(VLOOKUP($A29,Filtro!$A$5:$AX$2230,2,FALSE),0) -> 18 | E29: =IFERROR(VLOOKUP($A29,Filtro!$A$5:$AX$2230,3,FALSE),0) -> 13 | F29: =IFERROR(VLOOKUP($A29,Filtro!$A$5:$AX$2230,4,FALSE),0) -> 5 | G29: =IFERROR(VLOOKUP($A29,Filtro!$A$5:$AX$2230,5,FALSE),0) -> 0 | H29: =IFERROR(VLOOKUP($A29,Filtro!$A$5:$AX$2230,6,FALSE),0) -> 0 | I29: =IFERROR(VLOOKUP($A29,Filtro!$A$5:$AX$2230,7,FALSE),0) -> 0 | J29: =IFERROR(VLOOKUP($A29,Filtro!$A$5:$AX$2230,8,FALSE),0) -> 0 | K29: =IFERROR(VLOOKUP($A29,Filtro!$A$5:$AX$2230,9,FALSE),0) -> 0 | L29: =IFERROR(VLOOKUP($A29,Filtro!$A$5:$AX$2230,10,FALSE),0) -> 1 | M29: =IFERROR(VLOOKUP($A29,Filtro!$A$5:$AX$2230,11,FALSE),0) -> 6 | N29: =IFERROR(VLOOKUP($A29,Filtro!$A$5:$AX$2230,12,FALSE),0) -> 3 | O29: =IFERROR(VLOOKUP($A29,Filtro!$A$5:$AX$2230,13,FALSE),0) -> 6 | P29: =IFERROR(VLOOKUP($A29,Filtro!$A$5:$AX$2230,14,FALSE),0) -> 1 | Q29: =IFERROR(VLOOKUP($A29,Filtro!$A$5:$AX$2230,15,FALSE),0) -> 1 | R29: =IFERROR(VLOOKUP($A29,Filtro!$A$5:$AX$2230,16,FALSE),0) -> 0 | S29: =IFERROR(VLOOKUP($A29,Filtro!$A$5:$AX$2230,17,FALSE),0) -> 0
A30: 05225306 | C30: NORMAL CON REZAGO (desde normal con rezago) | D30: =IFERROR(VLOOKUP($A30,Filtro!$A$5:$AX$2230,2,FALSE),0) -> 44 | E30: =IFERROR(VLOOKUP($A30,Filtro!$A$5:$AX$2230,3,FALSE),0) -> 28 | F30: =IFERROR(VLOOKUP($A30,Filtro!$A$5:$AX$2230,4,FALSE),0) -> 16 | G30: =IFERROR(VLOOKUP($A30,Filtro!$A$5:$AX$2230,5,FALSE),0) -> 0 | H30: =IFERROR(VLOOKUP($A30,Filtro!$A$5:$AX$2230,6,FALSE),0) -> 0 | I30: =IFERROR(VLOOKUP($A30,Filtro!$A$5:$AX$2230,7,FALSE),0) -> 2 | J30: =IFERROR(VLOOKUP($A30,Filtro!$A$5:$AX$2230,8,FALSE),0) -> 0 | K30: =IFERROR(VLOOKUP($A30,Filtro!$A$5:$AX$2230,9,FALSE),0) -> 2 | L30: =IFERROR(VLOOKUP($A30,Filtro!$A$5:$AX$2230,10,FALSE),0) -> 1 | M30: =IFERROR(VLOOKUP($A30,Filtro!$A$5:$AX$2230,11,FALSE),0) -> 8 | N30: =IFERROR(VLOOKUP($A30,Filtro!$A$5:$AX$2230,12,FALSE),0) -> 5 | O30: =IFERROR(VLOOKUP($A30,Filtro!$A$5:$AX$2230,13,FALSE),0) -> 16 | P30: =IFERROR(VLOOKUP($A30,Filtro!$A$5:$AX$2230,14,FALSE),0) -> 10 | Q30: =IFERROR(VLOOKUP($A30,Filtro!$A$5:$AX$2230,15,FALSE),0) -> 0 | R30: =IFERROR(VLOOKUP($A30,Filtro!$A$5:$AX$2230,16,FALSE),0) -> 0 | S30: =IFERROR(VLOOKUP($A30,Filtro!$A$5:$AX$2230,17,FALSE),0) -> 0
A31: 02010421 | C31: RIESGO (desde riesgo) | D31: =IFERROR(VLOOKUP($A31,Filtro!$A$5:$AX$2230,2,FALSE),0) -> 68 | E31: =IFERROR(VLOOKUP($A31,Filtro!$A$5:$AX$2230,3,FALSE),0) -> 44 | F31: =IFERROR(VLOOKUP($A31,Filtro!$A$5:$AX$2230,4,FALSE),0) -> 24 | G31: =IFERROR(VLOOKUP($A31,Filtro!$A$5:$AX$2230,5,FALSE),0) -> 0 | H31: =IFERROR(VLOOKUP($A31,Filtro!$A$5:$AX$2230,6,FALSE),0) -> 0 | I31: =IFERROR(VLOOKUP($A31,Filtro!$A$5:$AX$2230,7,FALSE),0) -> 3 | J31: =IFERROR(VLOOKUP($A31,Filtro!$A$5:$AX$2230,8,FALSE),0) -> 1 | K31: =IFERROR(VLOOKUP($A31,Filtro!$A$5:$AX$2230,9,FALSE),0) -> 2 | L31: =IFERROR(VLOOKUP($A31,Filtro!$A$5:$AX$2230,10,FALSE),0) -> 4 | M31: =IFERROR(VLOOKUP($A31,Filtro!$A$5:$AX$2230,11,FALSE),0) -> 19 | N31: =IFERROR(VLOOKUP($A31,Filtro!$A$5:$AX$2230,12,FALSE),0) -> 10 | O31: =IFERROR(VLOOKUP($A31,Filtro!$A$5:$AX$2230,13,FALSE),0) -> 19 | P31: =IFERROR(VLOOKUP($A31,Filtro!$A$5:$AX$2230,14,FALSE),0) -> 9 | Q31: =IFERROR(VLOOKUP($A31,Filtro!$A$5:$AX$2230,15,FALSE),0) -> 1 | R31: =IFERROR(VLOOKUP($A31,Filtro!$A$5:$AX$2230,16,FALSE),0) -> 0 | S31: =IFERROR(VLOOKUP($A31,Filtro!$A$5:$AX$2230,17,FALSE),0) -> 2
A32: 03600110 | C32: RIESGO (desde normal con rezago) | D32: =IFERROR(VLOOKUP($A32,Filtro!$A$5:$AX$2230,2,FALSE),0) -> 17 | E32: =IFERROR(VLOOKUP($A32,Filtro!$A$5:$AX$2230,3,FALSE),0) -> 13 | F32: =IFERROR(VLOOKUP($A32,Filtro!$A$5:$AX$2230,4,FALSE),0) -> 4 | G32: =IFERROR(VLOOKUP($A32,Filtro!$A$5:$AX$2230,5,FALSE),0) -> 0 | H32: =IFERROR(VLOOKUP($A32,Filtro!$A$5:$AX$2230,6,FALSE),0) -> 0 | I32: =IFERROR(VLOOKUP($A32,Filtro!$A$5:$AX$2230,7,FALSE),0) -> 1 | J32: =IFERROR(VLOOKUP($A32,Filtro!$A$5:$AX$2230,8,FALSE),0) -> 0 | K32: =IFERROR(VLOOKUP($A32,Filtro!$A$5:$AX$2230,9,FALSE),0) -> 2 | L32: =IFERROR(VLOOKUP($A32,Filtro!$A$5:$AX$2230,10,FALSE),0) -> 2 | M32: =IFERROR(VLOOKUP($A32,Filtro!$A$5:$AX$2230,11,FALSE),0) -> 0 | N32: =IFERROR(VLOOKUP($A32,Filtro!$A$5:$AX$2230,12,FALSE),0) -> 0 | O32: =IFERROR(VLOOKUP($A32,Filtro!$A$5:$AX$2230,13,FALSE),0) -> 10 | P32: =IFERROR(VLOOKUP($A32,Filtro!$A$5:$AX$2230,14,FALSE),0) -> 2 | Q32: =IFERROR(VLOOKUP($A32,Filtro!$A$5:$AX$2230,15,FALSE),0) -> 0 | R32: =IFERROR(VLOOKUP($A32,Filtro!$A$5:$AX$2230,16,FALSE),0) -> 0 | S32: =IFERROR(VLOOKUP($A32,Filtro!$A$5:$AX$2230,17,FALSE),0) -> 2
A33: 02010422 | C33: RETRASO (desde retraso) | D33: =IFERROR(VLOOKUP($A33,Filtro!$A$5:$AX$2230,2,FALSE),0) -> 29 | E33: =IFERROR(VLOOKUP($A33,Filtro!$A$5:$AX$2230,3,FALSE),0) -> 20 | F33: =IFERROR(VLOOKUP($A33,Filtro!$A$5:$AX$2230,4,FALSE),0) -> 9 | G33: =IFERROR(VLOOKUP($A33,Filtro!$A$5:$AX$2230,5,FALSE),0) -> 0 | H33: =IFERROR(VLOOKUP($A33,Filtro!$A$5:$AX$2230,6,FALSE),0) -> 0 | I33: =IFERROR(VLOOKUP($A33,Filtro!$A$5:$AX$2230,7,FALSE),0) -> 1 | J33: =IFERROR(VLOOKUP($A33,Filtro!$A$5:$AX$2230,8,FALSE),0) -> 1 | K33: =IFERROR(VLOOKUP($A33,Filtro!$A$5:$AX$2230,9,FALSE),0) -> 1 | L33: =IFERROR(VLOOKUP($A33,Filtro!$A$5:$AX$2230,10,FALSE),0) -> 1 | M33: =IFERROR(VLOOKUP($A33,Filtro!$A$5:$AX$2230,11,FALSE),0) -> 7 | N33: =IFERROR(VLOOKUP($A33,Filtro!$A$5:$AX$2230,12,FALSE),0) -> 5 | O33: =IFERROR(VLOOKUP($A33,Filtro!$A$5:$AX$2230,13,FALSE),0) -> 7 | P33: =IFERROR(VLOOKUP($A33,Filtro!$A$5:$AX$2230,14,FALSE),0) -> 2 | Q33: =IFERROR(VLOOKUP($A33,Filtro!$A$5:$AX$2230,15,FALSE),0) -> 4 | R33: =IFERROR(VLOOKUP($A33,Filtro!$A$5:$AX$2230,16,FALSE),0) -> 0 | S33: =IFERROR(VLOOKUP($A33,Filtro!$A$5:$AX$2230,17,FALSE),0) -> 1
A34: 03600120 | C34: RETRASO (desde riesgo) | D34: =IFERROR(VLOOKUP($A34,Filtro!$A$5:$AX$2230,2,FALSE),0) -> 34 | E34: =IFERROR(VLOOKUP($A34,Filtro!$A$5:$AX$2230,3,FALSE),0) -> 27 | F34: =IFERROR(VLOOKUP($A34,Filtro!$A$5:$AX$2230,4,FALSE),0) -> 7 | G34: =IFERROR(VLOOKUP($A34,Filtro!$A$5:$AX$2230,5,FALSE),0) -> 0 | H34: =IFERROR(VLOOKUP($A34,Filtro!$A$5:$AX$2230,6,FALSE),0) -> 0 | I34: =IFERROR(VLOOKUP($A34,Filtro!$A$5:$AX$2230,7,FALSE),0) -> 2 | J34: =IFERROR(VLOOKUP($A34,Filtro!$A$5:$AX$2230,8,FALSE),0) -> 0 | K34: =IFERROR(VLOOKUP($A34,Filtro!$A$5:$AX$2230,9,FALSE),0) -> 3 | L34: =IFERROR(VLOOKUP($A34,Filtro!$A$5:$AX$2230,10,FALSE),0) -> 1 | M34: =IFERROR(VLOOKUP($A34,Filtro!$A$5:$AX$2230,11,FALSE),0) -> 12 | N34: =IFERROR(VLOOKUP($A34,Filtro!$A$5:$AX$2230,12,FALSE),0) -> 4 | O34: =IFERROR(VLOOKUP($A34,Filtro!$A$5:$AX$2230,13,FALSE),0) -> 10 | P34: =IFERROR(VLOOKUP($A34,Filtro!$A$5:$AX$2230,14,FALSE),0) -> 1 | Q34: =IFERROR(VLOOKUP($A34,Filtro!$A$5:$AX$2230,15,FALSE),0) -> 0 | R34: =IFERROR(VLOOKUP($A34,Filtro!$A$5:$AX$2230,16,FALSE),0) -> 1 | S34: =IFERROR(VLOOKUP($A34,Filtro!$A$5:$AX$2230,17,FALSE),0) -> 0
A35: 03600130 | C35: RETRASO (desde normal con rezago) | D35: =IFERROR(VLOOKUP($A35,Filtro!$A$5:$AX$2230,2,FALSE),0) -> 3 | E35: =IFERROR(VLOOKUP($A35,Filtro!$A$5:$AX$2230,3,FALSE),0) -> 2 | F35: =IFERROR(VLOOKUP($A35,Filtro!$A$5:$AX$2230,4,FALSE),0) -> 1 | G35: =IFERROR(VLOOKUP($A35,Filtro!$A$5:$AX$2230,5,FALSE),0) -> 0 | H35: =IFERROR(VLOOKUP($A35,Filtro!$A$5:$AX$2230,6,FALSE),0) -> 0 | I35: =IFERROR(VLOOKUP($A35,Filtro!$A$5:$AX$2230,7,FALSE),0) -> 1 | J35: =IFERROR(VLOOKUP($A35,Filtro!$A$5:$AX$2230,8,FALSE),0) -> 0 | K35: =IFERROR(VLOOKUP($A35,Filtro!$A$5:$AX$2230,9,FALSE),0) -> 0 | L35: =IFERROR(VLOOKUP($A35,Filtro!$A$5:$AX$2230,10,FALSE),0) -> 0 | M35: =IFERROR(VLOOKUP($A35,Filtro!$A$5:$AX$2230,11,FALSE),0) -> 0 | N35: =IFERROR(VLOOKUP($A35,Filtro!$A$5:$AX$2230,12,FALSE),0) -> 0 | O35: =IFERROR(VLOOKUP($A35,Filtro!$A$5:$AX$2230,13,FALSE),0) -> 1 | P35: =IFERROR(VLOOKUP($A35,Filtro!$A$5:$AX$2230,14,FALSE),0) -> 1 | Q35: =IFERROR(VLOOKUP($A35,Filtro!$A$5:$AX$2230,15,FALSE),0) -> 0 | R35: =IFERROR(VLOOKUP($A35,Filtro!$A$5:$AX$2230,16,FALSE),0) -> 0 | S35: =IFERROR(VLOOKUP($A35,Filtro!$A$5:$AX$2230,17,FALSE),0) -> 3
A36: 03500331 | B36: DERIVADOS A ESPECIALIDAD | C36: RIESGO | D36: =IFERROR(VLOOKUP($A36,Filtro!$A$5:$AX$2230,2,FALSE),0) -> 76 | E36: =IFERROR(VLOOKUP($A36,Filtro!$A$5:$AX$2230,3,FALSE),0) -> 45 | F36: =IFERROR(VLOOKUP($A36,Filtro!$A$5:$AX$2230,4,FALSE),0) -> 31 | G36: =IFERROR(VLOOKUP($A36,Filtro!$A$5:$AX$2230,5,FALSE),0) -> 0 | H36: =IFERROR(VLOOKUP($A36,Filtro!$A$5:$AX$2230,6,FALSE),0) -> 0 | I36: =IFERROR(VLOOKUP($A36,Filtro!$A$5:$AX$2230,7,FALSE),0) -> 4 | J36: =IFERROR(VLOOKUP($A36,Filtro!$A$5:$AX$2230,8,FALSE),0) -> 7 | K36: =IFERROR(VLOOKUP($A36,Filtro!$A$5:$AX$2230,9,FALSE),0) -> 7 | L36: =IFERROR(VLOOKUP($A36,Filtro!$A$5:$AX$2230,10,FALSE),0) -> 1 | M36: =IFERROR(VLOOKUP($A36,Filtro!$A$5:$AX$2230,11,FALSE),0) -> 26 | N36: =IFERROR(VLOOKUP($A36,Filtro!$A$5:$AX$2230,12,FALSE),0) -> 19 | O36: =IFERROR(VLOOKUP($A36,Filtro!$A$5:$AX$2230,13,FALSE),0) -> 7 | P36: =IFERROR(VLOOKUP($A36,Filtro!$A$5:$AX$2230,14,FALSE),0) -> 4 | Q36: =IFERROR(VLOOKUP($A36,Filtro!$A$5:$AX$2230,15,FALSE),0) -> 1 | R36: =IFERROR(VLOOKUP($A36,Filtro!$A$5:$AX$2230,16,FALSE),0) -> 0 | S36: =IFERROR(VLOOKUP($A36,Filtro!$A$5:$AX$2230,17,FALSE),0) -> 0
A37: 03500332 | C37: RETRASO | D37: =IFERROR(VLOOKUP($A37,Filtro!$A$5:$AX$2230,2,FALSE),0) -> 83 | E37: =IFERROR(VLOOKUP($A37,Filtro!$A$5:$AX$2230,3,FALSE),0) -> 57 | F37: =IFERROR(VLOOKUP($A37,Filtro!$A$5:$AX$2230,4,FALSE),0) -> 26 | G37: =IFERROR(VLOOKUP($A37,Filtro!$A$5:$AX$2230,5,FALSE),0) -> 0 | H37: =IFERROR(VLOOKUP($A37,Filtro!$A$5:$AX$2230,6,FALSE),0) -> 1 | I37: =IFERROR(VLOOKUP($A37,Filtro!$A$5:$AX$2230,7,FALSE),0) -> 2 | J37: =IFERROR(VLOOKUP($A37,Filtro!$A$5:$AX$2230,8,FALSE),0) -> 0 | K37: =IFERROR(VLOOKUP($A37,Filtro!$A$5:$AX$2230,9,FALSE),0) -> 4 | L37: =IFERROR(VLOOKUP($A37,Filtro!$A$5:$AX$2230,10,FALSE),0) -> 10 | M37: =IFERROR(VLOOKUP($A37,Filtro!$A$5:$AX$2230,11,FALSE),0) -> 21 | N37: =IFERROR(VLOOKUP($A37,Filtro!$A$5:$AX$2230,12,FALSE),0) -> 11 | O37: =IFERROR(VLOOKUP($A37,Filtro!$A$5:$AX$2230,13,FALSE),0) -> 28 | P37: =IFERROR(VLOOKUP($A37,Filtro!$A$5:$AX$2230,14,FALSE),0) -> 4 | Q37: =IFERROR(VLOOKUP($A37,Filtro!$A$5:$AX$2230,15,FALSE),0) -> 3 | R37: =IFERROR(VLOOKUP($A37,Filtro!$A$5:$AX$2230,16,FALSE),0) -> 0 | S37: =IFERROR(VLOOKUP($A37,Filtro!$A$5:$AX$2230,17,FALSE),0) -> 1
A38: 03500333 | B38: TRASLADO DE ESTABLECIMIENTO | C38: NORMAL CON REZAGO | D38: =IFERROR(VLOOKUP($A38,Filtro!$A$5:$AX$2230,2,FALSE),0) -> 2 | E38: =IFERROR(VLOOKUP($A38,Filtro!$A$5:$AX$2230,3,FALSE),0) -> 2 | F38: =IFERROR(VLOOKUP($A38,Filtro!$A$5:$AX$2230,4,FALSE),0) -> 0 | G38: =IFERROR(VLOOKUP($A38,Filtro!$A$5:$AX$2230,5,FALSE),0) -> 0 | H38: =IFERROR(VLOOKUP($A38,Filtro!$A$5:$AX$2230,6,FALSE),0) -> 0 | I38: =IFERROR(VLOOKUP($A38,Filtro!$A$5:$AX$2230,7,FALSE),0) -> 0 | J38: =IFERROR(VLOOKUP($A38,Filtro!$A$5:$AX$2230,8,FALSE),0) -> 0 | K38: =IFERROR(VLOOKUP($A38,Filtro!$A$5:$AX$2230,9,FALSE),0) -> 1 | L38: =IFERROR(VLOOKUP($A38,Filtro!$A$5:$AX$2230,10,FALSE),0) -> 0 | M38: =IFERROR(VLOOKUP($A38,Filtro!$A$5:$AX$2230,11,FALSE),0) -> 1 | N38: =IFERROR(VLOOKUP($A38,Filtro!$A$5:$AX$2230,12,FALSE),0) -> 0 | O38: =IFERROR(VLOOKUP($A38,Filtro!$A$5:$AX$2230,13,FALSE),0) -> 0 | P38: =IFERROR(VLOOKUP($A38,Filtro!$A$5:$AX$2230,14,FALSE),0) -> 0 | Q38: =IFERROR(VLOOKUP($A38,Filtro!$A$5:$AX$2230,15,FALSE),0) -> 0 | R38: =IFERROR(VLOOKUP($A38,Filtro!$A$5:$AX$2230,16,FALSE),0) -> 0 | S38: =IFERROR(VLOOKUP($A38,Filtro!$A$5:$AX$2230,17,FALSE),0) -> 0
A39: 03500334 | C39: RIESGO | D39: =IFERROR(VLOOKUP($A39,Filtro!$A$5:$AX$2230,2,FALSE),0) -> 4 | E39: =IFERROR(VLOOKUP($A39,Filtro!$A$5:$AX$2230,3,FALSE),0) -> 3 | F39: =IFERROR(VLOOKUP($A39,Filtro!$A$5:$AX$2230,4,FALSE),0) -> 1 | G39: =IFERROR(VLOOKUP($A39,Filtro!$A$5:$AX$2230,5,FALSE),0) -> 0 | H39: =IFERROR(VLOOKUP($A39,Filtro!$A$5:$AX$2230,6,FALSE),0) -> 0 | I39: =IFERROR(VLOOKUP($A39,Filtro!$A$5:$AX$2230,7,FALSE),0) -> 1 | J39: =IFERROR(VLOOKUP($A39,Filtro!$A$5:$AX$2230,8,FALSE),0) -> 0 | K39: =IFERROR(VLOOKUP($A39,Filtro!$A$5:$AX$2230,9,FALSE),0) -> 0 | L39: =IFERROR(VLOOKUP($A39,Filtro!$A$5:$AX$2230,10,FALSE),0) -> 0 | M39: =IFERROR(VLOOKUP($A39,Filtro!$A$5:$AX$2230,11,FALSE),0) -> 1 | N39: =IFERROR(VLOOKUP($A39,Filtro!$A$5:$AX$2230,12,FALSE),0) -> 1 | O39: =IFERROR(VLOOKUP($A39,Filtro!$A$5:$AX$2230,13,FALSE),0) -> 0 | P39: =IFERROR(VLOOKUP($A39,Filtro!$A$5:$AX$2230,14,FALSE),0) -> 0 | Q39: =IFERROR(VLOOKUP($A39,Filtro!$A$5:$AX$2230,15,FALSE),0) -> 1 | R39: =IFERROR(VLOOKUP($A39,Filtro!$A$5:$AX$2230,16,FALSE),0) -> 0 | S39: =IFERROR(VLOOKUP($A39,Filtro!$A$5:$AX$2230,17,FALSE),0) -> 1
A40: 03500335 | C40: RETRASO | D40: =IFERROR(VLOOKUP($A40,Filtro!$A$5:$AX$2230,2,FALSE),0) -> 2 | E40: =IFERROR(VLOOKUP($A40,Filtro!$A$5:$AX$2230,3,FALSE),0) -> 1 | F40: =IFERROR(VLOOKUP($A40,Filtro!$A$5:$AX$2230,4,FALSE),0) -> 1 | G40: =IFERROR(VLOOKUP($A40,Filtro!$A$5:$AX$2230,5,FALSE),0) -> 0 | H40: =IFERROR(VLOOKUP($A40,Filtro!$A$5:$AX$2230,6,FALSE),0) -> 0 | I40: =IFERROR(VLOOKUP($A40,Filtro!$A$5:$AX$2230,7,FALSE),0) -> 0 | J40: =IFERROR(VLOOKUP($A40,Filtro!$A$5:$AX$2230,8,FALSE),0) -> 0 | K40: =IFERROR(VLOOKUP($A40,Filtro!$A$5:$AX$2230,9,FALSE),0) -> 0 | L40: =IFERROR(VLOOKUP($A40,Filtro!$A$5:$AX$2230,10,FALSE),0) -> 0 | M40: =IFERROR(VLOOKUP($A40,Filtro!$A$5:$AX$2230,11,FALSE),0) -> 1 | N40: =IFERROR(VLOOKUP($A40,Filtro!$A$5:$AX$2230,12,FALSE),0) -> 0 | O40: =IFERROR(VLOOKUP($A40,Filtro!$A$5:$AX$2230,13,FALSE),0) -> 0 | P40: =IFERROR(VLOOKUP($A40,Filtro!$A$5:$AX$2230,14,FALSE),0) -> 1 | Q40: =IFERROR(VLOOKUP($A40,Filtro!$A$5:$AX$2230,15,FALSE),0) -> 0 | R40: =IFERROR(VLOOKUP($A40,Filtro!$A$5:$AX$2230,16,FALSE),0) -> 0 | S40: =IFERROR(VLOOKUP($A40,Filtro!$A$5:$AX$2230,17,FALSE),0) -> 0
B41: SECCIÓN A.3: NIÑOS Y NIÑAS CON REZAGO, DÉFICIT U OTRA VULNERABILIDAD DERIVADOS A ALGUNA MODALIDAD DE ESTIMULACIÓN EN LA PRIMERA EVALUACIÓN
B42: NIÑO / A | D42: TOTAL | G42: POR EDAD
G43: Menor 7 meses | I43: 7 - 11 meses | K43: 12 - 17 meses | M43: 18 - 23 meses | O43: 24 - 47 meses | Q43: 48 - 59 meses
D44: Ambos Sexos | E44: Hombres | F44: Mujeres | G44: Hombres | H44: Mujeres | I44: Hombres | J44: Mujeres | K44: Hombres | L44: Mujeres | M44: Hombres | N44: Mujeres | O44: Hombres | P44: Mujeres | Q44: Hombres | R44: Mujeres
A45: 02021790 | B45: NORMAL CON REZAGO | D45: =IFERROR(VLOOKUP($A45,Filtro!$A$5:$AX$2230,2,FALSE),0) -> 755 | E45: =IFERROR(VLOOKUP($A45,Filtro!$A$5:$AX$2230,3,FALSE),0) -> 435 | F45: =IFERROR(VLOOKUP($A45,Filtro!$A$5:$AX$2230,4,FALSE),0) -> 320 | G45: =IFERROR(VLOOKUP($A45,Filtro!$A$5:$AX$2230,5,FALSE),0) -> 33 | H45: =IFERROR(VLOOKUP($A45,Filtro!$A$5:$AX$2230,6,FALSE),0) -> 34 | I45: =IFERROR(VLOOKUP($A45,Filtro!$A$5:$AX$2230,7,FALSE),0) -> 57 | J45: =IFERROR(VLOOKUP($A45,Filtro!$A$5:$AX$2230,8,FALSE),0) -> 63 | K45: =IFERROR(VLOOKUP($A45,Filtro!$A$5:$AX$2230,9,FALSE),0) -> 39 | L45: =IFERROR(VLOOKUP($A45,Filtro!$A$5:$AX$2230,10,FALSE),0) -> 23 | M45: =IFERROR(VLOOKUP($A45,Filtro!$A$5:$AX$2230,11,FALSE),0) -> 87 | N45: =IFERROR(VLOOKUP($A45,Filtro!$A$5:$AX$2230,12,FALSE),0) -> 70 | O45: =IFERROR(VLOOKUP($A45,Filtro!$A$5:$AX$2230,13,FALSE),0) -> 202 | P45: =IFERROR(VLOOKUP($A45,Filtro!$A$5:$AX$2230,14,FALSE),0) -> 123 | Q45: =IFERROR(VLOOKUP($A45,Filtro!$A$5:$AX$2230,15,FALSE),0) -> 17 | R45: =IFERROR(VLOOKUP($A45,Filtro!$A$5:$AX$2230,16,FALSE),0) -> 7 | CB45: =IF(D45<>'A05'!D89,"* Niños derivados deben ser iguales al ingreso de niños(as) Normal con Rezago a salas de estimulación REM A05 sección F. ","") -> * Niños derivados deben ser iguales al ingreso de niños(as) Normal con Rezago a salas de estimulación REM A05 sección F.
A46: 02021810 | B46: RIESGO | D46: =IFERROR(VLOOKUP($A46,Filtro!$A$5:$AX$2230,2,FALSE),0) -> 909 | E46: =IFERROR(VLOOKUP($A46,Filtro!$A$5:$AX$2230,3,FALSE),0) -> 565 | F46: =IFERROR(VLOOKUP($A46,Filtro!$A$5:$AX$2230,4,FALSE),0) -> 344 | G46: =IFERROR(VLOOKUP($A46,Filtro!$A$5:$AX$2230,5,FALSE),0) -> 7 | H46: =IFERROR(VLOOKUP($A46,Filtro!$A$5:$AX$2230,6,FALSE),0) -> 5 | I46: =IFERROR(VLOOKUP($A46,Filtro!$A$5:$AX$2230,7,FALSE),0) -> 77 | J46: =IFERROR(VLOOKUP($A46,Filtro!$A$5:$AX$2230,8,FALSE),0) -> 55 | K46: =IFERROR(VLOOKUP($A46,Filtro!$A$5:$AX$2230,9,FALSE),0) -> 35 | L46: =IFERROR(VLOOKUP($A46,Filtro!$A$5:$AX$2230,10,FALSE),0) -> 30 | M46: =IFERROR(VLOOKUP($A46,Filtro!$A$5:$AX$2230,11,FALSE),0) -> 234 | N46: =IFERROR(VLOOKUP($A46,Filtro!$A$5:$AX$2230,12,FALSE),0) -> 167 | O46: =IFERROR(VLOOKUP($A46,Filtro!$A$5:$AX$2230,13,FALSE),0) -> 203 | P46: =IFERROR(VLOOKUP($A46,Filtro!$A$5:$AX$2230,14,FALSE),0) -> 81 | Q46: =IFERROR(VLOOKUP($A46,Filtro!$A$5:$AX$2230,15,FALSE),0) -> 9 | R46: =IFERROR(VLOOKUP($A46,Filtro!$A$5:$AX$2230,16,FALSE),0) -> 6 | CB46: =IF(D46<>'A05'!D90,"* Niños derivados deben ser iguales al ingreso de niños(as) con Riesgo a salas de estimulación REM A05 sección F. ","") -> * Niños derivados deben ser iguales al ingreso de niños(as) con Riesgo a salas de estimulación REM A05 sección F.
A47: 02021820 | B47: RETRASO | D47: =IFERROR(VLOOKUP($A47,Filtro!$A$5:$AX$2230,2,FALSE),0) -> 264 | E47: =IFERROR(VLOOKUP($A47,Filtro!$A$5:$AX$2230,3,FALSE),0) -> 173 | F47: =IFERROR(VLOOKUP($A47,Filtro!$A$5:$AX$2230,4,FALSE),0) -> 91 | G47: =IFERROR(VLOOKUP($A47,Filtro!$A$5:$AX$2230,5,FALSE),0) -> 1 | H47: =IFERROR(VLOOKUP($A47,Filtro!$A$5:$AX$2230,6,FALSE),0) -> 0 | I47: =IFERROR(VLOOKUP($A47,Filtro!$A$5:$AX$2230,7,FALSE),0) -> 11 | J47: =IFERROR(VLOOKUP($A47,Filtro!$A$5:$AX$2230,8,FALSE),0) -> 10 | K47: =IFERROR(VLOOKUP($A47,Filtro!$A$5:$AX$2230,9,FALSE),0) -> 13 | L47: =IFERROR(VLOOKUP($A47,Filtro!$A$5:$AX$2230,10,FALSE),0) -> 7 | M47: =IFERROR(VLOOKUP($A47,Filtro!$A$5:$AX$2230,11,FALSE),0) -> 72 | N47: =IFERROR(VLOOKUP($A47,Filtro!$A$5:$AX$2230,12,FALSE),0) -> 44 | O47: =IFERROR(VLOOKUP($A47,Filtro!$A$5:$AX$2230,13,FALSE),0) -> 71 | P47: =IFERROR(VLOOKUP($A47,Filtro!$A$5:$AX$2230,14,FALSE),0) -> 26 | Q47: =IFERROR(VLOOKUP($A47,Filtro!$A$5:$AX$2230,15,FALSE),0) -> 5 | R47: =IFERROR(VLOOKUP($A47,Filtro!$A$5:$AX$2230,16,FALSE),0) -> 4 | CB47: =IF(D47<>'A05'!D91,"* Niños derivados deben ser iguales al ingreso de niños(as) con Retraso a salas de estimulación REM A05 sección F. ","") -> * Niños derivados deben ser iguales al ingreso de niños(as) con Retraso a salas de estimulación REM A05 sección F.
A48: 05225307 | B48: OTRA VULNERABILIDAD | D48: =IFERROR(VLOOKUP($A48,Filtro!$A$5:$AX$2230,2,FALSE),0) -> 1398 | E48: =IFERROR(VLOOKUP($A48,Filtro!$A$5:$AX$2230,3,FALSE),0) -> 757 | F48: =IFERROR(VLOOKUP($A48,Filtro!$A$5:$AX$2230,4,FALSE),0) -> 641 | G48: =IFERROR(VLOOKUP($A48,Filtro!$A$5:$AX$2230,5,FALSE),0) -> 161 | H48: =IFERROR(VLOOKUP($A48,Filtro!$A$5:$AX$2230,6,FALSE),0) -> 217 | I48: =IFERROR(VLOOKUP($A48,Filtro!$A$5:$AX$2230,7,FALSE),0) -> 71 | J48: =IFERROR(VLOOKUP($A48,Filtro!$A$5:$AX$2230,8,FALSE),0) -> 74 | K48: =IFERROR(VLOOKUP($A48,Filtro!$A$5:$AX$2230,9,FALSE),0) -> 95 | L48: =IFERROR(VLOOKUP($A48,Filtro!$A$5:$AX$2230,10,FALSE),0) -> 61 | M48: =IFERROR(VLOOKUP($A48,Filtro!$A$5:$AX$2230,11,FALSE),0) -> 88 | N48: =IFERROR(VLOOKUP($A48,Filtro!$A$5:$AX$2230,12,FALSE),0) -> 61 | O48: =IFERROR(VLOOKUP($A48,Filtro!$A$5:$AX$2230,13,FALSE),0) -> 271 | P48: =IFERROR(VLOOKUP($A48,Filtro!$A$5:$AX$2230,14,FALSE),0) -> 189 | Q48: =IFERROR(VLOOKUP($A48,Filtro!$A$5:$AX$2230,15,FALSE),0) -> 71 | R48: =IFERROR(VLOOKUP($A48,Filtro!$A$5:$AX$2230,16,FALSE),0) -> 39 | CB48: =IF(D48<>'A05'!D92,"* Niños derivados deben ser iguales al ingreso de niños(as) con Otras Vulnerabilidad a salas de estimulación REM A05 sección F. ","") -> * Niños derivados deben ser iguales al ingreso de niños(as) con Otras Vulnerabilidad a salas de estimulación REM A05 sección F.
B49: SECCIÓN A.4: RESULTADOS DE LA APLICACIÓN DE PROTOCOLO NEUROSENSORIAL
B50: RESULTADOS | D50: TOTAL | G50: POR EDAD
G51: 1 mes | I51: 2 meses
D52: Ambos Sexos | E52: Hombres | F52: Mujeres | G52: Hombres | H52: Mujeres | I52: Hombres | J52: Mujeres
A53: 02021760 | B53: APLICACIÓN DE PROTOCOLO NEUROSENSORIAL (1-2 MESES) | D53: =IFERROR(VLOOKUP($A53,Filtro!$A$5:$AX$2230,2,FALSE),0) -> 4290 | E53: =IFERROR(VLOOKUP($A53,Filtro!$A$5:$AX$2230,3,FALSE),0) -> 2153 | F53: =IFERROR(VLOOKUP($A53,Filtro!$A$5:$AX$2230,4,FALSE),0) -> 2137 | G53: =IFERROR(VLOOKUP($A53,Filtro!$A$5:$AX$2230,5,FALSE),0) -> 1788 | H53: =IFERROR(VLOOKUP($A53,Filtro!$A$5:$AX$2230,6,FALSE),0) -> 1730 | I53: =IFERROR(VLOOKUP($A53,Filtro!$A$5:$AX$2230,7,FALSE),0) -> 365 | J53: =IFERROR(VLOOKUP($A53,Filtro!$A$5:$AX$2230,8,FALSE),0) -> 407
A54: 03500040 | B54: NORMAL | D54: =IFERROR(VLOOKUP($A54,Filtro!$A$5:$AX$2230,2,FALSE),0) -> 3726 | E54: =IFERROR(VLOOKUP($A54,Filtro!$A$5:$AX$2230,3,FALSE),0) -> 1852 | F54: =IFERROR(VLOOKUP($A54,Filtro!$A$5:$AX$2230,4,FALSE),0) -> 1874 | G54: =IFERROR(VLOOKUP($A54,Filtro!$A$5:$AX$2230,5,FALSE),0) -> 1545 | H54: =IFERROR(VLOOKUP($A54,Filtro!$A$5:$AX$2230,6,FALSE),0) -> 1539 | I54: =IFERROR(VLOOKUP($A54,Filtro!$A$5:$AX$2230,7,FALSE),0) -> 307 | J54: =IFERROR(VLOOKUP($A54,Filtro!$A$5:$AX$2230,8,FALSE),0) -> 335
A55: 03500050 | B55: ANORMAL | D55: =IFERROR(VLOOKUP($A55,Filtro!$A$5:$AX$2230,2,FALSE),0) -> 542 | E55: =IFERROR(VLOOKUP($A55,Filtro!$A$5:$AX$2230,3,FALSE),0) -> 285 | F55: =IFERROR(VLOOKUP($A55,Filtro!$A$5:$AX$2230,4,FALSE),0) -> 257 | G55: =IFERROR(VLOOKUP($A55,Filtro!$A$5:$AX$2230,5,FALSE),0) -> 234 | H55: =IFERROR(VLOOKUP($A55,Filtro!$A$5:$AX$2230,6,FALSE),0) -> 185 | I55: =IFERROR(VLOOKUP($A55,Filtro!$A$5:$AX$2230,7,FALSE),0) -> 51 | J55: =IFERROR(VLOOKUP($A55,Filtro!$A$5:$AX$2230,8,FALSE),0) -> 72
A56: 03500060 | B56: MUY ANORMAL | D56: =IFERROR(VLOOKUP($A56,Filtro!$A$5:$AX$2230,2,FALSE),0) -> 22 | E56: =IFERROR(VLOOKUP($A56,Filtro!$A$5:$AX$2230,3,FALSE),0) -> 16 | F56: =IFERROR(VLOOKUP($A56,Filtro!$A$5:$AX$2230,4,FALSE),0) -> 6 | G56: =IFERROR(VLOOKUP($A56,Filtro!$A$5:$AX$2230,5,FALSE),0) -> 9 | H56: =IFERROR(VLOOKUP($A56,Filtro!$A$5:$AX$2230,6,FALSE),0) -> 6 | I56: =IFERROR(VLOOKUP($A56,Filtro!$A$5:$AX$2230,7,FALSE),0) -> 7 | J56: =IFERROR(VLOOKUP($A56,Filtro!$A$5:$AX$2230,8,FALSE),0) -> 0
B57: SECCIÓN A.5: LACTANCIA MATERNA EN MENORES CONTROLADOS
B58: TIPO DE ALIMENTACIÓN | D58: TOTAL | G58: SEGÚN CONTROL PROGRAMÁTICO | Q58: Pueblos Originarios | R58: Migrantes
G59: Del 1° mes | I59: Del 3° mes | K59: Del 6° mes | M59: Del 12° mes | O59: Del 24° mes | CG59: 0 | CH59: 0 | CI59: 0 | CJ59: 0 | CK59: 0 | CL59: 0
D60: Ambos Sexos | E60: Hombres | F60: Mujeres | G60: Hombres | H60: Mujeres | I60: Hombres | J60: Mujeres | K60: Hombres | L60: Mujeres | M60: Hombres | N60: Mujeres | O60: Hombres | P60: Mujeres
A61: A0200001 | B61: MENORES CONTROLADOS | D61: =IFERROR(VLOOKUP($A61,Filtro!$A$5:$AX$2230,2,FALSE),0) -> 0 | E61: =IFERROR(VLOOKUP($A61,Filtro!$A$5:$AX$2230,3,FALSE),0) -> 0 | F61: =IFERROR(VLOOKUP($A61,Filtro!$A$5:$AX$2230,4,FALSE),0) -> 0 | G61: =IFERROR(VLOOKUP($A61,Filtro!$A$5:$AX$2230,5,FALSE),0) -> 0 | H61: =IFERROR(VLOOKUP($A61,Filtro!$A$5:$AX$2230,6,FALSE),0) -> 0 | I61: =IFERROR(VLOOKUP($A61,Filtro!$A$5:$AX$2230,7,FALSE),0) -> 0 | J61: =IFERROR(VLOOKUP($A61,Filtro!$A$5:$AX$2230,8,FALSE),0) -> 0 | K61: =IFERROR(VLOOKUP($A61,Filtro!$A$5:$AX$2230,9,FALSE),0) -> 0 | L61: =IFERROR(VLOOKUP($A61,Filtro!$A$5:$AX$2230,10,FALSE),0) -> 0 | M61: =IFERROR(VLOOKUP($A61,Filtro!$A$5:$AX$2230,11,FALSE),0) -> 0 | N61: =IFERROR(VLOOKUP($A61,Filtro!$A$5:$AX$2230,212,FALSE),0) -> 0 | O61: =IFERROR(VLOOKUP($A61,Filtro!$A$5:$AX$2230,13,FALSE),0) -> 0 | P61: =IFERROR(VLOOKUP($A61,Filtro!$A$5:$AX$2230,14,FALSE),0) -> 0 | Q61: =IFERROR(VLOOKUP($A61,Filtro!$A$5:$AX$2230,15,FALSE),0) -> 0 | R61: =IFERROR(VLOOKUP($A61,Filtro!$A$5:$AX$2230,16,FALSE),0) -> 0 | CH61: 0 | CI61: 0 | CJ61: 0 | CK61: 0 | CL61: 0
A62: A0200002 | B62: LACTANCIA MATERNA EXCLUSIVA | D62: =IFERROR(VLOOKUP($A62,Filtro!$A$5:$AX$2230,2,FALSE),0) -> 0 | E62: =IFERROR(VLOOKUP($A62,Filtro!$A$5:$AX$2230,3,FALSE),0) -> 0 | F62: =IFERROR(VLOOKUP($A62,Filtro!$A$5:$AX$2230,4,FALSE),0) -> 0 | G62: =IFERROR(VLOOKUP($A62,Filtro!$A$5:$AX$2230,5,FALSE),0) -> 0 | H62: =IFERROR(VLOOKUP($A62,Filtro!$A$5:$AX$2230,6,FALSE),0) -> 0 | I62: =IFERROR(VLOOKUP($A62,Filtro!$A$5:$AX$2230,7,FALSE),0) -> 0 | J62: =IFERROR(VLOOKUP($A62,Filtro!$A$5:$AX$2230,8,FALSE),0) -> 0 | K62: =IFERROR(VLOOKUP($A62,Filtro!$A$5:$AX$2230,9,FALSE),0) -> 0 | L62: =IFERROR(VLOOKUP($A62,Filtro!$A$5:$AX$2230,10,FALSE),0) -> 0 | M62: =IFERROR(VLOOKUP($A62,Filtro!$A$5:$AX$2230,11,FALSE),0) -> 0 | N62: =IFERROR(VLOOKUP($A62,Filtro!$A$5:$AX$2230,12,FALSE),0) -> 0 | O62: =IFERROR(VLOOKUP($A62,Filtro!$A$5:$AX$2230,13,FALSE),0) -> 0 | P62: =IFERROR(VLOOKUP($A62,Filtro!$A$5:$AX$2230,14,FALSE),0) -> 0 | Q62: =IFERROR(VLOOKUP($A62,Filtro!$A$5:$AX$2230,15,FALSE),0) -> 0 | R62: =IFERROR(VLOOKUP($A62,Filtro!$A$5:$AX$2230,16,FALSE),0) -> 0
A63: 03500359 | B63: LACTANCIA MATERNA / FORMULA LÁCTEA | D63: =IFERROR(VLOOKUP($A63,Filtro!$A$5:$AX$2230,2,FALSE),0) -> 2206 | E63: =IFERROR(VLOOKUP($A63,Filtro!$A$5:$AX$2230,3,FALSE),0) -> 1141 | F63: =IFERROR(VLOOKUP($A63,Filtro!$A$5:$AX$2230,4,FALSE),0) -> 1065 | G63: =IFERROR(VLOOKUP($A63,Filtro!$A$5:$AX$2230,5,FALSE),0) -> 510 | H63: =IFERROR(VLOOKUP($A63,Filtro!$A$5:$AX$2230,6,FALSE),0) -> 489 | I63: =IFERROR(VLOOKUP($A63,Filtro!$A$5:$AX$2230,7,FALSE),0) -> 369 | J63: =IFERROR(VLOOKUP($A63,Filtro!$A$5:$AX$2230,8,FALSE),0) -> 347 | K63: =IFERROR(VLOOKUP($A63,Filtro!$A$5:$AX$2230,9,FALSE),0) -> 262 | L63: =IFERROR(VLOOKUP($A63,Filtro!$A$5:$AX$2230,10,FALSE),0) -> 229 | M63: =IFERROR(VLOOKUP($A63,Filtro!$A$5:$AX$2230,11,FALSE),0) -> 0 | N63: =IFERROR(VLOOKUP($A63,Filtro!$A$5:$AX$2230,12,FALSE),0) -> 0 | O63: =IFERROR(VLOOKUP($A63,Filtro!$A$5:$AX$2230,13,FALSE),0) -> 0 | P63: =IFERROR(VLOOKUP($A63,Filtro!$A$5:$AX$2230,14,FALSE),0) -> 0 | Q63: =IFERROR(VLOOKUP($A63,Filtro!$A$5:$AX$2230,15,FALSE),0) -> 0 | R63: =IFERROR(VLOOKUP($A63,Filtro!$A$5:$AX$2230,16,FALSE),0) -> 7
A64: 03500360 | B64: FORMULA LÁCTEA | D64: =IFERROR(VLOOKUP($A64,Filtro!$A$5:$AX$2230,2,FALSE),0) -> 915 | E64: =IFERROR(VLOOKUP($A64,Filtro!$A$5:$AX$2230,3,FALSE),0) -> 494 | F64: =IFERROR(VLOOKUP($A64,Filtro!$A$5:$AX$2230,4,FALSE),0) -> 421 | G64: =IFERROR(VLOOKUP($A64,Filtro!$A$5:$AX$2230,5,FALSE),0) -> 99 | H64: =IFERROR(VLOOKUP($A64,Filtro!$A$5:$AX$2230,6,FALSE),0) -> 79 | I64: =IFERROR(VLOOKUP($A64,Filtro!$A$5:$AX$2230,7,FALSE),0) -> 188 | J64: =IFERROR(VLOOKUP($A64,Filtro!$A$5:$AX$2230,8,FALSE),0) -> 156 | K64: =IFERROR(VLOOKUP($A64,Filtro!$A$5:$AX$2230,9,FALSE),0) -> 207 | L64: =IFERROR(VLOOKUP($A64,Filtro!$A$5:$AX$2230,10,FALSE),0) -> 186 | M64: =IFERROR(VLOOKUP($A64,Filtro!$A$5:$AX$2230,11,FALSE),0) -> 0 | N64: =IFERROR(VLOOKUP($A64,Filtro!$A$5:$AX$2230,12,FALSE),0) -> 0 | O64: =IFERROR(VLOOKUP($A64,Filtro!$A$5:$AX$2230,13,FALSE),0) -> 0 | P64: =IFERROR(VLOOKUP($A64,Filtro!$A$5:$AX$2230,14,FALSE),0) -> 0 | Q64: =IFERROR(VLOOKUP($A64,Filtro!$A$5:$AX$2230,15,FALSE),0) -> 0 | R64: =IFERROR(VLOOKUP($A64,Filtro!$A$5:$AX$2230,16,FALSE),0) -> 1
A65: A0200003 | B65: LACTANCIA MATERNA MAS SÓLIDOS | D65: =IFERROR(VLOOKUP($A65,Filtro!$A$5:$AX$2230,2,FALSE),0) -> 0 | E65: =IFERROR(VLOOKUP($A65,Filtro!$A$5:$AX$2230,3,FALSE),0) -> 0 | F65: =IFERROR(VLOOKUP($A65,Filtro!$A$5:$AX$2230,4,FALSE),0) -> 0 | G65: =IFERROR(VLOOKUP($A65,Filtro!$A$5:$AX$2230,5,FALSE),0) -> 0 | H65: =IFERROR(VLOOKUP($A65,Filtro!$A$5:$AX$2230,6,FALSE),0) -> 0 | I65: =IFERROR(VLOOKUP($A65,Filtro!$A$5:$AX$2230,7,FALSE),0) -> 0 | J65: =IFERROR(VLOOKUP($A65,Filtro!$A$5:$AX$2230,8,FALSE),0) -> 0 | K65: =IFERROR(VLOOKUP($A65,Filtro!$A$5:$AX$2230,9,FALSE),0) -> 0 | L65: =IFERROR(VLOOKUP($A65,Filtro!$A$5:$AX$2230,10,FALSE),0) -> 0 | M65: =IFERROR(VLOOKUP($A65,Filtro!$A$5:$AX$2230,11,FALSE),0) -> 0 | N65: =IFERROR(VLOOKUP($A65,Filtro!$A$5:$AX$2230,12,FALSE),0) -> 0 | O65: =IFERROR(VLOOKUP($A65,Filtro!$A$5:$AX$2230,13,FALSE),0) -> 0 | P65: =IFERROR(VLOOKUP($A65,Filtro!$A$5:$AX$2230,14,FALSE),0) -> 0 | Q65: =IFERROR(VLOOKUP($A65,Filtro!$A$5:$AX$2230,15,FALSE),0) -> 0 | R65: =IFERROR(VLOOKUP($A65,Filtro!$A$5:$AX$2230,16,FALSE),0) -> 0
A66: 03600140 | B66: LACTANCIA MATERNA/FORMULA LÁCTEA MAS SÓLIDOS | D66: =IFERROR(VLOOKUP($A66,Filtro!$A$5:$AX$2230,2,FALSE),0) -> 1448 | E66: =IFERROR(VLOOKUP($A66,Filtro!$A$5:$AX$2230,3,FALSE),0) -> 777 | F66: =IFERROR(VLOOKUP($A66,Filtro!$A$5:$AX$2230,4,FALSE),0) -> 671 | G66: =IFERROR(VLOOKUP($A66,Filtro!$A$5:$AX$2230,5,FALSE),0) -> 0 | H66: =IFERROR(VLOOKUP($A66,Filtro!$A$5:$AX$2230,6,FALSE),0) -> 0 | I66: =IFERROR(VLOOKUP($A66,Filtro!$A$5:$AX$2230,7,FALSE),0) -> 0 | J66: =IFERROR(VLOOKUP($A66,Filtro!$A$5:$AX$2230,8,FALSE),0) -> 0 | K66: =IFERROR(VLOOKUP($A66,Filtro!$A$5:$AX$2230,9,FALSE),0) -> 113 | L66: =IFERROR(VLOOKUP($A66,Filtro!$A$5:$AX$2230,10,FALSE),0) -> 85 | M66: =IFERROR(VLOOKUP($A66,Filtro!$A$5:$AX$2230,11,FALSE),0) -> 418 | N66: =IFERROR(VLOOKUP($A66,Filtro!$A$5:$AX$2230,12,FALSE),0) -> 339 | O66: =IFERROR(VLOOKUP($A66,Filtro!$A$5:$AX$2230,13,FALSE),0) -> 246 | P66: =IFERROR(VLOOKUP($A66,Filtro!$A$5:$AX$2230,14,FALSE),0) -> 247 | Q66: =IFERROR(VLOOKUP($A66,Filtro!$A$5:$AX$2230,15,FALSE),0) -> 2 | R66: =IFERROR(VLOOKUP($A66,Filtro!$A$5:$AX$2230,16,FALSE),0) -> 1
A67: 03600150 | B67: FORMULA LÁCTEA MAS SÓLIDOS | D67: =IFERROR(VLOOKUP($A67,Filtro!$A$5:$AX$2230,2,FALSE),0) -> 1918 | E67: =IFERROR(VLOOKUP($A67,Filtro!$A$5:$AX$2230,3,FALSE),0) -> 1021 | F67: =IFERROR(VLOOKUP($A67,Filtro!$A$5:$AX$2230,4,FALSE),0) -> 897 | G67: =IFERROR(VLOOKUP($A67,Filtro!$A$5:$AX$2230,5,FALSE),0) -> 0 | H67: =IFERROR(VLOOKUP($A67,Filtro!$A$5:$AX$2230,6,FALSE),0) -> 0 | I67: =IFERROR(VLOOKUP($A67,Filtro!$A$5:$AX$2230,7,FALSE),0) -> 0 | J67: =IFERROR(VLOOKUP($A67,Filtro!$A$5:$AX$2230,8,FALSE),0) -> 0 | K67: =IFERROR(VLOOKUP($A67,Filtro!$A$5:$AX$2230,9,FALSE),0) -> 108 | L67: =IFERROR(VLOOKUP($A67,Filtro!$A$5:$AX$2230,10,FALSE),0) -> 97 | M67: =IFERROR(VLOOKUP($A67,Filtro!$A$5:$AX$2230,11,FALSE),0) -> 435 | N67: =IFERROR(VLOOKUP($A67,Filtro!$A$5:$AX$2230,12,FALSE),0) -> 339 | O67: =IFERROR(VLOOKUP($A67,Filtro!$A$5:$AX$2230,13,FALSE),0) -> 478 | P67: =IFERROR(VLOOKUP($A67,Filtro!$A$5:$AX$2230,14,FALSE),0) -> 461 | Q67: =IFERROR(VLOOKUP($A67,Filtro!$A$5:$AX$2230,15,FALSE),0) -> 2 | R67: =IFERROR(VLOOKUP($A67,Filtro!$A$5:$AX$2230,16,FALSE),0) -> 8
B68: SECCION B: EVALUACIÓN, APLICACIÓN Y RESULTADOS DE ESCALAS EN LA MUJER
B69: SECCIÓN B.1: EVALUACIÓN DEL ESTADO NUTRICIONAL A MUJERES CONTROLADAS AL OCTAVO MES POST PARTO
B70: ESTADO NUTRICIONAL | D70: TOTAL
B72: TOTAL | D72: =SUM(D73:D76) -> 382
A73: 03500120 | B73: OBESA | D73: =IFERROR(VLOOKUP($A73,Filtro!$A$5:$AX$2230,2,FALSE),0) -> 134
A74: 03500130 | B74: SOBREPESO | D74: =IFERROR(VLOOKUP($A74,Filtro!$A$5:$AX$2230,2,FALSE),0) -> 150
A75: 03500140 | B75: NORMAL | D75: =IFERROR(VLOOKUP($A75,Filtro!$A$5:$AX$2230,2,FALSE),0) -> 88 | F75: * Las aplicaciones de EPSA con resultado de Riesgo NO DEBE ser MAYOR que el Total de las aplicaciones. | CA75: * Las aplicaciones de EPSA con resultado de Riesgo NO DEBE ser MAYOR que el Total de las aplicaciones. | CC75: =IF(C75<='A05'!C11,"", "* Total de aplicaciones EPSA NO DEBE ser MAYOR que el Total de Gestantes ingresadas en REM A05 Sección A. ") ->  | CD75: =IF(D75<='A05'!D11,"", "* Total de aplicaciones EPSA NO DEBE ser MAYOR que el Total de Gestantes ingresadas en REM A05 Sección A. ") ->  | CG75: 1 | CH75: 0 | CI75: 0
A76: 03500150 | B76: BAJO PESO | D76: =IFERROR(VLOOKUP($A76,Filtro!$A$5:$AX$2230,2,FALSE),0) -> 10
B77: SECCIÓN B.2: APLICACIÓN DE ESCALA SEGÚN EVALUACIÓN DE RIESGO PSICOSOCIAL ABREVIADA A GESTANTES
B78: TIPO | D78: TOTAL DE APLICACIONES | E78: RIESGO | F78: DERIVADAS A EQUIPO DE CABECERA | G78: * Las aplicaciones de EPSA con 13 o + puntos NO DEBE ser MAYOR que Total Aplicaciones. | CA78: * Las aplicaciones de EPSA con 13 o + puntos NO DEBE ser MAYOR que Total Aplicaciones. | CD78: =IF(D78<='A05'!D11,"", "* Total de aplicaciones EPSA NO DEBE ser MAYOR que el Total de Gestantes ingresadas en REM A05 Sección A. ") -> * Total de aplicaciones EPSA NO DEBE ser MAYOR que el Total de Gestantes ingresadas en REM A05 Sección A. | CG78: 1 | CH78: 0 | CI78: 0
A79: 02021830 | B79: EVALUACIÓN AL INGRESO | D79: =IFERROR(VLOOKUP($A79,Filtro!$A$5:$AX$2230,2,FALSE),0) -> 6712 | E79: =IFERROR(VLOOKUP($A79,Filtro!$A$5:$AX$2230,3,FALSE),0) -> 1688 | F79: =IFERROR(VLOOKUP($A79,Filtro!$A$5:$AX$2230,4,FALSE),0) -> 1504 | G79: =IFERROR(VLOOKUP($A79,Filtro!$A$5:$AX$2230,5,FALSE),0) -> 157 | CA79: * Las aplicaciones de EPSA con 13 o + puntos NO DEBE ser MAYOR que Total Aplicaciones. | CG79: 1 | CH79: 0
A80: 03600160 | B80: EVALUACIÓN AL TERCER TRIMESTRE | D80: =IFERROR(VLOOKUP($A80,Filtro!$A$5:$AX$2230,2,FALSE),0) -> 323 | E80: =IFERROR(VLOOKUP($A80,Filtro!$A$5:$AX$2230,3,FALSE),0) -> 70 | F80: =IFERROR(VLOOKUP($A80,Filtro!$A$5:$AX$2230,4,FALSE),0) -> 59 | G80: =IFERROR(VLOOKUP($A80,Filtro!$A$5:$AX$2230,5,FALSE),0) -> 1 | CA80: * Las aplicaciones de EPSA con 10 o + puntos NO DEBE ser MAYOR que Total Aplicaciones. | CD80: =IF(D80<='A05'!D11,"", "* Total de aplicaciones EPSA NO DEBE ser MAYOR que el Total de Gestantes ingresadas en REM A05 Sección A. ") ->  | CG80: 1 | CH80: 0 | CI80: 0
B81: SECCIÓN B.3: APLICACIÓN DE ESCALA DE EDIMBURGO A GESTANTES Y MUJERES POST PARTO | CG81: 0 | CH81: 0
B82: CONCEPTO | D82: TOTAL DE APLICACIONES | E82: RESULTADOS 10 O MÁS PTOS. O RESULTADO DISTINTO DE 0 EN PREG 10 . (PUERPERAS) | F82: RESULTADOS 13 O MÁS PTOS O RESULTADO DISTINTO DE 0 EN PREG 10. (GESTANTES) | G82: TOTAL DE CASOS ALTERADOS DERIVADOS A SALUD MENTAL | CH82: 0
A83: 03500160 | B83: EVALUACIÓN A GESTANTES | C83: PRIMERA EVALUACIÓN (2º control prenatal) | D83: =IFERROR(VLOOKUP($A83,Filtro!$A$5:$AX$2230,2,FALSE),0) -> 6630 | E83: =IFERROR(VLOOKUP($A83,Filtro!$A$5:$AX$2230,3,FALSE),0) -> 0 | F83: =IFERROR(VLOOKUP($A83,Filtro!$A$5:$AX$2230,4,FALSE),0) -> 614 | G83: =IFERROR(VLOOKUP($A83,Filtro!$A$5:$AX$2230,5,FALSE),0) -> 552 | CH83: 0
A84: 03500170 | C84: REEVALUACIÓN (con puntaje elevado en la primera evaluación) | D84: =IFERROR(VLOOKUP($A84,Filtro!$A$5:$AX$2230,2,FALSE),0) -> 53 | E84: =IFERROR(VLOOKUP($A84,Filtro!$A$5:$AX$2230,3,FALSE),0) -> 0 | F84: =IFERROR(VLOOKUP($A84,Filtro!$A$5:$AX$2230,4,FALSE),0) -> 14 | G84: =IFERROR(VLOOKUP($A84,Filtro!$A$5:$AX$2230,5,FALSE),0) -> 7 | CH84: 0
A85: 03500200 | B85: EVALUACIÓN A MUJERES POST PARTO O SÍNTOMAS DE DEPRESIÓN | C85: A los 2 meses | D85: =IFERROR(VLOOKUP($A85,Filtro!$A$5:$AX$2230,2,FALSE),0) -> 3903 | E85: =IFERROR(VLOOKUP($A85,Filtro!$A$5:$AX$2230,3,FALSE),0) -> 574 | F85: =IFERROR(VLOOKUP($A85,Filtro!$A$5:$AX$2230,4,FALSE),0) -> 0 | G85: =IFERROR(VLOOKUP($A85,Filtro!$A$5:$AX$2230,5,FALSE),0) -> 285 | CH85: 0
A86: 03500210 | C86: A los 6 meses | D86: =IFERROR(VLOOKUP($A86,Filtro!$A$5:$AX$2230,2,FALSE),0) -> 3386 | E86: =IFERROR(VLOOKUP($A86,Filtro!$A$5:$AX$2230,3,FALSE),0) -> 440 | F86: =IFERROR(VLOOKUP($A86,Filtro!$A$5:$AX$2230,4,FALSE),0) -> 0 | G86: =IFERROR(VLOOKUP($A86,Filtro!$A$5:$AX$2230,5,FALSE),0) -> 228 | CH86: 0
B87: SECCIÓN C: RESULTADOS DE LA EVALUACIÓN DEL ESTADO NUTRICIONAL DEL ADOLESCENTE CON CONTROL SALUD INTEGRAL
B88: ESTADO NUTRICIONAL | D88: TOTAL | G88: 10 A 14 | I88: 15 A 19
D89: Ambos Sexos | E89: Hombres | F89: Mujeres | G89: Hombres | H89: Mujeres | I89: Hombres | J89: Mujeres
B90: TOTAL | D90: =SUM(D91:D95) -> 4336 | E90: =SUM(E91:E95) -> 1809 | F90: 2527 | G90: =SUM(G91:G95) -> 1239 | H90: 1435 | I90: 570 | J90: 1092
A91: 03050400 | B91: NORMAL | D91: =IFERROR(VLOOKUP($A91,Filtro!$A$5:$AX$2230,2,FALSE),0) -> 1639 | E91: =IFERROR(VLOOKUP($A91,Filtro!$A$5:$AX$2230,3,FALSE),0) -> 619 | F91: =IFERROR(VLOOKUP($A91,Filtro!$A$5:$AX$2230,4,FALSE),0) -> 1020 | G91: =IFERROR(VLOOKUP($A91,Filtro!$A$5:$AX$2230,5,FALSE),0) -> 364 | H91: =IFERROR(VLOOKUP($A91,Filtro!$A$5:$AX$2230,6,FALSE),0) -> 552 | I91: =IFERROR(VLOOKUP($A91,Filtro!$A$5:$AX$2230,7,FALSE),0) -> 255 | J91: =IFERROR(VLOOKUP($A91,Filtro!$A$5:$AX$2230,8,FALSE),0) -> 468
A92: 03050500 | B92: BAJO PESO | D92: =IFERROR(VLOOKUP($A92,Filtro!$A$5:$AX$2230,2,FALSE),0) -> 207 | E92: =IFERROR(VLOOKUP($A92,Filtro!$A$5:$AX$2230,3,FALSE),0) -> 97 | F92: =IFERROR(VLOOKUP($A92,Filtro!$A$5:$AX$2230,4,FALSE),0) -> 110 | G92: =IFERROR(VLOOKUP($A92,Filtro!$A$5:$AX$2230,5,FALSE),0) -> 53 | H92: =IFERROR(VLOOKUP($A92,Filtro!$A$5:$AX$2230,6,FALSE),0) -> 61 | I92: =IFERROR(VLOOKUP($A92,Filtro!$A$5:$AX$2230,7,FALSE),0) -> 44 | J92: =IFERROR(VLOOKUP($A92,Filtro!$A$5:$AX$2230,8,FALSE),0) -> 49
A93: 03050600 | B93: SOBREPESO | D93: =IFERROR(VLOOKUP($A93,Filtro!$A$5:$AX$2230,2,FALSE),0) -> 1168 | E93: =IFERROR(VLOOKUP($A93,Filtro!$A$5:$AX$2230,3,FALSE),0) -> 446 | F93: =IFERROR(VLOOKUP($A93,Filtro!$A$5:$AX$2230,4,FALSE),0) -> 722 | G93: =IFERROR(VLOOKUP($A93,Filtro!$A$5:$AX$2230,5,FALSE),0) -> 322 | H93: =IFERROR(VLOOKUP($A93,Filtro!$A$5:$AX$2230,6,FALSE),0) -> 411 | I93: =IFERROR(VLOOKUP($A93,Filtro!$A$5:$AX$2230,7,FALSE),0) -> 124 | J93: =IFERROR(VLOOKUP($A93,Filtro!$A$5:$AX$2230,8,FALSE),0) -> 311
A94: 03050700 | B94: OBESOS | D94: =IFERROR(VLOOKUP($A94,Filtro!$A$5:$AX$2230,2,FALSE),0) -> 1084 | E94: =IFERROR(VLOOKUP($A94,Filtro!$A$5:$AX$2230,3,FALSE),0) -> 514 | F94: =IFERROR(VLOOKUP($A94,Filtro!$A$5:$AX$2230,4,FALSE),0) -> 570 | G94: =IFERROR(VLOOKUP($A94,Filtro!$A$5:$AX$2230,5,FALSE),0) -> 402 | H94: =IFERROR(VLOOKUP($A94,Filtro!$A$5:$AX$2230,6,FALSE),0) -> 349 | I94: =IFERROR(VLOOKUP($A94,Filtro!$A$5:$AX$2230,7,FALSE),0) -> 112 | J94: =IFERROR(VLOOKUP($A94,Filtro!$A$5:$AX$2230,8,FALSE),0) -> 221
A95: 03050710 | B95: OBESOS SEVEROS | D95: =IFERROR(VLOOKUP($A95,Filtro!$A$5:$AX$2230,2,FALSE),0) -> 238 | E95: =IFERROR(VLOOKUP($A95,Filtro!$A$5:$AX$2230,3,FALSE),0) -> 133 | F95: =IFERROR(VLOOKUP($A95,Filtro!$A$5:$AX$2230,4,FALSE),0) -> 105 | G95: =IFERROR(VLOOKUP($A95,Filtro!$A$5:$AX$2230,5,FALSE),0) -> 98 | H95: =IFERROR(VLOOKUP($A95,Filtro!$A$5:$AX$2230,6,FALSE),0) -> 62 | I95: =IFERROR(VLOOKUP($A95,Filtro!$A$5:$AX$2230,7,FALSE),0) -> 35 | J95: =IFERROR(VLOOKUP($A95,Filtro!$A$5:$AX$2230,8,FALSE),0) -> 43
B96: SECCIÓN D: OTRAS EVALUACIONES, APLICACIONES Y RESULTADOS DE ESCALAS EN TODAS LAS EDADES
B97: SECCIÓN D.1: APLICACIÓN DE TAMIZAJE PARA EVALUAR EL NIVEL DE RIESGO DE CONSUMO DE ALCOHOL, TABACO Y OTRAS DROGAS
B98: COMPONENTE | D98: TOTAL | G98: POR EDAD
G99: 10-14 años | I99: 15-19 años | K99: 20-24 años | M99: 25-44 años | O99: 45-64 años | Q99: 65-69 años | S99: 70-79 años | U99: 80 y más
D100: Ambos Sexos | E100: Hombres | F100: Mujeres | G100: Hombres | H100: Mujeres | I100: Hombres | J100: Mujeres | K100: Hombres | L100: Mujeres | M100: Hombres | N100: Mujeres | O100: Hombres | P100: Mujeres | Q100: Hombres | R100: Mujeres | S100: Hombres | T100: Mujeres | U100: Hombres | V100: Mujeres
A101: 03500346 | B101: Nº DE AUDIT (EMP/EMPAM) | D101: =IFERROR(VLOOKUP($A101,Filtro!$A$5:$AX$2230,2,FALSE),0) -> 15581 | E101: =IFERROR(VLOOKUP($A101,Filtro!$A$5:$AX$2230,3,FALSE),0) -> 5682 | F101: =IFERROR(VLOOKUP($A101,Filtro!$A$5:$AX$2230,4,FALSE),0) -> 9899 | G101: =IFERROR(VLOOKUP($A101,Filtro!$A$5:$AX$2230,5,FALSE),0) -> 0 | H101: =IFERROR(VLOOKUP($A101,Filtro!$A$5:$AX$2230,6,FALSE),0) -> 0 | I101: =IFERROR(VLOOKUP($A101,Filtro!$A$5:$AX$2230,7,FALSE),0) -> 60 | J101: =IFERROR(VLOOKUP($A101,Filtro!$A$5:$AX$2230,8,FALSE),0) -> 76 | K101: =IFERROR(VLOOKUP($A101,Filtro!$A$5:$AX$2230,9,FALSE),0) -> 740 | L101: =IFERROR(VLOOKUP($A101,Filtro!$A$5:$AX$2230,10,FALSE),0) -> 963 | M101: =IFERROR(VLOOKUP($A101,Filtro!$A$5:$AX$2230,11,FALSE),0) -> 1565 | N101: =IFERROR(VLOOKUP($A101,Filtro!$A$5:$AX$2230,212,FALSE),0) -> 0 | O101: =IFERROR(VLOOKUP($A101,Filtro!$A$5:$AX$2230,13,FALSE),0) -> 1387 | P101: =IFERROR(VLOOKUP($A101,Filtro!$A$5:$AX$2230,14,FALSE),0) -> 2652 | Q101: =IFERROR(VLOOKUP($A101,Filtro!$A$5:$AX$2230,15,FALSE),0) -> 627 | R101: =IFERROR(VLOOKUP($A101,Filtro!$A$5:$AX$2230,16,FALSE),0) -> 1041 | S101: =IFERROR(VLOOKUP($A101,Filtro!$A$5:$AX$2230,17,FALSE),0) -> 908 | T101: =IFERROR(VLOOKUP($A101,Filtro!$A$5:$AX$2230,18,FALSE),0) -> 1437 | U101: =IFERROR(VLOOKUP($A101,Filtro!$A$5:$AX$2230,19,FALSE),0) -> 395 | V101: =IFERROR(VLOOKUP($A101,Filtro!$A$5:$AX$2230,20,FALSE),0) -> 679
A102: 03500347 | B102: Nº DE AUDIT APLICADO | D102: =IFERROR(VLOOKUP($A102,Filtro!$A$5:$AX$2230,2,FALSE),0) -> 19116 | E102: =IFERROR(VLOOKUP($A102,Filtro!$A$5:$AX$2230,3,FALSE),0) -> 6979 | F102: =IFERROR(VLOOKUP($A102,Filtro!$A$5:$AX$2230,4,FALSE),0) -> 12137 | G102: =IFERROR(VLOOKUP($A102,Filtro!$A$5:$AX$2230,5,FALSE),0) -> 0 | H102: =IFERROR(VLOOKUP($A102,Filtro!$A$5:$AX$2230,6,FALSE),0) -> 0 | I102: =IFERROR(VLOOKUP($A102,Filtro!$A$5:$AX$2230,7,FALSE),0) -> 0 | J102: =IFERROR(VLOOKUP($A102,Filtro!$A$5:$AX$2230,8,FALSE),0) -> 0 | K102: =IFERROR(VLOOKUP($A102,Filtro!$A$5:$AX$2230,9,FALSE),0) -> 1520 | L102: =IFERROR(VLOOKUP($A102,Filtro!$A$5:$AX$2230,10,FALSE),0) -> 2121 | M102: =IFERROR(VLOOKUP($A102,Filtro!$A$5:$AX$2230,11,FALSE),0) -> 2319 | N102: =IFERROR(VLOOKUP($A102,Filtro!$A$5:$AX$2230,212,FALSE),0) -> 0 | O102: =IFERROR(VLOOKUP($A102,Filtro!$A$5:$AX$2230,13,FALSE),0) -> 1974 | P102: =IFERROR(VLOOKUP($A102,Filtro!$A$5:$AX$2230,14,FALSE),0) -> 3636 | Q102: =IFERROR(VLOOKUP($A102,Filtro!$A$5:$AX$2230,15,FALSE),0) -> 725 | R102: =IFERROR(VLOOKUP($A102,Filtro!$A$5:$AX$2230,16,FALSE),0) -> 1051 | S102: =IFERROR(VLOOKUP($A102,Filtro!$A$5:$AX$2230,17,FALSE),0) -> 342 | T102: =IFERROR(VLOOKUP($A102,Filtro!$A$5:$AX$2230,18,FALSE),0) -> 470 | U102: =IFERROR(VLOOKUP($A102,Filtro!$A$5:$AX$2230,19,FALSE),0) -> 99 | V102: =IFERROR(VLOOKUP($A102,Filtro!$A$5:$AX$2230,20,FALSE),0) -> 141
A103: 03600200 | B103: Nº DE ASSIST (EMP/EMPAM) | D103: =IFERROR(VLOOKUP($A103,Filtro!$A$5:$AX$2230,2,FALSE),0) -> 0 | E103: =IFERROR(VLOOKUP($A103,Filtro!$A$5:$AX$2230,3,FALSE),0) -> 0 | F103: =IFERROR(VLOOKUP($A103,Filtro!$A$5:$AX$2230,4,FALSE),0) -> 0 | G103: =IFERROR(VLOOKUP($A103,Filtro!$A$5:$AX$2230,5,FALSE),0) -> 0 | H103: =IFERROR(VLOOKUP($A103,Filtro!$A$5:$AX$2230,6,FALSE),0) -> 0 | I103: =IFERROR(VLOOKUP($A103,Filtro!$A$5:$AX$2230,7,FALSE),0) -> 0 | J103: =IFERROR(VLOOKUP($A103,Filtro!$A$5:$AX$2230,8,FALSE),0) -> 0 | K103: =IFERROR(VLOOKUP($A103,Filtro!$A$5:$AX$2230,9,FALSE),0) -> 0 | L103: =IFERROR(VLOOKUP($A103,Filtro!$A$5:$AX$2230,10,FALSE),0) -> 0 | M103: =IFERROR(VLOOKUP($A103,Filtro!$A$5:$AX$2230,11,FALSE),0) -> 0 | N103: =IFERROR(VLOOKUP($A103,Filtro!$A$5:$AX$2230,212,FALSE),0) -> 0 | O103: =IFERROR(VLOOKUP($A103,Filtro!$A$5:$AX$2230,13,FALSE),0) -> 0 | P103: =IFERROR(VLOOKUP($A103,Filtro!$A$5:$AX$2230,14,FALSE),0) -> 0 | Q103: =IFERROR(VLOOKUP($A103,Filtro!$A$5:$AX$2230,15,FALSE),0) -> 0 | R103: =IFERROR(VLOOKUP($A103,Filtro!$A$5:$AX$2230,16,FALSE),0) -> 0 | S103: =IFERROR(VLOOKUP($A103,Filtro!$A$5:$AX$2230,17,FALSE),0) -> 0 | T103: =IFERROR(VLOOKUP($A103,Filtro!$A$5:$AX$2230,18,FALSE),0) -> 0 | U103: =IFERROR(VLOOKUP($A103,Filtro!$A$5:$AX$2230,19,FALSE),0) -> 0 | V103: =IFERROR(VLOOKUP($A103,Filtro!$A$5:$AX$2230,20,FALSE),0) -> 0
A104: 03500348 | B104: N° DE ASSIST APLICADO | D104: =IFERROR(VLOOKUP($A104,Filtro!$A$5:$AX$2230,2,FALSE),0) -> 4669 | E104: =IFERROR(VLOOKUP($A104,Filtro!$A$5:$AX$2230,3,FALSE),0) -> 1792 | F104: =IFERROR(VLOOKUP($A104,Filtro!$A$5:$AX$2230,4,FALSE),0) -> 2877 | G104: =IFERROR(VLOOKUP($A104,Filtro!$A$5:$AX$2230,5,FALSE),0) -> 0 | H104: =IFERROR(VLOOKUP($A104,Filtro!$A$5:$AX$2230,6,FALSE),0) -> 0 | I104: =IFERROR(VLOOKUP($A104,Filtro!$A$5:$AX$2230,7,FALSE),0) -> 0 | J104: =IFERROR(VLOOKUP($A104,Filtro!$A$5:$AX$2230,8,FALSE),0) -> 0 | K104: =IFERROR(VLOOKUP($A104,Filtro!$A$5:$AX$2230,9,FALSE),0) -> 395 | L104: =IFERROR(VLOOKUP($A104,Filtro!$A$5:$AX$2230,10,FALSE),0) -> 462 | M104: =IFERROR(VLOOKUP($A104,Filtro!$A$5:$AX$2230,11,FALSE),0) -> 665 | N104: =IFERROR(VLOOKUP($A104,Filtro!$A$5:$AX$2230,212,FALSE),0) -> 0 | O104: =IFERROR(VLOOKUP($A104,Filtro!$A$5:$AX$2230,13,FALSE),0) -> 550 | P104: =IFERROR(VLOOKUP($A104,Filtro!$A$5:$AX$2230,14,FALSE),0) -> 1017 | Q104: =IFERROR(VLOOKUP($A104,Filtro!$A$5:$AX$2230,15,FALSE),0) -> 88 | R104: =IFERROR(VLOOKUP($A104,Filtro!$A$5:$AX$2230,16,FALSE),0) -> 117 | S104: =IFERROR(VLOOKUP($A104,Filtro!$A$5:$AX$2230,17,FALSE),0) -> 67 | T104: =IFERROR(VLOOKUP($A104,Filtro!$A$5:$AX$2230,18,FALSE),0) -> 100 | U104: =IFERROR(VLOOKUP($A104,Filtro!$A$5:$AX$2230,19,FALSE),0) -> 27 | V104: =IFERROR(VLOOKUP($A104,Filtro!$A$5:$AX$2230,20,FALSE),0) -> 26
A105: 03600100 | B105: N° DE CRAFFT EN CONTROL DE SALUD INTEGRAL DEL ADOLESCENTE | D105: =IFERROR(VLOOKUP($A105,Filtro!$A$5:$AX$2230,2,FALSE),0) -> 1949 | E105: =IFERROR(VLOOKUP($A105,Filtro!$A$5:$AX$2230,3,FALSE),0) -> 662 | F105: =IFERROR(VLOOKUP($A105,Filtro!$A$5:$AX$2230,4,FALSE),0) -> 1287 | G105: =IFERROR(VLOOKUP($A105,Filtro!$A$5:$AX$2230,5,FALSE),0) -> 420 | H105: =IFERROR(VLOOKUP($A105,Filtro!$A$5:$AX$2230,6,FALSE),0) -> 526 | I105: =IFERROR(VLOOKUP($A105,Filtro!$A$5:$AX$2230,7,FALSE),0) -> 242 | J105: =IFERROR(VLOOKUP($A105,Filtro!$A$5:$AX$2230,8,FALSE),0) -> 761 | K105: =IFERROR(VLOOKUP($A105,Filtro!$A$5:$AX$2230,9,FALSE),0) -> 0 | L105: =IFERROR(VLOOKUP($A105,Filtro!$A$5:$AX$2230,10,FALSE),0) -> 0 | M105: =IFERROR(VLOOKUP($A105,Filtro!$A$5:$AX$2230,11,FALSE),0) -> 0 | N105: =IFERROR(VLOOKUP($A105,Filtro!$A$5:$AX$2230,212,FALSE),0) -> 0 | O105: =IFERROR(VLOOKUP($A105,Filtro!$A$5:$AX$2230,13,FALSE),0) -> 0 | P105: =IFERROR(VLOOKUP($A105,Filtro!$A$5:$AX$2230,14,FALSE),0) -> 0 | Q105: =IFERROR(VLOOKUP($A105,Filtro!$A$5:$AX$2230,15,FALSE),0) -> 0 | R105: =IFERROR(VLOOKUP($A105,Filtro!$A$5:$AX$2230,16,FALSE),0) -> 0 | S105: =IFERROR(VLOOKUP($A105,Filtro!$A$5:$AX$2230,17,FALSE),0) -> 0 | T105: =IFERROR(VLOOKUP($A105,Filtro!$A$5:$AX$2230,18,FALSE),0) -> 0 | U105: =IFERROR(VLOOKUP($A105,Filtro!$A$5:$AX$2230,19,FALSE),0) -> 0 | V105: =IFERROR(VLOOKUP($A105,Filtro!$A$5:$AX$2230,20,FALSE),0) -> 0
A106: 03500367 | B106: N° DE CRAFFT APLICADO | D106: =IFERROR(VLOOKUP($A106,Filtro!$A$5:$AX$2230,2,FALSE),0) -> 5220 | E106: =IFERROR(VLOOKUP($A106,Filtro!$A$5:$AX$2230,3,FALSE),0) -> 2287 | F106: =IFERROR(VLOOKUP($A106,Filtro!$A$5:$AX$2230,4,FALSE),0) -> 2933 | G106: =IFERROR(VLOOKUP($A106,Filtro!$A$5:$AX$2230,5,FALSE),0) -> 823 | H106: =IFERROR(VLOOKUP($A106,Filtro!$A$5:$AX$2230,6,FALSE),0) -> 907 | I106: =IFERROR(VLOOKUP($A106,Filtro!$A$5:$AX$2230,7,FALSE),0) -> 1464 | J106: =IFERROR(VLOOKUP($A106,Filtro!$A$5:$AX$2230,8,FALSE),0) -> 2026 | K106: =IFERROR(VLOOKUP($A106,Filtro!$A$5:$AX$2230,9,FALSE),0) -> 0 | L106: =IFERROR(VLOOKUP($A106,Filtro!$A$5:$AX$2230,10,FALSE),0) -> 0 | M106: =IFERROR(VLOOKUP($A106,Filtro!$A$5:$AX$2230,11,FALSE),0) -> 0 | N106: =IFERROR(VLOOKUP($A106,Filtro!$A$5:$AX$2230,212,FALSE),0) -> 0 | O106: =IFERROR(VLOOKUP($A106,Filtro!$A$5:$AX$2230,13,FALSE),0) -> 0 | P106: =IFERROR(VLOOKUP($A106,Filtro!$A$5:$AX$2230,14,FALSE),0) -> 0 | Q106: =IFERROR(VLOOKUP($A106,Filtro!$A$5:$AX$2230,15,FALSE),0) -> 0 | R106: =IFERROR(VLOOKUP($A106,Filtro!$A$5:$AX$2230,16,FALSE),0) -> 0 | S106: =IFERROR(VLOOKUP($A106,Filtro!$A$5:$AX$2230,17,FALSE),0) -> 0 | T106: =IFERROR(VLOOKUP($A106,Filtro!$A$5:$AX$2230,18,FALSE),0) -> 0 | U106: =IFERROR(VLOOKUP($A106,Filtro!$A$5:$AX$2230,19,FALSE),0) -> 0 | V106: =IFERROR(VLOOKUP($A106,Filtro!$A$5:$AX$2230,20,FALSE),0) -> 0
A107: 03500349 | B107: RESULTADOS DE EVALUACIÓN | C107: BAJO RIESGO | D107: =IFERROR(VLOOKUP($A107,Filtro!$A$5:$AX$2230,2,FALSE),0) -> 38265 | E107: =IFERROR(VLOOKUP($A107,Filtro!$A$5:$AX$2230,3,FALSE),0) -> 13775 | F107: =IFERROR(VLOOKUP($A107,Filtro!$A$5:$AX$2230,4,FALSE),0) -> 24490 | G107: =IFERROR(VLOOKUP($A107,Filtro!$A$5:$AX$2230,5,FALSE),0) -> 1100 | H107: =IFERROR(VLOOKUP($A107,Filtro!$A$5:$AX$2230,6,FALSE),0) -> 1289 | I107: =IFERROR(VLOOKUP($A107,Filtro!$A$5:$AX$2230,7,FALSE),0) -> 1235 | J107: =IFERROR(VLOOKUP($A107,Filtro!$A$5:$AX$2230,8,FALSE),0) -> 2180 | K107: =IFERROR(VLOOKUP($A107,Filtro!$A$5:$AX$2230,9,FALSE),0) -> 1798 | L107: =IFERROR(VLOOKUP($A107,Filtro!$A$5:$AX$2230,10,FALSE),0) -> 2791 | M107: =IFERROR(VLOOKUP($A107,Filtro!$A$5:$AX$2230,11,FALSE),0) -> 3427 | N107: =IFERROR(VLOOKUP($A107,Filtro!$A$5:$AX$2230,212,FALSE),0) -> 0 | O107: =IFERROR(VLOOKUP($A107,Filtro!$A$5:$AX$2230,13,FALSE),0) -> 3129 | P107: =IFERROR(VLOOKUP($A107,Filtro!$A$5:$AX$2230,14,FALSE),0) -> 6122 | Q107: =IFERROR(VLOOKUP($A107,Filtro!$A$5:$AX$2230,15,FALSE),0) -> 1378 | R107: =IFERROR(VLOOKUP($A107,Filtro!$A$5:$AX$2230,16,FALSE),0) -> 2150 | S107: =IFERROR(VLOOKUP($A107,Filtro!$A$5:$AX$2230,17,FALSE),0) -> 1217 | T107: =IFERROR(VLOOKUP($A107,Filtro!$A$5:$AX$2230,18,FALSE),0) -> 1896 | U107: =IFERROR(VLOOKUP($A107,Filtro!$A$5:$AX$2230,19,FALSE),0) -> 491 | V107: =IFERROR(VLOOKUP($A107,Filtro!$A$5:$AX$2230,20,FALSE),0) -> 795
A108: 03500290 | C108: CONSUMO RIESGOSO / INTERMEDIO | D108: =IFERROR(VLOOKUP($A108,Filtro!$A$5:$AX$2230,2,FALSE),0) -> 5524 | E108: =IFERROR(VLOOKUP($A108,Filtro!$A$5:$AX$2230,3,FALSE),0) -> 2828 | F108: =IFERROR(VLOOKUP($A108,Filtro!$A$5:$AX$2230,4,FALSE),0) -> 2696 | G108: =IFERROR(VLOOKUP($A108,Filtro!$A$5:$AX$2230,5,FALSE),0) -> 21 | H108: =IFERROR(VLOOKUP($A108,Filtro!$A$5:$AX$2230,6,FALSE),0) -> 27 | I108: =IFERROR(VLOOKUP($A108,Filtro!$A$5:$AX$2230,7,FALSE),0) -> 400 | J108: =IFERROR(VLOOKUP($A108,Filtro!$A$5:$AX$2230,8,FALSE),0) -> 387 | K108: =IFERROR(VLOOKUP($A108,Filtro!$A$5:$AX$2230,9,FALSE),0) -> 802 | L108: =IFERROR(VLOOKUP($A108,Filtro!$A$5:$AX$2230,10,FALSE),0) -> 706 | M108: =IFERROR(VLOOKUP($A108,Filtro!$A$5:$AX$2230,11,FALSE),0) -> 946 | N108: =IFERROR(VLOOKUP($A108,Filtro!$A$5:$AX$2230,212,FALSE),0) -> 0 | O108: =IFERROR(VLOOKUP($A108,Filtro!$A$5:$AX$2230,13,FALSE),0) -> 581 | P108: =IFERROR(VLOOKUP($A108,Filtro!$A$5:$AX$2230,14,FALSE),0) -> 567 | Q108: =IFERROR(VLOOKUP($A108,Filtro!$A$5:$AX$2230,15,FALSE),0) -> 39 | R108: =IFERROR(VLOOKUP($A108,Filtro!$A$5:$AX$2230,16,FALSE),0) -> 36 | S108: =IFERROR(VLOOKUP($A108,Filtro!$A$5:$AX$2230,17,FALSE),0) -> 35 | T108: =IFERROR(VLOOKUP($A108,Filtro!$A$5:$AX$2230,18,FALSE),0) -> 20 | U108: =IFERROR(VLOOKUP($A108,Filtro!$A$5:$AX$2230,19,FALSE),0) -> 4 | V108: =IFERROR(VLOOKUP($A108,Filtro!$A$5:$AX$2230,20,FALSE),0) -> 2
A109: 03500300 | C109: POSIBLE CONSUMO PERJUDICIAL O DEPENDENCIA | D109: =IFERROR(VLOOKUP($A109,Filtro!$A$5:$AX$2230,2,FALSE),0) -> 850 | E109: =IFERROR(VLOOKUP($A109,Filtro!$A$5:$AX$2230,3,FALSE),0) -> 480 | F109: =IFERROR(VLOOKUP($A109,Filtro!$A$5:$AX$2230,4,FALSE),0) -> 370 | G109: =IFERROR(VLOOKUP($A109,Filtro!$A$5:$AX$2230,5,FALSE),0) -> 3 | H109: =IFERROR(VLOOKUP($A109,Filtro!$A$5:$AX$2230,6,FALSE),0) -> 4 | I109: =IFERROR(VLOOKUP($A109,Filtro!$A$5:$AX$2230,7,FALSE),0) -> 47 | J109: =IFERROR(VLOOKUP($A109,Filtro!$A$5:$AX$2230,8,FALSE),0) -> 30 | K109: =IFERROR(VLOOKUP($A109,Filtro!$A$5:$AX$2230,9,FALSE),0) -> 142 | L109: =IFERROR(VLOOKUP($A109,Filtro!$A$5:$AX$2230,10,FALSE),0) -> 77 | M109: =IFERROR(VLOOKUP($A109,Filtro!$A$5:$AX$2230,11,FALSE),0) -> 180 | N109: =IFERROR(VLOOKUP($A109,Filtro!$A$5:$AX$2230,212,FALSE),0) -> 0 | O109: =IFERROR(VLOOKUP($A109,Filtro!$A$5:$AX$2230,13,FALSE),0) -> 98 | P109: =IFERROR(VLOOKUP($A109,Filtro!$A$5:$AX$2230,14,FALSE),0) -> 120 | Q109: =IFERROR(VLOOKUP($A109,Filtro!$A$5:$AX$2230,15,FALSE),0) -> 5 | R109: =IFERROR(VLOOKUP($A109,Filtro!$A$5:$AX$2230,16,FALSE),0) -> 1 | S109: =IFERROR(VLOOKUP($A109,Filtro!$A$5:$AX$2230,17,FALSE),0) -> 5 | T109: =IFERROR(VLOOKUP($A109,Filtro!$A$5:$AX$2230,18,FALSE),0) -> 0 | U109: =IFERROR(VLOOKUP($A109,Filtro!$A$5:$AX$2230,19,FALSE),0) -> 0 | V109: =IFERROR(VLOOKUP($A109,Filtro!$A$5:$AX$2230,20,FALSE),0) -> 0
B110: SECCIÓN D.2: RESULTADOS DE LA APLICACIÓN DE INSTRUMENTO DE VALORACIÓN DE DESEMPEÑO EN COMUNIDAD (IVADEC-CIF)
B111: ACTIVIDAD | C111: RESULTADO | D111: TOTAL | G111: POR EDAD
G112: 6 -11 meses | I112: 12 - 23 meses | K112: 2 - 4 años | M112: 5 - 9 años | O112: 10 a 14 años | Q112: 15 a 19 años | S112: 20 a 24 años | U112: 25 a 64 años | W112: 65 a 69 años | Y112: 70 a 79 años | AA112: 80 y más años
D113: Ambos Sexos | E113: Hombres | F113: Mujeres | G113: Hombres | H113: Mujeres | I113: Hombres | J113: Mujeres | K113: Hombres | L113: Mujeres | M113: Hombres | N113: Mujeres | O113: Hombres | P113: Mujeres | Q113: Hombres | R113: Mujeres | S113: Hombres | T113: Mujeres | U113: Hombres | V113: Mujeres | W113: Hombres | X113: Mujeres | Y113: Hombres | Z113: Mujeres | AA113: Hombres | AB113: Mujeres
A114: 03051000A | B114: ORIGEN FÍSICO | C114: SIN DISCAPACIDAD | D114: =IFERROR(VLOOKUP($A114,Filtro!$A$5:$AX$2230,2,FALSE),0) -> 7 | E114: =IFERROR(VLOOKUP($A114,Filtro!$A$5:$AX$2230,3,FALSE),0) -> 2 | F114: =IFERROR(VLOOKUP($A114,Filtro!$A$5:$AX$2230,4,FALSE),0) -> 5 | G114: =IFERROR(VLOOKUP($A114,Filtro!$A$5:$AX$2230,5,FALSE),0) -> 0 | H114: =IFERROR(VLOOKUP($A114,Filtro!$A$5:$AX$2230,6,FALSE),0) -> 0 | I114: =IFERROR(VLOOKUP($A114,Filtro!$A$5:$AX$2230,7,FALSE),0) -> 0 | J114: =IFERROR(VLOOKUP($A114,Filtro!$A$5:$AX$2230,8,FALSE),0) -> 0 | K114: =IFERROR(VLOOKUP($A114,Filtro!$A$5:$AX$2230,9,FALSE),0) -> 0 | L114: =IFERROR(VLOOKUP($A114,Filtro!$A$5:$AX$2230,10,FALSE),0) -> 0 | M114: =IFERROR(VLOOKUP($A114,Filtro!$A$5:$AX$2230,11,FALSE),0) -> 0 | N114: =IFERROR(VLOOKUP($A114,Filtro!$A$5:$AX$2230,212,FALSE),0) -> 0 | O114: =IFERROR(VLOOKUP($A114,Filtro!$A$5:$AX$2230,13,FALSE),0) -> 0 | P114: =IFERROR(VLOOKUP($A114,Filtro!$A$5:$AX$2230,14,FALSE),0) -> 0 | Q114: =IFERROR(VLOOKUP($A114,Filtro!$A$5:$AX$2230,15,FALSE),0) -> 1 | R114: =IFERROR(VLOOKUP($A114,Filtro!$A$5:$AX$2230,16,FALSE),0) -> 0 | S114: =IFERROR(VLOOKUP($A114,Filtro!$A$5:$AX$2230,17,FALSE),0) -> 0 | T114: =IFERROR(VLOOKUP($A114,Filtro!$A$5:$AX$2230,18,FALSE),0) -> 0 | U114: =IFERROR(VLOOKUP($A114,Filtro!$A$5:$AX$2230,19,FALSE),0) -> 0 | V114: =IFERROR(VLOOKUP($A114,Filtro!$A$5:$AX$2230,20,FALSE),0) -> 4 | W114: =IFERROR(VLOOKUP($A114,Filtro!$A$5:$AX$2230,21,FALSE),0) -> 0 | X114: =IFERROR(VLOOKUP($A114,Filtro!$A$5:$AX$2230,22,FALSE),0) -> 1 | Y114: =IFERROR(VLOOKUP($A114,Filtro!$A$5:$AX$2230,23,FALSE),0) -> 0 | Z114: =IFERROR(VLOOKUP($A114,Filtro!$A$5:$AX$2230,24,FALSE),0) -> 0 | AA114: =IFERROR(VLOOKUP($A114,Filtro!$A$5:$AX$2230,25,FALSE),0) -> 1 | AB114: =IFERROR(VLOOKUP($A114,Filtro!$A$5:$AX$2230,26,FALSE),0) -> 0
A115: 03051100 | C115: DISCAPACIDAD LEVE | D115: =IFERROR(VLOOKUP($A115,Filtro!$A$5:$AX$2230,2,FALSE),0) -> 276 | E115: =IFERROR(VLOOKUP($A115,Filtro!$A$5:$AX$2230,3,FALSE),0) -> 141 | F115: =IFERROR(VLOOKUP($A115,Filtro!$A$5:$AX$2230,4,FALSE),0) -> 135 | G115: =IFERROR(VLOOKUP($A115,Filtro!$A$5:$AX$2230,5,FALSE),0) -> 1 | H115: =IFERROR(VLOOKUP($A115,Filtro!$A$5:$AX$2230,6,FALSE),0) -> 0 | I115: =IFERROR(VLOOKUP($A115,Filtro!$A$5:$AX$2230,7,FALSE),0) -> 0 | J115: =IFERROR(VLOOKUP($A115,Filtro!$A$5:$AX$2230,8,FALSE),0) -> 0 | K115: =IFERROR(VLOOKUP($A115,Filtro!$A$5:$AX$2230,9,FALSE),0) -> 5 | L115: =IFERROR(VLOOKUP($A115,Filtro!$A$5:$AX$2230,10,FALSE),0) -> 1 | M115: =IFERROR(VLOOKUP($A115,Filtro!$A$5:$AX$2230,11,FALSE),0) -> 0 | N115: =IFERROR(VLOOKUP($A115,Filtro!$A$5:$AX$2230,212,FALSE),0) -> 0 | O115: =IFERROR(VLOOKUP($A115,Filtro!$A$5:$AX$2230,13,FALSE),0) -> 3 | P115: =IFERROR(VLOOKUP($A115,Filtro!$A$5:$AX$2230,14,FALSE),0) -> 1 | Q115: =IFERROR(VLOOKUP($A115,Filtro!$A$5:$AX$2230,15,FALSE),0) -> 1 | R115: =IFERROR(VLOOKUP($A115,Filtro!$A$5:$AX$2230,16,FALSE),0) -> 4 | S115: =IFERROR(VLOOKUP($A115,Filtro!$A$5:$AX$2230,17,FALSE),0) -> 5 | T115: =IFERROR(VLOOKUP($A115,Filtro!$A$5:$AX$2230,18,FALSE),0) -> 2 | U115: =IFERROR(VLOOKUP($A115,Filtro!$A$5:$AX$2230,19,FALSE),0) -> 89 | V115: =IFERROR(VLOOKUP($A115,Filtro!$A$5:$AX$2230,20,FALSE),0) -> 102 | W115: =IFERROR(VLOOKUP($A115,Filtro!$A$5:$AX$2230,21,FALSE),0) -> 18 | X115: =IFERROR(VLOOKUP($A115,Filtro!$A$5:$AX$2230,22,FALSE),0) -> 10 | Y115: =IFERROR(VLOOKUP($A115,Filtro!$A$5:$AX$2230,23,FALSE),0) -> 17 | Z115: =IFERROR(VLOOKUP($A115,Filtro!$A$5:$AX$2230,24,FALSE),0) -> 13 | AA115: =IFERROR(VLOOKUP($A115,Filtro!$A$5:$AX$2230,25,FALSE),0) -> 2 | AB115: =IFERROR(VLOOKUP($A115,Filtro!$A$5:$AX$2230,26,FALSE),0) -> 1
A116: 03051200 | C116: DISCAPACIDAD MODERADA | D116: =IFERROR(VLOOKUP($A116,Filtro!$A$5:$AX$2230,2,FALSE),0) -> 248 | E116: =IFERROR(VLOOKUP($A116,Filtro!$A$5:$AX$2230,3,FALSE),0) -> 123 | F116: =IFERROR(VLOOKUP($A116,Filtro!$A$5:$AX$2230,4,FALSE),0) -> 125 | G116: =IFERROR(VLOOKUP($A116,Filtro!$A$5:$AX$2230,5,FALSE),0) -> 1 | H116: =IFERROR(VLOOKUP($A116,Filtro!$A$5:$AX$2230,6,FALSE),0) -> 0 | I116: =IFERROR(VLOOKUP($A116,Filtro!$A$5:$AX$2230,7,FALSE),0) -> 0 | J116: =IFERROR(VLOOKUP($A116,Filtro!$A$5:$AX$2230,8,FALSE),0) -> 0 | K116: =IFERROR(VLOOKUP($A116,Filtro!$A$5:$AX$2230,9,FALSE),0) -> 0 | L116: =IFERROR(VLOOKUP($A116,Filtro!$A$5:$AX$2230,10,FALSE),0) -> 1 | M116: =IFERROR(VLOOKUP($A116,Filtro!$A$5:$AX$2230,11,FALSE),0) -> 2 | N116: =IFERROR(VLOOKUP($A116,Filtro!$A$5:$AX$2230,212,FALSE),0) -> 0 | O116: =IFERROR(VLOOKUP($A116,Filtro!$A$5:$AX$2230,13,FALSE),0) -> 2 | P116: =IFERROR(VLOOKUP($A116,Filtro!$A$5:$AX$2230,14,FALSE),0) -> 1 | Q116: =IFERROR(VLOOKUP($A116,Filtro!$A$5:$AX$2230,15,FALSE),0) -> 1 | R116: =IFERROR(VLOOKUP($A116,Filtro!$A$5:$AX$2230,16,FALSE),0) -> 1 | S116: =IFERROR(VLOOKUP($A116,Filtro!$A$5:$AX$2230,17,FALSE),0) -> 3 | T116: =IFERROR(VLOOKUP($A116,Filtro!$A$5:$AX$2230,18,FALSE),0) -> 2 | U116: =IFERROR(VLOOKUP($A116,Filtro!$A$5:$AX$2230,19,FALSE),0) -> 78 | V116: =IFERROR(VLOOKUP($A116,Filtro!$A$5:$AX$2230,20,FALSE),0) -> 79 | W116: =IFERROR(VLOOKUP($A116,Filtro!$A$5:$AX$2230,21,FALSE),0) -> 14 | X116: =IFERROR(VLOOKUP($A116,Filtro!$A$5:$AX$2230,22,FALSE),0) -> 14 | Y116: =IFERROR(VLOOKUP($A116,Filtro!$A$5:$AX$2230,23,FALSE),0) -> 10 | Z116: =IFERROR(VLOOKUP($A116,Filtro!$A$5:$AX$2230,24,FALSE),0) -> 21 | AA116: =IFERROR(VLOOKUP($A116,Filtro!$A$5:$AX$2230,25,FALSE),0) -> 12 | AB116: =IFERROR(VLOOKUP($A116,Filtro!$A$5:$AX$2230,26,FALSE),0) -> 4
A117: 03051300 | C117: DISCAPACIDAD SEVERA | D117: =IFERROR(VLOOKUP($A117,Filtro!$A$5:$AX$2230,2,FALSE),0) -> 232 | E117: =IFERROR(VLOOKUP($A117,Filtro!$A$5:$AX$2230,3,FALSE),0) -> 111 | F117: =IFERROR(VLOOKUP($A117,Filtro!$A$5:$AX$2230,4,FALSE),0) -> 121 | G117: =IFERROR(VLOOKUP($A117,Filtro!$A$5:$AX$2230,5,FALSE),0) -> 1 | H117: =IFERROR(VLOOKUP($A117,Filtro!$A$5:$AX$2230,6,FALSE),0) -> 1 | I117: =IFERROR(VLOOKUP($A117,Filtro!$A$5:$AX$2230,7,FALSE),0) -> 1 | J117: =IFERROR(VLOOKUP($A117,Filtro!$A$5:$AX$2230,8,FALSE),0) -> 0 | K117: =IFERROR(VLOOKUP($A117,Filtro!$A$5:$AX$2230,9,FALSE),0) -> 0 | L117: =IFERROR(VLOOKUP($A117,Filtro!$A$5:$AX$2230,10,FALSE),0) -> 0 | M117: =IFERROR(VLOOKUP($A117,Filtro!$A$5:$AX$2230,11,FALSE),0) -> 0 | N117: =IFERROR(VLOOKUP($A117,Filtro!$A$5:$AX$2230,212,FALSE),0) -> 0 | O117: =IFERROR(VLOOKUP($A117,Filtro!$A$5:$AX$2230,13,FALSE),0) -> 1 | P117: =IFERROR(VLOOKUP($A117,Filtro!$A$5:$AX$2230,14,FALSE),0) -> 5 | Q117: =IFERROR(VLOOKUP($A117,Filtro!$A$5:$AX$2230,15,FALSE),0) -> 1 | R117: =IFERROR(VLOOKUP($A117,Filtro!$A$5:$AX$2230,16,FALSE),0) -> 2 | S117: =IFERROR(VLOOKUP($A117,Filtro!$A$5:$AX$2230,17,FALSE),0) -> 6 | T117: =IFERROR(VLOOKUP($A117,Filtro!$A$5:$AX$2230,18,FALSE),0) -> 3 | U117: =IFERROR(VLOOKUP($A117,Filtro!$A$5:$AX$2230,19,FALSE),0) -> 55 | V117: =IFERROR(VLOOKUP($A117,Filtro!$A$5:$AX$2230,20,FALSE),0) -> 72 | W117: =IFERROR(VLOOKUP($A117,Filtro!$A$5:$AX$2230,21,FALSE),0) -> 9 | X117: =IFERROR(VLOOKUP($A117,Filtro!$A$5:$AX$2230,22,FALSE),0) -> 10 | Y117: =IFERROR(VLOOKUP($A117,Filtro!$A$5:$AX$2230,23,FALSE),0) -> 22 | Z117: =IFERROR(VLOOKUP($A117,Filtro!$A$5:$AX$2230,24,FALSE),0) -> 8 | AA117: =IFERROR(VLOOKUP($A117,Filtro!$A$5:$AX$2230,25,FALSE),0) -> 15 | AB117: =IFERROR(VLOOKUP($A117,Filtro!$A$5:$AX$2230,26,FALSE),0) -> 17
A118: 03051400 | C118: DISCAPACIDAD PROFUNDA | D118: =IFERROR(VLOOKUP($A118,Filtro!$A$5:$AX$2230,2,FALSE),0) -> 24 | E118: =IFERROR(VLOOKUP($A118,Filtro!$A$5:$AX$2230,3,FALSE),0) -> 12 | F118: =IFERROR(VLOOKUP($A118,Filtro!$A$5:$AX$2230,4,FALSE),0) -> 12 | G118: =IFERROR(VLOOKUP($A118,Filtro!$A$5:$AX$2230,5,FALSE),0) -> 0 | H118: =IFERROR(VLOOKUP($A118,Filtro!$A$5:$AX$2230,6,FALSE),0) -> 0 | I118: =IFERROR(VLOOKUP($A118,Filtro!$A$5:$AX$2230,7,FALSE),0) -> 0 | J118: =IFERROR(VLOOKUP($A118,Filtro!$A$5:$AX$2230,8,FALSE),0) -> 0 | K118: =IFERROR(VLOOKUP($A118,Filtro!$A$5:$AX$2230,9,FALSE),0) -> 0 | L118: =IFERROR(VLOOKUP($A118,Filtro!$A$5:$AX$2230,10,FALSE),0) -> 1 | M118: =IFERROR(VLOOKUP($A118,Filtro!$A$5:$AX$2230,11,FALSE),0) -> 3 | N118: =IFERROR(VLOOKUP($A118,Filtro!$A$5:$AX$2230,212,FALSE),0) -> 0 | O118: =IFERROR(VLOOKUP($A118,Filtro!$A$5:$AX$2230,13,FALSE),0) -> 2 | P118: =IFERROR(VLOOKUP($A118,Filtro!$A$5:$AX$2230,14,FALSE),0) -> 0 | Q118: =IFERROR(VLOOKUP($A118,Filtro!$A$5:$AX$2230,15,FALSE),0) -> 1 | R118: =IFERROR(VLOOKUP($A118,Filtro!$A$5:$AX$2230,16,FALSE),0) -> 0 | S118: =IFERROR(VLOOKUP($A118,Filtro!$A$5:$AX$2230,17,FALSE),0) -> 0 | T118: =IFERROR(VLOOKUP($A118,Filtro!$A$5:$AX$2230,18,FALSE),0) -> 0 | U118: =IFERROR(VLOOKUP($A118,Filtro!$A$5:$AX$2230,19,FALSE),0) -> 1 | V118: =IFERROR(VLOOKUP($A118,Filtro!$A$5:$AX$2230,20,FALSE),0) -> 1 | W118: =IFERROR(VLOOKUP($A118,Filtro!$A$5:$AX$2230,21,FALSE),0) -> 1 | X118: =IFERROR(VLOOKUP($A118,Filtro!$A$5:$AX$2230,22,FALSE),0) -> 1 | Y118: =IFERROR(VLOOKUP($A118,Filtro!$A$5:$AX$2230,23,FALSE),0) -> 0 | Z118: =IFERROR(VLOOKUP($A118,Filtro!$A$5:$AX$2230,24,FALSE),0) -> 2 | AA118: =IFERROR(VLOOKUP($A118,Filtro!$A$5:$AX$2230,25,FALSE),0) -> 4 | AB118: =IFERROR(VLOOKUP($A118,Filtro!$A$5:$AX$2230,26,FALSE),0) -> 6
A119: 03051500 | B119: ORIGEN SENSORIAL VISUAL | C119: SIN DISCAPACIDAD | D119: =IFERROR(VLOOKUP($A119,Filtro!$A$5:$AX$2230,2,FALSE),0) -> 1 | E119: =IFERROR(VLOOKUP($A119,Filtro!$A$5:$AX$2230,3,FALSE),0) -> 0 | F119: =IFERROR(VLOOKUP($A119,Filtro!$A$5:$AX$2230,4,FALSE),0) -> 1 | G119: =IFERROR(VLOOKUP($A119,Filtro!$A$5:$AX$2230,5,FALSE),0) -> 0 | H119: =IFERROR(VLOOKUP($A119,Filtro!$A$5:$AX$2230,6,FALSE),0) -> 0 | I119: =IFERROR(VLOOKUP($A119,Filtro!$A$5:$AX$2230,7,FALSE),0) -> 0 | J119: =IFERROR(VLOOKUP($A119,Filtro!$A$5:$AX$2230,8,FALSE),0) -> 0 | K119: =IFERROR(VLOOKUP($A119,Filtro!$A$5:$AX$2230,9,FALSE),0) -> 0 | L119: =IFERROR(VLOOKUP($A119,Filtro!$A$5:$AX$2230,10,FALSE),0) -> 0 | M119: =IFERROR(VLOOKUP($A119,Filtro!$A$5:$AX$2230,11,FALSE),0) -> 0 | N119: =IFERROR(VLOOKUP($A119,Filtro!$A$5:$AX$2230,212,FALSE),0) -> 0 | O119: =IFERROR(VLOOKUP($A119,Filtro!$A$5:$AX$2230,13,FALSE),0) -> 0 | P119: =IFERROR(VLOOKUP($A119,Filtro!$A$5:$AX$2230,14,FALSE),0) -> 0 | Q119: =IFERROR(VLOOKUP($A119,Filtro!$A$5:$AX$2230,15,FALSE),0) -> 0 | R119: =IFERROR(VLOOKUP($A119,Filtro!$A$5:$AX$2230,16,FALSE),0) -> 0 | S119: =IFERROR(VLOOKUP($A119,Filtro!$A$5:$AX$2230,17,FALSE),0) -> 0 | T119: =IFERROR(VLOOKUP($A119,Filtro!$A$5:$AX$2230,18,FALSE),0) -> 0 | U119: =IFERROR(VLOOKUP($A119,Filtro!$A$5:$AX$2230,19,FALSE),0) -> 0 | V119: =IFERROR(VLOOKUP($A119,Filtro!$A$5:$AX$2230,20,FALSE),0) -> 0 | W119: =IFERROR(VLOOKUP($A119,Filtro!$A$5:$AX$2230,21,FALSE),0) -> 0 | X119: =IFERROR(VLOOKUP($A119,Filtro!$A$5:$AX$2230,22,FALSE),0) -> 0 | Y119: =IFERROR(VLOOKUP($A119,Filtro!$A$5:$AX$2230,23,FALSE),0) -> 0 | Z119: =IFERROR(VLOOKUP($A119,Filtro!$A$5:$AX$2230,24,FALSE),0) -> 0 | AA119: =IFERROR(VLOOKUP($A119,Filtro!$A$5:$AX$2230,25,FALSE),0) -> 0 | AB119: =IFERROR(VLOOKUP($A119,Filtro!$A$5:$AX$2230,26,FALSE),0) -> 0
A120: 03051600 | C120: DISCAPACIDAD LEVE | D120: =IFERROR(VLOOKUP($A120,Filtro!$A$5:$AX$2230,2,FALSE),0) -> 36 | E120: =IFERROR(VLOOKUP($A120,Filtro!$A$5:$AX$2230,3,FALSE),0) -> 16 | F120: =IFERROR(VLOOKUP($A120,Filtro!$A$5:$AX$2230,4,FALSE),0) -> 20 | G120: =IFERROR(VLOOKUP($A120,Filtro!$A$5:$AX$2230,5,FALSE),0) -> 0 | H120: =IFERROR(VLOOKUP($A120,Filtro!$A$5:$AX$2230,6,FALSE),0) -> 0 | I120: =IFERROR(VLOOKUP($A120,Filtro!$A$5:$AX$2230,7,FALSE),0) -> 0 | J120: =IFERROR(VLOOKUP($A120,Filtro!$A$5:$AX$2230,8,FALSE),0) -> 0 | K120: =IFERROR(VLOOKUP($A120,Filtro!$A$5:$AX$2230,9,FALSE),0) -> 0 | L120: =IFERROR(VLOOKUP($A120,Filtro!$A$5:$AX$2230,10,FALSE),0) -> 0 | M120: =IFERROR(VLOOKUP($A120,Filtro!$A$5:$AX$2230,11,FALSE),0) -> 0 | N120: =IFERROR(VLOOKUP($A120,Filtro!$A$5:$AX$2230,212,FALSE),0) -> 0 | O120: =IFERROR(VLOOKUP($A120,Filtro!$A$5:$AX$2230,13,FALSE),0) -> 1 | P120: =IFERROR(VLOOKUP($A120,Filtro!$A$5:$AX$2230,14,FALSE),0) -> 0 | Q120: =IFERROR(VLOOKUP($A120,Filtro!$A$5:$AX$2230,15,FALSE),0) -> 1 | R120: =IFERROR(VLOOKUP($A120,Filtro!$A$5:$AX$2230,16,FALSE),0) -> 2 | S120: =IFERROR(VLOOKUP($A120,Filtro!$A$5:$AX$2230,17,FALSE),0) -> 0 | T120: =IFERROR(VLOOKUP($A120,Filtro!$A$5:$AX$2230,18,FALSE),0) -> 0 | U120: =IFERROR(VLOOKUP($A120,Filtro!$A$5:$AX$2230,19,FALSE),0) -> 12 | V120: =IFERROR(VLOOKUP($A120,Filtro!$A$5:$AX$2230,20,FALSE),0) -> 17 | W120: =IFERROR(VLOOKUP($A120,Filtro!$A$5:$AX$2230,21,FALSE),0) -> 1 | X120: =IFERROR(VLOOKUP($A120,Filtro!$A$5:$AX$2230,22,FALSE),0) -> 0 | Y120: =IFERROR(VLOOKUP($A120,Filtro!$A$5:$AX$2230,23,FALSE),0) -> 1 | Z120: =IFERROR(VLOOKUP($A120,Filtro!$A$5:$AX$2230,24,FALSE),0) -> 0 | AA120: =IFERROR(VLOOKUP($A120,Filtro!$A$5:$AX$2230,25,FALSE),0) -> 0 | AB120: =IFERROR(VLOOKUP($A120,Filtro!$A$5:$AX$2230,26,FALSE),0) -> 0
A121: 03051700 | C121: DISCAPACIDAD MODERADA | D121: =IFERROR(VLOOKUP($A121,Filtro!$A$5:$AX$2230,2,FALSE),0) -> 36 | E121: =IFERROR(VLOOKUP($A121,Filtro!$A$5:$AX$2230,3,FALSE),0) -> 19 | F121: =IFERROR(VLOOKUP($A121,Filtro!$A$5:$AX$2230,4,FALSE),0) -> 17 | G121: =IFERROR(VLOOKUP($A121,Filtro!$A$5:$AX$2230,5,FALSE),0) -> 0 | H121: =IFERROR(VLOOKUP($A121,Filtro!$A$5:$AX$2230,6,FALSE),0) -> 0 | I121: =IFERROR(VLOOKUP($A121,Filtro!$A$5:$AX$2230,7,FALSE),0) -> 0 | J121: =IFERROR(VLOOKUP($A121,Filtro!$A$5:$AX$2230,8,FALSE),0) -> 0 | K121: =IFERROR(VLOOKUP($A121,Filtro!$A$5:$AX$2230,9,FALSE),0) -> 0 | L121: =IFERROR(VLOOKUP($A121,Filtro!$A$5:$AX$2230,10,FALSE),0) -> 0 | M121: =IFERROR(VLOOKUP($A121,Filtro!$A$5:$AX$2230,11,FALSE),0) -> 0 | N121: =IFERROR(VLOOKUP($A121,Filtro!$A$5:$AX$2230,212,FALSE),0) -> 0 | O121: =IFERROR(VLOOKUP($A121,Filtro!$A$5:$AX$2230,13,FALSE),0) -> 2 | P121: =IFERROR(VLOOKUP($A121,Filtro!$A$5:$AX$2230,14,FALSE),0) -> 0 | Q121: =IFERROR(VLOOKUP($A121,Filtro!$A$5:$AX$2230,15,FALSE),0) -> 0 | R121: =IFERROR(VLOOKUP($A121,Filtro!$A$5:$AX$2230,16,FALSE),0) -> 0 | S121: =IFERROR(VLOOKUP($A121,Filtro!$A$5:$AX$2230,17,FALSE),0) -> 0 | T121: =IFERROR(VLOOKUP($A121,Filtro!$A$5:$AX$2230,18,FALSE),0) -> 1 | U121: =IFERROR(VLOOKUP($A121,Filtro!$A$5:$AX$2230,19,FALSE),0) -> 15 | V121: =IFERROR(VLOOKUP($A121,Filtro!$A$5:$AX$2230,20,FALSE),0) -> 14 | W121: =IFERROR(VLOOKUP($A121,Filtro!$A$5:$AX$2230,21,FALSE),0) -> 1 | X121: =IFERROR(VLOOKUP($A121,Filtro!$A$5:$AX$2230,22,FALSE),0) -> 0 | Y121: =IFERROR(VLOOKUP($A121,Filtro!$A$5:$AX$2230,23,FALSE),0) -> 1 | Z121: =IFERROR(VLOOKUP($A121,Filtro!$A$5:$AX$2230,24,FALSE),0) -> 1 | AA121: =IFERROR(VLOOKUP($A121,Filtro!$A$5:$AX$2230,25,FALSE),0) -> 0 | AB121: =IFERROR(VLOOKUP($A121,Filtro!$A$5:$AX$2230,26,FALSE),0) -> 0
A122: 03051800 | C122: DISCAPACIDAD SEVERA | D122: =IFERROR(VLOOKUP($A122,Filtro!$A$5:$AX$2230,2,FALSE),0) -> 34 | E122: =IFERROR(VLOOKUP($A122,Filtro!$A$5:$AX$2230,3,FALSE),0) -> 17 | F122: =IFERROR(VLOOKUP($A122,Filtro!$A$5:$AX$2230,4,FALSE),0) -> 17 | G122: =IFERROR(VLOOKUP($A122,Filtro!$A$5:$AX$2230,5,FALSE),0) -> 0 | H122: =IFERROR(VLOOKUP($A122,Filtro!$A$5:$AX$2230,6,FALSE),0) -> 0 | I122: =IFERROR(VLOOKUP($A122,Filtro!$A$5:$AX$2230,7,FALSE),0) -> 0 | J122: =IFERROR(VLOOKUP($A122,Filtro!$A$5:$AX$2230,8,FALSE),0) -> 1 | K122: =IFERROR(VLOOKUP($A122,Filtro!$A$5:$AX$2230,9,FALSE),0) -> 0 | L122: =IFERROR(VLOOKUP($A122,Filtro!$A$5:$AX$2230,10,FALSE),0) -> 1 | M122: =IFERROR(VLOOKUP($A122,Filtro!$A$5:$AX$2230,11,FALSE),0) -> 1 | N122: =IFERROR(VLOOKUP($A122,Filtro!$A$5:$AX$2230,212,FALSE),0) -> 0 | O122: =IFERROR(VLOOKUP($A122,Filtro!$A$5:$AX$2230,13,FALSE),0) -> 0 | P122: =IFERROR(VLOOKUP($A122,Filtro!$A$5:$AX$2230,14,FALSE),0) -> 0 | Q122: =IFERROR(VLOOKUP($A122,Filtro!$A$5:$AX$2230,15,FALSE),0) -> 1 | R122: =IFERROR(VLOOKUP($A122,Filtro!$A$5:$AX$2230,16,FALSE),0) -> 0 | S122: =IFERROR(VLOOKUP($A122,Filtro!$A$5:$AX$2230,17,FALSE),0) -> 0 | T122: =IFERROR(VLOOKUP($A122,Filtro!$A$5:$AX$2230,18,FALSE),0) -> 0 | U122: =IFERROR(VLOOKUP($A122,Filtro!$A$5:$AX$2230,19,FALSE),0) -> 10 | V122: =IFERROR(VLOOKUP($A122,Filtro!$A$5:$AX$2230,20,FALSE),0) -> 13 | W122: =IFERROR(VLOOKUP($A122,Filtro!$A$5:$AX$2230,21,FALSE),0) -> 2 | X122: =IFERROR(VLOOKUP($A122,Filtro!$A$5:$AX$2230,22,FALSE),0) -> 1 | Y122: =IFERROR(VLOOKUP($A122,Filtro!$A$5:$AX$2230,23,FALSE),0) -> 2 | Z122: =IFERROR(VLOOKUP($A122,Filtro!$A$5:$AX$2230,24,FALSE),0) -> 0 | AA122: =IFERROR(VLOOKUP($A122,Filtro!$A$5:$AX$2230,25,FALSE),0) -> 1 | AB122: =IFERROR(VLOOKUP($A122,Filtro!$A$5:$AX$2230,26,FALSE),0) -> 1
A123: 03051900 | C123: DISCAPACIDAD PROFUNDA | D123: =IFERROR(VLOOKUP($A123,Filtro!$A$5:$AX$2230,2,FALSE),0) -> 4 | E123: =IFERROR(VLOOKUP($A123,Filtro!$A$5:$AX$2230,3,FALSE),0) -> 2 | F123: =IFERROR(VLOOKUP($A123,Filtro!$A$5:$AX$2230,4,FALSE),0) -> 2 | G123: =IFERROR(VLOOKUP($A123,Filtro!$A$5:$AX$2230,5,FALSE),0) -> 0 | H123: =IFERROR(VLOOKUP($A123,Filtro!$A$5:$AX$2230,6,FALSE),0) -> 0 | I123: =IFERROR(VLOOKUP($A123,Filtro!$A$5:$AX$2230,7,FALSE),0) -> 0 | J123: =IFERROR(VLOOKUP($A123,Filtro!$A$5:$AX$2230,8,FALSE),0) -> 1 | K123: =IFERROR(VLOOKUP($A123,Filtro!$A$5:$AX$2230,9,FALSE),0) -> 0 | L123: =IFERROR(VLOOKUP($A123,Filtro!$A$5:$AX$2230,10,FALSE),0) -> 0 | M123: =IFERROR(VLOOKUP($A123,Filtro!$A$5:$AX$2230,11,FALSE),0) -> 1 | N123: =IFERROR(VLOOKUP($A123,Filtro!$A$5:$AX$2230,212,FALSE),0) -> 0 | O123: =IFERROR(VLOOKUP($A123,Filtro!$A$5:$AX$2230,13,FALSE),0) -> 1 | P123: =IFERROR(VLOOKUP($A123,Filtro!$A$5:$AX$2230,14,FALSE),0) -> 0 | Q123: =IFERROR(VLOOKUP($A123,Filtro!$A$5:$AX$2230,15,FALSE),0) -> 0 | R123: =IFERROR(VLOOKUP($A123,Filtro!$A$5:$AX$2230,16,FALSE),0) -> 0 | S123: =IFERROR(VLOOKUP($A123,Filtro!$A$5:$AX$2230,17,FALSE),0) -> 0 | T123: =IFERROR(VLOOKUP($A123,Filtro!$A$5:$AX$2230,18,FALSE),0) -> 0 | U123: =IFERROR(VLOOKUP($A123,Filtro!$A$5:$AX$2230,19,FALSE),0) -> 0 | V123: =IFERROR(VLOOKUP($A123,Filtro!$A$5:$AX$2230,20,FALSE),0) -> 0 | W123: =IFERROR(VLOOKUP($A123,Filtro!$A$5:$AX$2230,21,FALSE),0) -> 0 | X123: =IFERROR(VLOOKUP($A123,Filtro!$A$5:$AX$2230,22,FALSE),0) -> 0 | Y123: =IFERROR(VLOOKUP($A123,Filtro!$A$5:$AX$2230,23,FALSE),0) -> 0 | Z123: =IFERROR(VLOOKUP($A123,Filtro!$A$5:$AX$2230,24,FALSE),0) -> 0 | AA123: =IFERROR(VLOOKUP($A123,Filtro!$A$5:$AX$2230,25,FALSE),0) -> 0 | AB123: =IFERROR(VLOOKUP($A123,Filtro!$A$5:$AX$2230,26,FALSE),0) -> 0
A124: 03052000 | B124: ORIGEN SENSORIAL AUDITIVO | C124: SIN DISCAPACIDAD | D124: =IFERROR(VLOOKUP($A124,Filtro!$A$5:$AX$2230,2,FALSE),0) -> 0 | E124: =IFERROR(VLOOKUP($A124,Filtro!$A$5:$AX$2230,3,FALSE),0) -> 0 | F124: =IFERROR(VLOOKUP($A124,Filtro!$A$5:$AX$2230,4,FALSE),0) -> 0 | G124: =IFERROR(VLOOKUP($A124,Filtro!$A$5:$AX$2230,5,FALSE),0) -> 0 | H124: =IFERROR(VLOOKUP($A124,Filtro!$A$5:$AX$2230,6,FALSE),0) -> 0 | I124: =IFERROR(VLOOKUP($A124,Filtro!$A$5:$AX$2230,7,FALSE),0) -> 0 | J124: =IFERROR(VLOOKUP($A124,Filtro!$A$5:$AX$2230,8,FALSE),0) -> 0 | K124: =IFERROR(VLOOKUP($A124,Filtro!$A$5:$AX$2230,9,FALSE),0) -> 0 | L124: =IFERROR(VLOOKUP($A124,Filtro!$A$5:$AX$2230,10,FALSE),0) -> 0 | M124: =IFERROR(VLOOKUP($A124,Filtro!$A$5:$AX$2230,11,FALSE),0) -> 0 | N124: =IFERROR(VLOOKUP($A124,Filtro!$A$5:$AX$2230,212,FALSE),0) -> 0 | O124: =IFERROR(VLOOKUP($A124,Filtro!$A$5:$AX$2230,13,FALSE),0) -> 0 | P124: =IFERROR(VLOOKUP($A124,Filtro!$A$5:$AX$2230,14,FALSE),0) -> 0 | Q124: =IFERROR(VLOOKUP($A124,Filtro!$A$5:$AX$2230,15,FALSE),0) -> 0 | R124: =IFERROR(VLOOKUP($A124,Filtro!$A$5:$AX$2230,16,FALSE),0) -> 0 | S124: =IFERROR(VLOOKUP($A124,Filtro!$A$5:$AX$2230,17,FALSE),0) -> 0 | T124: =IFERROR(VLOOKUP($A124,Filtro!$A$5:$AX$2230,18,FALSE),0) -> 0 | U124: =IFERROR(VLOOKUP($A124,Filtro!$A$5:$AX$2230,19,FALSE),0) -> 0 | V124: =IFERROR(VLOOKUP($A124,Filtro!$A$5:$AX$2230,20,FALSE),0) -> 0 | W124: =IFERROR(VLOOKUP($A124,Filtro!$A$5:$AX$2230,21,FALSE),0) -> 0 | X124: =IFERROR(VLOOKUP($A124,Filtro!$A$5:$AX$2230,22,FALSE),0) -> 0 | Y124: =IFERROR(VLOOKUP($A124,Filtro!$A$5:$AX$2230,23,FALSE),0) -> 0 | Z124: =IFERROR(VLOOKUP($A124,Filtro!$A$5:$AX$2230,24,FALSE),0) -> 0 | AA124: =IFERROR(VLOOKUP($A124,Filtro!$A$5:$AX$2230,25,FALSE),0) -> 0 | AB124: =IFERROR(VLOOKUP($A124,Filtro!$A$5:$AX$2230,26,FALSE),0) -> 0
A125: 03052100 | C125: DISCAPACIDAD LEVE | D125: =IFERROR(VLOOKUP($A125,Filtro!$A$5:$AX$2230,2,FALSE),0) -> 21 | E125: =IFERROR(VLOOKUP($A125,Filtro!$A$5:$AX$2230,3,FALSE),0) -> 10 | F125: =IFERROR(VLOOKUP($A125,Filtro!$A$5:$AX$2230,4,FALSE),0) -> 11 | G125: =IFERROR(VLOOKUP($A125,Filtro!$A$5:$AX$2230,5,FALSE),0) -> 0 | H125: =IFERROR(VLOOKUP($A125,Filtro!$A$5:$AX$2230,6,FALSE),0) -> 0 | I125: =IFERROR(VLOOKUP($A125,Filtro!$A$5:$AX$2230,7,FALSE),0) -> 0 | J125: =IFERROR(VLOOKUP($A125,Filtro!$A$5:$AX$2230,8,FALSE),0) -> 0 | K125: =IFERROR(VLOOKUP($A125,Filtro!$A$5:$AX$2230,9,FALSE),0) -> 0 | L125: =IFERROR(VLOOKUP($A125,Filtro!$A$5:$AX$2230,10,FALSE),0) -> 0 | M125: =IFERROR(VLOOKUP($A125,Filtro!$A$5:$AX$2230,11,FALSE),0) -> 0 | N125: =IFERROR(VLOOKUP($A125,Filtro!$A$5:$AX$2230,212,FALSE),0) -> 0 | O125: =IFERROR(VLOOKUP($A125,Filtro!$A$5:$AX$2230,13,FALSE),0) -> 0 | P125: =IFERROR(VLOOKUP($A125,Filtro!$A$5:$AX$2230,14,FALSE),0) -> 0 | Q125: =IFERROR(VLOOKUP($A125,Filtro!$A$5:$AX$2230,15,FALSE),0) -> 0 | R125: =IFERROR(VLOOKUP($A125,Filtro!$A$5:$AX$2230,16,FALSE),0) -> 0 | S125: =IFERROR(VLOOKUP($A125,Filtro!$A$5:$AX$2230,17,FALSE),0) -> 1 | T125: =IFERROR(VLOOKUP($A125,Filtro!$A$5:$AX$2230,18,FALSE),0) -> 0 | U125: =IFERROR(VLOOKUP($A125,Filtro!$A$5:$AX$2230,19,FALSE),0) -> 5 | V125: =IFERROR(VLOOKUP($A125,Filtro!$A$5:$AX$2230,20,FALSE),0) -> 9 | W125: =IFERROR(VLOOKUP($A125,Filtro!$A$5:$AX$2230,21,FALSE),0) -> 2 | X125: =IFERROR(VLOOKUP($A125,Filtro!$A$5:$AX$2230,22,FALSE),0) -> 1 | Y125: =IFERROR(VLOOKUP($A125,Filtro!$A$5:$AX$2230,23,FALSE),0) -> 2 | Z125: =IFERROR(VLOOKUP($A125,Filtro!$A$5:$AX$2230,24,FALSE),0) -> 0 | AA125: =IFERROR(VLOOKUP($A125,Filtro!$A$5:$AX$2230,25,FALSE),0) -> 0 | AB125: =IFERROR(VLOOKUP($A125,Filtro!$A$5:$AX$2230,26,FALSE),0) -> 1
A126: 03052200 | C126: DISCAPACIDAD MODERADA | D126: =IFERROR(VLOOKUP($A126,Filtro!$A$5:$AX$2230,2,FALSE),0) -> 17 | E126: =IFERROR(VLOOKUP($A126,Filtro!$A$5:$AX$2230,3,FALSE),0) -> 12 | F126: =IFERROR(VLOOKUP($A126,Filtro!$A$5:$AX$2230,4,FALSE),0) -> 5 | G126: =IFERROR(VLOOKUP($A126,Filtro!$A$5:$AX$2230,5,FALSE),0) -> 0 | H126: =IFERROR(VLOOKUP($A126,Filtro!$A$5:$AX$2230,6,FALSE),0) -> 0 | I126: =IFERROR(VLOOKUP($A126,Filtro!$A$5:$AX$2230,7,FALSE),0) -> 0 | J126: =IFERROR(VLOOKUP($A126,Filtro!$A$5:$AX$2230,8,FALSE),0) -> 0 | K126: =IFERROR(VLOOKUP($A126,Filtro!$A$5:$AX$2230,9,FALSE),0) -> 0 | L126: =IFERROR(VLOOKUP($A126,Filtro!$A$5:$AX$2230,10,FALSE),0) -> 0 | M126: =IFERROR(VLOOKUP($A126,Filtro!$A$5:$AX$2230,11,FALSE),0) -> 1 | N126: =IFERROR(VLOOKUP($A126,Filtro!$A$5:$AX$2230,212,FALSE),0) -> 0 | O126: =IFERROR(VLOOKUP($A126,Filtro!$A$5:$AX$2230,13,FALSE),0) -> 2 | P126: =IFERROR(VLOOKUP($A126,Filtro!$A$5:$AX$2230,14,FALSE),0) -> 1 | Q126: =IFERROR(VLOOKUP($A126,Filtro!$A$5:$AX$2230,15,FALSE),0) -> 0 | R126: =IFERROR(VLOOKUP($A126,Filtro!$A$5:$AX$2230,16,FALSE),0) -> 0 | S126: =IFERROR(VLOOKUP($A126,Filtro!$A$5:$AX$2230,17,FALSE),0) -> 0 | T126: =IFERROR(VLOOKUP($A126,Filtro!$A$5:$AX$2230,18,FALSE),0) -> 0 | U126: =IFERROR(VLOOKUP($A126,Filtro!$A$5:$AX$2230,19,FALSE),0) -> 6 | V126: =IFERROR(VLOOKUP($A126,Filtro!$A$5:$AX$2230,20,FALSE),0) -> 4 | W126: =IFERROR(VLOOKUP($A126,Filtro!$A$5:$AX$2230,21,FALSE),0) -> 0 | X126: =IFERROR(VLOOKUP($A126,Filtro!$A$5:$AX$2230,22,FALSE),0) -> 0 | Y126: =IFERROR(VLOOKUP($A126,Filtro!$A$5:$AX$2230,23,FALSE),0) -> 2 | Z126: =IFERROR(VLOOKUP($A126,Filtro!$A$5:$AX$2230,24,FALSE),0) -> 0 | AA126: =IFERROR(VLOOKUP($A126,Filtro!$A$5:$AX$2230,25,FALSE),0) -> 1 | AB126: =IFERROR(VLOOKUP($A126,Filtro!$A$5:$AX$2230,26,FALSE),0) -> 0
A127: 03052300 | C127: DISCAPACIDAD SEVERA | D127: =IFERROR(VLOOKUP($A127,Filtro!$A$5:$AX$2230,2,FALSE),0) -> 25 | E127: =IFERROR(VLOOKUP($A127,Filtro!$A$5:$AX$2230,3,FALSE),0) -> 11 | F127: =IFERROR(VLOOKUP($A127,Filtro!$A$5:$AX$2230,4,FALSE),0) -> 14 | G127: =IFERROR(VLOOKUP($A127,Filtro!$A$5:$AX$2230,5,FALSE),0) -> 0 | H127: =IFERROR(VLOOKUP($A127,Filtro!$A$5:$AX$2230,6,FALSE),0) -> 0 | I127: =IFERROR(VLOOKUP($A127,Filtro!$A$5:$AX$2230,7,FALSE),0) -> 0 | J127: =IFERROR(VLOOKUP($A127,Filtro!$A$5:$AX$2230,8,FALSE),0) -> 0 | K127: =IFERROR(VLOOKUP($A127,Filtro!$A$5:$AX$2230,9,FALSE),0) -> 0 | L127: =IFERROR(VLOOKUP($A127,Filtro!$A$5:$AX$2230,10,FALSE),0) -> 0 | M127: =IFERROR(VLOOKUP($A127,Filtro!$A$5:$AX$2230,11,FALSE),0) -> 2 | N127: =IFERROR(VLOOKUP($A127,Filtro!$A$5:$AX$2230,212,FALSE),0) -> 0 | O127: =IFERROR(VLOOKUP($A127,Filtro!$A$5:$AX$2230,13,FALSE),0) -> 0 | P127: =IFERROR(VLOOKUP($A127,Filtro!$A$5:$AX$2230,14,FALSE),0) -> 0 | Q127: =IFERROR(VLOOKUP($A127,Filtro!$A$5:$AX$2230,15,FALSE),0) -> 0 | R127: =IFERROR(VLOOKUP($A127,Filtro!$A$5:$AX$2230,16,FALSE),0) -> 0 | S127: =IFERROR(VLOOKUP($A127,Filtro!$A$5:$AX$2230,17,FALSE),0) -> 0 | T127: =IFERROR(VLOOKUP($A127,Filtro!$A$5:$AX$2230,18,FALSE),0) -> 0 | U127: =IFERROR(VLOOKUP($A127,Filtro!$A$5:$AX$2230,19,FALSE),0) -> 5 | V127: =IFERROR(VLOOKUP($A127,Filtro!$A$5:$AX$2230,20,FALSE),0) -> 11 | W127: =IFERROR(VLOOKUP($A127,Filtro!$A$5:$AX$2230,21,FALSE),0) -> 1 | X127: =IFERROR(VLOOKUP($A127,Filtro!$A$5:$AX$2230,22,FALSE),0) -> 1 | Y127: =IFERROR(VLOOKUP($A127,Filtro!$A$5:$AX$2230,23,FALSE),0) -> 1 | Z127: =IFERROR(VLOOKUP($A127,Filtro!$A$5:$AX$2230,24,FALSE),0) -> 1 | AA127: =IFERROR(VLOOKUP($A127,Filtro!$A$5:$AX$2230,25,FALSE),0) -> 2 | AB127: =IFERROR(VLOOKUP($A127,Filtro!$A$5:$AX$2230,26,FALSE),0) -> 1
A128: 03052400 | C128: DISCAPACIDAD PROFUNDA | D128: =IFERROR(VLOOKUP($A128,Filtro!$A$5:$AX$2230,2,FALSE),0) -> 2 | E128: =IFERROR(VLOOKUP($A128,Filtro!$A$5:$AX$2230,3,FALSE),0) -> 0 | F128: =IFERROR(VLOOKUP($A128,Filtro!$A$5:$AX$2230,4,FALSE),0) -> 2 | G128: =IFERROR(VLOOKUP($A128,Filtro!$A$5:$AX$2230,5,FALSE),0) -> 0 | H128: =IFERROR(VLOOKUP($A128,Filtro!$A$5:$AX$2230,6,FALSE),0) -> 0 | I128: =IFERROR(VLOOKUP($A128,Filtro!$A$5:$AX$2230,7,FALSE),0) -> 0 | J128: =IFERROR(VLOOKUP($A128,Filtro!$A$5:$AX$2230,8,FALSE),0) -> 0 | K128: =IFERROR(VLOOKUP($A128,Filtro!$A$5:$AX$2230,9,FALSE),0) -> 0 | L128: =IFERROR(VLOOKUP($A128,Filtro!$A$5:$AX$2230,10,FALSE),0) -> 0 | M128: =IFERROR(VLOOKUP($A128,Filtro!$A$5:$AX$2230,11,FALSE),0) -> 0 | N128: =IFERROR(VLOOKUP($A128,Filtro!$A$5:$AX$2230,212,FALSE),0) -> 0 | O128: =IFERROR(VLOOKUP($A128,Filtro!$A$5:$AX$2230,13,FALSE),0) -> 0 | P128: =IFERROR(VLOOKUP($A128,Filtro!$A$5:$AX$2230,14,FALSE),0) -> 0 | Q128: =IFERROR(VLOOKUP($A128,Filtro!$A$5:$AX$2230,15,FALSE),0) -> 0 | R128: =IFERROR(VLOOKUP($A128,Filtro!$A$5:$AX$2230,16,FALSE),0) -> 0 | S128: =IFERROR(VLOOKUP($A128,Filtro!$A$5:$AX$2230,17,FALSE),0) -> 0 | T128: =IFERROR(VLOOKUP($A128,Filtro!$A$5:$AX$2230,18,FALSE),0) -> 0 | U128: =IFERROR(VLOOKUP($A128,Filtro!$A$5:$AX$2230,19,FALSE),0) -> 0 | V128: =IFERROR(VLOOKUP($A128,Filtro!$A$5:$AX$2230,20,FALSE),0) -> 2 | W128: =IFERROR(VLOOKUP($A128,Filtro!$A$5:$AX$2230,21,FALSE),0) -> 0 | X128: =IFERROR(VLOOKUP($A128,Filtro!$A$5:$AX$2230,22,FALSE),0) -> 0 | Y128: =IFERROR(VLOOKUP($A128,Filtro!$A$5:$AX$2230,23,FALSE),0) -> 0 | Z128: =IFERROR(VLOOKUP($A128,Filtro!$A$5:$AX$2230,24,FALSE),0) -> 0 | AA128: =IFERROR(VLOOKUP($A128,Filtro!$A$5:$AX$2230,25,FALSE),0) -> 0 | AB128: =IFERROR(VLOOKUP($A128,Filtro!$A$5:$AX$2230,26,FALSE),0) -> 0
A129: 03052500 | B129: ORIGEN MENTAL PSÍQUICO | C129: SIN DISCAPACIDAD | D129: =IFERROR(VLOOKUP($A129,Filtro!$A$5:$AX$2230,2,FALSE),0) -> 1 | E129: =IFERROR(VLOOKUP($A129,Filtro!$A$5:$AX$2230,3,FALSE),0) -> 1 | F129: =IFERROR(VLOOKUP($A129,Filtro!$A$5:$AX$2230,4,FALSE),0) -> 0 | G129: =IFERROR(VLOOKUP($A129,Filtro!$A$5:$AX$2230,5,FALSE),0) -> 0 | H129: =IFERROR(VLOOKUP($A129,Filtro!$A$5:$AX$2230,6,FALSE),0) -> 0 | I129: =IFERROR(VLOOKUP($A129,Filtro!$A$5:$AX$2230,7,FALSE),0) -> 0 | J129: =IFERROR(VLOOKUP($A129,Filtro!$A$5:$AX$2230,8,FALSE),0) -> 0 | K129: =IFERROR(VLOOKUP($A129,Filtro!$A$5:$AX$2230,9,FALSE),0) -> 0 | L129: =IFERROR(VLOOKUP($A129,Filtro!$A$5:$AX$2230,10,FALSE),0) -> 0 | M129: =IFERROR(VLOOKUP($A129,Filtro!$A$5:$AX$2230,11,FALSE),0) -> 0 | N129: =IFERROR(VLOOKUP($A129,Filtro!$A$5:$AX$2230,212,FALSE),0) -> 0 | O129: =IFERROR(VLOOKUP($A129,Filtro!$A$5:$AX$2230,13,FALSE),0) -> 0 | P129: =IFERROR(VLOOKUP($A129,Filtro!$A$5:$AX$2230,14,FALSE),0) -> 0 | Q129: =IFERROR(VLOOKUP($A129,Filtro!$A$5:$AX$2230,15,FALSE),0) -> 0 | R129: =IFERROR(VLOOKUP($A129,Filtro!$A$5:$AX$2230,16,FALSE),0) -> 0 | S129: =IFERROR(VLOOKUP($A129,Filtro!$A$5:$AX$2230,17,FALSE),0) -> 0 | T129: =IFERROR(VLOOKUP($A129,Filtro!$A$5:$AX$2230,18,FALSE),0) -> 0 | U129: =IFERROR(VLOOKUP($A129,Filtro!$A$5:$AX$2230,19,FALSE),0) -> 1 | V129: =IFERROR(VLOOKUP($A129,Filtro!$A$5:$AX$2230,20,FALSE),0) -> 0 | W129: =IFERROR(VLOOKUP($A129,Filtro!$A$5:$AX$2230,21,FALSE),0) -> 0 | X129: =IFERROR(VLOOKUP($A129,Filtro!$A$5:$AX$2230,22,FALSE),0) -> 0 | Y129: =IFERROR(VLOOKUP($A129,Filtro!$A$5:$AX$2230,23,FALSE),0) -> 0 | Z129: =IFERROR(VLOOKUP($A129,Filtro!$A$5:$AX$2230,24,FALSE),0) -> 0 | AA129: =IFERROR(VLOOKUP($A129,Filtro!$A$5:$AX$2230,25,FALSE),0) -> 0 | AB129: =IFERROR(VLOOKUP($A129,Filtro!$A$5:$AX$2230,26,FALSE),0) -> 0
A130: 03052600 | C130: DISCAPACIDAD LEVE | D130: =IFERROR(VLOOKUP($A130,Filtro!$A$5:$AX$2230,2,FALSE),0) -> 50 | E130: =IFERROR(VLOOKUP($A130,Filtro!$A$5:$AX$2230,3,FALSE),0) -> 31 | F130: =IFERROR(VLOOKUP($A130,Filtro!$A$5:$AX$2230,4,FALSE),0) -> 19 | G130: =IFERROR(VLOOKUP($A130,Filtro!$A$5:$AX$2230,5,FALSE),0) -> 0 | H130: =IFERROR(VLOOKUP($A130,Filtro!$A$5:$AX$2230,6,FALSE),0) -> 0 | I130: =IFERROR(VLOOKUP($A130,Filtro!$A$5:$AX$2230,7,FALSE),0) -> 0 | J130: =IFERROR(VLOOKUP($A130,Filtro!$A$5:$AX$2230,8,FALSE),0) -> 0 | K130: =IFERROR(VLOOKUP($A130,Filtro!$A$5:$AX$2230,9,FALSE),0) -> 4 | L130: =IFERROR(VLOOKUP($A130,Filtro!$A$5:$AX$2230,10,FALSE),0) -> 1 | M130: =IFERROR(VLOOKUP($A130,Filtro!$A$5:$AX$2230,11,FALSE),0) -> 10 | N130: =IFERROR(VLOOKUP($A130,Filtro!$A$5:$AX$2230,212,FALSE),0) -> 0 | O130: =IFERROR(VLOOKUP($A130,Filtro!$A$5:$AX$2230,13,FALSE),0) -> 3 | P130: =IFERROR(VLOOKUP($A130,Filtro!$A$5:$AX$2230,14,FALSE),0) -> 0 | Q130: =IFERROR(VLOOKUP($A130,Filtro!$A$5:$AX$2230,15,FALSE),0) -> 2 | R130: =IFERROR(VLOOKUP($A130,Filtro!$A$5:$AX$2230,16,FALSE),0) -> 2 | S130: =IFERROR(VLOOKUP($A130,Filtro!$A$5:$AX$2230,17,FALSE),0) -> 3 | T130: =IFERROR(VLOOKUP($A130,Filtro!$A$5:$AX$2230,18,FALSE),0) -> 1 | U130: =IFERROR(VLOOKUP($A130,Filtro!$A$5:$AX$2230,19,FALSE),0) -> 9 | V130: =IFERROR(VLOOKUP($A130,Filtro!$A$5:$AX$2230,20,FALSE),0) -> 9 | W130: =IFERROR(VLOOKUP($A130,Filtro!$A$5:$AX$2230,21,FALSE),0) -> 0 | X130: =IFERROR(VLOOKUP($A130,Filtro!$A$5:$AX$2230,22,FALSE),0) -> 0 | Y130: =IFERROR(VLOOKUP($A130,Filtro!$A$5:$AX$2230,23,FALSE),0) -> 0 | Z130: =IFERROR(VLOOKUP($A130,Filtro!$A$5:$AX$2230,24,FALSE),0) -> 0 | AA130: =IFERROR(VLOOKUP($A130,Filtro!$A$5:$AX$2230,25,FALSE),0) -> 0 | AB130: =IFERROR(VLOOKUP($A130,Filtro!$A$5:$AX$2230,26,FALSE),0) -> 0
A131: 03052700 | C131: DISCAPACIDAD MODERADA | D131: =IFERROR(VLOOKUP($A131,Filtro!$A$5:$AX$2230,2,FALSE),0) -> 90 | E131: =IFERROR(VLOOKUP($A131,Filtro!$A$5:$AX$2230,3,FALSE),0) -> 63 | F131: =IFERROR(VLOOKUP($A131,Filtro!$A$5:$AX$2230,4,FALSE),0) -> 27 | G131: =IFERROR(VLOOKUP($A131,Filtro!$A$5:$AX$2230,5,FALSE),0) -> 0 | H131: =IFERROR(VLOOKUP($A131,Filtro!$A$5:$AX$2230,6,FALSE),0) -> 0 | I131: =IFERROR(VLOOKUP($A131,Filtro!$A$5:$AX$2230,7,FALSE),0) -> 0 | J131: =IFERROR(VLOOKUP($A131,Filtro!$A$5:$AX$2230,8,FALSE),0) -> 0 | K131: =IFERROR(VLOOKUP($A131,Filtro!$A$5:$AX$2230,9,FALSE),0) -> 11 | L131: =IFERROR(VLOOKUP($A131,Filtro!$A$5:$AX$2230,10,FALSE),0) -> 5 | M131: =IFERROR(VLOOKUP($A131,Filtro!$A$5:$AX$2230,11,FALSE),0) -> 22 | N131: =IFERROR(VLOOKUP($A131,Filtro!$A$5:$AX$2230,212,FALSE),0) -> 0 | O131: =IFERROR(VLOOKUP($A131,Filtro!$A$5:$AX$2230,13,FALSE),0) -> 5 | P131: =IFERROR(VLOOKUP($A131,Filtro!$A$5:$AX$2230,14,FALSE),0) -> 1 | Q131: =IFERROR(VLOOKUP($A131,Filtro!$A$5:$AX$2230,15,FALSE),0) -> 11 | R131: =IFERROR(VLOOKUP($A131,Filtro!$A$5:$AX$2230,16,FALSE),0) -> 3 | S131: =IFERROR(VLOOKUP($A131,Filtro!$A$5:$AX$2230,17,FALSE),0) -> 4 | T131: =IFERROR(VLOOKUP($A131,Filtro!$A$5:$AX$2230,18,FALSE),0) -> 0 | U131: =IFERROR(VLOOKUP($A131,Filtro!$A$5:$AX$2230,19,FALSE),0) -> 9 | V131: =IFERROR(VLOOKUP($A131,Filtro!$A$5:$AX$2230,20,FALSE),0) -> 8 | W131: =IFERROR(VLOOKUP($A131,Filtro!$A$5:$AX$2230,21,FALSE),0) -> 1 | X131: =IFERROR(VLOOKUP($A131,Filtro!$A$5:$AX$2230,22,FALSE),0) -> 1 | Y131: =IFERROR(VLOOKUP($A131,Filtro!$A$5:$AX$2230,23,FALSE),0) -> 0 | Z131: =IFERROR(VLOOKUP($A131,Filtro!$A$5:$AX$2230,24,FALSE),0) -> 3 | AA131: =IFERROR(VLOOKUP($A131,Filtro!$A$5:$AX$2230,25,FALSE),0) -> 0 | AB131: =IFERROR(VLOOKUP($A131,Filtro!$A$5:$AX$2230,26,FALSE),0) -> 3
A132: 03052800 | C132: DISCAPACIDAD SEVERA | D132: =IFERROR(VLOOKUP($A132,Filtro!$A$5:$AX$2230,2,FALSE),0) -> 186 | E132: =IFERROR(VLOOKUP($A132,Filtro!$A$5:$AX$2230,3,FALSE),0) -> 105 | F132: =IFERROR(VLOOKUP($A132,Filtro!$A$5:$AX$2230,4,FALSE),0) -> 81 | G132: =IFERROR(VLOOKUP($A132,Filtro!$A$5:$AX$2230,5,FALSE),0) -> 1 | H132: =IFERROR(VLOOKUP($A132,Filtro!$A$5:$AX$2230,6,FALSE),0) -> 0 | I132: =IFERROR(VLOOKUP($A132,Filtro!$A$5:$AX$2230,7,FALSE),0) -> 0 | J132: =IFERROR(VLOOKUP($A132,Filtro!$A$5:$AX$2230,8,FALSE),0) -> 0 | K132: =IFERROR(VLOOKUP($A132,Filtro!$A$5:$AX$2230,9,FALSE),0) -> 16 | L132: =IFERROR(VLOOKUP($A132,Filtro!$A$5:$AX$2230,10,FALSE),0) -> 6 | M132: =IFERROR(VLOOKUP($A132,Filtro!$A$5:$AX$2230,11,FALSE),0) -> 29 | N132: =IFERROR(VLOOKUP($A132,Filtro!$A$5:$AX$2230,212,FALSE),0) -> 0 | O132: =IFERROR(VLOOKUP($A132,Filtro!$A$5:$AX$2230,13,FALSE),0) -> 18 | P132: =IFERROR(VLOOKUP($A132,Filtro!$A$5:$AX$2230,14,FALSE),0) -> 6 | Q132: =IFERROR(VLOOKUP($A132,Filtro!$A$5:$AX$2230,15,FALSE),0) -> 5 | R132: =IFERROR(VLOOKUP($A132,Filtro!$A$5:$AX$2230,16,FALSE),0) -> 0 | S132: =IFERROR(VLOOKUP($A132,Filtro!$A$5:$AX$2230,17,FALSE),0) -> 3 | T132: =IFERROR(VLOOKUP($A132,Filtro!$A$5:$AX$2230,18,FALSE),0) -> 3 | U132: =IFERROR(VLOOKUP($A132,Filtro!$A$5:$AX$2230,19,FALSE),0) -> 16 | V132: =IFERROR(VLOOKUP($A132,Filtro!$A$5:$AX$2230,20,FALSE),0) -> 16 | W132: =IFERROR(VLOOKUP($A132,Filtro!$A$5:$AX$2230,21,FALSE),0) -> 4 | X132: =IFERROR(VLOOKUP($A132,Filtro!$A$5:$AX$2230,22,FALSE),0) -> 5 | Y132: =IFERROR(VLOOKUP($A132,Filtro!$A$5:$AX$2230,23,FALSE),0) -> 4 | Z132: =IFERROR(VLOOKUP($A132,Filtro!$A$5:$AX$2230,24,FALSE),0) -> 13 | AA132: =IFERROR(VLOOKUP($A132,Filtro!$A$5:$AX$2230,25,FALSE),0) -> 9 | AB132: =IFERROR(VLOOKUP($A132,Filtro!$A$5:$AX$2230,26,FALSE),0) -> 27
A133: 03052900 | C133: DISCAPACIDAD PROFUNDA | D133: =IFERROR(VLOOKUP($A133,Filtro!$A$5:$AX$2230,2,FALSE),0) -> 10 | E133: =IFERROR(VLOOKUP($A133,Filtro!$A$5:$AX$2230,3,FALSE),0) -> 3 | F133: =IFERROR(VLOOKUP($A133,Filtro!$A$5:$AX$2230,4,FALSE),0) -> 7 | G133: =IFERROR(VLOOKUP($A133,Filtro!$A$5:$AX$2230,5,FALSE),0) -> 0 | H133: =IFERROR(VLOOKUP($A133,Filtro!$A$5:$AX$2230,6,FALSE),0) -> 0 | I133: =IFERROR(VLOOKUP($A133,Filtro!$A$5:$AX$2230,7,FALSE),0) -> 0 | J133: =IFERROR(VLOOKUP($A133,Filtro!$A$5:$AX$2230,8,FALSE),0) -> 0 | K133: =IFERROR(VLOOKUP($A133,Filtro!$A$5:$AX$2230,9,FALSE),0) -> 0 | L133: =IFERROR(VLOOKUP($A133,Filtro!$A$5:$AX$2230,10,FALSE),0) -> 0 | M133: =IFERROR(VLOOKUP($A133,Filtro!$A$5:$AX$2230,11,FALSE),0) -> 1 | N133: =IFERROR(VLOOKUP($A133,Filtro!$A$5:$AX$2230,212,FALSE),0) -> 0 | O133: =IFERROR(VLOOKUP($A133,Filtro!$A$5:$AX$2230,13,FALSE),0) -> 0 | P133: =IFERROR(VLOOKUP($A133,Filtro!$A$5:$AX$2230,14,FALSE),0) -> 0 | Q133: =IFERROR(VLOOKUP($A133,Filtro!$A$5:$AX$2230,15,FALSE),0) -> 1 | R133: =IFERROR(VLOOKUP($A133,Filtro!$A$5:$AX$2230,16,FALSE),0) -> 1 | S133: =IFERROR(VLOOKUP($A133,Filtro!$A$5:$AX$2230,17,FALSE),0) -> 0 | T133: =IFERROR(VLOOKUP($A133,Filtro!$A$5:$AX$2230,18,FALSE),0) -> 0 | U133: =IFERROR(VLOOKUP($A133,Filtro!$A$5:$AX$2230,19,FALSE),0) -> 0 | V133: =IFERROR(VLOOKUP($A133,Filtro!$A$5:$AX$2230,20,FALSE),0) -> 1 | W133: =IFERROR(VLOOKUP($A133,Filtro!$A$5:$AX$2230,21,FALSE),0) -> 0 | X133: =IFERROR(VLOOKUP($A133,Filtro!$A$5:$AX$2230,22,FALSE),0) -> 0 | Y133: =IFERROR(VLOOKUP($A133,Filtro!$A$5:$AX$2230,23,FALSE),0) -> 0 | Z133: =IFERROR(VLOOKUP($A133,Filtro!$A$5:$AX$2230,24,FALSE),0) -> 0 | AA133: =IFERROR(VLOOKUP($A133,Filtro!$A$5:$AX$2230,25,FALSE),0) -> 1 | AB133: =IFERROR(VLOOKUP($A133,Filtro!$A$5:$AX$2230,26,FALSE),0) -> 3
A134: 03053000 | B134: ORIGEN MENTAL INTELECTUAL | C134: SIN DISCAPACIDAD | D134: =IFERROR(VLOOKUP($A134,Filtro!$A$5:$AX$2230,2,FALSE),0) -> 0 | E134: =IFERROR(VLOOKUP($A134,Filtro!$A$5:$AX$2230,3,FALSE),0) -> 0 | F134: =IFERROR(VLOOKUP($A134,Filtro!$A$5:$AX$2230,4,FALSE),0) -> 0 | G134: =IFERROR(VLOOKUP($A134,Filtro!$A$5:$AX$2230,5,FALSE),0) -> 0 | H134: =IFERROR(VLOOKUP($A134,Filtro!$A$5:$AX$2230,6,FALSE),0) -> 0 | I134: =IFERROR(VLOOKUP($A134,Filtro!$A$5:$AX$2230,7,FALSE),0) -> 0 | J134: =IFERROR(VLOOKUP($A134,Filtro!$A$5:$AX$2230,8,FALSE),0) -> 0 | K134: =IFERROR(VLOOKUP($A134,Filtro!$A$5:$AX$2230,9,FALSE),0) -> 0 | L134: =IFERROR(VLOOKUP($A134,Filtro!$A$5:$AX$2230,10,FALSE),0) -> 0 | M134: =IFERROR(VLOOKUP($A134,Filtro!$A$5:$AX$2230,11,FALSE),0) -> 0 | N134: =IFERROR(VLOOKUP($A134,Filtro!$A$5:$AX$2230,212,FALSE),0) -> 0 | O134: =IFERROR(VLOOKUP($A134,Filtro!$A$5:$AX$2230,13,FALSE),0) -> 0 | P134: =IFERROR(VLOOKUP($A134,Filtro!$A$5:$AX$2230,14,FALSE),0) -> 0 | Q134: =IFERROR(VLOOKUP($A134,Filtro!$A$5:$AX$2230,15,FALSE),0) -> 0 | R134: =IFERROR(VLOOKUP($A134,Filtro!$A$5:$AX$2230,16,FALSE),0) -> 0 | S134: =IFERROR(VLOOKUP($A134,Filtro!$A$5:$AX$2230,17,FALSE),0) -> 0 | T134: =IFERROR(VLOOKUP($A134,Filtro!$A$5:$AX$2230,18,FALSE),0) -> 0 | U134: =IFERROR(VLOOKUP($A134,Filtro!$A$5:$AX$2230,19,FALSE),0) -> 0 | V134: =IFERROR(VLOOKUP($A134,Filtro!$A$5:$AX$2230,20,FALSE),0) -> 0 | W134: =IFERROR(VLOOKUP($A134,Filtro!$A$5:$AX$2230,21,FALSE),0) -> 0 | X134: =IFERROR(VLOOKUP($A134,Filtro!$A$5:$AX$2230,22,FALSE),0) -> 0 | Y134: =IFERROR(VLOOKUP($A134,Filtro!$A$5:$AX$2230,23,FALSE),0) -> 0 | Z134: =IFERROR(VLOOKUP($A134,Filtro!$A$5:$AX$2230,24,FALSE),0) -> 0 | AA134: =IFERROR(VLOOKUP($A134,Filtro!$A$5:$AX$2230,25,FALSE),0) -> 0 | AB134: =IFERROR(VLOOKUP($A134,Filtro!$A$5:$AX$2230,26,FALSE),0) -> 0
A135: 03053100 | C135: DISCAPACIDAD LEVE | D135: =IFERROR(VLOOKUP($A135,Filtro!$A$5:$AX$2230,2,FALSE),0) -> 19 | E135: =IFERROR(VLOOKUP($A135,Filtro!$A$5:$AX$2230,3,FALSE),0) -> 12 | F135: =IFERROR(VLOOKUP($A135,Filtro!$A$5:$AX$2230,4,FALSE),0) -> 7 | G135: =IFERROR(VLOOKUP($A135,Filtro!$A$5:$AX$2230,5,FALSE),0) -> 0 | H135: =IFERROR(VLOOKUP($A135,Filtro!$A$5:$AX$2230,6,FALSE),0) -> 0 | I135: =IFERROR(VLOOKUP($A135,Filtro!$A$5:$AX$2230,7,FALSE),0) -> 0 | J135: =IFERROR(VLOOKUP($A135,Filtro!$A$5:$AX$2230,8,FALSE),0) -> 0 | K135: =IFERROR(VLOOKUP($A135,Filtro!$A$5:$AX$2230,9,FALSE),0) -> 0 | L135: =IFERROR(VLOOKUP($A135,Filtro!$A$5:$AX$2230,10,FALSE),0) -> 1 | M135: =IFERROR(VLOOKUP($A135,Filtro!$A$5:$AX$2230,11,FALSE),0) -> 0 | N135: =IFERROR(VLOOKUP($A135,Filtro!$A$5:$AX$2230,212,FALSE),0) -> 0 | O135: =IFERROR(VLOOKUP($A135,Filtro!$A$5:$AX$2230,13,FALSE),0) -> 2 | P135: =IFERROR(VLOOKUP($A135,Filtro!$A$5:$AX$2230,14,FALSE),0) -> 0 | Q135: =IFERROR(VLOOKUP($A135,Filtro!$A$5:$AX$2230,15,FALSE),0) -> 1 | R135: =IFERROR(VLOOKUP($A135,Filtro!$A$5:$AX$2230,16,FALSE),0) -> 0 | S135: =IFERROR(VLOOKUP($A135,Filtro!$A$5:$AX$2230,17,FALSE),0) -> 2 | T135: =IFERROR(VLOOKUP($A135,Filtro!$A$5:$AX$2230,18,FALSE),0) -> 2 | U135: =IFERROR(VLOOKUP($A135,Filtro!$A$5:$AX$2230,19,FALSE),0) -> 6 | V135: =IFERROR(VLOOKUP($A135,Filtro!$A$5:$AX$2230,20,FALSE),0) -> 2 | W135: =IFERROR(VLOOKUP($A135,Filtro!$A$5:$AX$2230,21,FALSE),0) -> 1 | X135: =IFERROR(VLOOKUP($A135,Filtro!$A$5:$AX$2230,22,FALSE),0) -> 0 | Y135: =IFERROR(VLOOKUP($A135,Filtro!$A$5:$AX$2230,23,FALSE),0) -> 0 | Z135: =IFERROR(VLOOKUP($A135,Filtro!$A$5:$AX$2230,24,FALSE),0) -> 0 | AA135: =IFERROR(VLOOKUP($A135,Filtro!$A$5:$AX$2230,25,FALSE),0) -> 0 | AB135: =IFERROR(VLOOKUP($A135,Filtro!$A$5:$AX$2230,26,FALSE),0) -> 0
A136: 03053200 | C136: DISCAPACIDAD MODERADA | D136: =IFERROR(VLOOKUP($A136,Filtro!$A$5:$AX$2230,2,FALSE),0) -> 40 | E136: =IFERROR(VLOOKUP($A136,Filtro!$A$5:$AX$2230,3,FALSE),0) -> 26 | F136: =IFERROR(VLOOKUP($A136,Filtro!$A$5:$AX$2230,4,FALSE),0) -> 14 | G136: =IFERROR(VLOOKUP($A136,Filtro!$A$5:$AX$2230,5,FALSE),0) -> 2 | H136: =IFERROR(VLOOKUP($A136,Filtro!$A$5:$AX$2230,6,FALSE),0) -> 0 | I136: =IFERROR(VLOOKUP($A136,Filtro!$A$5:$AX$2230,7,FALSE),0) -> 0 | J136: =IFERROR(VLOOKUP($A136,Filtro!$A$5:$AX$2230,8,FALSE),0) -> 1 | K136: =IFERROR(VLOOKUP($A136,Filtro!$A$5:$AX$2230,9,FALSE),0) -> 4 | L136: =IFERROR(VLOOKUP($A136,Filtro!$A$5:$AX$2230,10,FALSE),0) -> 0 | M136: =IFERROR(VLOOKUP($A136,Filtro!$A$5:$AX$2230,11,FALSE),0) -> 3 | N136: =IFERROR(VLOOKUP($A136,Filtro!$A$5:$AX$2230,212,FALSE),0) -> 0 | O136: =IFERROR(VLOOKUP($A136,Filtro!$A$5:$AX$2230,13,FALSE),0) -> 3 | P136: =IFERROR(VLOOKUP($A136,Filtro!$A$5:$AX$2230,14,FALSE),0) -> 1 | Q136: =IFERROR(VLOOKUP($A136,Filtro!$A$5:$AX$2230,15,FALSE),0) -> 7 | R136: =IFERROR(VLOOKUP($A136,Filtro!$A$5:$AX$2230,16,FALSE),0) -> 0 | S136: =IFERROR(VLOOKUP($A136,Filtro!$A$5:$AX$2230,17,FALSE),0) -> 1 | T136: =IFERROR(VLOOKUP($A136,Filtro!$A$5:$AX$2230,18,FALSE),0) -> 0 | U136: =IFERROR(VLOOKUP($A136,Filtro!$A$5:$AX$2230,19,FALSE),0) -> 6 | V136: =IFERROR(VLOOKUP($A136,Filtro!$A$5:$AX$2230,20,FALSE),0) -> 6 | W136: =IFERROR(VLOOKUP($A136,Filtro!$A$5:$AX$2230,21,FALSE),0) -> 0 | X136: =IFERROR(VLOOKUP($A136,Filtro!$A$5:$AX$2230,22,FALSE),0) -> 1 | Y136: =IFERROR(VLOOKUP($A136,Filtro!$A$5:$AX$2230,23,FALSE),0) -> 0 | Z136: =IFERROR(VLOOKUP($A136,Filtro!$A$5:$AX$2230,24,FALSE),0) -> 0 | AA136: =IFERROR(VLOOKUP($A136,Filtro!$A$5:$AX$2230,25,FALSE),0) -> 0 | AB136: =IFERROR(VLOOKUP($A136,Filtro!$A$5:$AX$2230,26,FALSE),0) -> 0
A137: 03053300 | C137: DISCAPACIDAD SEVERA | D137: =IFERROR(VLOOKUP($A137,Filtro!$A$5:$AX$2230,2,FALSE),0) -> 53 | E137: =IFERROR(VLOOKUP($A137,Filtro!$A$5:$AX$2230,3,FALSE),0) -> 31 | F137: =IFERROR(VLOOKUP($A137,Filtro!$A$5:$AX$2230,4,FALSE),0) -> 22 | G137: =IFERROR(VLOOKUP($A137,Filtro!$A$5:$AX$2230,5,FALSE),0) -> 0 | H137: =IFERROR(VLOOKUP($A137,Filtro!$A$5:$AX$2230,6,FALSE),0) -> 1 | I137: =IFERROR(VLOOKUP($A137,Filtro!$A$5:$AX$2230,7,FALSE),0) -> 1 | J137: =IFERROR(VLOOKUP($A137,Filtro!$A$5:$AX$2230,8,FALSE),0) -> 0 | K137: =IFERROR(VLOOKUP($A137,Filtro!$A$5:$AX$2230,9,FALSE),0) -> 5 | L137: =IFERROR(VLOOKUP($A137,Filtro!$A$5:$AX$2230,10,FALSE),0) -> 1 | M137: =IFERROR(VLOOKUP($A137,Filtro!$A$5:$AX$2230,11,FALSE),0) -> 4 | N137: =IFERROR(VLOOKUP($A137,Filtro!$A$5:$AX$2230,212,FALSE),0) -> 0 | O137: =IFERROR(VLOOKUP($A137,Filtro!$A$5:$AX$2230,13,FALSE),0) -> 5 | P137: =IFERROR(VLOOKUP($A137,Filtro!$A$5:$AX$2230,14,FALSE),0) -> 2 | Q137: =IFERROR(VLOOKUP($A137,Filtro!$A$5:$AX$2230,15,FALSE),0) -> 3 | R137: =IFERROR(VLOOKUP($A137,Filtro!$A$5:$AX$2230,16,FALSE),0) -> 3 | S137: =IFERROR(VLOOKUP($A137,Filtro!$A$5:$AX$2230,17,FALSE),0) -> 2 | T137: =IFERROR(VLOOKUP($A137,Filtro!$A$5:$AX$2230,18,FALSE),0) -> 2 | U137: =IFERROR(VLOOKUP($A137,Filtro!$A$5:$AX$2230,19,FALSE),0) -> 9 | V137: =IFERROR(VLOOKUP($A137,Filtro!$A$5:$AX$2230,20,FALSE),0) -> 10 | W137: =IFERROR(VLOOKUP($A137,Filtro!$A$5:$AX$2230,21,FALSE),0) -> 1 | X137: =IFERROR(VLOOKUP($A137,Filtro!$A$5:$AX$2230,22,FALSE),0) -> 0 | Y137: =IFERROR(VLOOKUP($A137,Filtro!$A$5:$AX$2230,23,FALSE),0) -> 0 | Z137: =IFERROR(VLOOKUP($A137,Filtro!$A$5:$AX$2230,24,FALSE),0) -> 1 | AA137: =IFERROR(VLOOKUP($A137,Filtro!$A$5:$AX$2230,25,FALSE),0) -> 1 | AB137: =IFERROR(VLOOKUP($A137,Filtro!$A$5:$AX$2230,26,FALSE),0) -> 1
A138: 03053400 | C138: DISCAPACIDAD PROFUNDA | D138: =IFERROR(VLOOKUP($A138,Filtro!$A$5:$AX$2230,2,FALSE),0) -> 11 | E138: =IFERROR(VLOOKUP($A138,Filtro!$A$5:$AX$2230,3,FALSE),0) -> 6 | F138: =IFERROR(VLOOKUP($A138,Filtro!$A$5:$AX$2230,4,FALSE),0) -> 5 | G138: =IFERROR(VLOOKUP($A138,Filtro!$A$5:$AX$2230,5,FALSE),0) -> 0 | H138: =IFERROR(VLOOKUP($A138,Filtro!$A$5:$AX$2230,6,FALSE),0) -> 0 | I138: =IFERROR(VLOOKUP($A138,Filtro!$A$5:$AX$2230,7,FALSE),0) -> 0 | J138: =IFERROR(VLOOKUP($A138,Filtro!$A$5:$AX$2230,8,FALSE),0) -> 0 | K138: =IFERROR(VLOOKUP($A138,Filtro!$A$5:$AX$2230,9,FALSE),0) -> 0 | L138: =IFERROR(VLOOKUP($A138,Filtro!$A$5:$AX$2230,10,FALSE),0) -> 0 | M138: =IFERROR(VLOOKUP($A138,Filtro!$A$5:$AX$2230,11,FALSE),0) -> 2 | N138: =IFERROR(VLOOKUP($A138,Filtro!$A$5:$AX$2230,212,FALSE),0) -> 0 | O138: =IFERROR(VLOOKUP($A138,Filtro!$A$5:$AX$2230,13,FALSE),0) -> 1 | P138: =IFERROR(VLOOKUP($A138,Filtro!$A$5:$AX$2230,14,FALSE),0) -> 0 | Q138: =IFERROR(VLOOKUP($A138,Filtro!$A$5:$AX$2230,15,FALSE),0) -> 1 | R138: =IFERROR(VLOOKUP($A138,Filtro!$A$5:$AX$2230,16,FALSE),0) -> 1 | S138: =IFERROR(VLOOKUP($A138,Filtro!$A$5:$AX$2230,17,FALSE),0) -> 0 | T138: =IFERROR(VLOOKUP($A138,Filtro!$A$5:$AX$2230,18,FALSE),0) -> 0 | U138: =IFERROR(VLOOKUP($A138,Filtro!$A$5:$AX$2230,19,FALSE),0) -> 1 | V138: =IFERROR(VLOOKUP($A138,Filtro!$A$5:$AX$2230,20,FALSE),0) -> 1 | W138: =IFERROR(VLOOKUP($A138,Filtro!$A$5:$AX$2230,21,FALSE),0) -> 0 | X138: =IFERROR(VLOOKUP($A138,Filtro!$A$5:$AX$2230,22,FALSE),0) -> 0 | Y138: =IFERROR(VLOOKUP($A138,Filtro!$A$5:$AX$2230,23,FALSE),0) -> 1 | Z138: =IFERROR(VLOOKUP($A138,Filtro!$A$5:$AX$2230,24,FALSE),0) -> 1 | AA138: =IFERROR(VLOOKUP($A138,Filtro!$A$5:$AX$2230,25,FALSE),0) -> 0 | AB138: =IFERROR(VLOOKUP($A138,Filtro!$A$5:$AX$2230,26,FALSE),0) -> 1
A139: 03053500 | B139: ORIGEN MÚLTIPLE | C139: SIN DISCAPACIDAD | D139: =IFERROR(VLOOKUP($A139,Filtro!$A$5:$AX$2230,2,FALSE),0) -> 0 | E139: =IFERROR(VLOOKUP($A139,Filtro!$A$5:$AX$2230,3,FALSE),0) -> 0 | F139: =IFERROR(VLOOKUP($A139,Filtro!$A$5:$AX$2230,4,FALSE),0) -> 0 | G139: =IFERROR(VLOOKUP($A139,Filtro!$A$5:$AX$2230,5,FALSE),0) -> 0 | H139: =IFERROR(VLOOKUP($A139,Filtro!$A$5:$AX$2230,6,FALSE),0) -> 0 | I139: =IFERROR(VLOOKUP($A139,Filtro!$A$5:$AX$2230,7,FALSE),0) -> 0 | J139: =IFERROR(VLOOKUP($A139,Filtro!$A$5:$AX$2230,8,FALSE),0) -> 0 | K139: =IFERROR(VLOOKUP($A139,Filtro!$A$5:$AX$2230,9,FALSE),0) -> 0 | L139: =IFERROR(VLOOKUP($A139,Filtro!$A$5:$AX$2230,10,FALSE),0) -> 0 | M139: =IFERROR(VLOOKUP($A139,Filtro!$A$5:$AX$2230,11,FALSE),0) -> 0 | N139: =IFERROR(VLOOKUP($A139,Filtro!$A$5:$AX$2230,212,FALSE),0) -> 0 | O139: =IFERROR(VLOOKUP($A139,Filtro!$A$5:$AX$2230,13,FALSE),0) -> 0 | P139: =IFERROR(VLOOKUP($A139,Filtro!$A$5:$AX$2230,14,FALSE),0) -> 0 | Q139: =IFERROR(VLOOKUP($A139,Filtro!$A$5:$AX$2230,15,FALSE),0) -> 0 | R139: =IFERROR(VLOOKUP($A139,Filtro!$A$5:$AX$2230,16,FALSE),0) -> 0 | S139: =IFERROR(VLOOKUP($A139,Filtro!$A$5:$AX$2230,17,FALSE),0) -> 0 | T139: =IFERROR(VLOOKUP($A139,Filtro!$A$5:$AX$2230,18,FALSE),0) -> 0 | U139: =IFERROR(VLOOKUP($A139,Filtro!$A$5:$AX$2230,19,FALSE),0) -> 0 | V139: =IFERROR(VLOOKUP($A139,Filtro!$A$5:$AX$2230,20,FALSE),0) -> 0 | W139: =IFERROR(VLOOKUP($A139,Filtro!$A$5:$AX$2230,21,FALSE),0) -> 0 | X139: =IFERROR(VLOOKUP($A139,Filtro!$A$5:$AX$2230,22,FALSE),0) -> 0 | Y139: =IFERROR(VLOOKUP($A139,Filtro!$A$5:$AX$2230,23,FALSE),0) -> 0 | Z139: =IFERROR(VLOOKUP($A139,Filtro!$A$5:$AX$2230,24,FALSE),0) -> 0 | AA139: =IFERROR(VLOOKUP($A139,Filtro!$A$5:$AX$2230,25,FALSE),0) -> 0 | AB139: =IFERROR(VLOOKUP($A139,Filtro!$A$5:$AX$2230,26,FALSE),0) -> 0
A140: 03053600 | C140: DISCAPACIDAD LEVE | D140: =IFERROR(VLOOKUP($A140,Filtro!$A$5:$AX$2230,2,FALSE),0) -> 5 | E140: =IFERROR(VLOOKUP($A140,Filtro!$A$5:$AX$2230,3,FALSE),0) -> 2 | F140: =IFERROR(VLOOKUP($A140,Filtro!$A$5:$AX$2230,4,FALSE),0) -> 3 | G140: =IFERROR(VLOOKUP($A140,Filtro!$A$5:$AX$2230,5,FALSE),0) -> 0 | H140: =IFERROR(VLOOKUP($A140,Filtro!$A$5:$AX$2230,6,FALSE),0) -> 0 | I140: =IFERROR(VLOOKUP($A140,Filtro!$A$5:$AX$2230,7,FALSE),0) -> 0 | J140: =IFERROR(VLOOKUP($A140,Filtro!$A$5:$AX$2230,8,FALSE),0) -> 0 | K140: =IFERROR(VLOOKUP($A140,Filtro!$A$5:$AX$2230,9,FALSE),0) -> 0 | L140: =IFERROR(VLOOKUP($A140,Filtro!$A$5:$AX$2230,10,FALSE),0) -> 0 | M140: =IFERROR(VLOOKUP($A140,Filtro!$A$5:$AX$2230,11,FALSE),0) -> 0 | N140: =IFERROR(VLOOKUP($A140,Filtro!$A$5:$AX$2230,212,FALSE),0) -> 0 | O140: =IFERROR(VLOOKUP($A140,Filtro!$A$5:$AX$2230,13,FALSE),0) -> 1 | P140: =IFERROR(VLOOKUP($A140,Filtro!$A$5:$AX$2230,14,FALSE),0) -> 1 | Q140: =IFERROR(VLOOKUP($A140,Filtro!$A$5:$AX$2230,15,FALSE),0) -> 0 | R140: =IFERROR(VLOOKUP($A140,Filtro!$A$5:$AX$2230,16,FALSE),0) -> 0 | S140: =IFERROR(VLOOKUP($A140,Filtro!$A$5:$AX$2230,17,FALSE),0) -> 0 | T140: =IFERROR(VLOOKUP($A140,Filtro!$A$5:$AX$2230,18,FALSE),0) -> 1 | U140: =IFERROR(VLOOKUP($A140,Filtro!$A$5:$AX$2230,19,FALSE),0) -> 0 | V140: =IFERROR(VLOOKUP($A140,Filtro!$A$5:$AX$2230,20,FALSE),0) -> 1 | W140: =IFERROR(VLOOKUP($A140,Filtro!$A$5:$AX$2230,21,FALSE),0) -> 1 | X140: =IFERROR(VLOOKUP($A140,Filtro!$A$5:$AX$2230,22,FALSE),0) -> 0 | Y140: =IFERROR(VLOOKUP($A140,Filtro!$A$5:$AX$2230,23,FALSE),0) -> 0 | Z140: =IFERROR(VLOOKUP($A140,Filtro!$A$5:$AX$2230,24,FALSE),0) -> 0 | AA140: =IFERROR(VLOOKUP($A140,Filtro!$A$5:$AX$2230,25,FALSE),0) -> 0 | AB140: =IFERROR(VLOOKUP($A140,Filtro!$A$5:$AX$2230,26,FALSE),0) -> 0
A141: 03053700 | C141: DISCAPACIDAD MODERADA | D141: =IFERROR(VLOOKUP($A141,Filtro!$A$5:$AX$2230,2,FALSE),0) -> 59 | E141: =IFERROR(VLOOKUP($A141,Filtro!$A$5:$AX$2230,3,FALSE),0) -> 33 | F141: =IFERROR(VLOOKUP($A141,Filtro!$A$5:$AX$2230,4,FALSE),0) -> 26 | G141: =IFERROR(VLOOKUP($A141,Filtro!$A$5:$AX$2230,5,FALSE),0) -> 0 | H141: =IFERROR(VLOOKUP($A141,Filtro!$A$5:$AX$2230,6,FALSE),0) -> 0 | I141: =IFERROR(VLOOKUP($A141,Filtro!$A$5:$AX$2230,7,FALSE),0) -> 0 | J141: =IFERROR(VLOOKUP($A141,Filtro!$A$5:$AX$2230,8,FALSE),0) -> 0 | K141: =IFERROR(VLOOKUP($A141,Filtro!$A$5:$AX$2230,9,FALSE),0) -> 1 | L141: =IFERROR(VLOOKUP($A141,Filtro!$A$5:$AX$2230,10,FALSE),0) -> 1 | M141: =IFERROR(VLOOKUP($A141,Filtro!$A$5:$AX$2230,11,FALSE),0) -> 4 | N141: =IFERROR(VLOOKUP($A141,Filtro!$A$5:$AX$2230,212,FALSE),0) -> 0 | O141: =IFERROR(VLOOKUP($A141,Filtro!$A$5:$AX$2230,13,FALSE),0) -> 0 | P141: =IFERROR(VLOOKUP($A141,Filtro!$A$5:$AX$2230,14,FALSE),0) -> 1 | Q141: =IFERROR(VLOOKUP($A141,Filtro!$A$5:$AX$2230,15,FALSE),0) -> 1 | R141: =IFERROR(VLOOKUP($A141,Filtro!$A$5:$AX$2230,16,FALSE),0) -> 2 | S141: =IFERROR(VLOOKUP($A141,Filtro!$A$5:$AX$2230,17,FALSE),0) -> 1 | T141: =IFERROR(VLOOKUP($A141,Filtro!$A$5:$AX$2230,18,FALSE),0) -> 0 | U141: =IFERROR(VLOOKUP($A141,Filtro!$A$5:$AX$2230,19,FALSE),0) -> 19 | V141: =IFERROR(VLOOKUP($A141,Filtro!$A$5:$AX$2230,20,FALSE),0) -> 20 | W141: =IFERROR(VLOOKUP($A141,Filtro!$A$5:$AX$2230,21,FALSE),0) -> 2 | X141: =IFERROR(VLOOKUP($A141,Filtro!$A$5:$AX$2230,22,FALSE),0) -> 0 | Y141: =IFERROR(VLOOKUP($A141,Filtro!$A$5:$AX$2230,23,FALSE),0) -> 5 | Z141: =IFERROR(VLOOKUP($A141,Filtro!$A$5:$AX$2230,24,FALSE),0) -> 0 | AA141: =IFERROR(VLOOKUP($A141,Filtro!$A$5:$AX$2230,25,FALSE),0) -> 0 | AB141: =IFERROR(VLOOKUP($A141,Filtro!$A$5:$AX$2230,26,FALSE),0) -> 1
A142: 03053800 | C142: DISCAPACIDAD SEVERA | D142: =IFERROR(VLOOKUP($A142,Filtro!$A$5:$AX$2230,2,FALSE),0) -> 216 | E142: =IFERROR(VLOOKUP($A142,Filtro!$A$5:$AX$2230,3,FALSE),0) -> 95 | F142: =IFERROR(VLOOKUP($A142,Filtro!$A$5:$AX$2230,4,FALSE),0) -> 121 | G142: =IFERROR(VLOOKUP($A142,Filtro!$A$5:$AX$2230,5,FALSE),0) -> 0 | H142: =IFERROR(VLOOKUP($A142,Filtro!$A$5:$AX$2230,6,FALSE),0) -> 0 | I142: =IFERROR(VLOOKUP($A142,Filtro!$A$5:$AX$2230,7,FALSE),0) -> 1 | J142: =IFERROR(VLOOKUP($A142,Filtro!$A$5:$AX$2230,8,FALSE),0) -> 0 | K142: =IFERROR(VLOOKUP($A142,Filtro!$A$5:$AX$2230,9,FALSE),0) -> 2 | L142: =IFERROR(VLOOKUP($A142,Filtro!$A$5:$AX$2230,10,FALSE),0) -> 2 | M142: =IFERROR(VLOOKUP($A142,Filtro!$A$5:$AX$2230,11,FALSE),0) -> 17 | N142: =IFERROR(VLOOKUP($A142,Filtro!$A$5:$AX$2230,212,FALSE),0) -> 0 | O142: =IFERROR(VLOOKUP($A142,Filtro!$A$5:$AX$2230,13,FALSE),0) -> 3 | P142: =IFERROR(VLOOKUP($A142,Filtro!$A$5:$AX$2230,14,FALSE),0) -> 5 | Q142: =IFERROR(VLOOKUP($A142,Filtro!$A$5:$AX$2230,15,FALSE),0) -> 4 | R142: =IFERROR(VLOOKUP($A142,Filtro!$A$5:$AX$2230,16,FALSE),0) -> 4 | S142: =IFERROR(VLOOKUP($A142,Filtro!$A$5:$AX$2230,17,FALSE),0) -> 2 | T142: =IFERROR(VLOOKUP($A142,Filtro!$A$5:$AX$2230,18,FALSE),0) -> 3 | U142: =IFERROR(VLOOKUP($A142,Filtro!$A$5:$AX$2230,19,FALSE),0) -> 37 | V142: =IFERROR(VLOOKUP($A142,Filtro!$A$5:$AX$2230,20,FALSE),0) -> 65 | W142: =IFERROR(VLOOKUP($A142,Filtro!$A$5:$AX$2230,21,FALSE),0) -> 7 | X142: =IFERROR(VLOOKUP($A142,Filtro!$A$5:$AX$2230,22,FALSE),0) -> 14 | Y142: =IFERROR(VLOOKUP($A142,Filtro!$A$5:$AX$2230,23,FALSE),0) -> 11 | Z142: =IFERROR(VLOOKUP($A142,Filtro!$A$5:$AX$2230,24,FALSE),0) -> 14 | AA142: =IFERROR(VLOOKUP($A142,Filtro!$A$5:$AX$2230,25,FALSE),0) -> 11 | AB142: =IFERROR(VLOOKUP($A142,Filtro!$A$5:$AX$2230,26,FALSE),0) -> 11
A143: 03053900 | C143: DISCAPACIDAD PROFUNDA | D143: =IFERROR(VLOOKUP($A143,Filtro!$A$5:$AX$2230,2,FALSE),0) -> 60 | E143: =IFERROR(VLOOKUP($A143,Filtro!$A$5:$AX$2230,3,FALSE),0) -> 27 | F143: =IFERROR(VLOOKUP($A143,Filtro!$A$5:$AX$2230,4,FALSE),0) -> 33 | G143: =IFERROR(VLOOKUP($A143,Filtro!$A$5:$AX$2230,5,FALSE),0) -> 0 | H143: =IFERROR(VLOOKUP($A143,Filtro!$A$5:$AX$2230,6,FALSE),0) -> 0 | I143: =IFERROR(VLOOKUP($A143,Filtro!$A$5:$AX$2230,7,FALSE),0) -> 1 | J143: =IFERROR(VLOOKUP($A143,Filtro!$A$5:$AX$2230,8,FALSE),0) -> 0 | K143: =IFERROR(VLOOKUP($A143,Filtro!$A$5:$AX$2230,9,FALSE),0) -> 1 | L143: =IFERROR(VLOOKUP($A143,Filtro!$A$5:$AX$2230,10,FALSE),0) -> 0 | M143: =IFERROR(VLOOKUP($A143,Filtro!$A$5:$AX$2230,11,FALSE),0) -> 3 | N143: =IFERROR(VLOOKUP($A143,Filtro!$A$5:$AX$2230,212,FALSE),0) -> 0 | O143: =IFERROR(VLOOKUP($A143,Filtro!$A$5:$AX$2230,13,FALSE),0) -> 2 | P143: =IFERROR(VLOOKUP($A143,Filtro!$A$5:$AX$2230,14,FALSE),0) -> 0 | Q143: =IFERROR(VLOOKUP($A143,Filtro!$A$5:$AX$2230,15,FALSE),0) -> 1 | R143: =IFERROR(VLOOKUP($A143,Filtro!$A$5:$AX$2230,16,FALSE),0) -> 2 | S143: =IFERROR(VLOOKUP($A143,Filtro!$A$5:$AX$2230,17,FALSE),0) -> 0 | T143: =IFERROR(VLOOKUP($A143,Filtro!$A$5:$AX$2230,18,FALSE),0) -> 0 | U143: =IFERROR(VLOOKUP($A143,Filtro!$A$5:$AX$2230,19,FALSE),0) -> 9 | V143: =IFERROR(VLOOKUP($A143,Filtro!$A$5:$AX$2230,20,FALSE),0) -> 10 | W143: =IFERROR(VLOOKUP($A143,Filtro!$A$5:$AX$2230,21,FALSE),0) -> 1 | X143: =IFERROR(VLOOKUP($A143,Filtro!$A$5:$AX$2230,22,FALSE),0) -> 3 | Y143: =IFERROR(VLOOKUP($A143,Filtro!$A$5:$AX$2230,23,FALSE),0) -> 7 | Z143: =IFERROR(VLOOKUP($A143,Filtro!$A$5:$AX$2230,24,FALSE),0) -> 2 | AA143: =IFERROR(VLOOKUP($A143,Filtro!$A$5:$AX$2230,25,FALSE),0) -> 2 | AB143: =IFERROR(VLOOKUP($A143,Filtro!$A$5:$AX$2230,26,FALSE),0) -> 15
B144: TOTAL DE EVALUACIONES | D144: =SUM(D114:D143) -> 1763 | E144: =SUM(E114:E143) -> 911 | F144: =SUM(F114:F143) -> 852 | G144: =SUM(G114:G143) -> 6 | H144: =SUM(H114:H143) -> 2 | I144: 4 | J144: 3 | K144: 49 | L144: 21 | M144: 105 | N144: 0 | O144: 57 | P144: 25 | Q144: 44 | R144: 27 | S144: 33 | T144: 20 | U144: 398 | V144: 477 | W144: 67 | X144: 63 | Y144: 86 | Z144: 80 | AA144: 62 | AB144: 93
A145: 03500336 | B145: EVALUACIÓN INGRESO | C145: SIN DISCAPACIDAD | D145: =IFERROR(VLOOKUP($A145,Filtro!$A$5:$AX$2230,2,FALSE),0) -> 94 | E145: =IFERROR(VLOOKUP($A145,Filtro!$A$5:$AX$2230,3,FALSE),0) -> 42 | F145: =IFERROR(VLOOKUP($A145,Filtro!$A$5:$AX$2230,4,FALSE),0) -> 52 | G145: =IFERROR(VLOOKUP($A145,Filtro!$A$5:$AX$2230,5,FALSE),0) -> 0 | H145: =IFERROR(VLOOKUP($A145,Filtro!$A$5:$AX$2230,6,FALSE),0) -> 0 | I145: =IFERROR(VLOOKUP($A145,Filtro!$A$5:$AX$2230,7,FALSE),0) -> 0 | J145: =IFERROR(VLOOKUP($A145,Filtro!$A$5:$AX$2230,8,FALSE),0) -> 0 | K145: =IFERROR(VLOOKUP($A145,Filtro!$A$5:$AX$2230,9,FALSE),0) -> 3 | L145: =IFERROR(VLOOKUP($A145,Filtro!$A$5:$AX$2230,10,FALSE),0) -> 2 | M145: =IFERROR(VLOOKUP($A145,Filtro!$A$5:$AX$2230,11,FALSE),0) -> 5 | N145: =IFERROR(VLOOKUP($A145,Filtro!$A$5:$AX$2230,212,FALSE),0) -> 0 | O145: =IFERROR(VLOOKUP($A145,Filtro!$A$5:$AX$2230,13,FALSE),0) -> 0 | P145: =IFERROR(VLOOKUP($A145,Filtro!$A$5:$AX$2230,14,FALSE),0) -> 1 | Q145: =IFERROR(VLOOKUP($A145,Filtro!$A$5:$AX$2230,15,FALSE),0) -> 1 | R145: =IFERROR(VLOOKUP($A145,Filtro!$A$5:$AX$2230,16,FALSE),0) -> 1 | S145: =IFERROR(VLOOKUP($A145,Filtro!$A$5:$AX$2230,17,FALSE),0) -> 1 | T145: =IFERROR(VLOOKUP($A145,Filtro!$A$5:$AX$2230,18,FALSE),0) -> 1 | U145: =IFERROR(VLOOKUP($A145,Filtro!$A$5:$AX$2230,19,FALSE),0) -> 20 | V145: =IFERROR(VLOOKUP($A145,Filtro!$A$5:$AX$2230,20,FALSE),0) -> 23 | W145: =IFERROR(VLOOKUP($A145,Filtro!$A$5:$AX$2230,21,FALSE),0) -> 3 | X145: =IFERROR(VLOOKUP($A145,Filtro!$A$5:$AX$2230,22,FALSE),0) -> 8 | Y145: =IFERROR(VLOOKUP($A145,Filtro!$A$5:$AX$2230,23,FALSE),0) -> 6 | Z145: =IFERROR(VLOOKUP($A145,Filtro!$A$5:$AX$2230,24,FALSE),0) -> 7 | AA145: =IFERROR(VLOOKUP($A145,Filtro!$A$5:$AX$2230,25,FALSE),0) -> 3 | AB145: =IFERROR(VLOOKUP($A145,Filtro!$A$5:$AX$2230,26,FALSE),0) -> 7
A146: 03500337 | C146: DISCAPACIDAD LEVE | D146: =IFERROR(VLOOKUP($A146,Filtro!$A$5:$AX$2230,2,FALSE),0) -> 184 | E146: =IFERROR(VLOOKUP($A146,Filtro!$A$5:$AX$2230,3,FALSE),0) -> 101 | F146: =IFERROR(VLOOKUP($A146,Filtro!$A$5:$AX$2230,4,FALSE),0) -> 83 | G146: =IFERROR(VLOOKUP($A146,Filtro!$A$5:$AX$2230,5,FALSE),0) -> 0 | H146: =IFERROR(VLOOKUP($A146,Filtro!$A$5:$AX$2230,6,FALSE),0) -> 0 | I146: =IFERROR(VLOOKUP($A146,Filtro!$A$5:$AX$2230,7,FALSE),0) -> 0 | J146: =IFERROR(VLOOKUP($A146,Filtro!$A$5:$AX$2230,8,FALSE),0) -> 0 | K146: =IFERROR(VLOOKUP($A146,Filtro!$A$5:$AX$2230,9,FALSE),0) -> 3 | L146: =IFERROR(VLOOKUP($A146,Filtro!$A$5:$AX$2230,10,FALSE),0) -> 2 | M146: =IFERROR(VLOOKUP($A146,Filtro!$A$5:$AX$2230,11,FALSE),0) -> 4 | N146: =IFERROR(VLOOKUP($A146,Filtro!$A$5:$AX$2230,212,FALSE),0) -> 0 | O146: =IFERROR(VLOOKUP($A146,Filtro!$A$5:$AX$2230,13,FALSE),0) -> 4 | P146: =IFERROR(VLOOKUP($A146,Filtro!$A$5:$AX$2230,14,FALSE),0) -> 0 | Q146: =IFERROR(VLOOKUP($A146,Filtro!$A$5:$AX$2230,15,FALSE),0) -> 2 | R146: =IFERROR(VLOOKUP($A146,Filtro!$A$5:$AX$2230,16,FALSE),0) -> 5 | S146: =IFERROR(VLOOKUP($A146,Filtro!$A$5:$AX$2230,17,FALSE),0) -> 5 | T146: =IFERROR(VLOOKUP($A146,Filtro!$A$5:$AX$2230,18,FALSE),0) -> 6 | U146: =IFERROR(VLOOKUP($A146,Filtro!$A$5:$AX$2230,19,FALSE),0) -> 61 | V146: =IFERROR(VLOOKUP($A146,Filtro!$A$5:$AX$2230,20,FALSE),0) -> 57 | W146: =IFERROR(VLOOKUP($A146,Filtro!$A$5:$AX$2230,21,FALSE),0) -> 13 | X146: =IFERROR(VLOOKUP($A146,Filtro!$A$5:$AX$2230,22,FALSE),0) -> 4 | Y146: =IFERROR(VLOOKUP($A146,Filtro!$A$5:$AX$2230,23,FALSE),0) -> 6 | Z146: =IFERROR(VLOOKUP($A146,Filtro!$A$5:$AX$2230,24,FALSE),0) -> 5 | AA146: =IFERROR(VLOOKUP($A146,Filtro!$A$5:$AX$2230,25,FALSE),0) -> 3 | AB146: =IFERROR(VLOOKUP($A146,Filtro!$A$5:$AX$2230,26,FALSE),0) -> 0
A147: 03500338 | C147: DISCAPACIDAD MODERADA | D147: =IFERROR(VLOOKUP($A147,Filtro!$A$5:$AX$2230,2,FALSE),0) -> 208 | E147: =IFERROR(VLOOKUP($A147,Filtro!$A$5:$AX$2230,3,FALSE),0) -> 126 | F147: =IFERROR(VLOOKUP($A147,Filtro!$A$5:$AX$2230,4,FALSE),0) -> 82 | G147: =IFERROR(VLOOKUP($A147,Filtro!$A$5:$AX$2230,5,FALSE),0) -> 1 | H147: =IFERROR(VLOOKUP($A147,Filtro!$A$5:$AX$2230,6,FALSE),0) -> 0 | I147: =IFERROR(VLOOKUP($A147,Filtro!$A$5:$AX$2230,7,FALSE),0) -> 0 | J147: =IFERROR(VLOOKUP($A147,Filtro!$A$5:$AX$2230,8,FALSE),0) -> 0 | K147: =IFERROR(VLOOKUP($A147,Filtro!$A$5:$AX$2230,9,FALSE),0) -> 3 | L147: =IFERROR(VLOOKUP($A147,Filtro!$A$5:$AX$2230,10,FALSE),0) -> 2 | M147: =IFERROR(VLOOKUP($A147,Filtro!$A$5:$AX$2230,11,FALSE),0) -> 11 | N147: =IFERROR(VLOOKUP($A147,Filtro!$A$5:$AX$2230,212,FALSE),0) -> 0 | O147: =IFERROR(VLOOKUP($A147,Filtro!$A$5:$AX$2230,13,FALSE),0) -> 7 | P147: =IFERROR(VLOOKUP($A147,Filtro!$A$5:$AX$2230,14,FALSE),0) -> 3 | Q147: =IFERROR(VLOOKUP($A147,Filtro!$A$5:$AX$2230,15,FALSE),0) -> 4 | R147: =IFERROR(VLOOKUP($A147,Filtro!$A$5:$AX$2230,16,FALSE),0) -> 2 | S147: =IFERROR(VLOOKUP($A147,Filtro!$A$5:$AX$2230,17,FALSE),0) -> 5 | T147: =IFERROR(VLOOKUP($A147,Filtro!$A$5:$AX$2230,18,FALSE),0) -> 0 | U147: =IFERROR(VLOOKUP($A147,Filtro!$A$5:$AX$2230,19,FALSE),0) -> 71 | V147: =IFERROR(VLOOKUP($A147,Filtro!$A$5:$AX$2230,20,FALSE),0) -> 52 | W147: =IFERROR(VLOOKUP($A147,Filtro!$A$5:$AX$2230,21,FALSE),0) -> 9 | X147: =IFERROR(VLOOKUP($A147,Filtro!$A$5:$AX$2230,22,FALSE),0) -> 5 | Y147: =IFERROR(VLOOKUP($A147,Filtro!$A$5:$AX$2230,23,FALSE),0) -> 9 | Z147: =IFERROR(VLOOKUP($A147,Filtro!$A$5:$AX$2230,24,FALSE),0) -> 14 | AA147: =IFERROR(VLOOKUP($A147,Filtro!$A$5:$AX$2230,25,FALSE),0) -> 6 | AB147: =IFERROR(VLOOKUP($A147,Filtro!$A$5:$AX$2230,26,FALSE),0) -> 2
